Workbook

Sheet Deckblatt&Legende
B19: Legende
C21: Arbeitsblätter | G21: Beschreibung
C23: Annahmen&Ergebnisübersicht
D24: Annahmen&Ergebnisse-Übersicht | G24: Darstellungsübersicht der wichtigsten Annahmen und Berechnungsergebnisse inkl. Grafiken
C26: Annahmenblätter
D27: Generelle-Annahmen | G27: Festlegung der generellen Annahmen [u.a. planmäßig, linear gleichbleibenden Annahmen]
D28: Nichtlineare-Annahmen | G28: Festlegung der zeitabhängigen, außerplanmäßigen Annahmen [d.h. zeitlich flexible, nichtlineare Annahmen]
C30: Berechnungsblätter
D31: Zeit | G31: Berechnung der zeitlichen Rahmenbedingungen des Modells (Hilfsberechnungsblatt)
D32: 0-Variante | G32: ="Berechnung der "&D32 -> Berechnung der 0-Variante
D33: Variante 1 | G33: ="Berechnung der "&D33 -> Berechnung der Variante 1
D34: Variante 2 | G34: Berechnung der Variante 2
D35: Variante 3 | G35: Berechnung der Variante 3
D36: Variante 4 | G36: Berechnung der Variante 4
D37: Mietvariante | G37: Berechnung der Mietvariante
C39: Ergebnisblätter
D40: Zusammenfassung | G40: Zusammenfassender Ergebnisausweis der sechs Varianten (Buchwertentwicklung, Barwerte)
D41: Nominalwerte | G41: Zusammenfassender Ergebnisausweis der sechs Varianten (Nominalwerte)
D42: Veränderung-EK | G42: Zusammenfassender Ergebnisausweis der sechs Varianten (Entwicklung der Liquidität über den Betrachtungszeitraum)
D43: Ergebnisse | G43: Zusammenfassung aller wesentlichen Ergebniskennzahlen der sechs Varianten
C45: Grafiken
D46: Barwert-NKF | G46: Grafische Darstellung der Barwerte der sechs Varianten (Ressourcenverbrauchsansatz)
D47: Saldierter Ressourcenverbrauch | G47: Grafische Darstellung der Barwerte inkl. der Berücksichtigung des Buchwertes der sechs Varianten
D48: Sald. Ressourcenverbrauch kum. | G48: Grafische Darstellung der Barwerte inkl. der Berücksichtigung des Buchwertes der sechs Varianten im zeitlichen Verlauf
D49: Nominalwert-NKF p.a. | G49: Grafische Darstellung der Nominalwerte (Ø pro Jahr) der sechs Varianten im zeitlichen Verlauf
D50: Nominalwert-NKF Zusammensetzung | G50: Grafische Darstellung der Nominalwerte der sechs Varianten als Zusammensetzung der einzelnen Bestandteile
D51: Ausgabenbarwert | G51: Grafische Darstellung der Ausgabenbarwerte der sechs Varianten unter Berücksichtigung von Investitionskosten/Tilgung (Investitionsansatz)
D52: Energieverbrauch | G52: Grafische Darstellung der Energieverbräuche der sechs Varianten zzgl. EnEV Werten
D53: CO2 Einsparungen | G53: Grafische Darstellung des CO2 Verbrauchs der Varianten im Vergleich zur 0-Variante
D54: Buchwert | G54: Grafische Darstellung des Buchwertes am Ende des Betrachtungszeitraumes
D55: Amortisation | G55: Grafische Darstellung des Amortisationszeitpunktes für energieeffiziente Investitionen
C57: Farbcodierung | G57: Beschreibung
D59: orangefarbene Zelle + schwarzer Farbschriftsatz | G59: Alle Annahmen bzw. Inputs müssen vom Anwender in diese orangefarbenen Zellen eingetragen werden.
D60: eisblaue Zelle + schwarzer Farbschriftsatz | G60: Zeigt Zellen an, in die grundsätzlich ("k.A.") bzw. je nach zuvor an anderer Stelle getroffener Annahme (bedingte Formatierung im Arbeitsblatt "Generelle-Annahmen") keine Eingaben eingefügt werden dürfen.
D61: blauer Farbschriftsatz in Zeile | G61: Zeigt Querverbindungen zu anderen Arbeitsblättern an. Blauer Farbschriftsatz heißt: das Ergebnis ist aus einem anderem Arbeitsblatt importiert worden.
D62: grüner Farbschriftsatz in Zeile | G62: Zeigt Querverbindungen zu anderen Arbeitsblättern an. Grüner Farbschriftsatz heißt: das Ergebnis wird in eine weitere Berechnung eines anderen Arbeitsblatts exportiert.
D63: schwarzer Farbschriftsatz in Zeile | G63: Stellt in den Berechnungsblättern eine Berechnung dar, die weder importiert wurde noch exportiert wird.
D64: graue Zelle + schwarzer Farbschriftsatz | G64: Stellt eine Umkehrberechnung innerhalb des gleichen Arbeitsblatts dar (d.h. ein Berechnungsergebnis geht als Export in eine Berechnung ein, welches an anderer Stelle weiter oben im Blatt aufgeführt wird).
D65: schwarzer Farbschriftsatz in Zeile | G65: Zeigt Zellen an, in die keine Zahlen eingefügt werden dürfen, da außerhalb Projektbetrachtungszeitraum (bedingte Formatierung im Arbeitsblatt Nichtlineare-Annahmen).

Sheet Annahmen&Ergebnisse-Übersicht
C1: Hinweis: In dieses Arbeitsblatt sind keine Eingaben von Annahmen vorzunehmen!
C3: Farblegende | K3: Projekt | L3: ='Generelle-Annahmen'!F6 -> Ernst-von-Block-Grundschule der Stadt Beldingen
D5: Annahmen
D6: Ergebnisse
C9: Annahmen Projektzeitrahmen | J9: Planmäßige Kostenannahmen der Varianten (ohne Risikoaufschläge)
D11: Definition Parameter | F11: Konstante | H11: Einheit | N11: ='Generelle-Annahmen'!I3 -> 0-Variante | P11: ='Generelle-Annahmen'!J3 -> Variante 1 - Eigenrealisierung Sanierung | R11: ='Generelle-Annahmen'!K3 -> Variante 2 - ÖPP Sanierung | T11: ='Generelle-Annahmen'!L3 -> Variante 3 - Eigenrealisierung Neubau | V11: ='Generelle-Annahmen'!M3 -> Variante 4 - ÖPP Neubau | X11: ='Generelle-Annahmen'!N3 -> Mietvariante
K12: Variantenkurzbeschreibung | N12: ='Generelle-Annahmen'!I10 -> 0 | P12: ='Generelle-Annahmen'!J10 -> Basiskonzept | R12: ='Generelle-Annahmen'!K10 -> Basiskonzept | T12: ='Generelle-Annahmen'!L10 -> Basiskonzept | V12: ='Generelle-Annahmen'!M10 -> Basiskonzept | X12: ='Generelle-Annahmen'!N10 -> Basiskonzept
D13: Projektstartdatum | F13: ='Generelle-Annahmen'!F16 -> 2018-01-01 | H13: Datum | K13: Länge Bau- und Sanierungsphase in Monaten | N13: ='Generelle-Annahmen'!I21 -> k.A. | P13: ='Generelle-Annahmen'!J21 -> 36 | R13: ='Generelle-Annahmen'!K21 -> 36 | T13: ='Generelle-Annahmen'!L21 -> 36 | V13: ='Generelle-Annahmen'!M21 -> 36 | X13: ='Generelle-Annahmen'!N21 -> 12
D14: Projektlaufzeit inkl. Bauphase | F14: ='Generelle-Annahmen'!F17 -> 28 | H14: Jahre | K14: Nutzungsfläche in m² BGF | N14: ='Generelle-Annahmen'!I80 -> 0 | P14: ='Generelle-Annahmen'!J80 -> 0 | R14: ='Generelle-Annahmen'!K80 -> 0 | T14: ='Generelle-Annahmen'!L80 -> 0 | V14: ='Generelle-Annahmen'!M80 -> 0 | X14: ='Generelle-Annahmen'!N80 -> 0
D15: Enddatum Projektlaufzeit | F15: ='Generelle-Annahmen'!F18 -> 2045-12-31 | H15: Datum | K15: Investitionskosten (gesamt) in € | N15: k.A. | P15: ='Generelle-Annahmen'!J93 -> 5500000 | R15: ='Generelle-Annahmen'!K93 -> 5250000 | T15: ='Generelle-Annahmen'!L93 -> 6050000 | V15: ='Generelle-Annahmen'!M93 -> 5775000 | X15: ='Generelle-Annahmen'!N93 -> 0
K16: Mietpreis pro m² BGF p.a. in € (Miete inkl. aller Betriebskosten ohne Energiekosten) | N16: k.A. | P16: k.A. | R16: k.A. | T16: k.A. | V16: k.A. | X16: =IF('Generelle-Annahmen'!N80=0,"k.A.",('Generelle-Annahmen'!N197*'Generelle-Annahmen'!N196+'Nichtlineare-Annahmen'!H114/'Generelle-Annahmen'!N25*(1-'Generelle-Annahmen'!N196))/'Generelle-Annahmen'!N80) -> k.A.
K17: Neue Restnutzungsdauer in Jahren | N17: k.A. | P17: ='Generelle-Annahmen'!J98 -> 72 | R17: ='Generelle-Annahmen'!K98 -> 72 | T17: ='Generelle-Annahmen'!L98 -> 80 | V17: ='Generelle-Annahmen'!M98 -> 80 | X17: ='Generelle-Annahmen'!N98 -> 0
C18: Finanzierungsannahmen | K18: Passivierbare Zuwendung für Investition in € | N18: k.A. | P18: ='Generelle-Annahmen'!J99 -> 0 | R18: ='Generelle-Annahmen'!K99 -> 0 | T18: ='Generelle-Annahmen'!L99 -> 0 | V18: ='Generelle-Annahmen'!M99 -> 0 | X18: ='Generelle-Annahmen'!N99 -> 0
K19: Verkaufserlöse, Eigenmittel etc. in € | N19: k.A. | P19: ='Generelle-Annahmen'!J100 -> 0 | R19: ='Generelle-Annahmen'!K100 -> 0 | T19: ='Generelle-Annahmen'!L100 -> 0 | V19: ='Generelle-Annahmen'!M100 -> 0 | X19: ='Generelle-Annahmen'!N100 -> 0
D20: Definition Parameter | F20: Konstante | H20: Einheit | K20: Variantenspez. Kosten während Bauphase in € | N20: k.A. | P20: =SUM('Generelle-Annahmen'!J104:J105) -> 125000 | R20: =SUM('Generelle-Annahmen'!K104:K105) -> 125000 | T20: =SUM('Generelle-Annahmen'!L104:L105) -> 0 | V20: =SUM('Generelle-Annahmen'!M104:M105) -> 0 | X20: =SUM('Generelle-Annahmen'!N104:N105) -> 400000
K21: Betriebskosten p.a. Jahr 1 in € | N21: =SUM('Generelle-Annahmen'!I109:I119,'Generelle-Annahmen'!I123) -> 82500 | P21: =SUM('Generelle-Annahmen'!J109:J119,'Generelle-Annahmen'!J123) + SUM('Generelle-Annahmen'!J141:J151,'Generelle-Annahmen'!J155)*('Generelle-Annahmen'!J$9="ÖPP") -> 63575 | R21: =SUM('Generelle-Annahmen'!K109:K119,'Generelle-Annahmen'!K123) + SUM('Generelle-Annahmen'!K141:K151,'Generelle-Annahmen'!K155)*('Generelle-Annahmen'!K$9="ÖPP") -> 67406 | T21: =SUM('Generelle-Annahmen'!L109:L119,'Generelle-Annahmen'!L123) + SUM('Generelle-Annahmen'!L141:L151,'Generelle-Annahmen'!L155)*('Generelle-Annahmen'!L$9="ÖPP") -> 63575 | V21: =SUM('Generelle-Annahmen'!M109:M119,'Generelle-Annahmen'!M123) + SUM('Generelle-Annahmen'!M141:M151,'Generelle-Annahmen'!M155)*('Generelle-Annahmen'!M$9="ÖPP") -> 67406 | X21: =SUM('Generelle-Annahmen'!N109:N119,'Generelle-Annahmen'!N123) + SUM('Generelle-Annahmen'!N141:N151,'Generelle-Annahmen'!N155) -> 67406
D22: Diskontierungssatz | F22: ='Generelle-Annahmen'!F33 -> 0.035 | H22: Prozent p.a. | K22: Energieverbräuche in kWh/a | N22: =('Generelle-Annahmen'!I127 + 'Generelle-Annahmen'!I132)*(1-'Generelle-Annahmen'!I125) -> 0 | P22: =('Generelle-Annahmen'!J127 + 'Generelle-Annahmen'!J132)*(1-'Generelle-Annahmen'!J125) + ('Generelle-Annahmen'!J159 + 'Generelle-Annahmen'!J164)*(1-'Generelle-Annahmen'!J157)*('Generelle-Annahmen'!J$9="ÖPP") -> 0 | R22: =('Generelle-Annahmen'!K127 + 'Generelle-Annahmen'!K132)*(1-'Generelle-Annahmen'!K125) + ('Generelle-Annahmen'!K159 + 'Generelle-Annahmen'!K164)*(1-'Generelle-Annahmen'!K157)*('Generelle-Annahmen'!K$9="ÖPP") -> 0 | T22: =('Generelle-Annahmen'!L127 + 'Generelle-Annahmen'!L132)*(1-'Generelle-Annahmen'!L125) + ('Generelle-Annahmen'!L159 + 'Generelle-Annahmen'!L164)*(1-'Generelle-Annahmen'!L157)*('Generelle-Annahmen'!L$9="ÖPP") -> 0 | V22: =('Generelle-Annahmen'!M127 + 'Generelle-Annahmen'!M132)*(1-'Generelle-Annahmen'!M125) + ('Generelle-Annahmen'!M159 + 'Generelle-Annahmen'!M164)*(1-'Generelle-Annahmen'!M157)*('Generelle-Annahmen'!M$9="ÖPP") -> 0 | X22: =('Generelle-Annahmen'!N127 + 'Generelle-Annahmen'!N132)*(1-'Generelle-Annahmen'!N125) + ('Generelle-Annahmen'!N159 + 'Generelle-Annahmen'!N164)*(1-'Generelle-Annahmen'!N157) -> 0
D23: Endfinanzierungssatz Eigenrealisierung | F23: ='Generelle-Annahmen'!F41 -> 0.035 | H23: Prozent p.a. | K23: Energiekosten p.a. Jahr 1 in € | N23: =IF('Generelle-Annahmen'!I125=1,'Generelle-Annahmen'!I130 + 'Generelle-Annahmen'!I135,'Generelle-Annahmen'!I129 + 'Generelle-Annahmen'!I134) -> 80000 | P23: =IF('Generelle-Annahmen'!J125=1,'Generelle-Annahmen'!J130 + 'Generelle-Annahmen'!J135,'Generelle-Annahmen'!J129 + 'Generelle-Annahmen'!J134) + IF('Generelle-Annahmen'!J157=1, 'Generelle-Annahmen'!J162 + 'Generelle-Annahmen'!J167,'Generelle-Annahmen'!J161 + 'Generelle-Annahmen'!J166)*('Generelle-Annahmen'!J$9="ÖPP") -> 73600 | R23: =IF('Generelle-Annahmen'!K125=1, 'Generelle-Annahmen'!K130 + 'Generelle-Annahmen'!K135,'Generelle-Annahmen'!K129 + 'Generelle-Annahmen'!K134) + IF('Generelle-Annahmen'!K157=1, 'Generelle-Annahmen'!K162 + 'Generelle-Annahmen'!K167,'Generelle-Annahmen'!K161 + 'Generelle-Annahmen'!K166)*('Generelle-Annahmen'!K$9="ÖPP") -> 72000 | T23: =IF('Generelle-Annahmen'!L125=1,'Generelle-Annahmen'!L130 + 'Generelle-Annahmen'!L135, 'Generelle-Annahmen'!L129 + 'Generelle-Annahmen'!L134) + IF('Generelle-Annahmen'!L157=1, 'Generelle-Annahmen'!L162 + 'Generelle-Annahmen'!L167,'Generelle-Annahmen'!L161 + 'Generelle-Annahmen'!L166)*('Generelle-Annahmen'!L$9="ÖPP") -> 73600 | V23: =IF('Generelle-Annahmen'!M125=1, 'Generelle-Annahmen'!M130 + 'Generelle-Annahmen'!M135,'Generelle-Annahmen'!M129 + 'Generelle-Annahmen'!M134) + IF('Generelle-Annahmen'!M157=1, 'Generelle-Annahmen'!M162 + 'Generelle-Annahmen'!M167,'Generelle-Annahmen'!M161 + 'Generelle-Annahmen'!M166)*('Generelle-Annahmen'!M$9="ÖPP") -> 72000 | X23: =IF('Generelle-Annahmen'!N125=1, 'Generelle-Annahmen'!N130 + 'Generelle-Annahmen'!N135,'Generelle-Annahmen'!N129 + 'Generelle-Annahmen'!N134) + IF('Generelle-Annahmen'!N157=1, 'Generelle-Annahmen'!N162 + 'Generelle-Annahmen'!N167,'Generelle-Annahmen'!N161 + 'Generelle-Annahmen'!N166) -> 72000
D24: Endfinanzierungssatz ÖPP | F24: ='Generelle-Annahmen'!F42 -> 0.035 | H24: Prozent p.a. | K24: Verbleibendes Personal bei Verwaltung p.a. in € | N24: =SUM('Generelle-Annahmen'!I173:I175) -> 33000 | P24: =SUM('Generelle-Annahmen'!J171:J175) -> 66500 | R24: =SUM('Generelle-Annahmen'!K171:K175) -> 59125 | T24: =SUM('Generelle-Annahmen'!L171:L175) -> 66500 | V24: =SUM('Generelle-Annahmen'!M171:M175) -> 59125 | X24: =SUM('Generelle-Annahmen'!N171:N175) -> 4125
K25: Mieterträge p.a. in € | N25: ='Generelle-Annahmen'!I194 -> 0 | P25: ='Generelle-Annahmen'!J194 -> 0 | R25: ='Generelle-Annahmen'!K194 -> 0 | T25: ='Generelle-Annahmen'!L194 -> 0 | V25: ='Generelle-Annahmen'!M194 -> 0 | X25: ='Generelle-Annahmen'!N194 -> 0
K26: Mietaufwände p.a. in € | N26: ='Generelle-Annahmen'!I197 -> 0 | P26: ='Generelle-Annahmen'!J197 -> 0 | R26: ='Generelle-Annahmen'!K197 -> 0 | T26: ='Generelle-Annahmen'!L197 -> 0 | V26: ='Generelle-Annahmen'!M197 -> 0 | X26: ='Generelle-Annahmen'!N197 -> 100000
C27: ='Generelle-Annahmen'!B69 -> Bestehender Objektwert IST-Zustand (brutto) zu Projektbeginn
D29: Definition Parameter | F29: Konstante | H29: Einheit | J29: Berechnungsergebnisse
D31: Restbuchwert Grundstück gegenwärtiger Ist-Bestand | F31: ='Generelle-Annahmen'!F73 -> 250000 | H31: Euro | N31: =N11 -> 0-Variante | P31: =P11 -> Variante 1 - Eigenrealisierung Sanierung | R31: =R11 -> Variante 2 - ÖPP Sanierung | T31: =T11 -> Variante 3 - Eigenrealisierung Neubau | V31: =V11 -> Variante 4 - ÖPP Neubau | X31: =X11 -> Mietvariante
D32: Restbuchwert Gebäude gegenwärtiger Ist-Bestand | F32: ='Generelle-Annahmen'!F74 -> 4750000 | H32: Euro | K32: Barwert nach NKF-Terminologie in € | N32: =Ergebnisse!F7 -> -7404810.688 | P32: =Ergebnisse!F8 -> -8551426.783 | R32: =Ergebnisse!F9 -> -8309077.011 | T32: =Ergebnisse!F10 -> -8240621.004 | V32: =Ergebnisse!F11 -> -7989643.864 | X32: =Ergebnisse!F12 -> -9047997.82
D33: Restbuchwert gegenwärtige Sonderposten | F33: ='Generelle-Annahmen'!F75 -> 2000000 | H33: Euro | K33: Gesamtbarwert in € [unter Berücksichtigung Investitionskosten/Tilgung] | N33: =Ergebnisse!F20 -> -5669657.051 | P33: =Ergebnisse!F21 -> -9849577.326 | R33: =Ergebnisse!F22 -> -9512670.587 | T33: =Ergebnisse!F23 -> -9931376.981 | V33: =Ergebnisse!F24 -> -9570301.454 | X33: =Ergebnisse!F25 -> -6390992.989
D34: Abschreibungsdauer Gebäude & Auflösung Sonderposten | F34: ='Generelle-Annahmen'!F76 -> 28 | H34: Jahre | K34: Saldierter Ressourcenverbrauch in € | N34: =Ergebnisse!F40 -> -7154810.688 | P34: =Ergebnisse!F41 -> -2850368.03 | R34: =Ergebnisse!F42 -> -2782938.994 | T34: =Ergebnisse!F43 -> -1844317.253 | V34: =Ergebnisse!F44 -> -1795987.645 | X34: =Ergebnisse!F45 -> -8797997.82
K35: Buchwert am Ende des Betrachtungszeitraums in € | N35: =Ergebnisse!F31 -> 250000 | P35: =Ergebnisse!F32 -> 5701058.753 | R35: =Ergebnisse!F33 -> 5526138.017 | T35: =Ergebnisse!F34 -> 6396303.751 | V35: =Ergebnisse!F35 -> 6193656.219 | X35: =Ergebnisse!F36 -> 250000
C37: Energieeffizienz Annahmen | K37: Energieverbrauch in kWh/m² | N37: =Ergebnisse!F58 -> 0 | P37: =Ergebnisse!F59 -> 0 | R37: =Ergebnisse!F60 -> 0 | T37: =Ergebnisse!F61 -> 0 | V37: =Ergebnisse!F62 -> 0 | X37: =Ergebnisse!F63 -> 0
D39: Definition Parameter | F39: Konstante | H39: Einheit | K39: Entwicklung Buchwert über Betrachtungszeitraum | N39: ='Veränderung-EK'!I12 -> -4750000 | P39: ='Veränderung-EK'!K12 -> 1471532.41 | R39: ='Veränderung-EK'!M12 -> 1314575.354 | T39: ='Veränderung-EK'!O12 -> 2189261.282 | V39: ='Veränderung-EK'!Q12 -> 2006373.797 | X39: ='Veränderung-EK'!S12 -> -4750000
K40: Auflösungen über Betrachtungszeitraum | N40: ='Veränderung-EK'!I21 -> 2000000 | P40: ='Veränderung-EK'!K21 -> 834325.3968 | R40: ='Veränderung-EK'!M21 -> 834325.3968 | T40: ='Veränderung-EK'!O21 -> 772321.4286 | V40: ='Veränderung-EK'!Q21 -> 772321.4286 | X40: ='Veränderung-EK'!S21 -> 2000000
D41: ENEV-Zielverbrauchswert | F41: ='Generelle-Annahmen'!F62 -> 1000 | H41: kWh/ m² p.a. | K41: Entwicklung Liquidität über Betrachtungszeitraum | N41: ='Veränderung-EK'!I43 -> -3161033.962 | P41: ='Veränderung-EK'!K43 -> -3570529.132 | R41: ='Veränderung-EK'!M43 -> -3460043.875 | T41: ='Veränderung-EK'!O43 -> -3503557.819 | V41: ='Veränderung-EK'!Q43 -> -3388225.158 | X41: ='Veränderung-EK'!S43 -> -5922614.727
D42: angestrebte Unterschreitung ENEV-Wert | F42: ='Generelle-Annahmen'!F63 -> 0.1 | H42: Prozent | K42: Entwicklung Eigenkapital über Betrachtungszeitraum | N42: ='Veränderung-EK'!I47 -> -5911033.962 | P42: ='Veränderung-EK'!K47 -> -1264671.325 | R42: ='Veränderung-EK'!M47 -> -1311143.125 | T42: ='Veränderung-EK'!O47 -> -541975.1081 | V42: ='Veränderung-EK'!Q47 -> -609529.9327 | X42: ='Veränderung-EK'!S47 -> -8672614.727
D43: ENEV-Zielverbrauchswert über Betriebslaufzeit | F43: ='Generelle-Annahmen'!F64 -> 28000 | H43: kWh/ m²
D44: angestrebter reduzierter Energieverbrauchswert über Betriebslaufzeit | F44: ='Generelle-Annahmen'!F65 -> 25200 | H44: kWh/ m²
C47: Barwertvergleich [nach NKF-Terminologie] in Euro | J47: Buchwert am Ende des Betrachtungszeitraums in Euro | R47: Saldierter Ressourcenverbrauch: Buchwert am Ende abzgl. Aufwendungen in Euro
C72: Niedrigster Barwert & Relativer Vorteil zum unwirtschaftlichsten | J72: Gesamtbarwert [unter Berücksichtigung Investitionskosten/Tilgung] | R72: Nominalwertvergleich [nach NKF-Terminologie] in Euro Ø pro Jahr

Sheet Generelle-Annahmen
A1: =RIGHT( CELL("filename",$A$1), LEN( CELL("filename",$A$1)) - SEARCH("]", CELL("filename",$A$1))) -> Generelle-Annahmen
E2: Definition Parameter | F2: Konstante für variantenunabhängige Annahmen | G2: Einheit | I2: Konstante für variantenabhängige Annahmen
I3: 0-Variante | J3: ="Variante 1 - "&J9&" "&J8 -> Variante 1 - Eigenrealisierung Sanierung | K3: ="Variante 2 - "&K9&" "&K8 -> Variante 2 - ÖPP Sanierung | L3: ="Variante 3 - "&L9&" "&L8 -> Variante 3 - Eigenrealisierung Neubau | M3: ="Variante 4 - "&M9&" "&M8 -> Variante 4 - ÖPP Neubau | N3: Mietvariante
A4: ÜBERGEORDNETE ANNAHMEN
B6: Projektname | F6: Ernst-von-Block-Grundschule der Stadt Beldingen
B8: Realisierungsvariante | I8: k.A. | J8: Sanierung | K8: Sanierung | L8: Neubau | M8: Neubau | N8: k.A.
B9: Beschaffungsvariante | I9: k.A. | J9: Eigenrealisierung | K9: ÖPP | L9: Eigenrealisierung | M9: ÖPP | N9: k.A.
B10: Variantenkurzbeschreibung | J10: Basiskonzept | K10: Basiskonzept | L10: Basiskonzept | M10: Basiskonzept | N10: Basiskonzept
A12: ANNAHMEN ZEITRAHMEN
B14: Allgemeine Modell- und Projektannahmen
E16: Startdatum Excel-Modell & Projektlaufzeit (für alle Varianten) | F16: 2018-01-01 | G16: Datum | I16: =$F$16 -> 2018-01-01 | J16: =$F$16 -> 2018-01-01 | K16: 2018-01-01 | L16: 2018-01-01 | M16: 2018-01-01 | N16: 2018-01-01
E17: Projektlaufzeit (für alle Varianten) | F17: 28 | G17: Jahre | I17: =$F17 -> 28 | J17: =$F17 -> 28 | K17: 28 | L17: 28 | M17: 28 | N17: 28
E18: Enddatum Projektlaufzeit & Betriebsphase (für alle Varianten) | F18: =IF(F16="",0,MIN(Zeit!AR14,DATE(YEAR(F16)+F17-MOD(F17,1),MONTH(F16)+MOD(F17,1)*12,DAY(F16)-1))) -> 2045-12-31 | G18: Datum | I18: =$F18 -> 2045-12-31 | J18: 2045-12-31 | K18: 2045-12-31 | L18: 2045-12-31 | M18: 2045-12-31 | N18: 2045-12-31
E20: Startdatum Bau- bzw. Sanierungsphase und Anmietungsphase | G20: Datum | I20: k.A. | J20: 2018-01-01 | K20: 2018-01-01 | L20: 2018-01-01 | M20: 2018-01-01 | N20: 2018-01-01
E21: Länge Bau- bzw. Sanierungsphase | G21: Monate | I21: k.A. | J21: 36 | K21: 36 | L21: 36 | M21: 36 | N21: 12
E22: Enddatum Bau- bzw. Sanierungsphase | G22: Datum | I22: k.A. | J22: =IF(J20="",0,MIN(DATE(YEAR(J20),MONTH(J20)+J21-MOD(J21,1),DAY(J20)+MOD(J21,1)*30-1),J18)) -> 2020-12-31 | K22: =IF(K20="",0,MIN(DATE(YEAR(K20),MONTH(K20)+K21-MOD(K21,1),DAY(K20)+MOD(K21,1)*30-1),K18)) -> 2020-12-31 | L22: 2020-12-31 | M22: 2020-12-31 | N22: 2018-12-31
E24: Startdatum Betriebs- bzw. Anmietungsphase | G24: Datum | I24: =I16 -> 2018-01-01 | J24: =IF(J20=0,J16,J22+1) -> 2021-01-01 | K24: =IF(K20=0,K16,K22+1) -> 2021-01-01 | L24: 2021-01-01 | M24: 2021-01-01 | N24: =IF(N20=0,N16,N20) -> 2018-01-01
E25: Länge Betriebs- bzw. Anmietungsphase | G25: Jahre | I25: =ROUND((I26-I24)/365.25,2) -> 28 | J25: =ROUND((J26-J24)/365.25,2) -> 25 | K25: =ROUND((K26-K24)/365.25,2) -> 25 | L25: 25 | M25: 25 | N25: =ROUND((N26-N24)/365.25,2) -> 28
E26: Enddatum Betriebs- bzw. Anmietungsphase (für alle Varianten) | G26: Datum | I26: =I$18 -> 2045-12-31 | J26: =J$18 -> 2045-12-31 | K26: 2045-12-31 | L26: 2045-12-31 | M26: 2045-12-31 | N26: 2045-12-31
A28: VARIANTENUNBHÄNGIGE ANNAHMEN
B30: Barwert
E32: Startdatum Diskontierung | F32: 2018-01-01 | G32: Datum | I32: =$F$32 -> 2018-01-01 | J32: =$F$32 -> 2018-01-01 | K32: 2018-01-01 | L32: 2018-01-01 | M32: 2018-01-01 | N32: 2018-01-01
E33: Diskontierungssatz | F33: 0.035 | G33: Prozent p.a. | I33: =$F$33 -> 0.035 | J33: =$F$33 -> 0.035 | K33: 0.035 | L33: 0.035 | M33: 0.035 | N33: 0.035
B35: Finanzierung
E37: Anteil zu finanzierende Kosten aus Betrieb | F37: 0.35 | G37: Prozent | I37: =$F$37 -> 0.35 | J37: =$F$37 -> 0.35 | K37: 0.35 | L37: 0.35 | M37: 0.35 | N37: 0.35
E38: Finanzierungszinssatz Liquiditätskredit | F38: 0.01 | G38: Prozent p.a. | I38: =$F$38 -> 0.01 | J38: =$F$38 -> 0.01 | K38: 0.01 | L38: 0.01 | M38: 0.01 | N38: 0.01
E39: Finanzierungszinssatz Investitionskredit (Bauzwischenfinanzierung) Eigenrealisierung | F39: 0.015 | G39: Prozent p.a. | I39: k.A. | J39: =IF(J$9="Eigenrealisierung",$F39,"k.A.") -> 0.015 | K39: =IF(K$9="Eigenrealisierung",$F39,"k.A.") -> k.A. | L39: =IF(L$9="Eigenrealisierung",$F39,"k.A.") -> 0.015 | M39: =IF(M$9="Eigenrealisierung",$F39,"k.A.") -> k.A. | N39: =$F$39 -> 0.015
E40: Finanzierungszinssatz Investitionskredit (Bauzwischenfinanzierung) ÖPP | F40: 0.015 | G40: Prozent p.a. | I40: k.A. | J40: =IF(J$9="Eigenrealisierung","k.A.",$F40) -> k.A. | K40: =IF(K$9="Eigenrealisierung","k.A.",$F40) -> 0.015 | L40: =IF(L$9="Eigenrealisierung","k.A.",$F40) -> k.A. | M40: =IF(M$9="Eigenrealisierung","k.A.",$F40) -> 0.015 | N40: k.A.
E41: Finanzierungszinssatz Investitionskredit (Endfinanzierung) Eigenrealisierung | F41: 0.035 | G41: Prozent p.a. | I41: k.A. | J41: =IF(J$9="Eigenrealisierung",$F41,"k.A.") -> 0.035 | K41: =IF(K$9="Eigenrealisierung",$F41,"k.A.") -> k.A. | L41: =IF(L$9="Eigenrealisierung",$F41,"k.A.") -> 0.035 | M41: =IF(M$9="Eigenrealisierung",$F41,"k.A.") -> k.A. | N41: =$F$41 -> 0.035
E42: Finanzierungszinssatz Investitionskredit (Endfinanzierung) ÖPP | F42: 0.035 | G42: Prozent p.a. | I42: k.A. | J42: =IF(J$9="Eigenrealisierung","k.A.",$F42) -> k.A. | K42: =IF(K$9="Eigenrealisierung","k.A.",$F42) -> 0.035 | L42: =IF(L$9="Eigenrealisierung","k.A.",$F42) -> k.A. | M42: =IF(M$9="Eigenrealisierung","k.A.",$F42) -> 0.035 | N42: k.A.
B44: Indexierung
E46: Startdatum Indexierung Baukosten | F46: 2018-01-01 | G46: Datum | I46: =$F$46 -> 2018-01-01 | J46: =$F$46 -> 2018-01-01 | K46: 2018-01-01 | L46: 2018-01-01 | M46: 2018-01-01 | N46: 2018-01-01
E47: Preisindex Baukosten | F47: 0.02 | G47: Prozent p.a. | I47: =$F$47 -> 0.02 | J47: =$F$47*J96 -> 0.02 | K47: 0.02 | L47: =$F$47*L96 -> 0.02 | M47: 0.02 | N47: 0.02
E48: Startdatum Indexierung Betriebskosten und alle übrigen Positionen | F48: 2018-01-01 | G48: Datum | I48: =$F$48 -> 2018-01-01 | J48: 2018-01-01 | K48: 2018-01-01 | L48: 2018-01-01 | M48: 2018-01-01 | N48: 2018-01-01
E49: Preisindex Energiekosten für Positionen [6411; 6413; 6415] | F49: 0.02 | G49: Prozent p.a. | I49: =$F$49 -> 0.02 | J49: 0.02 | K49: 0.02 | L49: 0.02 | M49: 0.02 | N49: 0.02
E50: Preisindex Instandhaltungskosten für Positionen [6340] | F50: 0.02 | G50: Prozent p.a. | I50: =$F$50 -> 0.02 | J50: =$F$50 -> 0.02 | K50: 0.02 | L50: 0.02 | M50: 0.02 | N50: 0.02
E51: Preisindex Betriebskosten für alle übrigen Positionen | F51: 0.02 | G51: Prozent p.a. | I51: =$F$51 -> 0.02 | J51: =$F$51 -> 0.02 | K51: 0.02 | L51: 0.02 | M51: 0.02 | N51: 0.02
E52: Preisindex Mieterträge & Mietaufwände | F52: 0.02 | G52: Prozent p.a. | I52: =$F$52 -> 0.02 | J52: =$F$52 -> 0.02 | K52: 0.02 | L52: 0.02 | M52: 0.02 | N52: 0.02
E53: Preisindex Sonstige Erträge & Aufwände | F53: 0.02 | G53: Prozent p.a. | I53: =$F$53 -> 0.02 | J53: =$F$53 -> 0.02 | K53: 0.02 | L53: 0.02 | M53: 0.02 | N53: 0.02
B55: CO2 Bilanz
E57: Umrechnungsfaktor für Heizzwecke CO2 [kg/kWh] | F57: 0.35 | G57: kg/kWh | I57: =$F$57 -> 0.35 | J57: =$F$57 -> 0.35 | K57: 0.35 | L57: 0.35 | M57: 0.35 | N57: 0.35
E58: Umrechnungsfaktor für Strom CO2 [kg/kWh] | F58: 0.35 | G58: kg/kWh | I58: =$F$58 -> 0.35 | J58: =$F$58 -> 0.35 | K58: 0.35 | L58: 0.35 | M58: 0.35 | N58: 0.35
B60: EnEV Zielgrößen
E62: EnEV-Zielverbrauchswert gemäß Referenzgebäude | F62: 1000 | G62: kWh/ m² p.a. | I62: =$F$62 -> 1000 | J62: =$F$62 -> 1000 | K62: 1000 | L62: 1000 | M62: 1000 | N62: 1000
E63: angestrebte Unterschreitung des EnEV-Zielverbrauchswertes (gemäß Referenzgebäude) | F63: 0.1 | G63: Prozent | I63: =$F$63 -> 0.1 | J63: =$F$63 -> 0.1 | K63: 0.1 | L63: 0.1 | M63: 0.1 | N63: 0.1
E64: EnEV-Zielverbrauchswert gemäß Referenzgebäude über Betriebslaufzeit | F64: =F62 * F17 -> 28000 | G64: kWh/ m² | I64: =$F$64 -> 28000 | J64: =$F$64 -> 28000 | K64: 28000 | L64: 28000 | M64: 28000 | N64: 28000
E65: angestrebter reduzierter Energieverbrauchswert über Betriebslaufzeit | F65: =F64 -(F63 * F64) -> 25200 | G65: kWh/ m² | I65: =$F$65 -> 25200 | J65: =$F$65 -> 25200 | K65: 25200 | L65: 25200 | M65: 25200 | N65: 25200
A67: VARIANTENABHÄNGIGE ANNAHMEN
B69: Bestehender Objektwert IST-Zustand (brutto) zu Projektbeginn
E71: Variante wird betrachtet (1 = ja; 0 = nein) | G71: 1 = ja; 0 = nein | I71: 1 | J71: 1 | K71: 1 | L71: 1 | M71: 1 | N71: 1
E73: Restbuchwert Grundstück | F73: 250000 | G73: Euro | I73: =$F73*I$71 -> 250000 | J73: =$F73*J$71 -> 250000 | K73: 250000 | L73: 250000 | M73: 250000 | N73: 250000
E74: Restbuchwert Gebäude | F74: 4750000 | G74: Euro | I74: =$F74*I$71 -> 4750000 | J74: 4750000 | K74: 4750000 | L74: 4750000 | M74: 4750000 | N74: 4750000
E75: Restbuchwert Sonderposten | F75: 2000000 | G75: Euro | I75: 2000000 | J75: 2000000 | K75: 2000000 | L75: 2000000 | M75: 2000000 | N75: 2000000
E76: Verbleibende Abschreibungsdauer Gebäude & Auflösung Sonderposten | F76: 28 | G76: Jahre | I76: 28 | J76: 28 | K76: 28 | L76: 28 | M76: 28 | N76: 28
B78: Flächenangabe
E80: Fläche in m² BGF | G80: m²
B82: Bauinvestitionskosten nach DIN 276 (brutto)
E84: Grundstücke [100] | G84: Euro | I84: k.A.
E85: Herrichten und Erschließen [200] | G85: Euro | I85: k.A.
E86: Bauwerk - Baukonstruktion [300] | G86: Euro | I86: k.A. | J86: 5500000 | K86: 5250000 | L86: 6050000 | M86: 5775000
E87: Bauwerk - Technische Anlagen [400] | G87: Euro | I87: k.A.
E88: Außenanlagen [500] | G88: Euro | I88: k.A.
E89: Ausstattung und Kunstwerke [600] | G89: Euro | I89: k.A.
E90: Baunebenkosten - Planung [700] | G90: Euro | I90: k.A.
E91: Baunebenkosten - Sonstige [700] | G91: Euro | I91: k.A.
E92: Baukosten (brutto) außerhalb der DIN 276 | G92: Euro | I92: k.A.
E93: Gesamtbaukosten = Aktivierbare Investitionen [exkl. Risikofaktor] | G93: Euro | I93: k.A. | J93: =SUM(J84:J92) -> 5500000 | K93: =SUM(K84:K92) -> 5250000 | L93: =SUM(L84:L92) -> 6050000 | M93: =SUM(M84:M92) -> 5775000 | N93: =SUM(N84:N92) -> 0
E94: Gesamtbaukosten = Aktivierbare Investitionen [inkl. Risikofaktor] | G94: Euro | I94: k.A. | J94: =J93 * ( 1+ J$179) -> 5500000 | K94: =K93 * ( 1+ K$179) -> 5250000 | L94: 6050000 | M94: 5775000 | N94: 0
E96: Baukostenindexierung oder Pauschalfestpreis (1 = Berücksichtigung Baukostenindexierung; 0 = Pauschalfestpreis) | G96: Indexierung = 1; Pauschalfestpreis = 0 | I96: k.A. | J96: 1 | K96: 1 | L96: 1 | M96: 1 | N96: 1
E98: Neue Restnutzungsdauer | G98: Jahre | I98: k.A. | J98: 72 | K98: 72 | L98: 80 | M98: 80
E99: Passivierbare Zuwendung für Investition (Fördermittel, Zuwendungsmittel etc.) | G99: Euro | I99: k.A.
E100: Verkaufserlöse, Eigenmittel | G100: Euro | I100: k.A.
B102: Variantenspezifische Kosten während der Bauphase (brutto)
E104: Kosten für Interimsunterbringung | G104: Euro p.a. | I104: k.A. | J104: 125000 | K104: 125000
E105: Abrisskosten | G105: Euro p.a. | I105: k.A. | N105: 400000
B107: Betriebskosten ohne Medienverbräuche (brutto) nach GEFMA für Leistungen in Eigenregie
E109: Technisches Objektmanagement [6100] | G109: Euro p.a.
E110: Bedienung, Inspektion & Wartung, wiederk. Prüf. [6310-6330] | G110: Euro p.a.
E111: Abwassergebühren [6436] | G111: Euro p.a.
E112: Entsorgung Müll [6430-6435] | G112: Euro p.a.
E113: Reinigung & Pflege Gebäude [6510-6550] | G113: Euro p.a. | I113: 30000 | J113: 28200 | L113: 28200
E114: Reinigung & Pflege Außenanlagen [6570, 6580] | G114: Euro p.a.
E115: Schutz- & Sicherheitsdienste [6600] | G115: Euro p.a.
E116: Objektverwaltung & Controlling (kaufm. Objektmgt.) [6700] | G116: Euro p.a.
E117: Gebühren, Abgaben & Versicherungen [6755,6756] | G117: Euro p.a.
E118: Sonstiges / Bedienen / Inspektion / Wartung | G118: Euro p.a. | I118: 25000 | J118: 23500 | L118: 23500
E119: Instandsetzungskosten - gleichmäßige Verteilung [6340] | G119: Euro p.a. | I119: 27500 | J119: 11875 | L119: 11875
B121: Medienverbräuche/-kosten (brutto) für Versorgung in Eigenregie
E123: Wasser [6411] | G123: Euro p.a.
E125: Energieverbräuche Heizzwecke & Strom (Eingabe IST Kosten = 1; Eingabe über Verbrauchsmenge x Kosten pro Einheit = 0) | G125: IST-Kosten = 1; Eingabe über Verbrauchsmenge x Kosten pro Einheit = 0 | I125: 1 | J125: 1 | K125: 1 | L125: 1 | M125: 1 | N125: 1
E127: Energieverbrauch Heizzwecke | G127: kWh/a | I127: 10000
E128: Energiekosten in EUR für Heizzwecke pro Einheit kWh | G128: Euro/kWh
E129: Energiekosten in EUR für Heizwärme [6413] (ermittelt über Verbrauchsmenge x Kosten pro Einheit) | G129: Euro p.a. | I129: =I127 * I128 -> 0 | J129: =J127 * J128 -> 0 | K129: 0 | L129: 0 | M129: 0 | N129: 0
E130: Energiekosten in EUR für Heizwärme [6413] (IST-Kosten) | G130: Euro p.a. | I130: 35000 | J130: 32200 | L130: 32200
E132: Energieverbrauch Strom | G132: kWh/a
E133: Energiekosten in EUR für Strom pro Einheit kWh | G133: Euro/kWh
E134: Energiekosten in EUR für Strom [6415] (ermittelt über Verbrauchsmenge x Kosten pro Einheit) | G134: Euro p.a. | I134: =I132 * I133 -> 0 | J134: =J132 * J133 -> 0 | K134: 0 | L134: 0 | M134: 0 | N134: 0
E135: Energiekosten in EUR für Strom [6415] (IST-Kosten) | G135: Euro p.a. | I135: 45000 | J135: 41400 | L135: 41400
E137: Anteil der energieeffizienten Maßnahmen an den Investitionen (KG 200-700) | G137: Prozent | I137: k.A.
B139: Betriebskosten ohne Medienverbräuche (brutto) nach GEFMA für im ÖPP oder Mietmodell übertragene Leistungen
E141: Technisches Objektmanagement [6100] / inkl. Managemententgelt an ÖPP Partner | G141: Euro p.a. | I141: k.A. | K141: 5525 | M141: 5525 | N141: 5525
E142: Bedienung, Inspektion & Wartung, wiederk. Prüf. [6310-6330] | G142: Euro p.a. | I142: k.A.
E143: Abwassergebühren [6436] | G143: Euro p.a. | I143: k.A.
E144: Entsorgung Müll [6430-6435] | G144: Euro p.a. | I144: k.A.
E145: Reinigung & Pflege Gebäude [6510-6550] | G145: Euro p.a. | I145: k.A. | K145: 27600 | M145: 27600 | N145: 27600
E146: Reinigung & Pflege Außenanlagen [6570, 6580] | G146: Euro p.a. | I146: k.A.
E147: Schutz- & Sicherheitsdienste [6600] | G147: Euro p.a. | I147: k.A.
E148: Objektverwaltung & Controlling (kaufm. Objektmgt.) [6700] | G148: Euro p.a. | I148: k.A.
E149: Gebühren, Abgaben & Versicherungen [6755,6756] | G149: Euro p.a. | I149: k.A.
E150: Sonstiges / Bedienen / Inspektion / Wartung | G150: Euro p.a. | I150: k.A. | K150: 23000 | M150: 23000 | N150: 23000
E151: Instandsetzungskosten - gleichmäßige Verteilung [6340] | G151: Euro p.a. | I151: k.A. | K151: 11281 | M151: 11281 | N151: 11281
B153: Medienverbräuche/-kosten (brutto) für Versorgung durch den ÖPP-Partner oder Vermieter
E155: Wasser [6411] | G155: Euro p.a. | I155: k.A.
E157: Energieverbräuche Heizzwecke & Strom (Eingabe IST-Kosten = 1; Eingabe über Verbrauchsmenge x Kosten pro Einheit = 0) | G157: IST-Kosten = 1; Eingabe über Verbrauchsmenge x Kosten pro Einheit = 0 | I157: k.A. | J157: 0 | K157: 1 | L157: 0 | M157: 1 | N157: 1
E159: Energieverbrauch Heizzwecke | G159: kWh/a | I159: k.A.
E160: Energiekosten in EUR für Heizzwecke pro Einheit kWh | G160: Euro/kWh | I160: k.A.
E161: Energiekosten in EUR für Heizwärme [6413] (ermittelt über Verbrauchsmenge x Kosten pro Einheit) | G161: Euro p.a. | J161: =J159 * J160 -> 0 | K161: 0 | L161: 0 | M161: 0 | N161: 0
E162: Energiekosten in EUR für Heizwärme [6413] (IST-Kosten) | G162: Euro p.a. | I162: k.A. | K162: 31500 | M162: 31500 | N162: 31500
E164: Energieverbrauch Strom | G164: kWh/a | I164: k.A.
E165: Energiekosten in EUR für Strom pro Einheit kWh | G165: Euro/kWh | I165: k.A.
E166: Energiekosten in EUR für Strom [6415] (ermittelt über Verbrauchsmenge x Kosten pro Einheit) | G166: Euro p.a. | J166: =J164 * J165 -> 0 | K166: 0 | L166: 0 | M166: 0 | N166: 0
E167: Energiekosten in EUR für Strom [6415] (IST-Kosten) | G167: Euro p.a. | I167: k.A. | K167: 40500 | M167: 40500 | N167: 40500
B169: Verbleibender Personaleinsatz bei Verwaltung (brutto)
E171: Baubetreuung | G171: Euro p.a. | I171: k.A. | J171: 50000 | K171: 50000 | L171: 50000 | M171: 50000
E172: ÖPP Vertragscontrolling | G172: Euro p.a. | I172: k.A. | K172: 5000 | M172: 5000
E173: Personalkosten für Gebäudemanagement | G173: Euro p.a. | I173: 20000 | J173: 10000 | K173: 2500 | L173: 10000 | M173: 2500 | N173: 2500
E174: Personalkosten für Gebäude | G174: Euro p.a. | I174: 12000 | J174: 6000 | K174: 1500 | L174: 6000 | M174: 1500 | N174: 1500
E175: Arbeitsplatzbezogene Sachkosten | G175: Euro p.a. | I175: 1000 | J175: 500 | K175: 125 | L175: 500 | M175: 125 | N175: 125
B177: Risikofaktoren Kosten, Erträge und Aufwendungen
E179: Risikofaktor Baukosten | G179: Prozent | I179: k.A.
E180: Risikofaktor Interims-, Abriss- und nicht aktivierbare Kosten während der Bauphase | G180: Prozent | I180: k.A. | J180: 0.05 | K180: 0.05 | L180: 0.05 | M180: 0.05 | N180: 0.05
E181: Risikofaktor Energiekosten für Positionen [6411; 6413; 6415] in Eigenregie | G181: Prozent | I181: 0.05 | J181: 0.05 | K181: 0.05 | L181: 0.05 | M181: 0.05 | N181: 0.05
E182: Risikofaktor Betriebskosten für alle übrigen Positionen in Eigenregie | G182: Prozent | I182: 0.05 | J182: 0.05 | K182: 0.05 | L182: 0.05 | M182: 0.05 | N182: 0.05
E183: Risikofaktor Instandhaltungskosten für Positionen [6340] in Eigenregie | G183: Prozent | I183: 0.05 | J183: 0.05 | K183: 0.05 | L183: 0.05 | M183: 0.05 | N183: 0.05
E184: Risikofaktor Energiekosten für Positionen [6411; 6413; 6415] für übertragene Leistungen im ÖPP oder Mietmodell | G184: Prozent | I184: k.A. | K184: 0.05 | M184: 0.05 | N184: 0.05
E185: Risikofaktor Betriebskosten für alle übrigen Positionen für übertragene Leistungen im ÖPP oder Mietmodell | G185: Prozent | I185: k.A. | K185: 0.05 | M185: 0.05 | N185: 0.05
E186: Risikofaktor Instandhaltungskosten für Positionen [6340] für übertragene Leistungen im ÖPP oder Mietmodell | G186: Prozent | I186: k.A. | K186: 0.05 | M186: 0.05 | N186: 0.05
E187: Risikofaktor Personaleinsatz Verwaltung | G187: Prozent | I187: 0.05 | J187: 0.05 | K187: 0.05 | L187: 0.05 | M187: 0.05 | N187: 0.05
E188: Risikofaktor Mieterträge | G188: Prozent | I188: 0 | J188: 0 | K188: 0 | L188: 0 | M188: 0 | N188: 0
E189: Risikofaktor Mietaufwände | G189: Prozent | I189: 0 | J189: 0 | K189: 0 | L189: 0 | M189: 0 | N189: 0
B191: Betriebliche Erträge & Aufwände (brutto)
E193: Mieterträge planmäßig oder nichtlinear einstellen (planmäßig = 1; nichtlinear = 0) | G193: planmäßig = 1; nichtlinear = 0 | I193: 0 | J193: 0 | K193: 0 | L193: 0 | M193: 0 | N193: 0
E194: Mieterträge | G194: Euro p.a.
E196: Mietaufwände planmäßig oder nichtlinear einstellen (planmäßig = 1; nichtlinear = 0) | G196: planmäßig = 1; nichtlinear = 0 | I196: 0 | J196: 0 | K196: 0 | L196: 0 | M196: 0 | N196: 1
E197: Mietaufwände | G197: Euro p.a. | N197: 100000
E199: Ende

Sheet Nichtlineare-Annahmen
A1: =RIGHT( CELL("filename",$A$1), LEN( CELL("filename",$A$1)) - SEARCH("]", CELL("filename",$A$1))) -> Nichtlineare-Annahmen
E2: =Zeit!E2 -> Modell Periodenbeginn | G2: =Zeit!G2 -> Datum | J2: =Zeit!J2 -> 2018-01-01 | K2: =Zeit!K2 -> 2019-01-01 | L2: =Zeit!L2 -> 2020-01-01 | M2: =Zeit!M2 -> 2021-01-01 | N2: =Zeit!N2 -> 2022-01-01 | O2: =Zeit!O2 -> 2023-01-01 | P2: =Zeit!P2 -> 2024-01-01 | Q2: =Zeit!Q2 -> 2025-01-01 | R2: =Zeit!R2 -> 2026-01-01 | S2: =Zeit!S2 -> 2027-01-01 | T2: =Zeit!T2 -> 2028-01-01 | U2: =Zeit!U2 -> 2029-01-01 | V2: =Zeit!V2 -> 2030-01-01 | W2: =Zeit!W2 -> 2031-01-01 | X2: =Zeit!X2 -> 2032-01-01 | Y2: =Zeit!Y2 -> 2033-01-01 | Z2: =Zeit!Z2 -> 2034-01-01 | AA2: =Zeit!AA2 -> 2035-01-01 | AB2: =Zeit!AB2 -> 2036-01-01 | AC2: =Zeit!AC2 -> 2037-01-01 | AD2: =Zeit!AD2 -> 2038-01-01 | AE2: =Zeit!AE2 -> 2039-01-01 | AF2: =Zeit!AF2 -> 2040-01-01 | AG2: =Zeit!AG2 -> 2041-01-01 | AH2: =Zeit!AH2 -> 2042-01-01 | AI2: =Zeit!AI2 -> 2043-01-01 | AJ2: =Zeit!AJ2 -> 2044-01-01 | AK2: =Zeit!AK2 -> 2045-01-01 | AL2: =Zeit!AL2 -> 2046-01-01 | AM2: =Zeit!AM2 -> 2047-01-01 | AN2: =Zeit!AN2 -> 2048-01-01 | AO2: =Zeit!AO2 -> 2049-01-01 | AP2: =Zeit!AP2 -> 2050-01-01 | AQ2: =Zeit!AQ2 -> 2051-01-01 | AR2: =Zeit!AR2 -> 2052-01-01
E3: =Zeit!E3 -> Modell Periodenende | G3: =Zeit!G3 -> Datum | J3: =Zeit!J3 -> 2018-12-31 | K3: =Zeit!K3 -> 2019-12-31 | L3: =Zeit!L3 -> 2020-12-31 | M3: =Zeit!M3 -> 2021-12-31 | N3: =Zeit!N3 -> 2022-12-31 | O3: =Zeit!O3 -> 2023-12-31 | P3: =Zeit!P3 -> 2024-12-31 | Q3: =Zeit!Q3 -> 2025-12-31 | R3: =Zeit!R3 -> 2026-12-31 | S3: =Zeit!S3 -> 2027-12-31 | T3: =Zeit!T3 -> 2028-12-31 | U3: =Zeit!U3 -> 2029-12-31 | V3: =Zeit!V3 -> 2030-12-31 | W3: =Zeit!W3 -> 2031-12-31 | X3: =Zeit!X3 -> 2032-12-31 | Y3: =Zeit!Y3 -> 2033-12-31 | Z3: =Zeit!Z3 -> 2034-12-31 | AA3: =Zeit!AA3 -> 2035-12-31 | AB3: =Zeit!AB3 -> 2036-12-31 | AC3: =Zeit!AC3 -> 2037-12-31 | AD3: =Zeit!AD3 -> 2038-12-31 | AE3: =Zeit!AE3 -> 2039-12-31 | AF3: =Zeit!AF3 -> 2040-12-31 | AG3: =Zeit!AG3 -> 2041-12-31 | AH3: =Zeit!AH3 -> 2042-12-31 | AI3: =Zeit!AI3 -> 2043-12-31 | AJ3: =Zeit!AJ3 -> 2044-12-31 | AK3: =Zeit!AK3 -> 2045-12-31 | AL3: =Zeit!AL3 -> 2046-12-31 | AM3: =Zeit!AM3 -> 2047-12-31 | AN3: =Zeit!AN3 -> 2048-12-31 | AO3: =Zeit!AO3 -> 2049-12-31 | AP3: =Zeit!AP3 -> 2050-12-31 | AQ3: =Zeit!AQ3 -> 2051-12-31 | AR3: =Zeit!AR3 -> 2052-12-31
E4: Definition Parameter | G4: Einheit | H4: Summe | J4: =YEAR(J3) -> 2018 | K4: 2019 | L4: 2020 | M4: 2021 | N4: 2022 | O4: 2023 | P4: 2024 | Q4: 2025 | R4: 2026 | S4: 2027 | T4: 2028 | U4: 2029 | V4: 2030 | W4: 2031 | X4: 2032 | Y4: 2033 | Z4: 2034 | AA4: 2035 | AB4: 2036 | AC4: 2037 | AD4: 2038 | AE4: 2039 | AF4: 2040 | AG4: 2041 | AH4: 2042 | AI4: 2043 | AJ4: 2044 | AK4: 2045 | AL4: 2046 | AM4: 2047 | AN4: 2048 | AO4: 2049 | AP4: 2050 | AQ4: 2051 | AR4: 2052
A6: ANNAHMEN ZEITABHÄNGIG (NICHT INDEXIERT)
E8: =Zeit!E$39 -> Periodenflag Betriebsphase Variante 1 - Eigenrealisierung Sanierung | G8: =Zeit!G$39 -> Flag | H8: =Zeit!H$39 -> 25 | J8: =Zeit!J$39 -> 0 | K8: =Zeit!K$39 -> 0 | L8: =Zeit!L$39 -> 0 | M8: =Zeit!M$39 -> 1 | N8: =Zeit!N$39 -> 1 | O8: =Zeit!O$39 -> 1 | P8: =Zeit!P$39 -> 1 | Q8: =Zeit!Q$39 -> 1 | R8: =Zeit!R$39 -> 1 | S8: =Zeit!S$39 -> 1 | T8: =Zeit!T$39 -> 1 | U8: =Zeit!U$39 -> 1 | V8: =Zeit!V$39 -> 1 | W8: =Zeit!W$39 -> 1 | X8: =Zeit!X$39 -> 1 | Y8: =Zeit!Y$39 -> 1 | Z8: =Zeit!Z$39 -> 1 | AA8: =Zeit!AA$39 -> 1 | AB8: =Zeit!AB$39 -> 1 | AC8: =Zeit!AC$39 -> 1 | AD8: =Zeit!AD$39 -> 1 | AE8: =Zeit!AE$39 -> 1 | AF8: =Zeit!AF$39 -> 1 | AG8: =Zeit!AG$39 -> 1 | AH8: =Zeit!AH$39 -> 1 | AI8: =Zeit!AI$39 -> 1 | AJ8: =Zeit!AJ$39 -> 1 | AK8: =Zeit!AK$39 -> 1 | AL8: =Zeit!AL$39 -> 0 | AM8: =Zeit!AM$39 -> 0 | AN8: =Zeit!AN$39 -> 0 | AO8: =Zeit!AO$39 -> 0 | AP8: =Zeit!AP$39 -> 0 | AQ8: =Zeit!AQ$39 -> 0 | AR8: =Zeit!AR$39 -> 0
E9: =Zeit!E$31 -> Periodenflag Bauphase Variante 1 - Eigenrealisierung Sanierung | G9: =Zeit!G$31 -> Flag | H9: =Zeit!H$31 -> 3 | J9: =Zeit!J$31 -> 1 | K9: =Zeit!K$31 -> 1 | L9: =Zeit!L$31 -> 1 | M9: =Zeit!M$31 -> 0 | N9: =Zeit!N$31 -> 0 | O9: =Zeit!O$31 -> 0 | P9: =Zeit!P$31 -> 0 | Q9: =Zeit!Q$31 -> 0 | R9: =Zeit!R$31 -> 0 | S9: =Zeit!S$31 -> 0 | T9: =Zeit!T$31 -> 0 | U9: =Zeit!U$31 -> 0 | V9: =Zeit!V$31 -> 0 | W9: =Zeit!W$31 -> 0 | X9: =Zeit!X$31 -> 0 | Y9: =Zeit!Y$31 -> 0 | Z9: =Zeit!Z$31 -> 0 | AA9: =Zeit!AA$31 -> 0 | AB9: =Zeit!AB$31 -> 0 | AC9: =Zeit!AC$31 -> 0 | AD9: =Zeit!AD$31 -> 0 | AE9: =Zeit!AE$31 -> 0 | AF9: =Zeit!AF$31 -> 0 | AG9: =Zeit!AG$31 -> 0 | AH9: =Zeit!AH$31 -> 0 | AI9: =Zeit!AI$31 -> 0 | AJ9: =Zeit!AJ$31 -> 0 | AK9: =Zeit!AK$31 -> 0 | AL9: =Zeit!AL$31 -> 0 | AM9: =Zeit!AM$31 -> 0 | AN9: =Zeit!AN$31 -> 0 | AO9: =Zeit!AO$31 -> 0 | AP9: =Zeit!AP$31 -> 0 | AQ9: =Zeit!AQ$31 -> 0 | AR9: =Zeit!AR$31 -> 0
E10: =Zeit!E$56 -> Periodenflag Betriebsphase Variante 2 - ÖPP Sanierung | G10: =Zeit!G$56 -> Flag | H10: =Zeit!H$56 -> 25 | J10: =Zeit!J$56 -> 0 | K10: =Zeit!K$56 -> 0 | L10: =Zeit!L$56 -> 0 | M10: =Zeit!M$56 -> 1 | N10: =Zeit!N$56 -> 1 | O10: =Zeit!O$56 -> 1 | P10: =Zeit!P$56 -> 1 | Q10: =Zeit!Q$56 -> 1 | R10: =Zeit!R$56 -> 1 | S10: =Zeit!S$56 -> 1 | T10: =Zeit!T$56 -> 1 | U10: =Zeit!U$56 -> 1 | V10: =Zeit!V$56 -> 1 | W10: =Zeit!W$56 -> 1 | X10: =Zeit!X$56 -> 1 | Y10: =Zeit!Y$56 -> 1 | Z10: =Zeit!Z$56 -> 1 | AA10: =Zeit!AA$56 -> 1 | AB10: =Zeit!AB$56 -> 1 | AC10: =Zeit!AC$56 -> 1 | AD10: =Zeit!AD$56 -> 1 | AE10: =Zeit!AE$56 -> 1 | AF10: =Zeit!AF$56 -> 1 | AG10: =Zeit!AG$56 -> 1 | AH10: =Zeit!AH$56 -> 1 | AI10: =Zeit!AI$56 -> 1 | AJ10: =Zeit!AJ$56 -> 1 | AK10: =Zeit!AK$56 -> 1 | AL10: =Zeit!AL$56 -> 0 | AM10: =Zeit!AM$56 -> 0 | AN10: =Zeit!AN$56 -> 0 | AO10: =Zeit!AO$56 -> 0 | AP10: =Zeit!AP$56 -> 0 | AQ10: =Zeit!AQ$56 -> 0 | AR10: =Zeit!AR$56 -> 0
E11: =Zeit!E$48 -> Periodenflag Bauphase Variante 2 - ÖPP Sanierung | G11: =Zeit!G$48 -> Flag | H11: =Zeit!H$48 -> 3 | J11: =Zeit!J$48 -> 1 | K11: =Zeit!K$48 -> 1 | L11: =Zeit!L$48 -> 1 | M11: =Zeit!M$48 -> 0 | N11: =Zeit!N$48 -> 0 | O11: =Zeit!O$48 -> 0 | P11: =Zeit!P$48 -> 0 | Q11: =Zeit!Q$48 -> 0 | R11: =Zeit!R$48 -> 0 | S11: =Zeit!S$48 -> 0 | T11: =Zeit!T$48 -> 0 | U11: =Zeit!U$48 -> 0 | V11: =Zeit!V$48 -> 0 | W11: =Zeit!W$48 -> 0 | X11: =Zeit!X$48 -> 0 | Y11: =Zeit!Y$48 -> 0 | Z11: =Zeit!Z$48 -> 0 | AA11: =Zeit!AA$48 -> 0 | AB11: =Zeit!AB$48 -> 0 | AC11: =Zeit!AC$48 -> 0 | AD11: =Zeit!AD$48 -> 0 | AE11: =Zeit!AE$48 -> 0 | AF11: =Zeit!AF$48 -> 0 | AG11: =Zeit!AG$48 -> 0 | AH11: =Zeit!AH$48 -> 0 | AI11: =Zeit!AI$48 -> 0 | AJ11: =Zeit!AJ$48 -> 0 | AK11: =Zeit!AK$48 -> 0 | AL11: =Zeit!AL$48 -> 0 | AM11: =Zeit!AM$48 -> 0 | AN11: =Zeit!AN$48 -> 0 | AO11: =Zeit!AO$48 -> 0 | AP11: =Zeit!AP$48 -> 0 | AQ11: =Zeit!AQ$48 -> 0 | AR11: =Zeit!AR$48 -> 0
E12: =Zeit!E$73 -> Periodenflag Betriebsphase Variante 3 - Eigenrealisierung Neubau | G12: =Zeit!G$73 -> Flag | H12: =Zeit!H$73 -> 25 | J12: =Zeit!J$73 -> 0 | K12: =Zeit!K$73 -> 0 | L12: =Zeit!L$73 -> 0 | M12: =Zeit!M$73 -> 1 | N12: =Zeit!N$73 -> 1 | O12: =Zeit!O$73 -> 1 | P12: =Zeit!P$73 -> 1 | Q12: =Zeit!Q$73 -> 1 | R12: =Zeit!R$73 -> 1 | S12: =Zeit!S$73 -> 1 | T12: =Zeit!T$73 -> 1 | U12: =Zeit!U$73 -> 1 | V12: =Zeit!V$73 -> 1 | W12: =Zeit!W$73 -> 1 | X12: =Zeit!X$73 -> 1 | Y12: =Zeit!Y$73 -> 1 | Z12: =Zeit!Z$73 -> 1 | AA12: =Zeit!AA$73 -> 1 | AB12: =Zeit!AB$73 -> 1 | AC12: =Zeit!AC$73 -> 1 | AD12: =Zeit!AD$73 -> 1 | AE12: =Zeit!AE$73 -> 1 | AF12: =Zeit!AF$73 -> 1 | AG12: =Zeit!AG$73 -> 1 | AH12: =Zeit!AH$73 -> 1 | AI12: =Zeit!AI$73 -> 1 | AJ12: =Zeit!AJ$73 -> 1 | AK12: =Zeit!AK$73 -> 1 | AL12: =Zeit!AL$73 -> 0 | AM12: =Zeit!AM$73 -> 0 | AN12: =Zeit!AN$73 -> 0 | AO12: =Zeit!AO$73 -> 0 | AP12: =Zeit!AP$73 -> 0 | AQ12: =Zeit!AQ$73 -> 0 | AR12: =Zeit!AR$73 -> 0
E13: =Zeit!E$65 -> Periodenflag Bauphase Variante 3 - Eigenrealisierung Neubau | G13: =Zeit!G$65 -> Flag | H13: =Zeit!H$65 -> 3 | J13: =Zeit!J$65 -> 1 | K13: =Zeit!K$65 -> 1 | L13: =Zeit!L$65 -> 1 | M13: =Zeit!M$65 -> 0 | N13: =Zeit!N$65 -> 0 | O13: =Zeit!O$65 -> 0 | P13: =Zeit!P$65 -> 0 | Q13: =Zeit!Q$65 -> 0 | R13: =Zeit!R$65 -> 0 | S13: =Zeit!S$65 -> 0 | T13: =Zeit!T$65 -> 0 | U13: =Zeit!U$65 -> 0 | V13: =Zeit!V$65 -> 0 | W13: =Zeit!W$65 -> 0 | X13: =Zeit!X$65 -> 0 | Y13: =Zeit!Y$65 -> 0 | Z13: =Zeit!Z$65 -> 0 | AA13: =Zeit!AA$65 -> 0 | AB13: =Zeit!AB$65 -> 0 | AC13: =Zeit!AC$65 -> 0 | AD13: =Zeit!AD$65 -> 0 | AE13: =Zeit!AE$65 -> 0 | AF13: =Zeit!AF$65 -> 0 | AG13: =Zeit!AG$65 -> 0 | AH13: =Zeit!AH$65 -> 0 | AI13: =Zeit!AI$65 -> 0 | AJ13: =Zeit!AJ$65 -> 0 | AK13: =Zeit!AK$65 -> 0 | AL13: =Zeit!AL$65 -> 0 | AM13: =Zeit!AM$65 -> 0 | AN13: =Zeit!AN$65 -> 0 | AO13: =Zeit!AO$65 -> 0 | AP13: =Zeit!AP$65 -> 0 | AQ13: =Zeit!AQ$65 -> 0 | AR13: =Zeit!AR$65 -> 0
E14: =Zeit!E$90 -> Periodenflag Betriebsphase Variante 4 - ÖPP Neubau | G14: =Zeit!G$90 -> Flag | H14: =Zeit!H$90 -> 25 | J14: =Zeit!J$90 -> 0 | K14: =Zeit!K$90 -> 0 | L14: =Zeit!L$90 -> 0 | M14: =Zeit!M$90 -> 1 | N14: =Zeit!N$90 -> 1 | O14: =Zeit!O$90 -> 1 | P14: =Zeit!P$90 -> 1 | Q14: =Zeit!Q$90 -> 1 | R14: =Zeit!R$90 -> 1 | S14: =Zeit!S$90 -> 1 | T14: =Zeit!T$90 -> 1 | U14: =Zeit!U$90 -> 1 | V14: =Zeit!V$90 -> 1 | W14: =Zeit!W$90 -> 1 | X14: =Zeit!X$90 -> 1 | Y14: =Zeit!Y$90 -> 1 | Z14: =Zeit!Z$90 -> 1 | AA14: =Zeit!AA$90 -> 1 | AB14: =Zeit!AB$90 -> 1 | AC14: =Zeit!AC$90 -> 1 | AD14: =Zeit!AD$90 -> 1 | AE14: =Zeit!AE$90 -> 1 | AF14: =Zeit!AF$90 -> 1 | AG14: =Zeit!AG$90 -> 1 | AH14: =Zeit!AH$90 -> 1 | AI14: =Zeit!AI$90 -> 1 | AJ14: =Zeit!AJ$90 -> 1 | AK14: =Zeit!AK$90 -> 1 | AL14: =Zeit!AL$90 -> 0 | AM14: =Zeit!AM$90 -> 0 | AN14: =Zeit!AN$90 -> 0 | AO14: =Zeit!AO$90 -> 0 | AP14: =Zeit!AP$90 -> 0 | AQ14: =Zeit!AQ$90 -> 0 | AR14: =Zeit!AR$90 -> 0
E15: =Zeit!E$82 -> Periodenflag Bauphase Variante 4 - ÖPP Neubau | G15: =Zeit!G$82 -> Flag | H15: =Zeit!H$82 -> 3 | J15: =Zeit!J$82 -> 1 | K15: =Zeit!K$82 -> 1 | L15: =Zeit!L$82 -> 1 | M15: =Zeit!M$82 -> 0 | N15: =Zeit!N$82 -> 0 | O15: =Zeit!O$82 -> 0 | P15: =Zeit!P$82 -> 0 | Q15: =Zeit!Q$82 -> 0 | R15: =Zeit!R$82 -> 0 | S15: =Zeit!S$82 -> 0 | T15: =Zeit!T$82 -> 0 | U15: =Zeit!U$82 -> 0 | V15: =Zeit!V$82 -> 0 | W15: =Zeit!W$82 -> 0 | X15: =Zeit!X$82 -> 0 | Y15: =Zeit!Y$82 -> 0 | Z15: =Zeit!Z$82 -> 0 | AA15: =Zeit!AA$82 -> 0 | AB15: =Zeit!AB$82 -> 0 | AC15: =Zeit!AC$82 -> 0 | AD15: =Zeit!AD$82 -> 0 | AE15: =Zeit!AE$82 -> 0 | AF15: =Zeit!AF$82 -> 0 | AG15: =Zeit!AG$82 -> 0 | AH15: =Zeit!AH$82 -> 0 | AI15: =Zeit!AI$82 -> 0 | AJ15: =Zeit!AJ$82 -> 0 | AK15: =Zeit!AK$82 -> 0 | AL15: =Zeit!AL$82 -> 0 | AM15: =Zeit!AM$82 -> 0 | AN15: =Zeit!AN$82 -> 0 | AO15: =Zeit!AO$82 -> 0 | AP15: =Zeit!AP$82 -> 0 | AQ15: =Zeit!AQ$82 -> 0 | AR15: =Zeit!AR$82 -> 0
E16: =Zeit!E$107 -> Periodenflag Betriebsphase Mietvariante | G16: =Zeit!G$107 -> Flag | H16: =Zeit!H$107 -> 28 | J16: =Zeit!J$107 -> 1 | K16: =Zeit!K$107 -> 1 | L16: =Zeit!L$107 -> 1 | M16: =Zeit!M$107 -> 1 | N16: =Zeit!N$107 -> 1 | O16: =Zeit!O$107 -> 1 | P16: =Zeit!P$107 -> 1 | Q16: =Zeit!Q$107 -> 1 | R16: =Zeit!R$107 -> 1 | S16: =Zeit!S$107 -> 1 | T16: =Zeit!T$107 -> 1 | U16: =Zeit!U$107 -> 1 | V16: =Zeit!V$107 -> 1 | W16: =Zeit!W$107 -> 1 | X16: =Zeit!X$107 -> 1 | Y16: =Zeit!Y$107 -> 1 | Z16: =Zeit!Z$107 -> 1 | AA16: =Zeit!AA$107 -> 1 | AB16: =Zeit!AB$107 -> 1 | AC16: =Zeit!AC$107 -> 1 | AD16: =Zeit!AD$107 -> 1 | AE16: =Zeit!AE$107 -> 1 | AF16: =Zeit!AF$107 -> 1 | AG16: =Zeit!AG$107 -> 1 | AH16: =Zeit!AH$107 -> 1 | AI16: =Zeit!AI$107 -> 1 | AJ16: =Zeit!AJ$107 -> 1 | AK16: =Zeit!AK$107 -> 1 | AL16: =Zeit!AL$107 -> 0 | AM16: =Zeit!AM$107 -> 0 | AN16: =Zeit!AN$107 -> 0 | AO16: =Zeit!AO$107 -> 0 | AP16: =Zeit!AP$107 -> 0 | AQ16: =Zeit!AQ$107 -> 0 | AR16: =Zeit!AR$107 -> 0
E17: =Zeit!E$99 -> Periodenflag Bauphase Mietvariante | G17: =Zeit!G$99 -> Flag | H17: =Zeit!H$99 -> 1 | J17: =Zeit!J$99 -> 1 | K17: =Zeit!K$99 -> 0 | L17: =Zeit!L$99 -> 0 | M17: =Zeit!M$99 -> 0 | N17: =Zeit!N$99 -> 0 | O17: =Zeit!O$99 -> 0 | P17: =Zeit!P$99 -> 0 | Q17: =Zeit!Q$99 -> 0 | R17: =Zeit!R$99 -> 0 | S17: =Zeit!S$99 -> 0 | T17: =Zeit!T$99 -> 0 | U17: =Zeit!U$99 -> 0 | V17: =Zeit!V$99 -> 0 | W17: =Zeit!W$99 -> 0 | X17: =Zeit!X$99 -> 0 | Y17: =Zeit!Y$99 -> 0 | Z17: =Zeit!Z$99 -> 0 | AA17: =Zeit!AA$99 -> 0 | AB17: =Zeit!AB$99 -> 0 | AC17: =Zeit!AC$99 -> 0 | AD17: =Zeit!AD$99 -> 0 | AE17: =Zeit!AE$99 -> 0 | AF17: =Zeit!AF$99 -> 0 | AG17: =Zeit!AG$99 -> 0 | AH17: =Zeit!AH$99 -> 0 | AI17: =Zeit!AI$99 -> 0 | AJ17: =Zeit!AJ$99 -> 0 | AK17: =Zeit!AK$99 -> 0 | AL17: =Zeit!AL$99 -> 0 | AM17: =Zeit!AM$99 -> 0 | AN17: =Zeit!AN$99 -> 0 | AO17: =Zeit!AO$99 -> 0 | AP17: =Zeit!AP$99 -> 0 | AQ17: =Zeit!AQ$99 -> 0 | AR17: =Zeit!AR$99 -> 0
E18: =Zeit!E$23 -> Periodenflag Projektphase | G18: =Zeit!G$23 -> Flag | H18: =Zeit!H$23 -> 28 | J18: =Zeit!J$23 -> 1 | K18: =Zeit!K$23 -> 1 | L18: =Zeit!L$23 -> 1 | M18: =Zeit!M$23 -> 1 | N18: =Zeit!N$23 -> 1 | O18: =Zeit!O$23 -> 1 | P18: =Zeit!P$23 -> 1 | Q18: =Zeit!Q$23 -> 1 | R18: =Zeit!R$23 -> 1 | S18: =Zeit!S$23 -> 1 | T18: =Zeit!T$23 -> 1 | U18: =Zeit!U$23 -> 1 | V18: =Zeit!V$23 -> 1 | W18: =Zeit!W$23 -> 1 | X18: =Zeit!X$23 -> 1 | Y18: =Zeit!Y$23 -> 1 | Z18: =Zeit!Z$23 -> 1 | AA18: =Zeit!AA$23 -> 1 | AB18: =Zeit!AB$23 -> 1 | AC18: =Zeit!AC$23 -> 1 | AD18: =Zeit!AD$23 -> 1 | AE18: =Zeit!AE$23 -> 1 | AF18: =Zeit!AF$23 -> 1 | AG18: =Zeit!AG$23 -> 1 | AH18: =Zeit!AH$23 -> 1 | AI18: =Zeit!AI$23 -> 1 | AJ18: =Zeit!AJ$23 -> 1 | AK18: =Zeit!AK$23 -> 1 | AL18: =Zeit!AL$23 -> 0 | AM18: =Zeit!AM$23 -> 0 | AN18: =Zeit!AN$23 -> 0 | AO18: =Zeit!AO$23 -> 0 | AP18: =Zeit!AP$23 -> 0 | AQ18: =Zeit!AQ$23 -> 0 | AR18: =Zeit!AR$23 -> 0
B20: ="NICHTLINEARE ANNAHMEN "&'Generelle-Annahmen'!I$3&" (brutto)" -> NICHTLINEARE ANNAHMEN 0-Variante (brutto)
E22: Außerplanmäßige Abschreibung bzw. Anlagenabgang Grundstück | G22: Euro | H22: =SUM(J22:AR22) -> 0
E23: Außerplanmäßige Abschreibung bzw. Anlagenabgang "alter" Gebäudebestand | G23: Euro | H23: =SUM(J23:AR23) -> 0
E24: Außerplanmäßige Auflösung für "alten" Bestand Sonderposten | G24: Euro | H24: =SUM(J24:AR24) -> 0
E26: Nichtlineare Instandhaltung [6340] | G26: Euro | H26: =SUM(J26:AR26) -> 750000 | J26: 75000 | L26: 525000 | N26: 150000
E28: Nichtlineare Mieterträge | G28: Euro | H28: =SUM(J28:AR28) -> 0
E29: Nichtlineare Mietaufwände | G29: Euro | H29: =SUM(J29:AR29) -> 0
E31: Nichtlineare Sonstige Erträge | G31: Euro | H31: =SUM(J31:AR31) -> 0
E32: Nichtlineare Sonstige Aufwände | G32: Euro | H32: =SUM(J32:AR32) -> 0
B34: ="NICHTLINEARE ANNAHMEN "&'Generelle-Annahmen'!J$3&" (brutto)" -> NICHTLINEARE ANNAHMEN Variante 1 - Eigenrealisierung Sanierung (brutto)
E36: Außerplanmäßige Abschreibung bzw. Anlagenabgang Grundstück | G36: Euro | H36: =SUM(J36:AR36) -> 0
E37: Außerplanmäßige Abschreibung bzw. Anlagenabgang "alter" Gebäudebestand | G37: Euro | H37: =SUM(J37:AR37) -> 0
E38: Außerplanmäßige Auflösung für "alten" Bestand Sonderposten | G38: Euro | H38: =SUM(J38:AR38) -> 0
E40: Nicht aktivierbare Kosten während der Bauphase | G40: Euro | H40: =SUM(J40:AR40) -> 80000 | J40: 30000 | K40: 40000 | L40: 10000
E42: Nichtlineare Instandhaltung [6340] in Eigenregie | G42: Euro | H42: =SUM(J42:AR42) -> 0
E43: Nichtlineare Instandhaltung [6340] durch ÖPP-Nehmer oder Vermieter | G43: Euro | H43: =SUM(J43:AR43) -> 0
E45: Nichtlineare Mieterträge | G45: Euro | H45: =SUM(J45:AR45) -> 0
E46: Nichtlineare Mietaufwände | G46: Euro | H46: =SUM(J46:AR46) -> 0
E48: Nichtlineare Sonstige Erträge | G48: Euro | H48: =SUM(J48:AR48) -> 0
E49: Nichtlineare Sonstige Aufwände | G49: Euro | H49: =SUM(J49:AR49) -> 0
B51: ="NICHTLINEARE ANNAHMEN "&'Generelle-Annahmen'!K$3&" (brutto)" -> NICHTLINEARE ANNAHMEN Variante 2 - ÖPP Sanierung (brutto)
E53: Außerplanmäßige Abschreibung bzw. Anlagenabgang Grundstück | G53: Euro | H53: =SUM(J53:AR53) -> 0
E54: Außerplanmäßige Abschreibung bzw. Anlagenabgang "alter" Gebäudebestand | G54: Euro | H54: =SUM(J54:AR54) -> 0
E55: Außerplanmäßige Auflösung für "alten" Bestand Sonderposten | G55: Euro | H55: =SUM(J55:AR55) -> 0
E57: Nicht aktivierbare Kosten während der Bauphase | G57: Euro | H57: =SUM(J57:AR57) -> 80000 | J57: 30000 | K57: 40000 | L57: 10000
E59: Nichtlineare Instandhaltung [6340] | G59: Euro | H59: =SUM(J59:AR59) -> 0
E60: Nichtlineare Instandhaltung [6340] durch ÖPP-Nehmer oder Vermieter | G60: Euro | H60: =SUM(J60:AR60) -> 0
E62: Nichtlineare Mieterträge | G62: Euro | H62: =SUM(J62:AR62) -> 0
E63: Nichtlineare Mietaufwände | G63: Euro | H63: =SUM(J63:AR63) -> 0
E65: Nichtlineare Sonstige Erträge | G65: Euro | H65: =SUM(J65:AR65) -> 0
E66: Nichtlineare Sonstige Aufwände | G66: Euro | H66: =SUM(J66:AR66) -> 0
B68: ="NICHTLINEARE ANNAHMEN "&'Generelle-Annahmen'!L$3&" (brutto)" -> NICHTLINEARE ANNAHMEN Variante 3 - Eigenrealisierung Neubau (brutto)
E70: Außerplanmäßige Abschreibung bzw. Anlagenabgang Grundstück | G70: Euro | H70: =SUM(J70:AR70) -> 0
E71: Außerplanmäßige Abschreibung bzw. Anlagenabgang "alter" Gebäudebestand | G71: Euro | H71: =SUM(J71:AR71) -> 0
E72: Außerplanmäßige Auflösung für "alten" Bestand Sonderposten | G72: Euro | H72: =SUM(J72:AR72) -> 0
E74: Nicht aktivierbare Kosten während der Bauphase | G74: Euro | H74: =SUM(J74:AR74) -> 40000 | J74: 15000 | K74: 20000 | L74: 5000
E76: Nichtlineare Instandhaltung [6340] | G76: Euro | H76: =SUM(J76:AR76) -> 0
E77: Nichtlineare Instandhaltung [6340] durch ÖPP-Nehmer oder Vermieter | G77: Euro | H77: =SUM(J77:AR77) -> 0
E79: Nichtlineare Mieterträge | G79: Euro | H79: =SUM(J79:AR79) -> 0
E80: Nichtlineare Mietaufwände | G80: Euro | H80: =SUM(J80:AR80) -> 0
E82: Nichtlineare Sonstige Erträge | G82: Euro | H82: =SUM(J82:AR82) -> 0
E83: Nichtlineare Sonstige Aufwände | G83: Euro | H83: =SUM(J83:AR83) -> 0
B85: ="NICHTLINEARE ANNAHMEN "&'Generelle-Annahmen'!M$3&" (brutto)" -> NICHTLINEARE ANNAHMEN Variante 4 - ÖPP Neubau (brutto)
E87: Außerplanmäßige Abschreibung bzw. Anlagenabgang Grundstück | G87: Euro | H87: =SUM(J87:AR87) -> 0
E88: Außerplanmäßige Abschreibung bzw. Anlagenabgang "alter" Gebäudebestand | G88: Euro | H88: =SUM(J88:AR88) -> 0
E89: Außerplanmäßige Auflösung für "alten" Bestand Sonderposten | G89: Euro | H89: =SUM(J89:AR89) -> 0
E91: Nicht aktivierbare Kosten während der Bauphase | G91: Euro | H91: =SUM(J91:AR91) -> 40000 | J91: 15000 | K91: 20000 | L91: 5000
E93: Nichtlineare Instandhaltung [6340] | G93: Euro | H93: =SUM(J93:AR93) -> 0
E94: Nichtlineare Instandhaltung [6340] durch ÖPP-Nehmer oder Vermieter | G94: Euro | H94: =SUM(J94:AR94) -> 0
E96: Nichtlineare Mieterträge | G96: Euro | H96: =SUM(J96:AR96) -> 0
E97: Nichtlineare Mietaufwände | G97: Euro | H97: =SUM(J97:AR97) -> 0
E99: Nichtlineare Sonstige Erträge | G99: Euro | H99: =SUM(J99:AR99) -> 0
E100: Nichtlineare Sonstige Aufwände | G100: Euro | H100: =SUM(J100:AR100) -> 0
B102: ="NICHTLINEARE ANNAHMEN "&'Generelle-Annahmen'!N$3&" (brutto)" -> NICHTLINEARE ANNAHMEN Mietvariante (brutto)
E104: Außerplanmäßige Abschreibung bzw. Anlagenabgang Grundstück | G104: Euro | H104: =SUM(J104:AR104) -> 0
E105: Außerplanmäßige Abschreibung bzw. Anlagenabgang "alter" Gebäudebestand | G105: Euro | H105: =SUM(J105:AR105) -> 4750000 | J105: 4750000
E106: Außerplanmäßige Auflösung für "alten" Bestand Sonderposten | G106: Euro | H106: =SUM(J106:AR106) -> 2000000 | J106: 2000000
E108: Nicht aktivierbare Kosten während der Bauphase | G108: Euro | H108: =SUM(J108:AR108) -> 0
E110: Nichtlineare Instandhaltung [6340] | G110: Euro | H110: =SUM(J110:AR110) -> 0
E111: Nichtlineare Instandhaltung [6340] durch ÖPP-Nehmer oder Vermieter | G111: Euro | H111: =SUM(J111:AR111) -> 0
E113: Nichtlineare Mieterträge | G113: Euro | H113: =SUM(J113:AR113) -> 0
E114: Nichtlineare Mietaufwände | G114: Euro | H114: =SUM(J114:AR114) -> 0
E116: Nichtlineare Sonstige Erträge | G116: Euro | H116: =SUM(J116:AR116) -> 0
E117: Nichtlineare Sonstige Aufwände | G117: Euro | H117: =SUM(J117:AR117) -> 0
E119: Ende

Sheet Zeit
A1: =RIGHT( CELL("filename",$A$1), LEN( CELL("filename",$A$1)) - SEARCH("]", CELL("filename",$A$1))) -> Zeit
E2: =E13 -> Modell Periodenbeginn | G2: =G13 -> Datum | J2: =J13 -> 2018-01-01 | K2: 2019-01-01 | L2: 2020-01-01 | M2: 2021-01-01 | N2: 2022-01-01 | O2: 2023-01-01 | P2: 2024-01-01 | Q2: 2025-01-01 | R2: 2026-01-01 | S2: 2027-01-01 | T2: 2028-01-01 | U2: 2029-01-01 | V2: 2030-01-01 | W2: 2031-01-01 | X2: 2032-01-01 | Y2: 2033-01-01 | Z2: 2034-01-01 | AA2: 2035-01-01 | AB2: 2036-01-01 | AC2: 2037-01-01 | AD2: 2038-01-01 | AE2: 2039-01-01 | AF2: 2040-01-01 | AG2: 2041-01-01 | AH2: 2042-01-01 | AI2: 2043-01-01 | AJ2: 2044-01-01 | AK2: 2045-01-01 | AL2: 2046-01-01 | AM2: 2047-01-01 | AN2: 2048-01-01 | AO2: 2049-01-01 | AP2: 2050-01-01 | AQ2: 2051-01-01 | AR2: 2052-01-01
E3: Modell Periodenende | G3: =G14 -> Datum | J3: =J14 -> 2018-12-31 | K3: 2019-12-31 | L3: 2020-12-31 | M3: 2021-12-31 | N3: 2022-12-31 | O3: 2023-12-31 | P3: 2024-12-31 | Q3: 2025-12-31 | R3: 2026-12-31 | S3: 2027-12-31 | T3: 2028-12-31 | U3: 2029-12-31 | V3: 2030-12-31 | W3: 2031-12-31 | X3: 2032-12-31 | Y3: 2033-12-31 | Z3: 2034-12-31 | AA3: 2035-12-31 | AB3: 2036-12-31 | AC3: 2037-12-31 | AD3: 2038-12-31 | AE3: 2039-12-31 | AF3: 2040-12-31 | AG3: 2041-12-31 | AH3: 2042-12-31 | AI3: 2043-12-31 | AJ3: 2044-12-31 | AK3: 2045-12-31 | AL3: 2046-12-31 | AM3: 2047-12-31 | AN3: 2048-12-31 | AO3: 2049-12-31 | AP3: 2050-12-31 | AQ3: 2051-12-31 | AR3: 2052-12-31
E4: Definition Parameter | F4: Konstante | G4: Einheit | H4: Summe
A6: ZEIT
B8: ALLGEMEINE MODELLEIGENSCHAFTEN
E10: Modell Spalten Zähler | G10: Zähler | H10: =SUM(J10:AR10) -> 630 | J10: =I10 + 1 -> 1 | K10: =J10 + 1 -> 2 | L10: 3 | M10: 4 | N10: 5 | O10: 6 | P10: 7 | Q10: 8 | R10: 9 | S10: 10 | T10: 11 | U10: 12 | V10: 13 | W10: 14 | X10: 15 | Y10: 16 | Z10: 17 | AA10: 18 | AB10: 19 | AC10: 20 | AD10: 21 | AE10: 22 | AF10: 23 | AG10: 24 | AH10: 25 | AI10: 26 | AJ10: 27 | AK10: 28 | AL10: 29 | AM10: 30 | AN10: 31 | AO10: 32 | AP10: 33 | AQ10: 34 | AR10: 35
E11: Erste Modell Spalte | G11: Flag | H11: =SUM(J11:AR11) -> 1 | J11: =IF(J10 = 1, 1, 0) -> 1 | K11: =IF(K10 = 1, 1, 0) -> 0 | L11: 0 | M11: 0 | N11: 0 | O11: 0 | P11: 0 | Q11: 0 | R11: 0 | S11: 0 | T11: 0 | U11: 0 | V11: 0 | W11: 0 | X11: 0 | Y11: 0 | Z11: 0 | AA11: 0 | AB11: 0 | AC11: 0 | AD11: 0 | AE11: 0 | AF11: 0 | AG11: 0 | AH11: 0 | AI11: 0 | AJ11: 0 | AK11: 0 | AL11: 0 | AM11: 0 | AN11: 0 | AO11: 0 | AP11: 0 | AQ11: 0 | AR11: 0
E12: =E11 -> Erste Modell Spalte | G12: =G11 -> Flag | H12: =SUM(J12:AR12) -> 1 | J12: =J11 -> 1 | K12: 0 | L12: 0 | M12: 0 | N12: 0 | O12: 0 | P12: 0 | Q12: 0 | R12: 0 | S12: 0 | T12: 0 | U12: 0 | V12: 0 | W12: 0 | X12: 0 | Y12: 0 | Z12: 0 | AA12: 0 | AB12: 0 | AC12: 0 | AD12: 0 | AE12: 0 | AF12: 0 | AG12: 0 | AH12: 0 | AI12: 0 | AJ12: 0 | AK12: 0 | AL12: 0 | AM12: 0 | AN12: 0 | AO12: 0 | AP12: 0 | AQ12: 0 | AR12: 0
E13: Modell Periodenbeginn | G13: Datum | J13: =(I14 + 1) * (1 - J12) + J12 * DATE(YEAR($F18),1,1) -> 2018-01-01 | K13: 2019-01-01 | L13: 2020-01-01 | M13: 2021-01-01 | N13: 2022-01-01 | O13: 2023-01-01 | P13: 2024-01-01 | Q13: 2025-01-01 | R13: 2026-01-01 | S13: 2027-01-01 | T13: 2028-01-01 | U13: 2029-01-01 | V13: 2030-01-01 | W13: 2031-01-01 | X13: 2032-01-01 | Y13: 2033-01-01 | Z13: 2034-01-01 | AA13: 2035-01-01 | AB13: 2036-01-01 | AC13: 2037-01-01 | AD13: 2038-01-01 | AE13: 2039-01-01 | AF13: 2040-01-01 | AG13: 2041-01-01 | AH13: 2042-01-01 | AI13: 2043-01-01 | AJ13: 2044-01-01 | AK13: 2045-01-01 | AL13: 2046-01-01 | AM13: 2047-01-01 | AN13: 2048-01-01 | AO13: 2049-01-01 | AP13: 2050-01-01 | AQ13: 2051-01-01 | AR13: 2052-01-01
E14: Modell Periodenende | G14: Datum | J14: =DATE(YEAR(J13), MONTH(J13) + 12, 0) -> 2018-12-31 | K14: =DATE(YEAR(K13), MONTH(K13) + 12, 0) -> 2019-12-31 | L14: 2020-12-31 | M14: 2021-12-31 | N14: 2022-12-31 | O14: 2023-12-31 | P14: 2024-12-31 | Q14: 2025-12-31 | R14: 2026-12-31 | S14: 2027-12-31 | T14: 2028-12-31 | U14: 2029-12-31 | V14: 2030-12-31 | W14: 2031-12-31 | X14: 2032-12-31 | Y14: 2033-12-31 | Z14: 2034-12-31 | AA14: 2035-12-31 | AB14: 2036-12-31 | AC14: 2037-12-31 | AD14: 2038-12-31 | AE14: 2039-12-31 | AF14: 2040-12-31 | AG14: 2041-12-31 | AH14: 2042-12-31 | AI14: 2043-12-31 | AJ14: 2044-12-31 | AK14: 2045-12-31 | AL14: 2046-12-31 | AM14: 2047-12-31 | AN14: 2048-12-31 | AO14: 2049-12-31 | AP14: 2050-12-31 | AQ14: 2051-12-31 | AR14: 2052-12-31
B16: PROJEKTRAHMEN
E18: ='Generelle-Annahmen'!E$16 -> Startdatum Excel-Modell & Projektlaufzeit (für alle Varianten) | F18: ='Generelle-Annahmen'!F$16 -> 2018-01-01 | G18: ='Generelle-Annahmen'!G$16 -> Datum
E19: ='Generelle-Annahmen'!E$18 -> Enddatum Projektlaufzeit & Betriebsphase (für alle Varianten) | F19: ='Generelle-Annahmen'!F$18 -> 2045-12-31 | G19: ='Generelle-Annahmen'!G$18 -> Datum
E20: ='Generelle-Annahmen'!E$17 -> Projektlaufzeit (für alle Varianten) | F20: ='Generelle-Annahmen'!F$17 -> 28 | G20: ='Generelle-Annahmen'!G$17 -> Jahre
E21: Beginn Projektphase | G21: Flag | H21: =SUM(J21:AR21) -> 1 | J21: =IF(AND($F18 >= J$2, $F18 <= J$3), 1, 0) -> 1 | K21: 0 | L21: 0 | M21: 0 | N21: 0 | O21: 0 | P21: 0 | Q21: 0 | R21: 0 | S21: 0 | T21: 0 | U21: 0 | V21: 0 | W21: 0 | X21: 0 | Y21: 0 | Z21: 0 | AA21: 0 | AB21: 0 | AC21: 0 | AD21: 0 | AE21: 0 | AF21: 0 | AG21: 0 | AH21: 0 | AI21: 0 | AJ21: 0 | AK21: 0 | AL21: 0 | AM21: 0 | AN21: 0 | AO21: 0 | AP21: 0 | AQ21: 0 | AR21: 0
E22: Ende Projektphase | G22: Flag | H22: 1 | J22: =IF(AND($F19 >= J$2, $F19 <= J$3), 1, 0) -> 0 | K22: 0 | L22: 0 | M22: 0 | N22: 0 | O22: 0 | P22: 0 | Q22: 0 | R22: 0 | S22: 0 | T22: 0 | U22: 0 | V22: 0 | W22: 0 | X22: 0 | Y22: 0 | Z22: 0 | AA22: 0 | AB22: 0 | AC22: 0 | AD22: 0 | AE22: 0 | AF22: 0 | AG22: 0 | AH22: 0 | AI22: 0 | AJ22: 0 | AK22: 1 | AL22: 0 | AM22: 0 | AN22: 0 | AO22: 0 | AP22: 0 | AQ22: 0 | AR22: 0
E23: Periodenflag Projektphase | G23: Flag | H23: 28 | J23: =IF(AND(SUM($J21:J21) > 0, SUM(J22:$AR22) > 0), 1, 0) -> 1 | K23: =IF(AND(SUM($J21:K21) > 0, SUM(K22:$AR22) > 0), 1, 0) -> 1 | L23: =IF(AND(SUM($J21:L21) > 0, SUM(L22:$AR22) > 0), 1, 0) -> 1 | M23: =IF(AND(SUM($J21:M21) > 0, SUM(M22:$AR22) > 0), 1, 0) -> 1 | N23: =IF(AND(SUM($J21:N21) > 0, SUM(N22:$AR22) > 0), 1, 0) -> 1 | O23: =IF(AND(SUM($J21:O21) > 0, SUM(O22:$AR22) > 0), 1, 0) -> 1 | P23: =IF(AND(SUM($J21:P21) > 0, SUM(P22:$AR22) > 0), 1, 0) -> 1 | Q23: =IF(AND(SUM($J21:Q21) > 0, SUM(Q22:$AR22) > 0), 1, 0) -> 1 | R23: =IF(AND(SUM($J21:R21) > 0, SUM(R22:$AR22) > 0), 1, 0) -> 1 | S23: =IF(AND(SUM($J21:S21) > 0, SUM(S22:$AR22) > 0), 1, 0) -> 1 | T23: =IF(AND(SUM($J21:T21) > 0, SUM(T22:$AR22) > 0), 1, 0) -> 1 | U23: =IF(AND(SUM($J21:U21) > 0, SUM(U22:$AR22) > 0), 1, 0) -> 1 | V23: =IF(AND(SUM($J21:V21) > 0, SUM(V22:$AR22) > 0), 1, 0) -> 1 | W23: =IF(AND(SUM($J21:W21) > 0, SUM(W22:$AR22) > 0), 1, 0) -> 1 | X23: =IF(AND(SUM($J21:X21) > 0, SUM(X22:$AR22) > 0), 1, 0) -> 1 | Y23: =IF(AND(SUM($J21:Y21) > 0, SUM(Y22:$AR22) > 0), 1, 0) -> 1 | Z23: =IF(AND(SUM($J21:Z21) > 0, SUM(Z22:$AR22) > 0), 1, 0) -> 1 | AA23: =IF(AND(SUM($J21:AA21) > 0, SUM(AA22:$AR22) > 0), 1, 0) -> 1 | AB23: =IF(AND(SUM($J21:AB21) > 0, SUM(AB22:$AR22) > 0), 1, 0) -> 1 | AC23: =IF(AND(SUM($J21:AC21) > 0, SUM(AC22:$AR22) > 0), 1, 0) -> 1 | AD23: =IF(AND(SUM($J21:AD21) > 0, SUM(AD22:$AR22) > 0), 1, 0) -> 1 | AE23: =IF(AND(SUM($J21:AE21) > 0, SUM(AE22:$AR22) > 0), 1, 0) -> 1 | AF23: =IF(AND(SUM($J21:AF21) > 0, SUM(AF22:$AR22) > 0), 1, 0) -> 1 | AG23: =IF(AND(SUM($J21:AG21) > 0, SUM(AG22:$AR22) > 0), 1, 0) -> 1 | AH23: =IF(AND(SUM($J21:AH21) > 0, SUM(AH22:$AR22) > 0), 1, 0) -> 1 | AI23: =IF(AND(SUM($J21:AI21) > 0, SUM(AI22:$AR22) > 0), 1, 0) -> 1 | AJ23: =IF(AND(SUM($J21:AJ21) > 0, SUM(AJ22:$AR22) > 0), 1, 0) -> 1 | AK23: =IF(AND(SUM($J21:AK21) > 0, SUM(AK22:$AR22) > 0), 1, 0) -> 1 | AL23: =IF(AND(SUM($J21:AL21) > 0, SUM(AL22:$AR22) > 0), 1, 0) -> 0 | AM23: =IF(AND(SUM($J21:AM21) > 0, SUM(AM22:$AR22) > 0), 1, 0) -> 0 | AN23: =IF(AND(SUM($J21:AN21) > 0, SUM(AN22:$AR22) > 0), 1, 0) -> 0 | AO23: =IF(AND(SUM($J21:AO21) > 0, SUM(AO22:$AR22) > 0), 1, 0) -> 0 | AP23: =IF(AND(SUM($J21:AP21) > 0, SUM(AP22:$AR22) > 0), 1, 0) -> 0 | AQ23: =IF(AND(SUM($J21:AQ21) > 0, SUM(AQ22:$AR22) > 0), 1, 0) -> 0 | AR23: =IF(AND(SUM($J21:AR21) > 0, SUM(AR22:$AR22) > 0), 1, 0) -> 0
E24: Korrekturflag Kostenanfall Erste & Letzte Periode Projektphase | G24: Flag | H24: =SUM(J24:AR24) -> 28 | J24: =YEARFRAC($F18,J$3)*J21+(1-YEARFRAC(J$3,$F19))*J22+(J23-J21-J22) -> 1 | K24: =YEARFRAC($F18,K$3)*K21+(1-YEARFRAC(K$3,$F19))*K22+(K23-K21-K22) -> 1 | L24: 1 | M24: 1 | N24: 1 | O24: 1 | P24: 1 | Q24: 1 | R24: 1 | S24: 1 | T24: 1 | U24: 1 | V24: 1 | W24: 1 | X24: 1 | Y24: 1 | Z24: 1 | AA24: 1 | AB24: 1 | AC24: 1 | AD24: 1 | AE24: 1 | AF24: 1 | AG24: 1 | AH24: 1 | AI24: 1 | AJ24: 1 | AK24: 1 | AL24: 0 | AM24: 0 | AN24: 0 | AO24: 0 | AP24: 0 | AQ24: 0 | AR24: 0
E26: ="Startdatum Bauphase "&'Generelle-Annahmen'!J$3 -> Startdatum Bauphase Variante 1 - Eigenrealisierung Sanierung | F26: ='Generelle-Annahmen'!J$20 -> 2018-01-01 | G26: ='Generelle-Annahmen'!G$20 -> Datum
E27: ="Enddatum Bauphase "&'Generelle-Annahmen'!J$3 -> Enddatum Bauphase Variante 1 - Eigenrealisierung Sanierung | F27: ='Generelle-Annahmen'!J$22 -> 2020-12-31 | G27: ='Generelle-Annahmen'!G$22 -> Datum
E28: ="Länge Bauphase "&'Generelle-Annahmen'!J$3 -> Länge Bauphase Variante 1 - Eigenrealisierung Sanierung | F28: ='Generelle-Annahmen'!J$21 -> 36 | G28: ='Generelle-Annahmen'!G$21 -> Monate
E29: ="Beginn Bauphase "&'Generelle-Annahmen'!J$3 -> Beginn Bauphase Variante 1 - Eigenrealisierung Sanierung | G29: Flag | H29: =SUM(J29:AR29) -> 1 | J29: =IF(AND($F26 >= J$2, $F26 <= J$3), 1, 0) -> 1 | K29: =IF(AND($F26 >= K$2, $F26 <= K$3), 1, 0) -> 0 | L29: 0 | M29: 0 | N29: 0 | O29: 0 | P29: 0 | Q29: 0 | R29: 0 | S29: 0 | T29: 0 | U29: 0 | V29: 0 | W29: 0 | X29: 0 | Y29: 0 | Z29: 0 | AA29: 0 | AB29: 0 | AC29: 0 | AD29: 0 | AE29: 0 | AF29: 0 | AG29: 0 | AH29: 0 | AI29: 0 | AJ29: 0 | AK29: 0 | AL29: 0 | AM29: 0 | AN29: 0 | AO29: 0 | AP29: 0 | AQ29: 0 | AR29: 0
E30: ="Ende Bauphase "&'Generelle-Annahmen'!J$3 -> Ende Bauphase Variante 1 - Eigenrealisierung Sanierung | G30: Flag | H30: =SUM(J30:AR30) -> 1 | J30: =IF(AND($F27 >= J$2, $F27 <= J$3), 1, 0) -> 0 | K30: 0 | L30: 1 | M30: 0 | N30: 0 | O30: 0 | P30: 0 | Q30: 0 | R30: 0 | S30: 0 | T30: 0 | U30: 0 | V30: 0 | W30: 0 | X30: 0 | Y30: 0 | Z30: 0 | AA30: 0 | AB30: 0 | AC30: 0 | AD30: 0 | AE30: 0 | AF30: 0 | AG30: 0 | AH30: 0 | AI30: 0 | AJ30: 0 | AK30: 0 | AL30: 0 | AM30: 0 | AN30: 0 | AO30: 0 | AP30: 0 | AQ30: 0 | AR30: 0
E31: ="Periodenflag Bauphase "&'Generelle-Annahmen'!J$3 -> Periodenflag Bauphase Variante 1 - Eigenrealisierung Sanierung | G31: Flag | H31: =SUM(J31:AR31) -> 3 | J31: =IF(AND(SUM($J29:J29) > 0, SUM(J30:$AR30) > 0), 1, 0) -> 1 | K31: =IF(AND(SUM($J29:K29) > 0, SUM(K30:$AR30) > 0), 1, 0) -> 1 | L31: =IF(AND(SUM($J29:L29) > 0, SUM(L30:$AR30) > 0), 1, 0) -> 1 | M31: =IF(AND(SUM($J29:M29) > 0, SUM(M30:$AR30) > 0), 1, 0) -> 0 | N31: =IF(AND(SUM($J29:N29) > 0, SUM(N30:$AR30) > 0), 1, 0) -> 0 | O31: =IF(AND(SUM($J29:O29) > 0, SUM(O30:$AR30) > 0), 1, 0) -> 0 | P31: =IF(AND(SUM($J29:P29) > 0, SUM(P30:$AR30) > 0), 1, 0) -> 0 | Q31: =IF(AND(SUM($J29:Q29) > 0, SUM(Q30:$AR30) > 0), 1, 0) -> 0 | R31: =IF(AND(SUM($J29:R29) > 0, SUM(R30:$AR30) > 0), 1, 0) -> 0 | S31: =IF(AND(SUM($J29:S29) > 0, SUM(S30:$AR30) > 0), 1, 0) -> 0 | T31: =IF(AND(SUM($J29:T29) > 0, SUM(T30:$AR30) > 0), 1, 0) -> 0 | U31: =IF(AND(SUM($J29:U29) > 0, SUM(U30:$AR30) > 0), 1, 0) -> 0 | V31: =IF(AND(SUM($J29:V29) > 0, SUM(V30:$AR30) > 0), 1, 0) -> 0 | W31: =IF(AND(SUM($J29:W29) > 0, SUM(W30:$AR30) > 0), 1, 0) -> 0 | X31: =IF(AND(SUM($J29:X29) > 0, SUM(X30:$AR30) > 0), 1, 0) -> 0 | Y31: =IF(AND(SUM($J29:Y29) > 0, SUM(Y30:$AR30) > 0), 1, 0) -> 0 | Z31: =IF(AND(SUM($J29:Z29) > 0, SUM(Z30:$AR30) > 0), 1, 0) -> 0 | AA31: =IF(AND(SUM($J29:AA29) > 0, SUM(AA30:$AR30) > 0), 1, 0) -> 0 | AB31: =IF(AND(SUM($J29:AB29) > 0, SUM(AB30:$AR30) > 0), 1, 0) -> 0 | AC31: =IF(AND(SUM($J29:AC29) > 0, SUM(AC30:$AR30) > 0), 1, 0) -> 0 | AD31: =IF(AND(SUM($J29:AD29) > 0, SUM(AD30:$AR30) > 0), 1, 0) -> 0 | AE31: =IF(AND(SUM($J29:AE29) > 0, SUM(AE30:$AR30) > 0), 1, 0) -> 0 | AF31: =IF(AND(SUM($J29:AF29) > 0, SUM(AF30:$AR30) > 0), 1, 0) -> 0 | AG31: =IF(AND(SUM($J29:AG29) > 0, SUM(AG30:$AR30) > 0), 1, 0) -> 0 | AH31: =IF(AND(SUM($J29:AH29) > 0, SUM(AH30:$AR30) > 0), 1, 0) -> 0 | AI31: =IF(AND(SUM($J29:AI29) > 0, SUM(AI30:$AR30) > 0), 1, 0) -> 0 | AJ31: =IF(AND(SUM($J29:AJ29) > 0, SUM(AJ30:$AR30) > 0), 1, 0) -> 0 | AK31: =IF(AND(SUM($J29:AK29) > 0, SUM(AK30:$AR30) > 0), 1, 0) -> 0 | AL31: =IF(AND(SUM($J29:AL29) > 0, SUM(AL30:$AR30) > 0), 1, 0) -> 0 | AM31: =IF(AND(SUM($J29:AM29) > 0, SUM(AM30:$AR30) > 0), 1, 0) -> 0 | AN31: =IF(AND(SUM($J29:AN29) > 0, SUM(AN30:$AR30) > 0), 1, 0) -> 0 | AO31: =IF(AND(SUM($J29:AO29) > 0, SUM(AO30:$AR30) > 0), 1, 0) -> 0 | AP31: =IF(AND(SUM($J29:AP29) > 0, SUM(AP30:$AR30) > 0), 1, 0) -> 0 | AQ31: =IF(AND(SUM($J29:AQ29) > 0, SUM(AQ30:$AR30) > 0), 1, 0) -> 0 | AR31: =IF(AND(SUM($J29:AR29) > 0, SUM(AR30:$AR30) > 0), 1, 0) -> 0
E32: ="Korrekturflag Kostenanfall Erste & Letzte Periode Bauphase "&'Generelle-Annahmen'!J$3 -> Korrekturflag Kostenanfall Erste & Letzte Periode Bauphase Variante 1 - Eigenrealisierung Sanierung | G32: Flag | H32: =SUM(J32:AR32) -> 3 | J32: =YEARFRAC($F26,J$3)*J29+(1-YEARFRAC(J$3,$F27))*J30+(J31-J29-J30) -> 1 | K32: =YEARFRAC($F26,K$3)*K29+(1-YEARFRAC(K$3,$F27))*K30+(K31-K29-K30) -> 1 | L32: 1 | M32: 0 | N32: 0 | O32: 0 | P32: 0 | Q32: 0 | R32: 0 | S32: 0 | T32: 0 | U32: 0 | V32: 0 | W32: 0 | X32: 0 | Y32: 0 | Z32: 0 | AA32: 0 | AB32: 0 | AC32: 0 | AD32: 0 | AE32: 0 | AF32: 0 | AG32: 0 | AH32: 0 | AI32: 0 | AJ32: 0 | AK32: 0 | AL32: 0 | AM32: 0 | AN32: 0 | AO32: 0 | AP32: 0 | AQ32: 0 | AR32: 0
E34: ="Startdatum Betriebsphase "&'Generelle-Annahmen'!J$3 -> Startdatum Betriebsphase Variante 1 - Eigenrealisierung Sanierung | F34: ='Generelle-Annahmen'!J$24 -> 2021-01-01 | G34: ='Generelle-Annahmen'!G$24 -> Datum
E35: ="Enddatum Betriebsphase "&'Generelle-Annahmen'!J$3 -> Enddatum Betriebsphase Variante 1 - Eigenrealisierung Sanierung | F35: ='Generelle-Annahmen'!J$26 -> 2045-12-31 | G35: ='Generelle-Annahmen'!G$26 -> Datum
E36: ="Länge Betriebsphase "&'Generelle-Annahmen'!J$3 -> Länge Betriebsphase Variante 1 - Eigenrealisierung Sanierung | F36: ='Generelle-Annahmen'!J$25 -> 25 | G36: ='Generelle-Annahmen'!G$25 -> Jahre
E37: ="Beginn Betriebsphase "&'Generelle-Annahmen'!J$3 -> Beginn Betriebsphase Variante 1 - Eigenrealisierung Sanierung | G37: Flag | H37: =SUM(J37:AR37) -> 1 | J37: =IF(AND($F34 >= J$2, $F34 <= J$3), 1, 0) -> 0 | K37: =IF(AND($F34 >= K$2, $F34 <= K$3), 1, 0) -> 0 | L37: 0 | M37: 1 | N37: 0 | O37: 0 | P37: =IF(AND($F34 >= P$2, $F34 <= P$3), 1, 0) -> 0 | Q37: =IF(AND($F34 >= Q$2, $F34 <= Q$3), 1, 0) -> 0 | R37: 0 | S37: 0 | T37: 0 | U37: 0 | V37: 0 | W37: 0 | X37: 0 | Y37: 0 | Z37: 0 | AA37: 0 | AB37: 0 | AC37: 0 | AD37: 0 | AE37: 0 | AF37: 0 | AG37: 0 | AH37: 0 | AI37: 0 | AJ37: 0 | AK37: 0 | AL37: 0 | AM37: 0 | AN37: 0 | AO37: 0 | AP37: 0 | AQ37: 0 | AR37: 0
E38: ="Ende Betriebsphase "&'Generelle-Annahmen'!J$3 -> Ende Betriebsphase Variante 1 - Eigenrealisierung Sanierung | G38: Flag | H38: 1 | J38: =IF(AND($F35 >= J$2, $F35 <= J$3), 1, 0) -> 0 | K38: 0 | L38: 0 | M38: 0 | N38: 0 | O38: 0 | P38: 0 | Q38: 0 | R38: 0 | S38: 0 | T38: 0 | U38: 0 | V38: 0 | W38: 0 | X38: 0 | Y38: 0 | Z38: 0 | AA38: 0 | AB38: 0 | AC38: 0 | AD38: 0 | AE38: 0 | AF38: 0 | AG38: 0 | AH38: 0 | AI38: 0 | AJ38: 0 | AK38: 1 | AL38: 0 | AM38: 0 | AN38: 0 | AO38: 0 | AP38: 0 | AQ38: 0 | AR38: 0
E39: ="Periodenflag Betriebsphase "&'Generelle-Annahmen'!J$3 -> Periodenflag Betriebsphase Variante 1 - Eigenrealisierung Sanierung | G39: Flag | H39: 25 | J39: =IF(AND(SUM($J37:J37) > 0, SUM(J38:$AR38) > 0), 1, 0) -> 0 | K39: =IF(AND(SUM($J37:K37) > 0, SUM(K38:$AR38) > 0), 1, 0) -> 0 | L39: =IF(AND(SUM($J37:L37) > 0, SUM(L38:$AR38) > 0), 1, 0) -> 0 | M39: =IF(AND(SUM($J37:M37) > 0, SUM(M38:$AR38) > 0), 1, 0) -> 1 | N39: =IF(AND(SUM($J37:N37) > 0, SUM(N38:$AR38) > 0), 1, 0) -> 1 | O39: =IF(AND(SUM($J37:O37) > 0, SUM(O38:$AR38) > 0), 1, 0) -> 1 | P39: =IF(AND(SUM($J37:P37) > 0, SUM(P38:$AR38) > 0), 1, 0) -> 1 | Q39: =IF(AND(SUM($J37:Q37) > 0, SUM(Q38:$AR38) > 0), 1, 0) -> 1 | R39: =IF(AND(SUM($J37:R37) > 0, SUM(R38:$AR38) > 0), 1, 0) -> 1 | S39: =IF(AND(SUM($J37:S37) > 0, SUM(S38:$AR38) > 0), 1, 0) -> 1 | T39: =IF(AND(SUM($J37:T37) > 0, SUM(T38:$AR38) > 0), 1, 0) -> 1 | U39: =IF(AND(SUM($J37:U37) > 0, SUM(U38:$AR38) > 0), 1, 0) -> 1 | V39: =IF(AND(SUM($J37:V37) > 0, SUM(V38:$AR38) > 0), 1, 0) -> 1 | W39: =IF(AND(SUM($J37:W37) > 0, SUM(W38:$AR38) > 0), 1, 0) -> 1 | X39: =IF(AND(SUM($J37:X37) > 0, SUM(X38:$AR38) > 0), 1, 0) -> 1 | Y39: =IF(AND(SUM($J37:Y37) > 0, SUM(Y38:$AR38) > 0), 1, 0) -> 1 | Z39: =IF(AND(SUM($J37:Z37) > 0, SUM(Z38:$AR38) > 0), 1, 0) -> 1 | AA39: =IF(AND(SUM($J37:AA37) > 0, SUM(AA38:$AR38) > 0), 1, 0) -> 1 | AB39: =IF(AND(SUM($J37:AB37) > 0, SUM(AB38:$AR38) > 0), 1, 0) -> 1 | AC39: =IF(AND(SUM($J37:AC37) > 0, SUM(AC38:$AR38) > 0), 1, 0) -> 1 | AD39: =IF(AND(SUM($J37:AD37) > 0, SUM(AD38:$AR38) > 0), 1, 0) -> 1 | AE39: =IF(AND(SUM($J37:AE37) > 0, SUM(AE38:$AR38) > 0), 1, 0) -> 1 | AF39: =IF(AND(SUM($J37:AF37) > 0, SUM(AF38:$AR38) > 0), 1, 0) -> 1 | AG39: =IF(AND(SUM($J37:AG37) > 0, SUM(AG38:$AR38) > 0), 1, 0) -> 1 | AH39: =IF(AND(SUM($J37:AH37) > 0, SUM(AH38:$AR38) > 0), 1, 0) -> 1 | AI39: =IF(AND(SUM($J37:AI37) > 0, SUM(AI38:$AR38) > 0), 1, 0) -> 1 | AJ39: =IF(AND(SUM($J37:AJ37) > 0, SUM(AJ38:$AR38) > 0), 1, 0) -> 1 | AK39: =IF(AND(SUM($J37:AK37) > 0, SUM(AK38:$AR38) > 0), 1, 0) -> 1 | AL39: =IF(AND(SUM($J37:AL37) > 0, SUM(AL38:$AR38) > 0), 1, 0) -> 0 | AM39: =IF(AND(SUM($J37:AM37) > 0, SUM(AM38:$AR38) > 0), 1, 0) -> 0 | AN39: =IF(AND(SUM($J37:AN37) > 0, SUM(AN38:$AR38) > 0), 1, 0) -> 0 | AO39: =IF(AND(SUM($J37:AO37) > 0, SUM(AO38:$AR38) > 0), 1, 0) -> 0 | AP39: =IF(AND(SUM($J37:AP37) > 0, SUM(AP38:$AR38) > 0), 1, 0) -> 0 | AQ39: =IF(AND(SUM($J37:AQ37) > 0, SUM(AQ38:$AR38) > 0), 1, 0) -> 0 | AR39: =IF(AND(SUM($J37:AR37) > 0, SUM(AR38:$AR38) > 0), 1, 0) -> 0
E40: ="Korrekturflag Kostenanfall Erste & Letzte Periode Betriebsphase "&'Generelle-Annahmen'!J$3 -> Korrekturflag Kostenanfall Erste & Letzte Periode Betriebsphase Variante 1 - Eigenrealisierung Sanierung | G40: Flag | H40: =SUM(J40:AR40) -> 25 | J40: =YEARFRAC($F34,J$3)*J37+(1-YEARFRAC(J$3,$F35))*J38+(J39-J37-J38) -> 0 | K40: =YEARFRAC($F34,K$3)*K37+(1-YEARFRAC(K$3,$F35))*K38+(K39-K37-K38) -> 0 | L40: 0 | M40: 1 | N40: 1 | O40: 1 | P40: 1 | Q40: 1 | R40: 1 | S40: 1 | T40: 1 | U40: 1 | V40: 1 | W40: 1 | X40: 1 | Y40: 1 | Z40: 1 | AA40: 1 | AB40: 1 | AC40: 1 | AD40: 1 | AE40: 1 | AF40: 1 | AG40: 1 | AH40: 1 | AI40: 1 | AJ40: 1 | AK40: 1 | AL40: 0 | AM40: 0 | AN40: 0 | AO40: 0 | AP40: 0 | AQ40: 0 | AR40: 0
E41: ="Tilgungsperioden "&'Generelle-Annahmen'!J$3 -> Tilgungsperioden Variante 1 - Eigenrealisierung Sanierung | G41: Flag | H41: =SUM(J41:AR41) -> 325 | J41: =IF(J39=1,I41 +1,0) -> 0 | K41: 0 | L41: 0 | M41: 1 | N41: 2 | O41: 3 | P41: 4 | Q41: 5 | R41: 6 | S41: 7 | T41: 8 | U41: 9 | V41: 10 | W41: 11 | X41: 12 | Y41: 13 | Z41: 14 | AA41: 15 | AB41: 16 | AC41: 17 | AD41: 18 | AE41: 19 | AF41: 20 | AG41: 21 | AH41: 22 | AI41: 23 | AJ41: 24 | AK41: 25 | AL41: 0 | AM41: 0 | AN41: 0 | AO41: 0 | AP41: 0 | AQ41: 0 | AR41: 0
E43: ="Startdatum Bauphase "&'Generelle-Annahmen'!K$3 -> Startdatum Bauphase Variante 2 - ÖPP Sanierung | F43: ='Generelle-Annahmen'!K$20 -> 2018-01-01 | G43: ='Generelle-Annahmen'!G$20 -> Datum
E44: ="Enddatum Bauphase "&'Generelle-Annahmen'!K$3 -> Enddatum Bauphase Variante 2 - ÖPP Sanierung | F44: ='Generelle-Annahmen'!K$22 -> 2020-12-31 | G44: ='Generelle-Annahmen'!G$22 -> Datum
E45: ="Länge Bauphase "&'Generelle-Annahmen'!K$3 -> Länge Bauphase Variante 2 - ÖPP Sanierung | F45: ='Generelle-Annahmen'!K$21 -> 36 | G45: ='Generelle-Annahmen'!G$21 -> Monate
E46: ="Beginn Bauphase "&'Generelle-Annahmen'!K$3 -> Beginn Bauphase Variante 2 - ÖPP Sanierung | G46: Flag | H46: =SUM(J46:AR46) -> 1 | J46: =IF(AND($F43 >= J$2, $F43 <= J$3), 1, 0) -> 1 | K46: =IF(AND($F43 >= K$2, $F43 <= K$3), 1, 0) -> 0 | L46: 0 | M46: 0 | N46: 0 | O46: 0 | P46: 0 | Q46: 0 | R46: 0 | S46: 0 | T46: 0 | U46: 0 | V46: 0 | W46: 0 | X46: 0 | Y46: 0 | Z46: 0 | AA46: 0 | AB46: 0 | AC46: 0 | AD46: 0 | AE46: 0 | AF46: 0 | AG46: 0 | AH46: 0 | AI46: 0 | AJ46: 0 | AK46: 0 | AL46: 0 | AM46: 0 | AN46: 0 | AO46: 0 | AP46: 0 | AQ46: 0 | AR46: 0
E47: ="Ende Bauphase "&'Generelle-Annahmen'!K$3 -> Ende Bauphase Variante 2 - ÖPP Sanierung | G47: Flag | H47: =SUM(J47:AR47) -> 1 | J47: =IF(AND($F44 >= J$2, $F44 <= J$3), 1, 0) -> 0 | K47: 0 | L47: 1 | M47: 0 | N47: 0 | O47: 0 | P47: 0 | Q47: 0 | R47: 0 | S47: 0 | T47: 0 | U47: 0 | V47: 0 | W47: 0 | X47: 0 | Y47: 0 | Z47: 0 | AA47: 0 | AB47: 0 | AC47: 0 | AD47: 0 | AE47: 0 | AF47: 0 | AG47: 0 | AH47: 0 | AI47: 0 | AJ47: 0 | AK47: 0 | AL47: 0 | AM47: 0 | AN47: 0 | AO47: 0 | AP47: 0 | AQ47: 0 | AR47: 0
E48: ="Periodenflag Bauphase "&'Generelle-Annahmen'!K$3 -> Periodenflag Bauphase Variante 2 - ÖPP Sanierung | G48: Flag | H48: =SUM(J48:AR48) -> 3 | J48: =IF(AND(SUM($J46:J46) > 0, SUM(J47:$AR47) > 0), 1, 0) -> 1 | K48: =IF(AND(SUM($J46:K46) > 0, SUM(K47:$AR47) > 0), 1, 0) -> 1 | L48: =IF(AND(SUM($J46:L46) > 0, SUM(L47:$AR47) > 0), 1, 0) -> 1 | M48: =IF(AND(SUM($J46:M46) > 0, SUM(M47:$AR47) > 0), 1, 0) -> 0 | N48: =IF(AND(SUM($J46:N46) > 0, SUM(N47:$AR47) > 0), 1, 0) -> 0 | O48: =IF(AND(SUM($J46:O46) > 0, SUM(O47:$AR47) > 0), 1, 0) -> 0 | P48: =IF(AND(SUM($J46:P46) > 0, SUM(P47:$AR47) > 0), 1, 0) -> 0 | Q48: =IF(AND(SUM($J46:Q46) > 0, SUM(Q47:$AR47) > 0), 1, 0) -> 0 | R48: =IF(AND(SUM($J46:R46) > 0, SUM(R47:$AR47) > 0), 1, 0) -> 0 | S48: =IF(AND(SUM($J46:S46) > 0, SUM(S47:$AR47) > 0), 1, 0) -> 0 | T48: =IF(AND(SUM($J46:T46) > 0, SUM(T47:$AR47) > 0), 1, 0) -> 0 | U48: =IF(AND(SUM($J46:U46) > 0, SUM(U47:$AR47) > 0), 1, 0) -> 0 | V48: =IF(AND(SUM($J46:V46) > 0, SUM(V47:$AR47) > 0), 1, 0) -> 0 | W48: =IF(AND(SUM($J46:W46) > 0, SUM(W47:$AR47) > 0), 1, 0) -> 0 | X48: =IF(AND(SUM($J46:X46) > 0, SUM(X47:$AR47) > 0), 1, 0) -> 0 | Y48: =IF(AND(SUM($J46:Y46) > 0, SUM(Y47:$AR47) > 0), 1, 0) -> 0 | Z48: =IF(AND(SUM($J46:Z46) > 0, SUM(Z47:$AR47) > 0), 1, 0) -> 0 | AA48: =IF(AND(SUM($J46:AA46) > 0, SUM(AA47:$AR47) > 0), 1, 0) -> 0 | AB48: =IF(AND(SUM($J46:AB46) > 0, SUM(AB47:$AR47) > 0), 1, 0) -> 0 | AC48: =IF(AND(SUM($J46:AC46) > 0, SUM(AC47:$AR47) > 0), 1, 0) -> 0 | AD48: =IF(AND(SUM($J46:AD46) > 0, SUM(AD47:$AR47) > 0), 1, 0) -> 0 | AE48: =IF(AND(SUM($J46:AE46) > 0, SUM(AE47:$AR47) > 0), 1, 0) -> 0 | AF48: =IF(AND(SUM($J46:AF46) > 0, SUM(AF47:$AR47) > 0), 1, 0) -> 0 | AG48: =IF(AND(SUM($J46:AG46) > 0, SUM(AG47:$AR47) > 0), 1, 0) -> 0 | AH48: =IF(AND(SUM($J46:AH46) > 0, SUM(AH47:$AR47) > 0), 1, 0) -> 0 | AI48: =IF(AND(SUM($J46:AI46) > 0, SUM(AI47:$AR47) > 0), 1, 0) -> 0 | AJ48: =IF(AND(SUM($J46:AJ46) > 0, SUM(AJ47:$AR47) > 0), 1, 0) -> 0 | AK48: =IF(AND(SUM($J46:AK46) > 0, SUM(AK47:$AR47) > 0), 1, 0) -> 0 | AL48: =IF(AND(SUM($J46:AL46) > 0, SUM(AL47:$AR47) > 0), 1, 0) -> 0 | AM48: =IF(AND(SUM($J46:AM46) > 0, SUM(AM47:$AR47) > 0), 1, 0) -> 0 | AN48: =IF(AND(SUM($J46:AN46) > 0, SUM(AN47:$AR47) > 0), 1, 0) -> 0 | AO48: =IF(AND(SUM($J46:AO46) > 0, SUM(AO47:$AR47) > 0), 1, 0) -> 0 | AP48: =IF(AND(SUM($J46:AP46) > 0, SUM(AP47:$AR47) > 0), 1, 0) -> 0 | AQ48: =IF(AND(SUM($J46:AQ46) > 0, SUM(AQ47:$AR47) > 0), 1, 0) -> 0 | AR48: =IF(AND(SUM($J46:AR46) > 0, SUM(AR47:$AR47) > 0), 1, 0) -> 0
E49: ="Korrekturflag Kostenanfall Erste & Letzte Periode Bauphase "&'Generelle-Annahmen'!K$3 -> Korrekturflag Kostenanfall Erste & Letzte Periode Bauphase Variante 2 - ÖPP Sanierung | G49: Flag | H49: =SUM(J49:AR49) -> 3 | J49: =YEARFRAC($F43,J$3)*J46+(1-YEARFRAC(J$3,$F44))*J47+(J48-J46-J47) -> 1 | K49: =YEARFRAC($F43,K$3)*K46+(1-YEARFRAC(K$3,$F44))*K47+(K48-K46-K47) -> 1 | L49: 1 | M49: 0 | N49: 0 | O49: 0 | P49: 0 | Q49: 0 | R49: 0 | S49: 0 | T49: 0 | U49: 0 | V49: 0 | W49: 0 | X49: 0 | Y49: 0 | Z49: 0 | AA49: 0 | AB49: 0 | AC49: 0 | AD49: 0 | AE49: 0 | AF49: 0 | AG49: 0 | AH49: 0 | AI49: 0 | AJ49: 0 | AK49: 0 | AL49: 0 | AM49: 0 | AN49: 0 | AO49: 0 | AP49: 0 | AQ49: 0 | AR49: 0
E51: ="Startdatum Betriebsphase "&'Generelle-Annahmen'!K$3 -> Startdatum Betriebsphase Variante 2 - ÖPP Sanierung | F51: ='Generelle-Annahmen'!K$24 -> 2021-01-01 | G51: ='Generelle-Annahmen'!G$24 -> Datum
E52: ="Enddatum Betriebsphase "&'Generelle-Annahmen'!K$3 -> Enddatum Betriebsphase Variante 2 - ÖPP Sanierung | F52: ='Generelle-Annahmen'!K$26 -> 2045-12-31 | G52: ='Generelle-Annahmen'!G$26 -> Datum
E53: ="Länge Betriebsphase "&'Generelle-Annahmen'!K$3 -> Länge Betriebsphase Variante 2 - ÖPP Sanierung | F53: ='Generelle-Annahmen'!K$25 -> 25 | G53: ='Generelle-Annahmen'!G$25 -> Jahre
E54: ="Beginn Betriebsphase "&'Generelle-Annahmen'!K$3 -> Beginn Betriebsphase Variante 2 - ÖPP Sanierung | G54: Flag | H54: =SUM(J54:AR54) -> 1 | J54: =IF(AND($F51 >= J$2, $F51 <= J$3), 1, 0) -> 0 | K54: =IF(AND($F51 >= K$2, $F51 <= K$3), 1, 0) -> 0 | L54: 0 | M54: 1 | N54: 0 | O54: 0 | P54: =IF(AND($F51 >= P$2, $F51 <= P$3), 1, 0) -> 0 | Q54: =IF(AND($F51 >= Q$2, $F51 <= Q$3), 1, 0) -> 0 | R54: 0 | S54: 0 | T54: 0 | U54: 0 | V54: 0 | W54: 0 | X54: 0 | Y54: 0 | Z54: 0 | AA54: 0 | AB54: 0 | AC54: 0 | AD54: 0 | AE54: 0 | AF54: 0 | AG54: 0 | AH54: 0 | AI54: 0 | AJ54: 0 | AK54: 0 | AL54: 0 | AM54: 0 | AN54: 0 | AO54: 0 | AP54: 0 | AQ54: 0 | AR54: 0
E55: ="Ende Betriebsphase "&'Generelle-Annahmen'!K$3 -> Ende Betriebsphase Variante 2 - ÖPP Sanierung | G55: Flag | H55: 1 | J55: =IF(AND($F52 >= J$2, $F52 <= J$3), 1, 0) -> 0 | K55: 0 | L55: 0 | M55: 0 | N55: 0 | O55: 0 | P55: 0 | Q55: 0 | R55: 0 | S55: 0 | T55: 0 | U55: 0 | V55: 0 | W55: 0 | X55: 0 | Y55: 0 | Z55: 0 | AA55: 0 | AB55: 0 | AC55: 0 | AD55: 0 | AE55: 0 | AF55: 0 | AG55: 0 | AH55: 0 | AI55: 0 | AJ55: 0 | AK55: 1 | AL55: 0 | AM55: 0 | AN55: 0 | AO55: 0 | AP55: 0 | AQ55: 0 | AR55: 0
E56: ="Periodenflag Betriebsphase "&'Generelle-Annahmen'!K$3 -> Periodenflag Betriebsphase Variante 2 - ÖPP Sanierung | G56: Flag | H56: 25 | J56: =IF(AND(SUM($J54:J54) > 0, SUM(J55:$AR55) > 0), 1, 0) -> 0 | K56: =IF(AND(SUM($J54:K54) > 0, SUM(K55:$AR55) > 0), 1, 0) -> 0 | L56: =IF(AND(SUM($J54:L54) > 0, SUM(L55:$AR55) > 0), 1, 0) -> 0 | M56: =IF(AND(SUM($J54:M54) > 0, SUM(M55:$AR55) > 0), 1, 0) -> 1 | N56: =IF(AND(SUM($J54:N54) > 0, SUM(N55:$AR55) > 0), 1, 0) -> 1 | O56: =IF(AND(SUM($J54:O54) > 0, SUM(O55:$AR55) > 0), 1, 0) -> 1 | P56: =IF(AND(SUM($J54:P54) > 0, SUM(P55:$AR55) > 0), 1, 0) -> 1 | Q56: =IF(AND(SUM($J54:Q54) > 0, SUM(Q55:$AR55) > 0), 1, 0) -> 1 | R56: =IF(AND(SUM($J54:R54) > 0, SUM(R55:$AR55) > 0), 1, 0) -> 1 | S56: =IF(AND(SUM($J54:S54) > 0, SUM(S55:$AR55) > 0), 1, 0) -> 1 | T56: =IF(AND(SUM($J54:T54) > 0, SUM(T55:$AR55) > 0), 1, 0) -> 1 | U56: =IF(AND(SUM($J54:U54) > 0, SUM(U55:$AR55) > 0), 1, 0) -> 1 | V56: =IF(AND(SUM($J54:V54) > 0, SUM(V55:$AR55) > 0), 1, 0) -> 1 | W56: =IF(AND(SUM($J54:W54) > 0, SUM(W55:$AR55) > 0), 1, 0) -> 1 | X56: =IF(AND(SUM($J54:X54) > 0, SUM(X55:$AR55) > 0), 1, 0) -> 1 | Y56: =IF(AND(SUM($J54:Y54) > 0, SUM(Y55:$AR55) > 0), 1, 0) -> 1 | Z56: =IF(AND(SUM($J54:Z54) > 0, SUM(Z55:$AR55) > 0), 1, 0) -> 1 | AA56: =IF(AND(SUM($J54:AA54) > 0, SUM(AA55:$AR55) > 0), 1, 0) -> 1 | AB56: =IF(AND(SUM($J54:AB54) > 0, SUM(AB55:$AR55) > 0), 1, 0) -> 1 | AC56: =IF(AND(SUM($J54:AC54) > 0, SUM(AC55:$AR55) > 0), 1, 0) -> 1 | AD56: =IF(AND(SUM($J54:AD54) > 0, SUM(AD55:$AR55) > 0), 1, 0) -> 1 | AE56: =IF(AND(SUM($J54:AE54) > 0, SUM(AE55:$AR55) > 0), 1, 0) -> 1 | AF56: =IF(AND(SUM($J54:AF54) > 0, SUM(AF55:$AR55) > 0), 1, 0) -> 1 | AG56: =IF(AND(SUM($J54:AG54) > 0, SUM(AG55:$AR55) > 0), 1, 0) -> 1 | AH56: =IF(AND(SUM($J54:AH54) > 0, SUM(AH55:$AR55) > 0), 1, 0) -> 1 | AI56: =IF(AND(SUM($J54:AI54) > 0, SUM(AI55:$AR55) > 0), 1, 0) -> 1 | AJ56: =IF(AND(SUM($J54:AJ54) > 0, SUM(AJ55:$AR55) > 0), 1, 0) -> 1 | AK56: =IF(AND(SUM($J54:AK54) > 0, SUM(AK55:$AR55) > 0), 1, 0) -> 1 | AL56: =IF(AND(SUM($J54:AL54) > 0, SUM(AL55:$AR55) > 0), 1, 0) -> 0 | AM56: =IF(AND(SUM($J54:AM54) > 0, SUM(AM55:$AR55) > 0), 1, 0) -> 0 | AN56: =IF(AND(SUM($J54:AN54) > 0, SUM(AN55:$AR55) > 0), 1, 0) -> 0 | AO56: =IF(AND(SUM($J54:AO54) > 0, SUM(AO55:$AR55) > 0), 1, 0) -> 0 | AP56: =IF(AND(SUM($J54:AP54) > 0, SUM(AP55:$AR55) > 0), 1, 0) -> 0 | AQ56: =IF(AND(SUM($J54:AQ54) > 0, SUM(AQ55:$AR55) > 0), 1, 0) -> 0 | AR56: =IF(AND(SUM($J54:AR54) > 0, SUM(AR55:$AR55) > 0), 1, 0) -> 0
E57: ="Korrekturflag Kostenanfall Erste & Letzte Periode Betriebsphase "&'Generelle-Annahmen'!K$3 -> Korrekturflag Kostenanfall Erste & Letzte Periode Betriebsphase Variante 2 - ÖPP Sanierung | G57: Flag | H57: =SUM(J57:AR57) -> 25 | J57: =YEARFRAC($F51,J$3)*J54+(1-YEARFRAC(J$3,$F52))*J55+(J56-J54-J55) -> 0 | K57: =YEARFRAC($F51,K$3)*K54+(1-YEARFRAC(K$3,$F52))*K55+(K56-K54-K55) -> 0 | L57: 0 | M57: 1 | N57: 1 | O57: 1 | P57: 1 | Q57: 1 | R57: 1 | S57: 1 | T57: 1 | U57: 1 | V57: 1 | W57: 1 | X57: 1 | Y57: 1 | Z57: 1 | AA57: 1 | AB57: 1 | AC57: 1 | AD57: 1 | AE57: 1 | AF57: 1 | AG57: 1 | AH57: 1 | AI57: 1 | AJ57: 1 | AK57: 1 | AL57: 0 | AM57: 0 | AN57: 0 | AO57: 0 | AP57: 0 | AQ57: 0 | AR57: 0
E58: ="Tilgungsperioden "&'Generelle-Annahmen'!K$3 -> Tilgungsperioden Variante 2 - ÖPP Sanierung | G58: Flag | H58: =SUM(J58:AR58) -> 325 | J58: =IF(J56=1,I58 +1,0) -> 0 | K58: 0 | L58: 0 | M58: 1 | N58: 2 | O58: 3 | P58: 4 | Q58: 5 | R58: 6 | S58: 7 | T58: 8 | U58: 9 | V58: 10 | W58: 11 | X58: 12 | Y58: 13 | Z58: 14 | AA58: 15 | AB58: 16 | AC58: 17 | AD58: 18 | AE58: 19 | AF58: 20 | AG58: 21 | AH58: 22 | AI58: 23 | AJ58: 24 | AK58: 25 | AL58: 0 | AM58: 0 | AN58: 0 | AO58: 0 | AP58: 0 | AQ58: 0 | AR58: 0
E60: ="Startdatum Bauphase "&'Generelle-Annahmen'!L$3 -> Startdatum Bauphase Variante 3 - Eigenrealisierung Neubau | F60: ='Generelle-Annahmen'!L$20 -> 2018-01-01 | G60: ='Generelle-Annahmen'!G$20 -> Datum
E61: ="Enddatum Bauphase "&'Generelle-Annahmen'!L$3 -> Enddatum Bauphase Variante 3 - Eigenrealisierung Neubau | F61: ='Generelle-Annahmen'!L$22 -> 2020-12-31 | G61: ='Generelle-Annahmen'!G$22 -> Datum
E62: ="Länge Bauphase "&'Generelle-Annahmen'!L$3 -> Länge Bauphase Variante 3 - Eigenrealisierung Neubau | F62: ='Generelle-Annahmen'!L$21 -> 36 | G62: ='Generelle-Annahmen'!G$21 -> Monate
E63: ="Beginn Bauphase "&'Generelle-Annahmen'!L$3 -> Beginn Bauphase Variante 3 - Eigenrealisierung Neubau | G63: Flag | H63: =SUM(J63:AR63) -> 1 | J63: =IF(AND($F60 >= J$2, $F60 <= J$3), 1, 0) -> 1 | K63: =IF(AND($F60 >= K$2, $F60 <= K$3), 1, 0) -> 0 | L63: 0 | M63: 0 | N63: 0 | O63: 0 | P63: 0 | Q63: 0 | R63: 0 | S63: 0 | T63: 0 | U63: 0 | V63: 0 | W63: 0 | X63: 0 | Y63: 0 | Z63: 0 | AA63: 0 | AB63: 0 | AC63: 0 | AD63: 0 | AE63: 0 | AF63: 0 | AG63: 0 | AH63: 0 | AI63: 0 | AJ63: 0 | AK63: 0 | AL63: 0 | AM63: 0 | AN63: 0 | AO63: 0 | AP63: 0 | AQ63: 0 | AR63: 0
E64: ="Ende Bauphase "&'Generelle-Annahmen'!L$3 -> Ende Bauphase Variante 3 - Eigenrealisierung Neubau | G64: Flag | H64: =SUM(J64:AR64) -> 1 | J64: =IF(AND($F61 >= J$2, $F61 <= J$3), 1, 0) -> 0 | K64: 0 | L64: 1 | M64: 0 | N64: 0 | O64: 0 | P64: 0 | Q64: 0 | R64: 0 | S64: 0 | T64: 0 | U64: 0 | V64: 0 | W64: 0 | X64: 0 | Y64: 0 | Z64: 0 | AA64: 0 | AB64: 0 | AC64: 0 | AD64: 0 | AE64: 0 | AF64: 0 | AG64: 0 | AH64: 0 | AI64: 0 | AJ64: 0 | AK64: 0 | AL64: 0 | AM64: 0 | AN64: 0 | AO64: 0 | AP64: 0 | AQ64: 0 | AR64: 0
E65: ="Periodenflag Bauphase "&'Generelle-Annahmen'!L$3 -> Periodenflag Bauphase Variante 3 - Eigenrealisierung Neubau | G65: Flag | H65: =SUM(J65:AR65) -> 3 | J65: =IF(AND(SUM($J63:J63) > 0, SUM(J64:$AR64) > 0), 1, 0) -> 1 | K65: =IF(AND(SUM($J63:K63) > 0, SUM(K64:$AR64) > 0), 1, 0) -> 1 | L65: =IF(AND(SUM($J63:L63) > 0, SUM(L64:$AR64) > 0), 1, 0) -> 1 | M65: =IF(AND(SUM($J63:M63) > 0, SUM(M64:$AR64) > 0), 1, 0) -> 0 | N65: =IF(AND(SUM($J63:N63) > 0, SUM(N64:$AR64) > 0), 1, 0) -> 0 | O65: =IF(AND(SUM($J63:O63) > 0, SUM(O64:$AR64) > 0), 1, 0) -> 0 | P65: =IF(AND(SUM($J63:P63) > 0, SUM(P64:$AR64) > 0), 1, 0) -> 0 | Q65: =IF(AND(SUM($J63:Q63) > 0, SUM(Q64:$AR64) > 0), 1, 0) -> 0 | R65: =IF(AND(SUM($J63:R63) > 0, SUM(R64:$AR64) > 0), 1, 0) -> 0 | S65: =IF(AND(SUM($J63:S63) > 0, SUM(S64:$AR64) > 0), 1, 0) -> 0 | T65: =IF(AND(SUM($J63:T63) > 0, SUM(T64:$AR64) > 0), 1, 0) -> 0 | U65: =IF(AND(SUM($J63:U63) > 0, SUM(U64:$AR64) > 0), 1, 0) -> 0 | V65: =IF(AND(SUM($J63:V63) > 0, SUM(V64:$AR64) > 0), 1, 0) -> 0 | W65: =IF(AND(SUM($J63:W63) > 0, SUM(W64:$AR64) > 0), 1, 0) -> 0 | X65: =IF(AND(SUM($J63:X63) > 0, SUM(X64:$AR64) > 0), 1, 0) -> 0 | Y65: =IF(AND(SUM($J63:Y63) > 0, SUM(Y64:$AR64) > 0), 1, 0) -> 0 | Z65: =IF(AND(SUM($J63:Z63) > 0, SUM(Z64:$AR64) > 0), 1, 0) -> 0 | AA65: =IF(AND(SUM($J63:AA63) > 0, SUM(AA64:$AR64) > 0), 1, 0) -> 0 | AB65: =IF(AND(SUM($J63:AB63) > 0, SUM(AB64:$AR64) > 0), 1, 0) -> 0 | AC65: =IF(AND(SUM($J63:AC63) > 0, SUM(AC64:$AR64) > 0), 1, 0) -> 0 | AD65: =IF(AND(SUM($J63:AD63) > 0, SUM(AD64:$AR64) > 0), 1, 0) -> 0 | AE65: =IF(AND(SUM($J63:AE63) > 0, SUM(AE64:$AR64) > 0), 1, 0) -> 0 | AF65: =IF(AND(SUM($J63:AF63) > 0, SUM(AF64:$AR64) > 0), 1, 0) -> 0 | AG65: =IF(AND(SUM($J63:AG63) > 0, SUM(AG64:$AR64) > 0), 1, 0) -> 0 | AH65: =IF(AND(SUM($J63:AH63) > 0, SUM(AH64:$AR64) > 0), 1, 0) -> 0 | AI65: =IF(AND(SUM($J63:AI63) > 0, SUM(AI64:$AR64) > 0), 1, 0) -> 0 | AJ65: =IF(AND(SUM($J63:AJ63) > 0, SUM(AJ64:$AR64) > 0), 1, 0) -> 0 | AK65: =IF(AND(SUM($J63:AK63) > 0, SUM(AK64:$AR64) > 0), 1, 0) -> 0 | AL65: =IF(AND(SUM($J63:AL63) > 0, SUM(AL64:$AR64) > 0), 1, 0) -> 0 | AM65: =IF(AND(SUM($J63:AM63) > 0, SUM(AM64:$AR64) > 0), 1, 0) -> 0 | AN65: =IF(AND(SUM($J63:AN63) > 0, SUM(AN64:$AR64) > 0), 1, 0) -> 0 | AO65: =IF(AND(SUM($J63:AO63) > 0, SUM(AO64:$AR64) > 0), 1, 0) -> 0 | AP65: =IF(AND(SUM($J63:AP63) > 0, SUM(AP64:$AR64) > 0), 1, 0) -> 0 | AQ65: =IF(AND(SUM($J63:AQ63) > 0, SUM(AQ64:$AR64) > 0), 1, 0) -> 0 | AR65: =IF(AND(SUM($J63:AR63) > 0, SUM(AR64:$AR64) > 0), 1, 0) -> 0
E66: ="Korrekturflag Kostenanfall Erste & Letzte Periode Bauphase "&'Generelle-Annahmen'!L$3 -> Korrekturflag Kostenanfall Erste & Letzte Periode Bauphase Variante 3 - Eigenrealisierung Neubau | G66: Flag | H66: =SUM(J66:AR66) -> 3 | J66: =YEARFRAC($F60,J$3)*J63+(1-YEARFRAC(J$3,$F61))*J64+(J65-J63-J64) -> 1 | K66: =YEARFRAC($F60,K$3)*K63+(1-YEARFRAC(K$3,$F61))*K64+(K65-K63-K64) -> 1 | L66: 1 | M66: 0 | N66: 0 | O66: 0 | P66: 0 | Q66: 0 | R66: 0 | S66: 0 | T66: 0 | U66: 0 | V66: 0 | W66: 0 | X66: 0 | Y66: 0 | Z66: 0 | AA66: 0 | AB66: 0 | AC66: 0 | AD66: 0 | AE66: 0 | AF66: 0 | AG66: 0 | AH66: 0 | AI66: 0 | AJ66: 0 | AK66: 0 | AL66: 0 | AM66: 0 | AN66: 0 | AO66: 0 | AP66: 0 | AQ66: 0 | AR66: 0
E68: ="Startdatum Betriebsphase "&'Generelle-Annahmen'!L$3 -> Startdatum Betriebsphase Variante 3 - Eigenrealisierung Neubau | F68: ='Generelle-Annahmen'!L$24 -> 2021-01-01 | G68: ='Generelle-Annahmen'!G$24 -> Datum
E69: ="Enddatum Betriebsphase "&'Generelle-Annahmen'!L$3 -> Enddatum Betriebsphase Variante 3 - Eigenrealisierung Neubau | F69: ='Generelle-Annahmen'!L$26 -> 2045-12-31 | G69: ='Generelle-Annahmen'!G$26 -> Datum
E70: ="Länge Betriebsphase "&'Generelle-Annahmen'!L$3 -> Länge Betriebsphase Variante 3 - Eigenrealisierung Neubau | F70: ='Generelle-Annahmen'!L$25 -> 25 | G70: ='Generelle-Annahmen'!G$25 -> Jahre
E71: ="Beginn Betriebsphase "&'Generelle-Annahmen'!L$3 -> Beginn Betriebsphase Variante 3 - Eigenrealisierung Neubau | G71: Flag | H71: =SUM(J71:AR71) -> 1 | J71: =IF(AND($F68 >= J$2, $F68 <= J$3), 1, 0) -> 0 | K71: =IF(AND($F68 >= K$2, $F68 <= K$3), 1, 0) -> 0 | L71: 0 | M71: 1 | N71: 0 | O71: 0 | P71: =IF(AND($F68 >= P$2, $F68 <= P$3), 1, 0) -> 0 | Q71: =IF(AND($F68 >= Q$2, $F68 <= Q$3), 1, 0) -> 0 | R71: 0 | S71: 0 | T71: 0 | U71: 0 | V71: 0 | W71: 0 | X71: 0 | Y71: 0 | Z71: 0 | AA71: 0 | AB71: 0 | AC71: 0 | AD71: 0 | AE71: 0 | AF71: 0 | AG71: 0 | AH71: 0 | AI71: 0 | AJ71: 0 | AK71: 0 | AL71: 0 | AM71: 0 | AN71: 0 | AO71: 0 | AP71: 0 | AQ71: 0 | AR71: 0
E72: ="Ende Betriebsphase "&'Generelle-Annahmen'!L$3 -> Ende Betriebsphase Variante 3 - Eigenrealisierung Neubau | G72: Flag | H72: 1 | J72: =IF(AND($F69 >= J$2, $F69 <= J$3), 1, 0) -> 0 | K72: 0 | L72: 0 | M72: 0 | N72: 0 | O72: 0 | P72: 0 | Q72: 0 | R72: 0 | S72: 0 | T72: 0 | U72: 0 | V72: 0 | W72: 0 | X72: 0 | Y72: 0 | Z72: 0 | AA72: 0 | AB72: 0 | AC72: 0 | AD72: 0 | AE72: 0 | AF72: 0 | AG72: 0 | AH72: 0 | AI72: 0 | AJ72: 0 | AK72: 1 | AL72: 0 | AM72: 0 | AN72: 0 | AO72: 0 | AP72: 0 | AQ72: 0 | AR72: 0
E73: ="Periodenflag Betriebsphase "&'Generelle-Annahmen'!L$3 -> Periodenflag Betriebsphase Variante 3 - Eigenrealisierung Neubau | G73: Flag | H73: 25 | J73: =IF(AND(SUM($J71:J71) > 0, SUM(J72:$AR72) > 0), 1, 0) -> 0 | K73: =IF(AND(SUM($J71:K71) > 0, SUM(K72:$AR72) > 0), 1, 0) -> 0 | L73: =IF(AND(SUM($J71:L71) > 0, SUM(L72:$AR72) > 0), 1, 0) -> 0 | M73: =IF(AND(SUM($J71:M71) > 0, SUM(M72:$AR72) > 0), 1, 0) -> 1 | N73: =IF(AND(SUM($J71:N71) > 0, SUM(N72:$AR72) > 0), 1, 0) -> 1 | O73: =IF(AND(SUM($J71:O71) > 0, SUM(O72:$AR72) > 0), 1, 0) -> 1 | P73: =IF(AND(SUM($J71:P71) > 0, SUM(P72:$AR72) > 0), 1, 0) -> 1 | Q73: =IF(AND(SUM($J71:Q71) > 0, SUM(Q72:$AR72) > 0), 1, 0) -> 1 | R73: =IF(AND(SUM($J71:R71) > 0, SUM(R72:$AR72) > 0), 1, 0) -> 1 | S73: =IF(AND(SUM($J71:S71) > 0, SUM(S72:$AR72) > 0), 1, 0) -> 1 | T73: =IF(AND(SUM($J71:T71) > 0, SUM(T72:$AR72) > 0), 1, 0) -> 1 | U73: =IF(AND(SUM($J71:U71) > 0, SUM(U72:$AR72) > 0), 1, 0) -> 1 | V73: =IF(AND(SUM($J71:V71) > 0, SUM(V72:$AR72) > 0), 1, 0) -> 1 | W73: =IF(AND(SUM($J71:W71) > 0, SUM(W72:$AR72) > 0), 1, 0) -> 1 | X73: =IF(AND(SUM($J71:X71) > 0, SUM(X72:$AR72) > 0), 1, 0) -> 1 | Y73: =IF(AND(SUM($J71:Y71) > 0, SUM(Y72:$AR72) > 0), 1, 0) -> 1 | Z73: =IF(AND(SUM($J71:Z71) > 0, SUM(Z72:$AR72) > 0), 1, 0) -> 1 | AA73: =IF(AND(SUM($J71:AA71) > 0, SUM(AA72:$AR72) > 0), 1, 0) -> 1 | AB73: =IF(AND(SUM($J71:AB71) > 0, SUM(AB72:$AR72) > 0), 1, 0) -> 1 | AC73: =IF(AND(SUM($J71:AC71) > 0, SUM(AC72:$AR72) > 0), 1, 0) -> 1 | AD73: =IF(AND(SUM($J71:AD71) > 0, SUM(AD72:$AR72) > 0), 1, 0) -> 1 | AE73: =IF(AND(SUM($J71:AE71) > 0, SUM(AE72:$AR72) > 0), 1, 0) -> 1 | AF73: =IF(AND(SUM($J71:AF71) > 0, SUM(AF72:$AR72) > 0), 1, 0) -> 1 | AG73: =IF(AND(SUM($J71:AG71) > 0, SUM(AG72:$AR72) > 0), 1, 0) -> 1 | AH73: =IF(AND(SUM($J71:AH71) > 0, SUM(AH72:$AR72) > 0), 1, 0) -> 1 | AI73: =IF(AND(SUM($J71:AI71) > 0, SUM(AI72:$AR72) > 0), 1, 0) -> 1 | AJ73: =IF(AND(SUM($J71:AJ71) > 0, SUM(AJ72:$AR72) > 0), 1, 0) -> 1 | AK73: =IF(AND(SUM($J71:AK71) > 0, SUM(AK72:$AR72) > 0), 1, 0) -> 1 | AL73: =IF(AND(SUM($J71:AL71) > 0, SUM(AL72:$AR72) > 0), 1, 0) -> 0 | AM73: =IF(AND(SUM($J71:AM71) > 0, SUM(AM72:$AR72) > 0), 1, 0) -> 0 | AN73: =IF(AND(SUM($J71:AN71) > 0, SUM(AN72:$AR72) > 0), 1, 0) -> 0 | AO73: =IF(AND(SUM($J71:AO71) > 0, SUM(AO72:$AR72) > 0), 1, 0) -> 0 | AP73: =IF(AND(SUM($J71:AP71) > 0, SUM(AP72:$AR72) > 0), 1, 0) -> 0 | AQ73: =IF(AND(SUM($J71:AQ71) > 0, SUM(AQ72:$AR72) > 0), 1, 0) -> 0 | AR73: =IF(AND(SUM($J71:AR71) > 0, SUM(AR72:$AR72) > 0), 1, 0) -> 0
E74: ="Korrekturflag Kostenanfall Erste & Letzte Periode Betriebsphase "&'Generelle-Annahmen'!L$3 -> Korrekturflag Kostenanfall Erste & Letzte Periode Betriebsphase Variante 3 - Eigenrealisierung Neubau | G74: Flag | H74: =SUM(J74:AR74) -> 25 | J74: =YEARFRAC($F68,J$3)*J71+(1-YEARFRAC(J$3,$F69))*J72+(J73-J71-J72) -> 0 | K74: =YEARFRAC($F68,K$3)*K71+(1-YEARFRAC(K$3,$F69))*K72+(K73-K71-K72) -> 0 | L74: 0 | M74: 1 | N74: 1 | O74: 1 | P74: 1 | Q74: 1 | R74: 1 | S74: 1 | T74: 1 | U74: 1 | V74: 1 | W74: 1 | X74: 1 | Y74: 1 | Z74: 1 | AA74: 1 | AB74: 1 | AC74: 1 | AD74: 1 | AE74: 1 | AF74: 1 | AG74: 1 | AH74: 1 | AI74: 1 | AJ74: 1 | AK74: 1 | AL74: 0 | AM74: 0 | AN74: 0 | AO74: 0 | AP74: 0 | AQ74: 0 | AR74: 0
E75: ="Tilgungsperioden "&'Generelle-Annahmen'!L$3 -> Tilgungsperioden Variante 3 - Eigenrealisierung Neubau | G75: Flag | H75: =SUM(J75:AR75) -> 325 | J75: =IF(J73=1,I75 +1,0) -> 0 | K75: 0 | L75: 0 | M75: 1 | N75: 2 | O75: 3 | P75: 4 | Q75: 5 | R75: 6 | S75: 7 | T75: 8 | U75: 9 | V75: 10 | W75: 11 | X75: 12 | Y75: 13 | Z75: 14 | AA75: 15 | AB75: 16 | AC75: 17 | AD75: 18 | AE75: 19 | AF75: 20 | AG75: 21 | AH75: 22 | AI75: 23 | AJ75: 24 | AK75: 25 | AL75: 0 | AM75: 0 | AN75: 0 | AO75: 0 | AP75: 0 | AQ75: 0 | AR75: 0
E77: ="Startdatum Bauphase "&'Generelle-Annahmen'!M$3 -> Startdatum Bauphase Variante 4 - ÖPP Neubau | F77: ='Generelle-Annahmen'!M$20 -> 2018-01-01 | G77: ='Generelle-Annahmen'!G$20 -> Datum
E78: ="Enddatum Bauphase "&'Generelle-Annahmen'!M$3 -> Enddatum Bauphase Variante 4 - ÖPP Neubau | F78: ='Generelle-Annahmen'!M$22 -> 2020-12-31 | G78: ='Generelle-Annahmen'!G$22 -> Datum
E79: ="Länge Bauphase "&'Generelle-Annahmen'!M$3 -> Länge Bauphase Variante 4 - ÖPP Neubau | F79: ='Generelle-Annahmen'!M$21 -> 36 | G79: ='Generelle-Annahmen'!G$21 -> Monate
E80: ="Beginn Bauphase "&'Generelle-Annahmen'!M$3 -> Beginn Bauphase Variante 4 - ÖPP Neubau | G80: Flag | H80: =SUM(J80:AR80) -> 1 | J80: =IF(AND($F77 >= J$2, $F77 <= J$3), 1, 0) -> 1 | K80: =IF(AND($F77 >= K$2, $F77 <= K$3), 1, 0) -> 0 | L80: 0 | M80: 0 | N80: 0 | O80: 0 | P80: 0 | Q80: 0 | R80: 0 | S80: 0 | T80: 0 | U80: 0 | V80: 0 | W80: 0 | X80: 0 | Y80: 0 | Z80: 0 | AA80: 0 | AB80: 0 | AC80: 0 | AD80: 0 | AE80: 0 | AF80: 0 | AG80: 0 | AH80: 0 | AI80: 0 | AJ80: 0 | AK80: 0 | AL80: 0 | AM80: 0 | AN80: 0 | AO80: 0 | AP80: 0 | AQ80: 0 | AR80: 0
E81: ="Ende Bauphase "&'Generelle-Annahmen'!M$3 -> Ende Bauphase Variante 4 - ÖPP Neubau | G81: Flag | H81: =SUM(J81:AR81) -> 1 | J81: =IF(AND($F78 >= J$2, $F78 <= J$3), 1, 0) -> 0 | K81: 0 | L81: 1 | M81: 0 | N81: 0 | O81: 0 | P81: 0 | Q81: 0 | R81: 0 | S81: 0 | T81: 0 | U81: 0 | V81: 0 | W81: 0 | X81: 0 | Y81: 0 | Z81: 0 | AA81: 0 | AB81: 0 | AC81: 0 | AD81: 0 | AE81: 0 | AF81: 0 | AG81: 0 | AH81: 0 | AI81: 0 | AJ81: 0 | AK81: 0 | AL81: 0 | AM81: 0 | AN81: 0 | AO81: 0 | AP81: 0 | AQ81: 0 | AR81: 0
E82: ="Periodenflag Bauphase "&'Generelle-Annahmen'!M$3 -> Periodenflag Bauphase Variante 4 - ÖPP Neubau | G82: Flag | H82: =SUM(J82:AR82) -> 3 | J82: =IF(AND(SUM($J80:J80) > 0, SUM(J81:$AR81) > 0), 1, 0) -> 1 | K82: =IF(AND(SUM($J80:K80) > 0, SUM(K81:$AR81) > 0), 1, 0) -> 1 | L82: =IF(AND(SUM($J80:L80) > 0, SUM(L81:$AR81) > 0), 1, 0) -> 1 | M82: =IF(AND(SUM($J80:M80) > 0, SUM(M81:$AR81) > 0), 1, 0) -> 0 | N82: =IF(AND(SUM($J80:N80) > 0, SUM(N81:$AR81) > 0), 1, 0) -> 0 | O82: =IF(AND(SUM($J80:O80) > 0, SUM(O81:$AR81) > 0), 1, 0) -> 0 | P82: =IF(AND(SUM($J80:P80) > 0, SUM(P81:$AR81) > 0), 1, 0) -> 0 | Q82: =IF(AND(SUM($J80:Q80) > 0, SUM(Q81:$AR81) > 0), 1, 0) -> 0 | R82: =IF(AND(SUM($J80:R80) > 0, SUM(R81:$AR81) > 0), 1, 0) -> 0 | S82: =IF(AND(SUM($J80:S80) > 0, SUM(S81:$AR81) > 0), 1, 0) -> 0 | T82: =IF(AND(SUM($J80:T80) > 0, SUM(T81:$AR81) > 0), 1, 0) -> 0 | U82: =IF(AND(SUM($J80:U80) > 0, SUM(U81:$AR81) > 0), 1, 0) -> 0 | V82: =IF(AND(SUM($J80:V80) > 0, SUM(V81:$AR81) > 0), 1, 0) -> 0 | W82: =IF(AND(SUM($J80:W80) > 0, SUM(W81:$AR81) > 0), 1, 0) -> 0 | X82: =IF(AND(SUM($J80:X80) > 0, SUM(X81:$AR81) > 0), 1, 0) -> 0 | Y82: =IF(AND(SUM($J80:Y80) > 0, SUM(Y81:$AR81) > 0), 1, 0) -> 0 | Z82: =IF(AND(SUM($J80:Z80) > 0, SUM(Z81:$AR81) > 0), 1, 0) -> 0 | AA82: =IF(AND(SUM($J80:AA80) > 0, SUM(AA81:$AR81) > 0), 1, 0) -> 0 | AB82: =IF(AND(SUM($J80:AB80) > 0, SUM(AB81:$AR81) > 0), 1, 0) -> 0 | AC82: =IF(AND(SUM($J80:AC80) > 0, SUM(AC81:$AR81) > 0), 1, 0) -> 0 | AD82: =IF(AND(SUM($J80:AD80) > 0, SUM(AD81:$AR81) > 0), 1, 0) -> 0 | AE82: =IF(AND(SUM($J80:AE80) > 0, SUM(AE81:$AR81) > 0), 1, 0) -> 0 | AF82: =IF(AND(SUM($J80:AF80) > 0, SUM(AF81:$AR81) > 0), 1, 0) -> 0 | AG82: =IF(AND(SUM($J80:AG80) > 0, SUM(AG81:$AR81) > 0), 1, 0) -> 0 | AH82: =IF(AND(SUM($J80:AH80) > 0, SUM(AH81:$AR81) > 0), 1, 0) -> 0 | AI82: =IF(AND(SUM($J80:AI80) > 0, SUM(AI81:$AR81) > 0), 1, 0) -> 0 | AJ82: =IF(AND(SUM($J80:AJ80) > 0, SUM(AJ81:$AR81) > 0), 1, 0) -> 0 | AK82: =IF(AND(SUM($J80:AK80) > 0, SUM(AK81:$AR81) > 0), 1, 0) -> 0 | AL82: =IF(AND(SUM($J80:AL80) > 0, SUM(AL81:$AR81) > 0), 1, 0) -> 0 | AM82: =IF(AND(SUM($J80:AM80) > 0, SUM(AM81:$AR81) > 0), 1, 0) -> 0 | AN82: =IF(AND(SUM($J80:AN80) > 0, SUM(AN81:$AR81) > 0), 1, 0) -> 0 | AO82: =IF(AND(SUM($J80:AO80) > 0, SUM(AO81:$AR81) > 0), 1, 0) -> 0 | AP82: =IF(AND(SUM($J80:AP80) > 0, SUM(AP81:$AR81) > 0), 1, 0) -> 0 | AQ82: =IF(AND(SUM($J80:AQ80) > 0, SUM(AQ81:$AR81) > 0), 1, 0) -> 0 | AR82: =IF(AND(SUM($J80:AR80) > 0, SUM(AR81:$AR81) > 0), 1, 0) -> 0
E83: ="Korrekturflag Kostenanfall Erste & Letzte Periode Bauphase "&'Generelle-Annahmen'!M$3 -> Korrekturflag Kostenanfall Erste & Letzte Periode Bauphase Variante 4 - ÖPP Neubau | G83: Flag | H83: =SUM(J83:AR83) -> 3 | J83: =YEARFRAC($F77,J$3)*J80+(1-YEARFRAC(J$3,$F78))*J81+(J82-J80-J81) -> 1 | K83: =YEARFRAC($F77,K$3)*K80+(1-YEARFRAC(K$3,$F78))*K81+(K82-K80-K81) -> 1 | L83: 1 | M83: 0 | N83: 0 | O83: 0 | P83: 0 | Q83: 0 | R83: 0 | S83: 0 | T83: 0 | U83: 0 | V83: 0 | W83: 0 | X83: 0 | Y83: 0 | Z83: 0 | AA83: 0 | AB83: 0 | AC83: 0 | AD83: 0 | AE83: 0 | AF83: 0 | AG83: 0 | AH83: 0 | AI83: 0 | AJ83: 0 | AK83: 0 | AL83: 0 | AM83: 0 | AN83: 0 | AO83: 0 | AP83: 0 | AQ83: 0 | AR83: 0
E85: ="Startdatum Betriebsphase "&'Generelle-Annahmen'!M$3 -> Startdatum Betriebsphase Variante 4 - ÖPP Neubau | F85: ='Generelle-Annahmen'!M$24 -> 2021-01-01 | G85: ='Generelle-Annahmen'!G$24 -> Datum
E86: ="Enddatum Betriebsphase "&'Generelle-Annahmen'!M$3 -> Enddatum Betriebsphase Variante 4 - ÖPP Neubau | F86: ='Generelle-Annahmen'!M$26 -> 2045-12-31 | G86: ='Generelle-Annahmen'!G$26 -> Datum
E87: ="Länge Betriebsphase "&'Generelle-Annahmen'!M$3 -> Länge Betriebsphase Variante 4 - ÖPP Neubau | F87: ='Generelle-Annahmen'!M$25 -> 25 | G87: ='Generelle-Annahmen'!G$25 -> Jahre
E88: ="Beginn Betriebsphase "&'Generelle-Annahmen'!M$3 -> Beginn Betriebsphase Variante 4 - ÖPP Neubau | G88: Flag | H88: =SUM(J88:AR88) -> 1 | J88: =IF(AND($F85 >= J$2, $F85 <= J$3), 1, 0) -> 0 | K88: =IF(AND($F85 >= K$2, $F85 <= K$3), 1, 0) -> 0 | L88: 0 | M88: 1 | N88: 0 | O88: 0 | P88: =IF(AND($F85 >= P$2, $F85 <= P$3), 1, 0) -> 0 | Q88: =IF(AND($F85 >= Q$2, $F85 <= Q$3), 1, 0) -> 0 | R88: 0 | S88: 0 | T88: 0 | U88: 0 | V88: 0 | W88: 0 | X88: 0 | Y88: 0 | Z88: 0 | AA88: 0 | AB88: 0 | AC88: 0 | AD88: 0 | AE88: 0 | AF88: 0 | AG88: 0 | AH88: 0 | AI88: 0 | AJ88: 0 | AK88: 0 | AL88: 0 | AM88: 0 | AN88: 0 | AO88: 0 | AP88: 0 | AQ88: 0 | AR88: 0
E89: ="Ende Betriebsphase "&'Generelle-Annahmen'!M$3 -> Ende Betriebsphase Variante 4 - ÖPP Neubau | G89: Flag | H89: 1 | J89: =IF(AND($F86 >= J$2, $F86 <= J$3), 1, 0) -> 0 | K89: 0 | L89: 0 | M89: 0 | N89: 0 | O89: 0 | P89: 0 | Q89: 0 | R89: 0 | S89: 0 | T89: 0 | U89: 0 | V89: 0 | W89: 0 | X89: 0 | Y89: 0 | Z89: 0 | AA89: 0 | AB89: 0 | AC89: 0 | AD89: 0 | AE89: 0 | AF89: 0 | AG89: 0 | AH89: 0 | AI89: 0 | AJ89: 0 | AK89: 1 | AL89: 0 | AM89: 0 | AN89: 0 | AO89: 0 | AP89: 0 | AQ89: 0 | AR89: 0
E90: ="Periodenflag Betriebsphase "&'Generelle-Annahmen'!M$3 -> Periodenflag Betriebsphase Variante 4 - ÖPP Neubau | G90: Flag | H90: 25 | J90: =IF(AND(SUM($J88:J88) > 0, SUM(J89:$AR89) > 0), 1, 0) -> 0 | K90: =IF(AND(SUM($J88:K88) > 0, SUM(K89:$AR89) > 0), 1, 0) -> 0 | L90: =IF(AND(SUM($J88:L88) > 0, SUM(L89:$AR89) > 0), 1, 0) -> 0 | M90: =IF(AND(SUM($J88:M88) > 0, SUM(M89:$AR89) > 0), 1, 0) -> 1 | N90: =IF(AND(SUM($J88:N88) > 0, SUM(N89:$AR89) > 0), 1, 0) -> 1 | O90: =IF(AND(SUM($J88:O88) > 0, SUM(O89:$AR89) > 0), 1, 0) -> 1 | P90: =IF(AND(SUM($J88:P88) > 0, SUM(P89:$AR89) > 0), 1, 0) -> 1 | Q90: =IF(AND(SUM($J88:Q88) > 0, SUM(Q89:$AR89) > 0), 1, 0) -> 1 | R90: =IF(AND(SUM($J88:R88) > 0, SUM(R89:$AR89) > 0), 1, 0) -> 1 | S90: =IF(AND(SUM($J88:S88) > 0, SUM(S89:$AR89) > 0), 1, 0) -> 1 | T90: =IF(AND(SUM($J88:T88) > 0, SUM(T89:$AR89) > 0), 1, 0) -> 1 | U90: =IF(AND(SUM($J88:U88) > 0, SUM(U89:$AR89) > 0), 1, 0) -> 1 | V90: =IF(AND(SUM($J88:V88) > 0, SUM(V89:$AR89) > 0), 1, 0) -> 1 | W90: =IF(AND(SUM($J88:W88) > 0, SUM(W89:$AR89) > 0), 1, 0) -> 1 | X90: =IF(AND(SUM($J88:X88) > 0, SUM(X89:$AR89) > 0), 1, 0) -> 1 | Y90: =IF(AND(SUM($J88:Y88) > 0, SUM(Y89:$AR89) > 0), 1, 0) -> 1 | Z90: =IF(AND(SUM($J88:Z88) > 0, SUM(Z89:$AR89) > 0), 1, 0) -> 1 | AA90: =IF(AND(SUM($J88:AA88) > 0, SUM(AA89:$AR89) > 0), 1, 0) -> 1 | AB90: =IF(AND(SUM($J88:AB88) > 0, SUM(AB89:$AR89) > 0), 1, 0) -> 1 | AC90: =IF(AND(SUM($J88:AC88) > 0, SUM(AC89:$AR89) > 0), 1, 0) -> 1 | AD90: =IF(AND(SUM($J88:AD88) > 0, SUM(AD89:$AR89) > 0), 1, 0) -> 1 | AE90: =IF(AND(SUM($J88:AE88) > 0, SUM(AE89:$AR89) > 0), 1, 0) -> 1 | AF90: =IF(AND(SUM($J88:AF88) > 0, SUM(AF89:$AR89) > 0), 1, 0) -> 1 | AG90: =IF(AND(SUM($J88:AG88) > 0, SUM(AG89:$AR89) > 0), 1, 0) -> 1 | AH90: =IF(AND(SUM($J88:AH88) > 0, SUM(AH89:$AR89) > 0), 1, 0) -> 1 | AI90: =IF(AND(SUM($J88:AI88) > 0, SUM(AI89:$AR89) > 0), 1, 0) -> 1 | AJ90: =IF(AND(SUM($J88:AJ88) > 0, SUM(AJ89:$AR89) > 0), 1, 0) -> 1 | AK90: =IF(AND(SUM($J88:AK88) > 0, SUM(AK89:$AR89) > 0), 1, 0) -> 1 | AL90: =IF(AND(SUM($J88:AL88) > 0, SUM(AL89:$AR89) > 0), 1, 0) -> 0 | AM90: =IF(AND(SUM($J88:AM88) > 0, SUM(AM89:$AR89) > 0), 1, 0) -> 0 | AN90: =IF(AND(SUM($J88:AN88) > 0, SUM(AN89:$AR89) > 0), 1, 0) -> 0 | AO90: =IF(AND(SUM($J88:AO88) > 0, SUM(AO89:$AR89) > 0), 1, 0) -> 0 | AP90: =IF(AND(SUM($J88:AP88) > 0, SUM(AP89:$AR89) > 0), 1, 0) -> 0 | AQ90: =IF(AND(SUM($J88:AQ88) > 0, SUM(AQ89:$AR89) > 0), 1, 0) -> 0 | AR90: =IF(AND(SUM($J88:AR88) > 0, SUM(AR89:$AR89) > 0), 1, 0) -> 0
E91: ="Korrekturflag Kostenanfall Erste & Letzte Periode Betriebsphase "&'Generelle-Annahmen'!M$3 -> Korrekturflag Kostenanfall Erste & Letzte Periode Betriebsphase Variante 4 - ÖPP Neubau | G91: Flag | H91: =SUM(J91:AR91) -> 25 | J91: =YEARFRAC($F85,J$3)*J88+(1-YEARFRAC(J$3,$F86))*J89+(J90-J88-J89) -> 0 | K91: =YEARFRAC($F85,K$3)*K88+(1-YEARFRAC(K$3,$F86))*K89+(K90-K88-K89) -> 0 | L91: 0 | M91: 1 | N91: 1 | O91: 1 | P91: 1 | Q91: 1 | R91: 1 | S91: 1 | T91: 1 | U91: 1 | V91: 1 | W91: 1 | X91: 1 | Y91: 1 | Z91: 1 | AA91: 1 | AB91: 1 | AC91: 1 | AD91: 1 | AE91: 1 | AF91: 1 | AG91: 1 | AH91: 1 | AI91: 1 | AJ91: 1 | AK91: 1 | AL91: 0 | AM91: 0 | AN91: 0 | AO91: 0 | AP91: 0 | AQ91: 0 | AR91: 0
E92: ="Tilgungsperioden "&'Generelle-Annahmen'!M$3 -> Tilgungsperioden Variante 4 - ÖPP Neubau | G92: Flag | H92: =SUM(J92:AR92) -> 325 | J92: =IF(J90=1,I92 +1,0) -> 0 | K92: 0 | L92: 0 | M92: 1 | N92: 2 | O92: 3 | P92: 4 | Q92: 5 | R92: 6 | S92: 7 | T92: 8 | U92: 9 | V92: 10 | W92: 11 | X92: 12 | Y92: 13 | Z92: 14 | AA92: 15 | AB92: 16 | AC92: 17 | AD92: 18 | AE92: 19 | AF92: 20 | AG92: 21 | AH92: 22 | AI92: 23 | AJ92: 24 | AK92: 25 | AL92: 0 | AM92: 0 | AN92: 0 | AO92: 0 | AP92: 0 | AQ92: 0 | AR92: 0
E94: ="Startdatum Bauphase "&'Generelle-Annahmen'!N$3 -> Startdatum Bauphase Mietvariante | F94: ='Generelle-Annahmen'!N$20 -> 2018-01-01 | G94: ='Generelle-Annahmen'!G$20 -> Datum
E95: ="Enddatum Bauphase "&'Generelle-Annahmen'!N$3 -> Enddatum Bauphase Mietvariante | F95: ='Generelle-Annahmen'!N$22 -> 2018-12-31 | G95: ='Generelle-Annahmen'!G$22 -> Datum
E96: ="Länge Bauphase "&'Generelle-Annahmen'!N$3 -> Länge Bauphase Mietvariante | F96: ='Generelle-Annahmen'!N$21 -> 12 | G96: ='Generelle-Annahmen'!G$21 -> Monate
E97: ="Beginn Bauphase "&'Generelle-Annahmen'!N$3 -> Beginn Bauphase Mietvariante | G97: Flag | H97: =SUM(J97:AR97) -> 1 | J97: =IF(AND($F94 >= J$2, $F94 <= J$3), 1, 0) -> 1 | K97: =IF(AND($F94 >= K$2, $F94 <= K$3), 1, 0) -> 0 | L97: 0 | M97: 0 | N97: 0 | O97: 0 | P97: 0 | Q97: 0 | R97: 0 | S97: 0 | T97: 0 | U97: 0 | V97: 0 | W97: 0 | X97: 0 | Y97: 0 | Z97: 0 | AA97: 0 | AB97: 0 | AC97: 0 | AD97: 0 | AE97: 0 | AF97: 0 | AG97: 0 | AH97: 0 | AI97: 0 | AJ97: 0 | AK97: 0 | AL97: 0 | AM97: 0 | AN97: 0 | AO97: 0 | AP97: 0 | AQ97: 0 | AR97: 0
E98: ="Ende Bauphase "&'Generelle-Annahmen'!N$3 -> Ende Bauphase Mietvariante | G98: Flag | H98: =SUM(J98:AR98) -> 1 | J98: =IF(AND($F95 >= J$2, $F95 <= J$3), 1, 0) -> 1 | K98: =IF(AND($F95 >= K$2, $F95 <= K$3), 1, 0) -> 0 | L98: 0 | M98: 0 | N98: 0 | O98: 0 | P98: 0 | Q98: 0 | R98: 0 | S98: 0 | T98: 0 | U98: 0 | V98: 0 | W98: 0 | X98: 0 | Y98: 0 | Z98: 0 | AA98: 0 | AB98: 0 | AC98: 0 | AD98: 0 | AE98: 0 | AF98: 0 | AG98: 0 | AH98: 0 | AI98: 0 | AJ98: 0 | AK98: 0 | AL98: 0 | AM98: 0 | AN98: 0 | AO98: 0 | AP98: 0 | AQ98: 0 | AR98: 0
E99: ="Periodenflag Bauphase "&'Generelle-Annahmen'!N$3 -> Periodenflag Bauphase Mietvariante | G99: Flag | H99: =SUM(J99:AR99) -> 1 | J99: =IF(AND(SUM($J97:J97) > 0, SUM(J98:$AR98) > 0), 1, 0) -> 1 | K99: =IF(AND(SUM($J97:K97) > 0, SUM(K98:$AR98) > 0), 1, 0) -> 0 | L99: =IF(AND(SUM($J97:L97) > 0, SUM(L98:$AR98) > 0), 1, 0) -> 0 | M99: =IF(AND(SUM($J97:M97) > 0, SUM(M98:$AR98) > 0), 1, 0) -> 0 | N99: =IF(AND(SUM($J97:N97) > 0, SUM(N98:$AR98) > 0), 1, 0) -> 0 | O99: =IF(AND(SUM($J97:O97) > 0, SUM(O98:$AR98) > 0), 1, 0) -> 0 | P99: =IF(AND(SUM($J97:P97) > 0, SUM(P98:$AR98) > 0), 1, 0) -> 0 | Q99: =IF(AND(SUM($J97:Q97) > 0, SUM(Q98:$AR98) > 0), 1, 0) -> 0 | R99: =IF(AND(SUM($J97:R97) > 0, SUM(R98:$AR98) > 0), 1, 0) -> 0 | S99: =IF(AND(SUM($J97:S97) > 0, SUM(S98:$AR98) > 0), 1, 0) -> 0 | T99: =IF(AND(SUM($J97:T97) > 0, SUM(T98:$AR98) > 0), 1, 0) -> 0 | U99: =IF(AND(SUM($J97:U97) > 0, SUM(U98:$AR98) > 0), 1, 0) -> 0 | V99: =IF(AND(SUM($J97:V97) > 0, SUM(V98:$AR98) > 0), 1, 0) -> 0 | W99: =IF(AND(SUM($J97:W97) > 0, SUM(W98:$AR98) > 0), 1, 0) -> 0 | X99: =IF(AND(SUM($J97:X97) > 0, SUM(X98:$AR98) > 0), 1, 0) -> 0 | Y99: =IF(AND(SUM($J97:Y97) > 0, SUM(Y98:$AR98) > 0), 1, 0) -> 0 | Z99: =IF(AND(SUM($J97:Z97) > 0, SUM(Z98:$AR98) > 0), 1, 0) -> 0 | AA99: =IF(AND(SUM($J97:AA97) > 0, SUM(AA98:$AR98) > 0), 1, 0) -> 0 | AB99: =IF(AND(SUM($J97:AB97) > 0, SUM(AB98:$AR98) > 0), 1, 0) -> 0 | AC99: =IF(AND(SUM($J97:AC97) > 0, SUM(AC98:$AR98) > 0), 1, 0) -> 0 | AD99: =IF(AND(SUM($J97:AD97) > 0, SUM(AD98:$AR98) > 0), 1, 0) -> 0 | AE99: =IF(AND(SUM($J97:AE97) > 0, SUM(AE98:$AR98) > 0), 1, 0) -> 0 | AF99: =IF(AND(SUM($J97:AF97) > 0, SUM(AF98:$AR98) > 0), 1, 0) -> 0 | AG99: =IF(AND(SUM($J97:AG97) > 0, SUM(AG98:$AR98) > 0), 1, 0) -> 0 | AH99: =IF(AND(SUM($J97:AH97) > 0, SUM(AH98:$AR98) > 0), 1, 0) -> 0 | AI99: =IF(AND(SUM($J97:AI97) > 0, SUM(AI98:$AR98) > 0), 1, 0) -> 0 | AJ99: =IF(AND(SUM($J97:AJ97) > 0, SUM(AJ98:$AR98) > 0), 1, 0) -> 0 | AK99: =IF(AND(SUM($J97:AK97) > 0, SUM(AK98:$AR98) > 0), 1, 0) -> 0 | AL99: =IF(AND(SUM($J97:AL97) > 0, SUM(AL98:$AR98) > 0), 1, 0) -> 0 | AM99: =IF(AND(SUM($J97:AM97) > 0, SUM(AM98:$AR98) > 0), 1, 0) -> 0 | AN99: =IF(AND(SUM($J97:AN97) > 0, SUM(AN98:$AR98) > 0), 1, 0) -> 0 | AO99: =IF(AND(SUM($J97:AO97) > 0, SUM(AO98:$AR98) > 0), 1, 0) -> 0 | AP99: =IF(AND(SUM($J97:AP97) > 0, SUM(AP98:$AR98) > 0), 1, 0) -> 0 | AQ99: =IF(AND(SUM($J97:AQ97) > 0, SUM(AQ98:$AR98) > 0), 1, 0) -> 0 | AR99: =IF(AND(SUM($J97:AR97) > 0, SUM(AR98:$AR98) > 0), 1, 0) -> 0
E100: ="Korrekturflag Kostenanfall Erste & Letzte Periode Bauphase "&'Generelle-Annahmen'!N$3 -> Korrekturflag Kostenanfall Erste & Letzte Periode Bauphase Mietvariante | G100: Flag | H100: =SUM(J100:AR100) -> 1 | J100: =YEARFRAC($F94,J$3)*J97+(1-YEARFRAC(J$3,$F95))*J98+(J99-J97-J98) -> 1 | K100: =YEARFRAC($F94,K$3)*K97+(1-YEARFRAC(K$3,$F95))*K98+(K99-K97-K98) -> 0 | L100: 0 | M100: 0 | N100: 0 | O100: 0 | P100: 0 | Q100: 0 | R100: 0 | S100: 0 | T100: 0 | U100: 0 | V100: 0 | W100: 0 | X100: 0 | Y100: 0 | Z100: 0 | AA100: 0 | AB100: 0 | AC100: 0 | AD100: 0 | AE100: 0 | AF100: 0 | AG100: 0 | AH100: 0 | AI100: 0 | AJ100: 0 | AK100: 0 | AL100: 0 | AM100: 0 | AN100: 0 | AO100: 0 | AP100: 0 | AQ100: 0 | AR100: 0
E102: ="Startdatum Betriebsphase "&'Generelle-Annahmen'!N$3 -> Startdatum Betriebsphase Mietvariante | F102: ='Generelle-Annahmen'!N$24 -> 2018-01-01 | G102: ='Generelle-Annahmen'!G$24 -> Datum
E103: ="Enddatum Betriebsphase "&'Generelle-Annahmen'!N$3 -> Enddatum Betriebsphase Mietvariante | F103: ='Generelle-Annahmen'!N$26 -> 2045-12-31 | G103: ='Generelle-Annahmen'!G$26 -> Datum
E104: ="Länge Betriebsphase "&'Generelle-Annahmen'!N$3 -> Länge Betriebsphase Mietvariante | F104: ='Generelle-Annahmen'!N$25 -> 28 | G104: ='Generelle-Annahmen'!G$25 -> Jahre
E105: ="Beginn Betriebsphase "&'Generelle-Annahmen'!N$3 -> Beginn Betriebsphase Mietvariante | G105: Flag | H105: =SUM(J105:AR105) -> 1 | J105: =IF(AND($F102 >= J$2, $F102 <= J$3), 1, 0) -> 1 | K105: =IF(AND($F102 >= K$2, $F102 <= K$3), 1, 0) -> 0 | L105: 0 | M105: 0 | N105: 0 | O105: 0 | P105: =IF(AND($F102 >= P$2, $F102 <= P$3), 1, 0) -> 0 | Q105: =IF(AND($F102 >= Q$2, $F102 <= Q$3), 1, 0) -> 0 | R105: 0 | S105: 0 | T105: 0 | U105: 0 | V105: 0 | W105: 0 | X105: 0 | Y105: 0 | Z105: 0 | AA105: 0 | AB105: 0 | AC105: 0 | AD105: 0 | AE105: 0 | AF105: 0 | AG105: 0 | AH105: 0 | AI105: 0 | AJ105: 0 | AK105: 0 | AL105: 0 | AM105: 0 | AN105: 0 | AO105: 0 | AP105: 0 | AQ105: 0 | AR105: 0
E106: ="Ende Betriebsphase "&'Generelle-Annahmen'!N$3 -> Ende Betriebsphase Mietvariante | G106: Flag | H106: 1 | J106: =IF(AND($F103 >= J$2, $F103 <= J$3), 1, 0) -> 0 | K106: =IF(AND($F103 >= K$2, $F103 <= K$3), 1, 0) -> 0 | L106: 0 | M106: 0 | N106: 0 | O106: 0 | P106: 0 | Q106: 0 | R106: 0 | S106: 0 | T106: 0 | U106: 0 | V106: 0 | W106: 0 | X106: 0 | Y106: 0 | Z106: 0 | AA106: 0 | AB106: 0 | AC106: 0 | AD106: 0 | AE106: 0 | AF106: 0 | AG106: 0 | AH106: 0 | AI106: 0 | AJ106: 0 | AK106: 1 | AL106: 0 | AM106: 0 | AN106: 0 | AO106: 0 | AP106: 0 | AQ106: 0 | AR106: 0
E107: ="Periodenflag Betriebsphase "&'Generelle-Annahmen'!N$3 -> Periodenflag Betriebsphase Mietvariante | G107: Flag | H107: 28 | J107: =IF(AND(SUM($J105:J105) > 0, SUM(J106:$AR106) > 0), 1, 0) -> 1 | K107: =IF(AND(SUM($J105:K105) > 0, SUM(K106:$AR106) > 0), 1, 0) -> 1 | L107: =IF(AND(SUM($J105:L105) > 0, SUM(L106:$AR106) > 0), 1, 0) -> 1 | M107: =IF(AND(SUM($J105:M105) > 0, SUM(M106:$AR106) > 0), 1, 0) -> 1 | N107: =IF(AND(SUM($J105:N105) > 0, SUM(N106:$AR106) > 0), 1, 0) -> 1 | O107: =IF(AND(SUM($J105:O105) > 0, SUM(O106:$AR106) > 0), 1, 0) -> 1 | P107: =IF(AND(SUM($J105:P105) > 0, SUM(P106:$AR106) > 0), 1, 0) -> 1 | Q107: =IF(AND(SUM($J105:Q105) > 0, SUM(Q106:$AR106) > 0), 1, 0) -> 1 | R107: =IF(AND(SUM($J105:R105) > 0, SUM(R106:$AR106) > 0), 1, 0) -> 1 | S107: =IF(AND(SUM($J105:S105) > 0, SUM(S106:$AR106) > 0), 1, 0) -> 1 | T107: =IF(AND(SUM($J105:T105) > 0, SUM(T106:$AR106) > 0), 1, 0) -> 1 | U107: =IF(AND(SUM($J105:U105) > 0, SUM(U106:$AR106) > 0), 1, 0) -> 1 | V107: =IF(AND(SUM($J105:V105) > 0, SUM(V106:$AR106) > 0), 1, 0) -> 1 | W107: =IF(AND(SUM($J105:W105) > 0, SUM(W106:$AR106) > 0), 1, 0) -> 1 | X107: =IF(AND(SUM($J105:X105) > 0, SUM(X106:$AR106) > 0), 1, 0) -> 1 | Y107: =IF(AND(SUM($J105:Y105) > 0, SUM(Y106:$AR106) > 0), 1, 0) -> 1 | Z107: =IF(AND(SUM($J105:Z105) > 0, SUM(Z106:$AR106) > 0), 1, 0) -> 1 | AA107: =IF(AND(SUM($J105:AA105) > 0, SUM(AA106:$AR106) > 0), 1, 0) -> 1 | AB107: =IF(AND(SUM($J105:AB105) > 0, SUM(AB106:$AR106) > 0), 1, 0) -> 1 | AC107: =IF(AND(SUM($J105:AC105) > 0, SUM(AC106:$AR106) > 0), 1, 0) -> 1 | AD107: =IF(AND(SUM($J105:AD105) > 0, SUM(AD106:$AR106) > 0), 1, 0) -> 1 | AE107: =IF(AND(SUM($J105:AE105) > 0, SUM(AE106:$AR106) > 0), 1, 0) -> 1 | AF107: =IF(AND(SUM($J105:AF105) > 0, SUM(AF106:$AR106) > 0), 1, 0) -> 1 | AG107: =IF(AND(SUM($J105:AG105) > 0, SUM(AG106:$AR106) > 0), 1, 0) -> 1 | AH107: =IF(AND(SUM($J105:AH105) > 0, SUM(AH106:$AR106) > 0), 1, 0) -> 1 | AI107: =IF(AND(SUM($J105:AI105) > 0, SUM(AI106:$AR106) > 0), 1, 0) -> 1 | AJ107: =IF(AND(SUM($J105:AJ105) > 0, SUM(AJ106:$AR106) > 0), 1, 0) -> 1 | AK107: =IF(AND(SUM($J105:AK105) > 0, SUM(AK106:$AR106) > 0), 1, 0) -> 1 | AL107: =IF(AND(SUM($J105:AL105) > 0, SUM(AL106:$AR106) > 0), 1, 0) -> 0 | AM107: =IF(AND(SUM($J105:AM105) > 0, SUM(AM106:$AR106) > 0), 1, 0) -> 0 | AN107: =IF(AND(SUM($J105:AN105) > 0, SUM(AN106:$AR106) > 0), 1, 0) -> 0 | AO107: =IF(AND(SUM($J105:AO105) > 0, SUM(AO106:$AR106) > 0), 1, 0) -> 0 | AP107: =IF(AND(SUM($J105:AP105) > 0, SUM(AP106:$AR106) > 0), 1, 0) -> 0 | AQ107: =IF(AND(SUM($J105:AQ105) > 0, SUM(AQ106:$AR106) > 0), 1, 0) -> 0 | AR107: =IF(AND(SUM($J105:AR105) > 0, SUM(AR106:$AR106) > 0), 1, 0) -> 0
E108: ="Korrekturflag Kostenanfall Erste & Letzte Periode Betriebsphase "&'Generelle-Annahmen'!N$3 -> Korrekturflag Kostenanfall Erste & Letzte Periode Betriebsphase Mietvariante | G108: Flag | H108: =SUM(J108:AR108) -> 28 | J108: =YEARFRAC($F102,J$3)*J105+(1-YEARFRAC(J$3,$F103))*J106+(J107-J105-J106) -> 1 | K108: =YEARFRAC($F102,K$3)*K105+(1-YEARFRAC(K$3,$F103))*K106+(K107-K105-K106) -> 1 | L108: 1 | M108: 1 | N108: 1 | O108: 1 | P108: 1 | Q108: 1 | R108: 1 | S108: 1 | T108: 1 | U108: 1 | V108: 1 | W108: 1 | X108: 1 | Y108: 1 | Z108: 1 | AA108: 1 | AB108: 1 | AC108: 1 | AD108: 1 | AE108: 1 | AF108: 1 | AG108: 1 | AH108: 1 | AI108: 1 | AJ108: 1 | AK108: 1 | AL108: 0 | AM108: 0 | AN108: 0 | AO108: 0 | AP108: 0 | AQ108: 0 | AR108: 0
E109: ="Tilgungsperioden "&'Generelle-Annahmen'!N$3 -> Tilgungsperioden Mietvariante | G109: Flag | H109: =SUM(J109:AR109) -> 406 | J109: =IF(J107=1,I109 +1,0) -> 1 | K109: =IF(K107=1,J109 +1,0) -> 2 | L109: =IF(L107=1,K109 +1,0) -> 3 | M109: =IF(M107=1,L109 +1,0) -> 4 | N109: =IF(N107=1,M109 +1,0) -> 5 | O109: =IF(O107=1,N109 +1,0) -> 6 | P109: =IF(P107=1,O109 +1,0) -> 7 | Q109: =IF(Q107=1,P109 +1,0) -> 8 | R109: =IF(R107=1,Q109 +1,0) -> 9 | S109: =IF(S107=1,R109 +1,0) -> 10 | T109: =IF(T107=1,S109 +1,0) -> 11 | U109: =IF(U107=1,T109 +1,0) -> 12 | V109: =IF(V107=1,U109 +1,0) -> 13 | W109: =IF(W107=1,V109 +1,0) -> 14 | X109: =IF(X107=1,W109 +1,0) -> 15 | Y109: =IF(Y107=1,X109 +1,0) -> 16 | Z109: =IF(Z107=1,Y109 +1,0) -> 17 | AA109: =IF(AA107=1,Z109 +1,0) -> 18 | AB109: =IF(AB107=1,AA109 +1,0) -> 19 | AC109: =IF(AC107=1,AB109 +1,0) -> 20 | AD109: =IF(AD107=1,AC109 +1,0) -> 21 | AE109: =IF(AE107=1,AD109 +1,0) -> 22 | AF109: =IF(AF107=1,AE109 +1,0) -> 23 | AG109: =IF(AG107=1,AF109 +1,0) -> 24 | AH109: =IF(AH107=1,AG109 +1,0) -> 25 | AI109: =IF(AI107=1,AH109 +1,0) -> 26 | AJ109: =IF(AJ107=1,AI109 +1,0) -> 27 | AK109: =IF(AK107=1,AJ109 +1,0) -> 28 | AL109: =IF(AL107=1,AK109 +1,0) -> 0 | AM109: =IF(AM107=1,AL109 +1,0) -> 0 | AN109: =IF(AN107=1,AM109 +1,0) -> 0 | AO109: =IF(AO107=1,AN109 +1,0) -> 0 | AP109: =IF(AP107=1,AO109 +1,0) -> 0 | AQ109: =IF(AQ107=1,AP109 +1,0) -> 0 | AR109: =IF(AR107=1,AQ109 +1,0) -> 0
B111: INDEXIERUNGEN & DISKONTIERUNG
E113: ='Generelle-Annahmen'!E$46 -> Startdatum Indexierung Baukosten | F113: ='Generelle-Annahmen'!F$46 -> 2018-01-01 | G113: ='Generelle-Annahmen'!G$46 -> Datum
E114: ='Generelle-Annahmen'!E$48 -> Startdatum Indexierung Betriebskosten und alle übrigen Positionen | F114: ='Generelle-Annahmen'!F$48 -> 2018-01-01 | G114: ='Generelle-Annahmen'!G$48 -> Datum
E115: ='Generelle-Annahmen'!E$32 -> Startdatum Diskontierung | F115: ='Generelle-Annahmen'!F$32 -> 2018-01-01 | G115: ='Generelle-Annahmen'!G$32 -> Datum
E117: ='Generelle-Annahmen'!E$47 -> Preisindex Baukosten | F117: ='Generelle-Annahmen'!F$47 -> 0.02 | G117: ='Generelle-Annahmen'!G$47 -> Prozent p.a.
E118: ='Generelle-Annahmen'!E$49 -> Preisindex Energiekosten für Positionen [6411; 6413; 6415] | F118: ='Generelle-Annahmen'!F$49 -> 0.02 | G118: ='Generelle-Annahmen'!G$49 -> Prozent p.a.
E119: ='Generelle-Annahmen'!E$51 -> Preisindex Betriebskosten für alle übrigen Positionen | F119: ='Generelle-Annahmen'!F$51 -> 0.02 | G119: ='Generelle-Annahmen'!G$51 -> Prozent p.a.
E120: ='Generelle-Annahmen'!E$50 -> Preisindex Instandhaltungskosten für Positionen [6340] | F120: ='Generelle-Annahmen'!F$50 -> 0.02 | G120: ='Generelle-Annahmen'!G$50 -> Prozent p.a.
E121: ='Generelle-Annahmen'!E$52 -> Preisindex Mieterträge & Mietaufwände | F121: ='Generelle-Annahmen'!F$52 -> 0.02 | G121: ='Generelle-Annahmen'!G$52 -> Prozent p.a.
E122: ='Generelle-Annahmen'!E$53 -> Preisindex Sonstige Erträge & Aufwände | F122: ='Generelle-Annahmen'!F$53 -> 0.02 | G122: ='Generelle-Annahmen'!G$53 -> Prozent p.a.
E123: ='Generelle-Annahmen'!E$33 -> Diskontierungssatz | F123: ='Generelle-Annahmen'!F$33 -> 0.035 | G123: ='Generelle-Annahmen'!G$33 -> Prozent p.a.
E125: =E117 -> Preisindex Baukosten | G125: Index | J125: =IF(J$3 >= $F$113, (1 + $F$117) ^ YEARFRAC($F$113, J$3 + 1,4),1) -> 1.02 | K125: =IF(K$3 >= $F$113, (1 + $F$117) ^ YEARFRAC($F$113, K$3 + 1,4),1) -> 1.0404 | L125: 1.061208 | M125: 1.08243216 | N125: 1.104080803 | O125: 1.126162419 | P125: 1.148685668 | Q125: 1.171659381 | R125: 1.195092569 | S125: 1.21899442 | T125: 1.243374308 | U125: 1.268241795 | V125: 1.29360663 | W125: 1.319478763 | X125: 1.345868338 | Y125: 1.372785705 | Z125: 1.400241419 | AA125: =IF(AA$3 >= $F$113, (1 + $F$117) ^ YEARFRAC($F$113, AA$3 + 1,4),1) -> 1.428246248 | AB125: 1.456811173 | AC125: 1.485947396 | AD125: 1.515666344 | AE125: 1.545979671 | AF125: 1.576899264 | AG125: 1.608437249 | AH125: 1.640605994 | AI125: 1.673418114 | AJ125: 1.706886477 | AK125: 1.741024206 | AL125: 1.77584469 | AM125: 1.811361584 | AN125: 1.847588816 | AO125: 1.884540592 | AP125: 1.922231404 | AQ125: =IF(AQ$3 >= $F$113, (1 + $F$117) ^ YEARFRAC($F$113, AQ$3 + 1,4),1) -> 1.960676032 | AR125: 1.999889553
E126: Preisindex Energiekosten für Positionen [6411; 6413; 6415] | G126: Index | J126: =IF(J$3 >= $F$114, (1 + $F$118) ^ YEARFRAC($F$114, J$3 + 1,4),1) -> 1.02 | K126: =IF(K$3 >= $F$114, (1 + $F$118) ^ YEARFRAC($F$114, K$3 + 1,4),1) -> 1.0404 | L126: 1.061208 | M126: 1.08243216 | N126: 1.104080803 | O126: 1.126162419 | P126: 1.148685668 | Q126: 1.171659381 | R126: 1.195092569 | S126: 1.21899442 | T126: 1.243374308 | U126: 1.268241795 | V126: 1.29360663 | W126: 1.319478763 | X126: 1.345868338 | Y126: 1.372785705 | Z126: 1.400241419 | AA126: 1.428246248 | AB126: 1.456811173 | AC126: 1.485947396 | AD126: 1.515666344 | AE126: 1.545979671 | AF126: 1.576899264 | AG126: 1.608437249 | AH126: 1.640605994 | AI126: 1.673418114 | AJ126: 1.706886477 | AK126: 1.741024206 | AL126: 1.77584469 | AM126: 1.811361584 | AN126: 1.847588816 | AO126: 1.884540592 | AP126: 1.922231404 | AQ126: 1.960676032 | AR126: 1.999889553
E127: Preisindex Betriebskosten für alle übrigen Positionen | G127: Index | J127: =IF(J$3 >= $F$114, (1 + $F$119) ^ YEARFRAC($F$114, J$3 + 1,4),1) -> 1.02 | K127: =IF(K$3 >= $F$114, (1 + $F$119) ^ YEARFRAC($F$114, K$3 + 1,4),1) -> 1.0404 | L127: 1.061208 | M127: 1.08243216 | N127: 1.104080803 | O127: 1.126162419 | P127: 1.148685668 | Q127: 1.171659381 | R127: 1.195092569 | S127: 1.21899442 | T127: 1.243374308 | U127: 1.268241795 | V127: 1.29360663 | W127: 1.319478763 | X127: 1.345868338 | Y127: 1.372785705 | Z127: 1.400241419 | AA127: 1.428246248 | AB127: 1.456811173 | AC127: 1.485947396 | AD127: 1.515666344 | AE127: 1.545979671 | AF127: 1.576899264 | AG127: 1.608437249 | AH127: 1.640605994 | AI127: 1.673418114 | AJ127: 1.706886477 | AK127: 1.741024206 | AL127: 1.77584469 | AM127: 1.811361584 | AN127: 1.847588816 | AO127: 1.884540592 | AP127: 1.922231404 | AQ127: 1.960676032 | AR127: 1.999889553
E128: Preisindex Instandhaltungskosten für Positionen [6340] | G128: Index | J128: =IF(J$3 >= $F$114, (1 + $F$120) ^ YEARFRAC($F$114, J$3 + 1,4),1) -> 1.02 | K128: =IF(K$3 >= $F$114, (1 + $F$120) ^ YEARFRAC($F$114, K$3 + 1,4),1) -> 1.0404 | L128: 1.061208 | M128: 1.08243216 | N128: 1.104080803 | O128: 1.126162419 | P128: 1.148685668 | Q128: 1.171659381 | R128: 1.195092569 | S128: 1.21899442 | T128: 1.243374308 | U128: 1.268241795 | V128: 1.29360663 | W128: 1.319478763 | X128: 1.345868338 | Y128: 1.372785705 | Z128: 1.400241419 | AA128: 1.428246248 | AB128: 1.456811173 | AC128: 1.485947396 | AD128: 1.515666344 | AE128: 1.545979671 | AF128: 1.576899264 | AG128: 1.608437249 | AH128: 1.640605994 | AI128: 1.673418114 | AJ128: 1.706886477 | AK128: 1.741024206 | AL128: 1.77584469 | AM128: 1.811361584 | AN128: 1.847588816 | AO128: 1.884540592 | AP128: 1.922231404 | AQ128: 1.960676032 | AR128: 1.999889553
E129: Preisindex Mieterträge & Mietaufwände | G129: Index | J129: =IF(J$3 >= $F$114, (1 + $F$121) ^ YEARFRAC($F$114, J$3 + 1,4),1) -> 1.02 | K129: =IF(K$3 >= $F$114, (1 + $F$121) ^ YEARFRAC($F$114, K$3 + 1,4),1) -> 1.0404 | L129: 1.061208 | M129: 1.08243216 | N129: 1.104080803 | O129: 1.126162419 | P129: 1.148685668 | Q129: 1.171659381 | R129: 1.195092569 | S129: 1.21899442 | T129: 1.243374308 | U129: 1.268241795 | V129: 1.29360663 | W129: 1.319478763 | X129: 1.345868338 | Y129: 1.372785705 | Z129: 1.400241419 | AA129: 1.428246248 | AB129: 1.456811173 | AC129: 1.485947396 | AD129: 1.515666344 | AE129: 1.545979671 | AF129: 1.576899264 | AG129: 1.608437249 | AH129: 1.640605994 | AI129: 1.673418114 | AJ129: 1.706886477 | AK129: 1.741024206 | AL129: 1.77584469 | AM129: 1.811361584 | AN129: 1.847588816 | AO129: 1.884540592 | AP129: 1.922231404 | AQ129: 1.960676032 | AR129: 1.999889553
E130: Preisindex Sonstige Erträge & Aufwände | G130: Index | J130: =IF(J$3 >= $F$114, (1 + $F$122) ^ YEARFRAC($F$114, J$3 + 1,4),1) -> 1.02 | K130: =IF(K$3 >= $F$114, (1 + $F$122) ^ YEARFRAC($F$114, K$3 + 1,4),1) -> 1.0404 | L130: 1.061208 | M130: 1.08243216 | N130: 1.104080803 | O130: 1.126162419 | P130: 1.148685668 | Q130: 1.171659381 | R130: 1.195092569 | S130: 1.21899442 | T130: 1.243374308 | U130: 1.268241795 | V130: 1.29360663 | W130: 1.319478763 | X130: 1.345868338 | Y130: 1.372785705 | Z130: 1.400241419 | AA130: 1.428246248 | AB130: 1.456811173 | AC130: 1.485947396 | AD130: 1.515666344 | AE130: 1.545979671 | AF130: 1.576899264 | AG130: 1.608437249 | AH130: 1.640605994 | AI130: 1.673418114 | AJ130: 1.706886477 | AK130: 1.741024206 | AL130: 1.77584469 | AM130: 1.811361584 | AN130: 1.847588816 | AO130: 1.884540592 | AP130: 1.922231404 | AQ130: 1.960676032 | AR130: 1.999889553
E131: =E123 -> Diskontierungssatz | G131: Index | J131: =IF(J$3 > $F$115, (1 + $F$123) ^ YEARFRAC($F$115, J$3 + 1,4),1) -> 1.035 | K131: 1.071225 | L131: 1.108717875 | M131: 1.147523001 | N131: 1.187686306 | O131: 1.229255326 | P131: 1.272279263 | Q131: 1.316809037 | R131: 1.362897353 | S131: 1.410598761 | T131: 1.459969717 | U131: 1.511068657 | V131: 1.56395606 | W131: 1.618694522 | X131: 1.675348831 | Y131: 1.73398604 | Z131: 1.794675551 | AA131: 1.857489196 | AB131: 1.922501317 | AC131: 1.989788863 | AD131: 2.059431474 | AE131: 2.131511575 | AF131: 2.20611448 | AG131: 2.283328487 | AH131: 2.363244984 | AI131: 2.445958559 | AJ131: 2.531567108 | AK131: 2.620171957 | AL131: 2.711877976 | AM131: 2.806793705 | AN131: 2.905031484 | AO131: 3.006707586 | AP131: 3.111942352 | AQ131: 3.220860334 | AR131: 3.333590446

Sheet 0-Variante
A1: ='Generelle-Annahmen'!I3&IF('Generelle-Annahmen'!I10="",""," '"&'Generelle-Annahmen'!I10&"'") -> 0-Variante
E2: =Zeit!E2 -> Modell Periodenbeginn | G2: =Zeit!G2 -> Datum | J2: =Zeit!J2 -> 2018-01-01 | K2: =Zeit!K2 -> 2019-01-01 | L2: =Zeit!L2 -> 2020-01-01 | M2: =Zeit!M2 -> 2021-01-01 | N2: =Zeit!N2 -> 2022-01-01 | O2: =Zeit!O2 -> 2023-01-01 | P2: =Zeit!P2 -> 2024-01-01 | Q2: =Zeit!Q2 -> 2025-01-01 | R2: =Zeit!R2 -> 2026-01-01 | S2: =Zeit!S2 -> 2027-01-01 | T2: =Zeit!T2 -> 2028-01-01 | U2: =Zeit!U2 -> 2029-01-01 | V2: =Zeit!V2 -> 2030-01-01 | W2: =Zeit!W2 -> 2031-01-01 | X2: =Zeit!X2 -> 2032-01-01 | Y2: =Zeit!Y2 -> 2033-01-01 | Z2: =Zeit!Z2 -> 2034-01-01 | AA2: =Zeit!AA2 -> 2035-01-01 | AB2: =Zeit!AB2 -> 2036-01-01 | AC2: =Zeit!AC2 -> 2037-01-01 | AD2: =Zeit!AD2 -> 2038-01-01 | AE2: =Zeit!AE2 -> 2039-01-01 | AF2: =Zeit!AF2 -> 2040-01-01 | AG2: =Zeit!AG2 -> 2041-01-01 | AH2: =Zeit!AH2 -> 2042-01-01 | AI2: =Zeit!AI2 -> 2043-01-01 | AJ2: =Zeit!AJ2 -> 2044-01-01 | AK2: =Zeit!AK2 -> 2045-01-01 | AL2: =Zeit!AL2 -> 2046-01-01 | AM2: =Zeit!AM2 -> 2047-01-01 | AN2: =Zeit!AN2 -> 2048-01-01 | AO2: =Zeit!AO2 -> 2049-01-01 | AP2: =Zeit!AP2 -> 2050-01-01 | AQ2: =Zeit!AQ2 -> 2051-01-01 | AR2: =Zeit!AR2 -> 2052-01-01
E3: =Zeit!E3 -> Modell Periodenende | G3: =Zeit!G3 -> Datum | J3: =Zeit!J3 -> 2018-12-31 | K3: =Zeit!K3 -> 2019-12-31 | L3: =Zeit!L3 -> 2020-12-31 | M3: =Zeit!M3 -> 2021-12-31 | N3: =Zeit!N3 -> 2022-12-31 | O3: =Zeit!O3 -> 2023-12-31 | P3: =Zeit!P3 -> 2024-12-31 | Q3: =Zeit!Q3 -> 2025-12-31 | R3: =Zeit!R3 -> 2026-12-31 | S3: =Zeit!S3 -> 2027-12-31 | T3: =Zeit!T3 -> 2028-12-31 | U3: =Zeit!U3 -> 2029-12-31 | V3: =Zeit!V3 -> 2030-12-31 | W3: =Zeit!W3 -> 2031-12-31 | X3: =Zeit!X3 -> 2032-12-31 | Y3: =Zeit!Y3 -> 2033-12-31 | Z3: =Zeit!Z3 -> 2034-12-31 | AA3: =Zeit!AA3 -> 2035-12-31 | AB3: =Zeit!AB3 -> 2036-12-31 | AC3: =Zeit!AC3 -> 2037-12-31 | AD3: =Zeit!AD3 -> 2038-12-31 | AE3: =Zeit!AE3 -> 2039-12-31 | AF3: =Zeit!AF3 -> 2040-12-31 | AG3: =Zeit!AG3 -> 2041-12-31 | AH3: =Zeit!AH3 -> 2042-12-31 | AI3: =Zeit!AI3 -> 2043-12-31 | AJ3: =Zeit!AJ3 -> 2044-12-31 | AK3: =Zeit!AK3 -> 2045-12-31 | AL3: =Zeit!AL3 -> 2046-12-31 | AM3: =Zeit!AM3 -> 2047-12-31 | AN3: =Zeit!AN3 -> 2048-12-31 | AO3: =Zeit!AO3 -> 2049-12-31 | AP3: =Zeit!AP3 -> 2050-12-31 | AQ3: =Zeit!AQ3 -> 2051-12-31 | AR3: =Zeit!AR3 -> 2052-12-31
E4: Definition Parameter | F4: Konstante | G4: Einheit | H4: Summe | J4: =YEAR(J3) -> 2018 | K4: =YEAR(K3) -> 2019 | L4: =YEAR(L3) -> 2020 | M4: 2021 | N4: 2022 | O4: 2023 | P4: 2024 | Q4: 2025 | R4: 2026 | S4: 2027 | T4: 2028 | U4: 2029 | V4: 2030 | W4: 2031 | X4: 2032 | Y4: 2033 | Z4: 2034 | AA4: 2035 | AB4: 2036 | AC4: 2037 | AD4: 2038 | AE4: 2039 | AF4: 2040 | AG4: 2041 | AH4: 2042 | AI4: 2043 | AJ4: 2044 | AK4: 2045 | AL4: 2046 | AM4: 2047 | AN4: 2048 | AO4: 2049 | AP4: 2050 | AQ4: 2051 | AR4: 2052
A6: ZEITLICHE ANNAHMEN (FLAGS)
E8: =Zeit!E$21 -> Beginn Projektphase | G8: =Zeit!G$21 -> Flag | H8: =Zeit!H$21 -> 1 | J8: =Zeit!J$21 -> 1 | K8: =Zeit!K$21 -> 0 | L8: =Zeit!L$21 -> 0 | M8: =Zeit!M$21 -> 0 | N8: =Zeit!N$21 -> 0 | O8: =Zeit!O$21 -> 0 | P8: =Zeit!P$21 -> 0 | Q8: =Zeit!Q$21 -> 0 | R8: =Zeit!R$21 -> 0 | S8: =Zeit!S$21 -> 0 | T8: =Zeit!T$21 -> 0 | U8: =Zeit!U$21 -> 0 | V8: =Zeit!V$21 -> 0 | W8: =Zeit!W$21 -> 0 | X8: =Zeit!X$21 -> 0 | Y8: =Zeit!Y$21 -> 0 | Z8: =Zeit!Z$21 -> 0 | AA8: =Zeit!AA$21 -> 0 | AB8: =Zeit!AB$21 -> 0 | AC8: =Zeit!AC$21 -> 0 | AD8: =Zeit!AD$21 -> 0 | AE8: =Zeit!AE$21 -> 0 | AF8: =Zeit!AF$21 -> 0 | AG8: =Zeit!AG$21 -> 0 | AH8: =Zeit!AH$21 -> 0 | AI8: =Zeit!AI$21 -> 0 | AJ8: =Zeit!AJ$21 -> 0 | AK8: =Zeit!AK$21 -> 0 | AL8: =Zeit!AL$21 -> 0 | AM8: =Zeit!AM$21 -> 0 | AN8: =Zeit!AN$21 -> 0 | AO8: =Zeit!AO$21 -> 0 | AP8: =Zeit!AP$21 -> 0 | AQ8: =Zeit!AQ$21 -> 0 | AR8: =Zeit!AR$21 -> 0
E9: =Zeit!E$23 -> Periodenflag Projektphase | G9: =Zeit!G$23 -> Flag | H9: =Zeit!H$23 -> 28 | J9: =Zeit!J$23 -> 1 | K9: =Zeit!K$23 -> 1 | L9: =Zeit!L$23 -> 1 | M9: =Zeit!M$23 -> 1 | N9: =Zeit!N$23 -> 1 | O9: =Zeit!O$23 -> 1 | P9: =Zeit!P$23 -> 1 | Q9: =Zeit!Q$23 -> 1 | R9: =Zeit!R$23 -> 1 | S9: =Zeit!S$23 -> 1 | T9: =Zeit!T$23 -> 1 | U9: =Zeit!U$23 -> 1 | V9: =Zeit!V$23 -> 1 | W9: =Zeit!W$23 -> 1 | X9: =Zeit!X$23 -> 1 | Y9: =Zeit!Y$23 -> 1 | Z9: =Zeit!Z$23 -> 1 | AA9: =Zeit!AA$23 -> 1 | AB9: =Zeit!AB$23 -> 1 | AC9: =Zeit!AC$23 -> 1 | AD9: =Zeit!AD$23 -> 1 | AE9: =Zeit!AE$23 -> 1 | AF9: =Zeit!AF$23 -> 1 | AG9: =Zeit!AG$23 -> 1 | AH9: =Zeit!AH$23 -> 1 | AI9: =Zeit!AI$23 -> 1 | AJ9: =Zeit!AJ$23 -> 1 | AK9: =Zeit!AK$23 -> 1 | AL9: =Zeit!AL$23 -> 0 | AM9: =Zeit!AM$23 -> 0 | AN9: =Zeit!AN$23 -> 0 | AO9: =Zeit!AO$23 -> 0 | AP9: =Zeit!AP$23 -> 0 | AQ9: =Zeit!AQ$23 -> 0 | AR9: =Zeit!AR$23 -> 0
E10: =Zeit!E$24 -> Korrekturflag Kostenanfall Erste & Letzte Periode Projektphase | G10: =Zeit!G$24 -> Flag | H10: =SUM(J10:AR10) -> 28 | J10: =Zeit!J$24 -> 1 | K10: =Zeit!K$24 -> 1 | L10: =Zeit!L$24 -> 1 | M10: =Zeit!M$24 -> 1 | N10: =Zeit!N$24 -> 1 | O10: =Zeit!O$24 -> 1 | P10: =Zeit!P$24 -> 1 | Q10: =Zeit!Q$24 -> 1 | R10: =Zeit!R$24 -> 1 | S10: =Zeit!S$24 -> 1 | T10: =Zeit!T$24 -> 1 | U10: =Zeit!U$24 -> 1 | V10: =Zeit!V$24 -> 1 | W10: =Zeit!W$24 -> 1 | X10: =Zeit!X$24 -> 1 | Y10: =Zeit!Y$24 -> 1 | Z10: =Zeit!Z$24 -> 1 | AA10: =Zeit!AA$24 -> 1 | AB10: =Zeit!AB$24 -> 1 | AC10: =Zeit!AC$24 -> 1 | AD10: =Zeit!AD$24 -> 1 | AE10: =Zeit!AE$24 -> 1 | AF10: =Zeit!AF$24 -> 1 | AG10: =Zeit!AG$24 -> 1 | AH10: =Zeit!AH$24 -> 1 | AI10: =Zeit!AI$24 -> 1 | AJ10: =Zeit!AJ$24 -> 1 | AK10: =Zeit!AK$24 -> 1 | AL10: =Zeit!AL$24 -> 0 | AM10: =Zeit!AM$24 -> 0 | AN10: =Zeit!AN$24 -> 0 | AO10: =Zeit!AO$24 -> 0 | AP10: =Zeit!AP$24 -> 0 | AQ10: =Zeit!AQ$24 -> 0 | AR10: =Zeit!AR$24 -> 0
A12: BERECHNUNG OBJEKTWERT VON VERMÖGEN
B14: Grundstück
E16: ='Generelle-Annahmen'!E$73 -> Restbuchwert Grundstück | F16: ='Generelle-Annahmen'!I$73 -> 250000 | G16: ='Generelle-Annahmen'!G$73 -> Euro
E17: ='Nichtlineare-Annahmen'!E$22 -> Außerplanmäßige Abschreibung bzw. Anlagenabgang Grundstück | G17: ='Nichtlineare-Annahmen'!G$22 -> Euro | H17: ='Nichtlineare-Annahmen'!H$22 -> 0 | J17: ='Nichtlineare-Annahmen'!J$22 -> 0 | K17: ='Nichtlineare-Annahmen'!K$22 -> 0 | L17: ='Nichtlineare-Annahmen'!L$22 -> 0 | M17: ='Nichtlineare-Annahmen'!M$22 -> 0 | N17: ='Nichtlineare-Annahmen'!N$22 -> 0 | O17: ='Nichtlineare-Annahmen'!O$22 -> 0 | P17: ='Nichtlineare-Annahmen'!P$22 -> 0 | Q17: ='Nichtlineare-Annahmen'!Q$22 -> 0 | R17: ='Nichtlineare-Annahmen'!R$22 -> 0 | S17: ='Nichtlineare-Annahmen'!S$22 -> 0 | T17: ='Nichtlineare-Annahmen'!T$22 -> 0 | U17: ='Nichtlineare-Annahmen'!U$22 -> 0 | V17: ='Nichtlineare-Annahmen'!V$22 -> 0 | W17: ='Nichtlineare-Annahmen'!W$22 -> 0 | X17: ='Nichtlineare-Annahmen'!X$22 -> 0 | Y17: ='Nichtlineare-Annahmen'!Y$22 -> 0 | Z17: ='Nichtlineare-Annahmen'!Z$22 -> 0 | AA17: ='Nichtlineare-Annahmen'!AA$22 -> 0 | AB17: ='Nichtlineare-Annahmen'!AB$22 -> 0 | AC17: ='Nichtlineare-Annahmen'!AC$22 -> 0 | AD17: ='Nichtlineare-Annahmen'!AD$22 -> 0 | AE17: ='Nichtlineare-Annahmen'!AE$22 -> 0 | AF17: ='Nichtlineare-Annahmen'!AF$22 -> 0 | AG17: ='Nichtlineare-Annahmen'!AG$22 -> 0 | AH17: ='Nichtlineare-Annahmen'!AH$22 -> 0 | AI17: ='Nichtlineare-Annahmen'!AI$22 -> 0 | AJ17: ='Nichtlineare-Annahmen'!AJ$22 -> 0 | AK17: ='Nichtlineare-Annahmen'!AK$22 -> 0 | AL17: ='Nichtlineare-Annahmen'!AL$22 -> 0 | AM17: ='Nichtlineare-Annahmen'!AM$22 -> 0 | AN17: ='Nichtlineare-Annahmen'!AN$22 -> 0 | AO17: ='Nichtlineare-Annahmen'!AO$22 -> 0 | AP17: ='Nichtlineare-Annahmen'!AP$22 -> 0 | AQ17: ='Nichtlineare-Annahmen'!AQ$22 -> 0 | AR17: ='Nichtlineare-Annahmen'!AR$22 -> 0
E18: Abschreibungsbetrag pro Jahr Grundstück mit außerplanmäßiger Abschreibung bzw. Anlagenabgang | G18: Euro | H18: =SUM(J18:AR18) -> 0 | J18: =MIN($F16-SUM($I18:I18),J17 * J9) -> 0 | K18: =MIN($F16-SUM($I18:J18),K17 * K9) -> 0 | L18: =MIN($F16-SUM($I18:K18),L17 * L9) -> 0 | M18: =MIN($F16-SUM($I18:L18),M17 * M9) -> 0 | N18: =MIN($F16-SUM($I18:M18),N17 * N9) -> 0 | O18: =MIN($F16-SUM($I18:N18),O17 * O9) -> 0 | P18: =MIN($F16-SUM($I18:O18),P17 * P9) -> 0 | Q18: =MIN($F16-SUM($I18:P18),Q17 * Q9) -> 0 | R18: =MIN($F16-SUM($I18:Q18),R17 * R9) -> 0 | S18: =MIN($F16-SUM($I18:R18),S17 * S9) -> 0 | T18: =MIN($F16-SUM($I18:S18),T17 * T9) -> 0 | U18: =MIN($F16-SUM($I18:T18),U17 * U9) -> 0 | V18: =MIN($F16-SUM($I18:U18),V17 * V9) -> 0 | W18: =MIN($F16-SUM($I18:V18),W17 * W9) -> 0 | X18: =MIN($F16-SUM($I18:W18),X17 * X9) -> 0 | Y18: =MIN($F16-SUM($I18:X18),Y17 * Y9) -> 0 | Z18: =MIN($F16-SUM($I18:Y18),Z17 * Z9) -> 0 | AA18: =MIN($F16-SUM($I18:Z18),AA17 * AA9) -> 0 | AB18: =MIN($F16-SUM($I18:AA18),AB17 * AB9) -> 0 | AC18: =MIN($F16-SUM($I18:AB18),AC17 * AC9) -> 0 | AD18: =MIN($F16-SUM($I18:AC18),AD17 * AD9) -> 0 | AE18: =MIN($F16-SUM($I18:AD18),AE17 * AE9) -> 0 | AF18: =MIN($F16-SUM($I18:AE18),AF17 * AF9) -> 0 | AG18: =MIN($F16-SUM($I18:AF18),AG17 * AG9) -> 0 | AH18: =MIN($F16-SUM($I18:AG18),AH17 * AH9) -> 0 | AI18: =MIN($F16-SUM($I18:AH18),AI17 * AI9) -> 0 | AJ18: =MIN($F16-SUM($I18:AI18),AJ17 * AJ9) -> 0 | AK18: =MIN($F16-SUM($I18:AJ18),AK17 * AK9) -> 0 | AL18: =MIN($F16-SUM($I18:AK18),AL17 * AL9) -> 0 | AM18: =MIN($F16-SUM($I18:AL18),AM17 * AM9) -> 0 | AN18: =MIN($F16-SUM($I18:AM18),AN17 * AN9) -> 0 | AO18: =MIN($F16-SUM($I18:AN18),AO17 * AO9) -> 0 | AP18: =MIN($F16-SUM($I18:AO18),AP17 * AP9) -> 0 | AQ18: =MIN($F16-SUM($I18:AP18),AQ17 * AQ9) -> 0 | AR18: =MIN($F16-SUM($I18:AQ18),AR17 * AR9) -> 0
C20: Buchwertentwicklung des Grundstücks
E22: Buchwert des Grundstücks zu Beginn des Jahres | G22: Euro | J22: =IF(J8 = 1, $F$16, I24 ) * J9 -> 250000 | K22: =IF(K8 = 1, $F$16, J24 ) * K9 -> 250000 | L22: =IF(L8 = 1, $F$16, K24 ) * L9 -> 250000 | M22: =IF(M8 = 1, $F$16, L24 ) * M9 -> 250000 | N22: =IF(N8 = 1, $F$16, M24 ) * N9 -> 250000 | O22: =IF(O8 = 1, $F$16, N24 ) * O9 -> 250000 | P22: =IF(P8 = 1, $F$16, O24 ) * P9 -> 250000 | Q22: =IF(Q8 = 1, $F$16, P24 ) * Q9 -> 250000 | R22: =IF(R8 = 1, $F$16, Q24 ) * R9 -> 250000 | S22: =IF(S8 = 1, $F$16, R24 ) * S9 -> 250000 | T22: =IF(T8 = 1, $F$16, S24 ) * T9 -> 250000 | U22: =IF(U8 = 1, $F$16, T24 ) * U9 -> 250000 | V22: =IF(V8 = 1, $F$16, U24 ) * V9 -> 250000 | W22: =IF(W8 = 1, $F$16, V24 ) * W9 -> 250000 | X22: =IF(X8 = 1, $F$16, W24 ) * X9 -> 250000 | Y22: =IF(Y8 = 1, $F$16, X24 ) * Y9 -> 250000 | Z22: =IF(Z8 = 1, $F$16, Y24 ) * Z9 -> 250000 | AA22: =IF(AA8 = 1, $F$16, Z24 ) * AA9 -> 250000 | AB22: =IF(AB8 = 1, $F$16, AA24 ) * AB9 -> 250000 | AC22: =IF(AC8 = 1, $F$16, AB24 ) * AC9 -> 250000 | AD22: =IF(AD8 = 1, $F$16, AC24 ) * AD9 -> 250000 | AE22: =IF(AE8 = 1, $F$16, AD24 ) * AE9 -> 250000 | AF22: =IF(AF8 = 1, $F$16, AE24 ) * AF9 -> 250000 | AG22: =IF(AG8 = 1, $F$16, AF24 ) * AG9 -> 250000 | AH22: =IF(AH8 = 1, $F$16, AG24 ) * AH9 -> 250000 | AI22: =IF(AI8 = 1, $F$16, AH24 ) * AI9 -> 250000 | AJ22: =IF(AJ8 = 1, $F$16, AI24 ) * AJ9 -> 250000 | AK22: =IF(AK8 = 1, $F$16, AJ24 ) * AK9 -> 250000 | AL22: =IF(AL8 = 1, $F$16, AK24 ) * AL9 -> 0 | AM22: =IF(AM8 = 1, $F$16, AL24 ) * AM9 -> 0 | AN22: =IF(AN8 = 1, $F$16, AM24 ) * AN9 -> 0 | AO22: =IF(AO8 = 1, $F$16, AN24 ) * AO9 -> 0 | AP22: =IF(AP8 = 1, $F$16, AO24 ) * AP9 -> 0 | AQ22: =IF(AQ8 = 1, $F$16, AP24 ) * AQ9 -> 0 | AR22: =IF(AR8 = 1, $F$16, AQ24 ) * AR9 -> 0
E23: =E18 -> Abschreibungsbetrag pro Jahr Grundstück mit außerplanmäßiger Abschreibung bzw. Anlagenabgang | G23: =G18 -> Euro | H23: =H18 -> 0 | J23: =J18 -> 0 | K23: =K18 -> 0 | L23: =L18 -> 0 | M23: 0 | N23: 0 | O23: 0 | P23: 0 | Q23: 0 | R23: 0 | S23: 0 | T23: 0 | U23: 0 | V23: 0 | W23: 0 | X23: 0 | Y23: 0 | Z23: 0 | AA23: 0 | AB23: 0 | AC23: 0 | AD23: 0 | AE23: 0 | AF23: 0 | AG23: 0 | AH23: 0 | AI23: 0 | AJ23: 0 | AK23: 0 | AL23: 0 | AM23: 0 | AN23: 0 | AO23: 0 | AP23: 0 | AQ23: 0 | AR23: 0
E24: Buchwert des Grundstücks Ende des Jahres | G24: Euro | J24: =J22 - J23 -> 250000 | K24: =K22 - K23 -> 250000 | L24: =L22 - L23 -> 250000 | M24: 250000 | N24: 250000 | O24: 250000 | P24: 250000 | Q24: 250000 | R24: 250000 | S24: 250000 | T24: 250000 | U24: 250000 | V24: 250000 | W24: 250000 | X24: 250000 | Y24: 250000 | Z24: 250000 | AA24: 250000 | AB24: 250000 | AC24: 250000 | AD24: 250000 | AE24: 250000 | AF24: 250000 | AG24: 250000 | AH24: 250000 | AI24: 250000 | AJ24: 250000 | AK24: 250000 | AL24: 0 | AM24: 0 | AN24: 0 | AO24: 0 | AP24: 0 | AQ24: 0 | AR24: 0
B26: Gebäude
E28: ='Generelle-Annahmen'!E$74 -> Restbuchwert Gebäude | F28: ='Generelle-Annahmen'!I$74 -> 4750000 | G28: ='Generelle-Annahmen'!G$74 -> Euro
E29: ='Generelle-Annahmen'!E$76 -> Verbleibende Abschreibungsdauer Gebäude & Auflösung Sonderposten | F29: ='Generelle-Annahmen'!I$76 -> 28 | G29: ='Generelle-Annahmen'!G$76 -> Jahre
E30: ='Nichtlineare-Annahmen'!E$23 -> Außerplanmäßige Abschreibung bzw. Anlagenabgang "alter" Gebäudebestand | G30: ='Nichtlineare-Annahmen'!G$23 -> Euro | H30: ='Nichtlineare-Annahmen'!H$23 -> 0 | J30: ='Nichtlineare-Annahmen'!J$23 -> 0 | K30: ='Nichtlineare-Annahmen'!K$23 -> 0 | L30: ='Nichtlineare-Annahmen'!L$23 -> 0 | M30: ='Nichtlineare-Annahmen'!M$23 -> 0 | N30: ='Nichtlineare-Annahmen'!N$23 -> 0 | O30: ='Nichtlineare-Annahmen'!O$23 -> 0 | P30: ='Nichtlineare-Annahmen'!P$23 -> 0 | Q30: ='Nichtlineare-Annahmen'!Q$23 -> 0 | R30: ='Nichtlineare-Annahmen'!R$23 -> 0 | S30: ='Nichtlineare-Annahmen'!S$23 -> 0 | T30: ='Nichtlineare-Annahmen'!T$23 -> 0 | U30: ='Nichtlineare-Annahmen'!U$23 -> 0 | V30: ='Nichtlineare-Annahmen'!V$23 -> 0 | W30: ='Nichtlineare-Annahmen'!W$23 -> 0 | X30: ='Nichtlineare-Annahmen'!X$23 -> 0 | Y30: ='Nichtlineare-Annahmen'!Y$23 -> 0 | Z30: ='Nichtlineare-Annahmen'!Z$23 -> 0 | AA30: ='Nichtlineare-Annahmen'!AA$23 -> 0 | AB30: ='Nichtlineare-Annahmen'!AB$23 -> 0 | AC30: ='Nichtlineare-Annahmen'!AC$23 -> 0 | AD30: ='Nichtlineare-Annahmen'!AD$23 -> 0 | AE30: ='Nichtlineare-Annahmen'!AE$23 -> 0 | AF30: ='Nichtlineare-Annahmen'!AF$23 -> 0 | AG30: ='Nichtlineare-Annahmen'!AG$23 -> 0 | AH30: ='Nichtlineare-Annahmen'!AH$23 -> 0 | AI30: ='Nichtlineare-Annahmen'!AI$23 -> 0 | AJ30: ='Nichtlineare-Annahmen'!AJ$23 -> 0 | AK30: ='Nichtlineare-Annahmen'!AK$23 -> 0 | AL30: ='Nichtlineare-Annahmen'!AL$23 -> 0 | AM30: ='Nichtlineare-Annahmen'!AM$23 -> 0 | AN30: ='Nichtlineare-Annahmen'!AN$23 -> 0 | AO30: ='Nichtlineare-Annahmen'!AO$23 -> 0 | AP30: ='Nichtlineare-Annahmen'!AP$23 -> 0 | AQ30: ='Nichtlineare-Annahmen'!AQ$23 -> 0 | AR30: ='Nichtlineare-Annahmen'!AR$23 -> 0
E31: Planmäßig, linearer Abschreibungsbetrag pro Jahr Gebäude nach außerplanmäßiger Abschreibung | G31: Euro | H31: =SUM(J31:AR31) -> 4750000 | J31: =MIN(($F28-SUM($I30:I31)) / MAX(1,$F29-SUM($I$10:I$10))*J$10,$F28-SUM($I30:I31,J30))*IF(SUM(J$9:$AR$9)=1,1/J$10,1) -> 169642.8571 | K31: =MIN(($F28-SUM($I30:J31)) / MAX(1,$F29-SUM($I$10:J$10))*K$10,$F28-SUM($I30:J31,K30))*IF(SUM(K$9:$AR$9)=1,1/K$10,1) -> 169642.8571 | L31: =MIN(($F28-SUM($I30:K31)) / MAX(1,$F29-SUM($I$10:K$10))*L$10,$F28-SUM($I30:K31,L30))*IF(SUM(L$9:$AR$9)=1,1/L$10,1) -> 169642.8571 | M31: =MIN(($F28-SUM($I30:L31)) / MAX(1,$F29-SUM($I$10:L$10))*M$10,$F28-SUM($I30:L31,M30))*IF(SUM(M$9:$AR$9)=1,1/M$10,1) -> 169642.8571 | N31: =MIN(($F28-SUM($I30:M31)) / MAX(1,$F29-SUM($I$10:M$10))*N$10,$F28-SUM($I30:M31,N30))*IF(SUM(N$9:$AR$9)=1,1/N$10,1) -> 169642.8571 | O31: =MIN(($F28-SUM($I30:N31)) / MAX(1,$F29-SUM($I$10:N$10))*O$10,$F28-SUM($I30:N31,O30))*IF(SUM(O$9:$AR$9)=1,1/O$10,1) -> 169642.8571 | P31: =MIN(($F28-SUM($I30:O31)) / MAX(1,$F29-SUM($I$10:O$10))*P$10,$F28-SUM($I30:O31,P30))*IF(SUM(P$9:$AR$9)=1,1/P$10,1) -> 169642.8571 | Q31: =MIN(($F28-SUM($I30:P31)) / MAX(1,$F29-SUM($I$10:P$10))*Q$10,$F28-SUM($I30:P31,Q30))*IF(SUM(Q$9:$AR$9)=1,1/Q$10,1) -> 169642.8571 | R31: =MIN(($F28-SUM($I30:Q31)) / MAX(1,$F29-SUM($I$10:Q$10))*R$10,$F28-SUM($I30:Q31,R30))*IF(SUM(R$9:$AR$9)=1,1/R$10,1) -> 169642.8571 | S31: =MIN(($F28-SUM($I30:R31)) / MAX(1,$F29-SUM($I$10:R$10))*S$10,$F28-SUM($I30:R31,S30))*IF(SUM(S$9:$AR$9)=1,1/S$10,1) -> 169642.8571 | T31: =MIN(($F28-SUM($I30:S31)) / MAX(1,$F29-SUM($I$10:S$10))*T$10,$F28-SUM($I30:S31,T30))*IF(SUM(T$9:$AR$9)=1,1/T$10,1) -> 169642.8571 | U31: =MIN(($F28-SUM($I30:T31)) / MAX(1,$F29-SUM($I$10:T$10))*U$10,$F28-SUM($I30:T31,U30))*IF(SUM(U$9:$AR$9)=1,1/U$10,1) -> 169642.8571 | V31: =MIN(($F28-SUM($I30:U31)) / MAX(1,$F29-SUM($I$10:U$10))*V$10,$F28-SUM($I30:U31,V30))*IF(SUM(V$9:$AR$9)=1,1/V$10,1) -> 169642.8571 | W31: =MIN(($F28-SUM($I30:V31)) / MAX(1,$F29-SUM($I$10:V$10))*W$10,$F28-SUM($I30:V31,W30))*IF(SUM(W$9:$AR$9)=1,1/W$10,1) -> 169642.8571 | X31: =MIN(($F28-SUM($I30:W31)) / MAX(1,$F29-SUM($I$10:W$10))*X$10,$F28-SUM($I30:W31,X30))*IF(SUM(X$9:$AR$9)=1,1/X$10,1) -> 169642.8571 | Y31: =MIN(($F28-SUM($I30:X31)) / MAX(1,$F29-SUM($I$10:X$10))*Y$10,$F28-SUM($I30:X31,Y30))*IF(SUM(Y$9:$AR$9)=1,1/Y$10,1) -> 169642.8571 | Z31: =MIN(($F28-SUM($I30:Y31)) / MAX(1,$F29-SUM($I$10:Y$10))*Z$10,$F28-SUM($I30:Y31,Z30))*IF(SUM(Z$9:$AR$9)=1,1/Z$10,1) -> 169642.8571 | AA31: =MIN(($F28-SUM($I30:Z31)) / MAX(1,$F29-SUM($I$10:Z$10))*AA$10,$F28-SUM($I30:Z31,AA30))*IF(SUM(AA$9:$AR$9)=1,1/AA$10,1) -> 169642.8571 | AB31: =MIN(($F28-SUM($I30:AA31)) / MAX(1,$F29-SUM($I$10:AA$10))*AB$10,$F28-SUM($I30:AA31,AB30))*IF(SUM(AB$9:$AR$9)=1,1/AB$10,1) -> 169642.8571 | AC31: =MIN(($F28-SUM($I30:AB31)) / MAX(1,$F29-SUM($I$10:AB$10))*AC$10,$F28-SUM($I30:AB31,AC30))*IF(SUM(AC$9:$AR$9)=1,1/AC$10,1) -> 169642.8571 | AD31: =MIN(($F28-SUM($I30:AC31)) / MAX(1,$F29-SUM($I$10:AC$10))*AD$10,$F28-SUM($I30:AC31,AD30))*IF(SUM(AD$9:$AR$9)=1,1/AD$10,1) -> 169642.8571 | AE31: =MIN(($F28-SUM($I30:AD31)) / MAX(1,$F29-SUM($I$10:AD$10))*AE$10,$F28-SUM($I30:AD31,AE30))*IF(SUM(AE$9:$AR$9)=1,1/AE$10,1) -> 169642.8571 | AF31: =MIN(($F28-SUM($I30:AE31)) / MAX(1,$F29-SUM($I$10:AE$10))*AF$10,$F28-SUM($I30:AE31,AF30))*IF(SUM(AF$9:$AR$9)=1,1/AF$10,1) -> 169642.8571 | AG31: =MIN(($F28-SUM($I30:AF31)) / MAX(1,$F29-SUM($I$10:AF$10))*AG$10,$F28-SUM($I30:AF31,AG30))*IF(SUM(AG$9:$AR$9)=1,1/AG$10,1) -> 169642.8571 | AH31: =MIN(($F28-SUM($I30:AG31)) / MAX(1,$F29-SUM($I$10:AG$10))*AH$10,$F28-SUM($I30:AG31,AH30))*IF(SUM(AH$9:$AR$9)=1,1/AH$10,1) -> 169642.8571 | AI31: =MIN(($F28-SUM($I30:AH31)) / MAX(1,$F29-SUM($I$10:AH$10))*AI$10,$F28-SUM($I30:AH31,AI30))*IF(SUM(AI$9:$AR$9)=1,1/AI$10,1) -> 169642.8571 | AJ31: =MIN(($F28-SUM($I30:AI31)) / MAX(1,$F29-SUM($I$10:AI$10))*AJ$10,$F28-SUM($I30:AI31,AJ30))*IF(SUM(AJ$9:$AR$9)=1,1/AJ$10,1) -> 169642.8571 | AK31: =MIN(($F28-SUM($I30:AJ31)) / MAX(1,$F29-SUM($I$10:AJ$10))*AK$10,$F28-SUM($I30:AJ31,AK30))*IF(SUM(AK$9:$AR$9)=1,1/AK$10,1) -> 169642.8571 | AL31: =MIN(($F28-SUM($I30:AK31)) / MAX(1,$F29-SUM($I$10:AK$10))*AL$10,$F28-SUM($I30:AK31,AL30))*IF(SUM(AL$9:$AR$9)=1,1/AL$10,1) -> 0 | AM31: =MIN(($F28-SUM($I30:AL31)) / MAX(1,$F29-SUM($I$10:AL$10))*AM$10,$F28-SUM($I30:AL31,AM30))*IF(SUM(AM$9:$AR$9)=1,1/AM$10,1) -> 0 | AN31: =MIN(($F28-SUM($I30:AM31)) / MAX(1,$F29-SUM($I$10:AM$10))*AN$10,$F28-SUM($I30:AM31,AN30))*IF(SUM(AN$9:$AR$9)=1,1/AN$10,1) -> 0 | AO31: =MIN(($F28-SUM($I30:AN31)) / MAX(1,$F29-SUM($I$10:AN$10))*AO$10,$F28-SUM($I30:AN31,AO30))*IF(SUM(AO$9:$AR$9)=1,1/AO$10,1) -> 0 | AP31: =MIN(($F28-SUM($I30:AO31)) / MAX(1,$F29-SUM($I$10:AO$10))*AP$10,$F28-SUM($I30:AO31,AP30))*IF(SUM(AP$9:$AR$9)=1,1/AP$10,1) -> 0 | AQ31: =MIN(($F28-SUM($I30:AP31)) / MAX(1,$F29-SUM($I$10:AP$10))*AQ$10,$F28-SUM($I30:AP31,AQ30))*IF(SUM(AQ$9:$AR$9)=1,1/AQ$10,1) -> 0 | AR31: =MIN(($F28-SUM($I30:AQ31)) / MAX(1,$F29-SUM($I$10:AQ$10))*AR$10,$F28-SUM($I30:AQ31,AR30))*IF(SUM(AR$9:$AR$9)=1,1/AR$10,1) -> 0
E32: Abschreibungsbetrag pro Jahr Gebäude planmäßig & außerplanmäßig mit Anpassung | G32: Euro | H32: =SUM(J32:AR32) -> 4750000 | J32: =SUM(J30:J31) -> 169642.8571 | K32: =SUM(K30:K31) -> 169642.8571 | L32: =SUM(L30:L31) -> 169642.8571 | M32: 169642.8571 | N32: 169642.8571 | O32: 169642.8571 | P32: 169642.8571 | Q32: 169642.8571 | R32: 169642.8571 | S32: 169642.8571 | T32: 169642.8571 | U32: 169642.8571 | V32: 169642.8571 | W32: 169642.8571 | X32: 169642.8571 | Y32: 169642.8571 | Z32: 169642.8571 | AA32: 169642.8571 | AB32: 169642.8571 | AC32: 169642.8571 | AD32: 169642.8571 | AE32: 169642.8571 | AF32: 169642.8571 | AG32: 169642.8571 | AH32: 169642.8571 | AI32: 169642.8571 | AJ32: 169642.8571 | AK32: 169642.8571 | AL32: 0 | AM32: 0 | AN32: 0 | AO32: 0 | AP32: 0 | AQ32: 0 | AR32: 0
C34: Buchwertentwicklung des Gebäudes
E36: Buchwert des Gebäudes zu Beginn des Jahres | G36: Euro | J36: =IF(J8 = 1, $F$28, I38) * J9 -> 4750000 | K36: =IF(K8 = 1, $F$28, J38) * K9 -> 4580357.143 | L36: =IF(L8 = 1, $F$28, K38) * L9 -> 4410714.286 | M36: =IF(M8 = 1, $F$28, L38) * M9 -> 4241071.429 | N36: =IF(N8 = 1, $F$28, M38) * N9 -> 4071428.571 | O36: =IF(O8 = 1, $F$28, N38) * O9 -> 3901785.714 | P36: =IF(P8 = 1, $F$28, O38) * P9 -> 3732142.857 | Q36: =IF(Q8 = 1, $F$28, P38) * Q9 -> 3562500 | R36: =IF(R8 = 1, $F$28, Q38) * R9 -> 3392857.143 | S36: =IF(S8 = 1, $F$28, R38) * S9 -> 3223214.286 | T36: =IF(T8 = 1, $F$28, S38) * T9 -> 3053571.429 | U36: =IF(U8 = 1, $F$28, T38) * U9 -> 2883928.571 | V36: =IF(V8 = 1, $F$28, U38) * V9 -> 2714285.714 | W36: =IF(W8 = 1, $F$28, V38) * W9 -> 2544642.857 | X36: =IF(X8 = 1, $F$28, W38) * X9 -> 2375000 | Y36: =IF(Y8 = 1, $F$28, X38) * Y9 -> 2205357.143 | Z36: =IF(Z8 = 1, $F$28, Y38) * Z9 -> 2035714.286 | AA36: =IF(AA8 = 1, $F$28, Z38) * AA9 -> 1866071.429 | AB36: =IF(AB8 = 1, $F$28, AA38) * AB9 -> 1696428.571 | AC36: =IF(AC8 = 1, $F$28, AB38) * AC9 -> 1526785.714 | AD36: =IF(AD8 = 1, $F$28, AC38) * AD9 -> 1357142.857 | AE36: =IF(AE8 = 1, $F$28, AD38) * AE9 -> 1187500 | AF36: =IF(AF8 = 1, $F$28, AE38) * AF9 -> 1017857.143 | AG36: =IF(AG8 = 1, $F$28, AF38) * AG9 -> 848214.2857 | AH36: =IF(AH8 = 1, $F$28, AG38) * AH9 -> 678571.4286 | AI36: =IF(AI8 = 1, $F$28, AH38) * AI9 -> 508928.5714 | AJ36: =IF(AJ8 = 1, $F$28, AI38) * AJ9 -> 339285.7143 | AK36: =IF(AK8 = 1, $F$28, AJ38) * AK9 -> 169642.8571 | AL36: =IF(AL8 = 1, $F$28, AK38) * AL9 -> 0 | AM36: =IF(AM8 = 1, $F$28, AL38) * AM9 -> 0 | AN36: =IF(AN8 = 1, $F$28, AM38) * AN9 -> 0 | AO36: =IF(AO8 = 1, $F$28, AN38) * AO9 -> 0 | AP36: =IF(AP8 = 1, $F$28, AO38) * AP9 -> 0 | AQ36: =IF(AQ8 = 1, $F$28, AP38) * AQ9 -> 0 | AR36: =IF(AR8 = 1, $F$28, AQ38) * AR9 -> 0
E37: =E32 -> Abschreibungsbetrag pro Jahr Gebäude planmäßig & außerplanmäßig mit Anpassung | G37: =G32 -> Euro | H37: =H32 -> 4750000 | J37: =J32 -> 169642.8571 | K37: =K32 -> 169642.8571 | L37: =L32 -> 169642.8571 | M37: 169642.8571 | N37: 169642.8571 | O37: 169642.8571 | P37: 169642.8571 | Q37: 169642.8571 | R37: 169642.8571 | S37: 169642.8571 | T37: 169642.8571 | U37: 169642.8571 | V37: 169642.8571 | W37: 169642.8571 | X37: 169642.8571 | Y37: 169642.8571 | Z37: 169642.8571 | AA37: 169642.8571 | AB37: 169642.8571 | AC37: 169642.8571 | AD37: 169642.8571 | AE37: 169642.8571 | AF37: 169642.8571 | AG37: 169642.8571 | AH37: 169642.8571 | AI37: 169642.8571 | AJ37: 169642.8571 | AK37: 169642.8571 | AL37: 0 | AM37: 0 | AN37: 0 | AO37: 0 | AP37: 0 | AQ37: 0 | AR37: 0
E38: Buchwert des Gebäudes Ende des Jahres | G38: Euro | J38: =J36 - J37 -> 4580357.143 | K38: =K36 - K37 -> 4410714.286 | L38: =L36 - L37 -> 4241071.429 | M38: 4071428.571 | N38: 3901785.714 | O38: 3732142.857 | P38: 3562500 | Q38: 3392857.143 | R38: 3223214.286 | S38: 3053571.429 | T38: 2883928.571 | U38: 2714285.714 | V38: 2544642.857 | W38: 2375000 | X38: 2205357.143 | Y38: 2035714.286 | Z38: 1866071.429 | AA38: 1696428.571 | AB38: 1526785.714 | AC38: 1357142.857 | AD38: 1187500 | AE38: 1017857.143 | AF38: 848214.2857 | AG38: 678571.4286 | AH38: 508928.5714 | AI38: 339285.7143 | AJ38: 169642.8571 | AK38: 3.492459655e-10 | AL38: 0 | AM38: 0 | AN38: 0 | AO38: 0 | AP38: 0 | AQ38: 0 | AR38: 0
B40: Sonderposten
E42: ='Generelle-Annahmen'!E$75 -> Restbuchwert Sonderposten | F42: ='Generelle-Annahmen'!I$75 -> 2000000 | G42: ='Generelle-Annahmen'!G$75 -> Euro
E43: ='Generelle-Annahmen'!E$76 -> Verbleibende Abschreibungsdauer Gebäude & Auflösung Sonderposten | F43: ='Generelle-Annahmen'!I$76 -> 28 | G43: ='Generelle-Annahmen'!G$76 -> Jahre
E44: ='Nichtlineare-Annahmen'!E$24 -> Außerplanmäßige Auflösung für "alten" Bestand Sonderposten | G44: ='Nichtlineare-Annahmen'!G$24 -> Euro | H44: ='Nichtlineare-Annahmen'!H$24 -> 0 | J44: ='Nichtlineare-Annahmen'!J$24 -> 0 | K44: ='Nichtlineare-Annahmen'!K$24 -> 0 | L44: ='Nichtlineare-Annahmen'!L$24 -> 0 | M44: ='Nichtlineare-Annahmen'!M$24 -> 0 | N44: ='Nichtlineare-Annahmen'!N$24 -> 0 | O44: ='Nichtlineare-Annahmen'!O$24 -> 0 | P44: ='Nichtlineare-Annahmen'!P$24 -> 0 | Q44: ='Nichtlineare-Annahmen'!Q$24 -> 0 | R44: ='Nichtlineare-Annahmen'!R$24 -> 0 | S44: ='Nichtlineare-Annahmen'!S$24 -> 0 | T44: ='Nichtlineare-Annahmen'!T$24 -> 0 | U44: ='Nichtlineare-Annahmen'!U$24 -> 0 | V44: ='Nichtlineare-Annahmen'!V$24 -> 0 | W44: ='Nichtlineare-Annahmen'!W$24 -> 0 | X44: ='Nichtlineare-Annahmen'!X$24 -> 0 | Y44: ='Nichtlineare-Annahmen'!Y$24 -> 0 | Z44: ='Nichtlineare-Annahmen'!Z$24 -> 0 | AA44: ='Nichtlineare-Annahmen'!AA$24 -> 0 | AB44: ='Nichtlineare-Annahmen'!AB$24 -> 0 | AC44: ='Nichtlineare-Annahmen'!AC$24 -> 0 | AD44: ='Nichtlineare-Annahmen'!AD$24 -> 0 | AE44: ='Nichtlineare-Annahmen'!AE$24 -> 0 | AF44: ='Nichtlineare-Annahmen'!AF$24 -> 0 | AG44: ='Nichtlineare-Annahmen'!AG$24 -> 0 | AH44: ='Nichtlineare-Annahmen'!AH$24 -> 0 | AI44: ='Nichtlineare-Annahmen'!AI$24 -> 0 | AJ44: ='Nichtlineare-Annahmen'!AJ$24 -> 0 | AK44: ='Nichtlineare-Annahmen'!AK$24 -> 0 | AL44: ='Nichtlineare-Annahmen'!AL$24 -> 0 | AM44: ='Nichtlineare-Annahmen'!AM$24 -> 0 | AN44: ='Nichtlineare-Annahmen'!AN$24 -> 0 | AO44: ='Nichtlineare-Annahmen'!AO$24 -> 0 | AP44: ='Nichtlineare-Annahmen'!AP$24 -> 0 | AQ44: ='Nichtlineare-Annahmen'!AQ$24 -> 0 | AR44: ='Nichtlineare-Annahmen'!AR$24 -> 0
E45: Planmäßig, linearer Auflösungsbetrag pro Jahr Sonderposten nach außerplanmäßiger Auflösung | G45: Euro | H45: =SUM(J45:AR45) -> 2000000 | J45: =MIN(($F42-SUM($I44:I45)) / MAX(1,$F43-SUM($I$10:I$10))*J$10,$F42-SUM($I44:I45,J44))*IF(SUM(J$9:$AR$9)=1,1/J$10,1) -> 71428.57143 | K45: =MIN(($F42-SUM($I44:J45)) / MAX(1,$F43-SUM($I$10:J$10))*K$10,$F42-SUM($I44:J45,K44))*IF(SUM(K$9:$AR$9)=1,1/K$10,1) -> 71428.57143 | L45: =MIN(($F42-SUM($I44:K45)) / MAX(1,$F43-SUM($I$10:K$10))*L$10,$F42-SUM($I44:K45,L44))*IF(SUM(L$9:$AR$9)=1,1/L$10,1) -> 71428.57143 | M45: =MIN(($F42-SUM($I44:L45)) / MAX(1,$F43-SUM($I$10:L$10))*M$10,$F42-SUM($I44:L45,M44))*IF(SUM(M$9:$AR$9)=1,1/M$10,1) -> 71428.57143 | N45: =MIN(($F42-SUM($I44:M45)) / MAX(1,$F43-SUM($I$10:M$10))*N$10,$F42-SUM($I44:M45,N44))*IF(SUM(N$9:$AR$9)=1,1/N$10,1) -> 71428.57143 | O45: =MIN(($F42-SUM($I44:N45)) / MAX(1,$F43-SUM($I$10:N$10))*O$10,$F42-SUM($I44:N45,O44))*IF(SUM(O$9:$AR$9)=1,1/O$10,1) -> 71428.57143 | P45: =MIN(($F42-SUM($I44:O45)) / MAX(1,$F43-SUM($I$10:O$10))*P$10,$F42-SUM($I44:O45,P44))*IF(SUM(P$9:$AR$9)=1,1/P$10,1) -> 71428.57143 | Q45: =MIN(($F42-SUM($I44:P45)) / MAX(1,$F43-SUM($I$10:P$10))*Q$10,$F42-SUM($I44:P45,Q44))*IF(SUM(Q$9:$AR$9)=1,1/Q$10,1) -> 71428.57143 | R45: =MIN(($F42-SUM($I44:Q45)) / MAX(1,$F43-SUM($I$10:Q$10))*R$10,$F42-SUM($I44:Q45,R44))*IF(SUM(R$9:$AR$9)=1,1/R$10,1) -> 71428.57143 | S45: =MIN(($F42-SUM($I44:R45)) / MAX(1,$F43-SUM($I$10:R$10))*S$10,$F42-SUM($I44:R45,S44))*IF(SUM(S$9:$AR$9)=1,1/S$10,1) -> 71428.57143 | T45: =MIN(($F42-SUM($I44:S45)) / MAX(1,$F43-SUM($I$10:S$10))*T$10,$F42-SUM($I44:S45,T44))*IF(SUM(T$9:$AR$9)=1,1/T$10,1) -> 71428.57143 | U45: =MIN(($F42-SUM($I44:T45)) / MAX(1,$F43-SUM($I$10:T$10))*U$10,$F42-SUM($I44:T45,U44))*IF(SUM(U$9:$AR$9)=1,1/U$10,1) -> 71428.57143 | V45: =MIN(($F42-SUM($I44:U45)) / MAX(1,$F43-SUM($I$10:U$10))*V$10,$F42-SUM($I44:U45,V44))*IF(SUM(V$9:$AR$9)=1,1/V$10,1) -> 71428.57143 | W45: =MIN(($F42-SUM($I44:V45)) / MAX(1,$F43-SUM($I$10:V$10))*W$10,$F42-SUM($I44:V45,W44))*IF(SUM(W$9:$AR$9)=1,1/W$10,1) -> 71428.57143 | X45: =MIN(($F42-SUM($I44:W45)) / MAX(1,$F43-SUM($I$10:W$10))*X$10,$F42-SUM($I44:W45,X44))*IF(SUM(X$9:$AR$9)=1,1/X$10,1) -> 71428.57143 | Y45: =MIN(($F42-SUM($I44:X45)) / MAX(1,$F43-SUM($I$10:X$10))*Y$10,$F42-SUM($I44:X45,Y44))*IF(SUM(Y$9:$AR$9)=1,1/Y$10,1) -> 71428.57143 | Z45: =MIN(($F42-SUM($I44:Y45)) / MAX(1,$F43-SUM($I$10:Y$10))*Z$10,$F42-SUM($I44:Y45,Z44))*IF(SUM(Z$9:$AR$9)=1,1/Z$10,1) -> 71428.57143 | AA45: =MIN(($F42-SUM($I44:Z45)) / MAX(1,$F43-SUM($I$10:Z$10))*AA$10,$F42-SUM($I44:Z45,AA44))*IF(SUM(AA$9:$AR$9)=1,1/AA$10,1) -> 71428.57143 | AB45: =MIN(($F42-SUM($I44:AA45)) / MAX(1,$F43-SUM($I$10:AA$10))*AB$10,$F42-SUM($I44:AA45,AB44))*IF(SUM(AB$9:$AR$9)=1,1/AB$10,1) -> 71428.57143 | AC45: =MIN(($F42-SUM($I44:AB45)) / MAX(1,$F43-SUM($I$10:AB$10))*AC$10,$F42-SUM($I44:AB45,AC44))*IF(SUM(AC$9:$AR$9)=1,1/AC$10,1) -> 71428.57143 | AD45: =MIN(($F42-SUM($I44:AC45)) / MAX(1,$F43-SUM($I$10:AC$10))*AD$10,$F42-SUM($I44:AC45,AD44))*IF(SUM(AD$9:$AR$9)=1,1/AD$10,1) -> 71428.57143 | AE45: =MIN(($F42-SUM($I44:AD45)) / MAX(1,$F43-SUM($I$10:AD$10))*AE$10,$F42-SUM($I44:AD45,AE44))*IF(SUM(AE$9:$AR$9)=1,1/AE$10,1) -> 71428.57143 | AF45: =MIN(($F42-SUM($I44:AE45)) / MAX(1,$F43-SUM($I$10:AE$10))*AF$10,$F42-SUM($I44:AE45,AF44))*IF(SUM(AF$9:$AR$9)=1,1/AF$10,1) -> 71428.57143 | AG45: =MIN(($F42-SUM($I44:AF45)) / MAX(1,$F43-SUM($I$10:AF$10))*AG$10,$F42-SUM($I44:AF45,AG44))*IF(SUM(AG$9:$AR$9)=1,1/AG$10,1) -> 71428.57143 | AH45: =MIN(($F42-SUM($I44:AG45)) / MAX(1,$F43-SUM($I$10:AG$10))*AH$10,$F42-SUM($I44:AG45,AH44))*IF(SUM(AH$9:$AR$9)=1,1/AH$10,1) -> 71428.57143 | AI45: =MIN(($F42-SUM($I44:AH45)) / MAX(1,$F43-SUM($I$10:AH$10))*AI$10,$F42-SUM($I44:AH45,AI44))*IF(SUM(AI$9:$AR$9)=1,1/AI$10,1) -> 71428.57143 | AJ45: =MIN(($F42-SUM($I44:AI45)) / MAX(1,$F43-SUM($I$10:AI$10))*AJ$10,$F42-SUM($I44:AI45,AJ44))*IF(SUM(AJ$9:$AR$9)=1,1/AJ$10,1) -> 71428.57143 | AK45: =MIN(($F42-SUM($I44:AJ45)) / MAX(1,$F43-SUM($I$10:AJ$10))*AK$10,$F42-SUM($I44:AJ45,AK44))*IF(SUM(AK$9:$AR$9)=1,1/AK$10,1) -> 71428.57143 | AL45: =MIN(($F42-SUM($I44:AK45)) / MAX(1,$F43-SUM($I$10:AK$10))*AL$10,$F42-SUM($I44:AK45,AL44))*IF(SUM(AL$9:$AR$9)=1,1/AL$10,1) -> 0 | AM45: =MIN(($F42-SUM($I44:AL45)) / MAX(1,$F43-SUM($I$10:AL$10))*AM$10,$F42-SUM($I44:AL45,AM44))*IF(SUM(AM$9:$AR$9)=1,1/AM$10,1) -> 0 | AN45: =MIN(($F42-SUM($I44:AM45)) / MAX(1,$F43-SUM($I$10:AM$10))*AN$10,$F42-SUM($I44:AM45,AN44))*IF(SUM(AN$9:$AR$9)=1,1/AN$10,1) -> 0 | AO45: =MIN(($F42-SUM($I44:AN45)) / MAX(1,$F43-SUM($I$10:AN$10))*AO$10,$F42-SUM($I44:AN45,AO44))*IF(SUM(AO$9:$AR$9)=1,1/AO$10,1) -> 0 | AP45: =MIN(($F42-SUM($I44:AO45)) / MAX(1,$F43-SUM($I$10:AO$10))*AP$10,$F42-SUM($I44:AO45,AP44))*IF(SUM(AP$9:$AR$9)=1,1/AP$10,1) -> 0 | AQ45: =MIN(($F42-SUM($I44:AP45)) / MAX(1,$F43-SUM($I$10:AP$10))*AQ$10,$F42-SUM($I44:AP45,AQ44))*IF(SUM(AQ$9:$AR$9)=1,1/AQ$10,1) -> 0 | AR45: =MIN(($F42-SUM($I44:AQ45)) / MAX(1,$F43-SUM($I$10:AQ$10))*AR$10,$F42-SUM($I44:AQ45,AR44))*IF(SUM(AR$9:$AR$9)=1,1/AR$10,1) -> 0
E46: Auflösungsbetrag pro Jahr Sonderposten planmäßig & außerplanmäßig mit Anpassung | G46: Euro | H46: =SUM(J46:AR46) -> 2000000 | J46: =SUM(J44:J45) -> 71428.57143 | K46: =SUM(K44:K45) -> 71428.57143 | L46: =SUM(L44:L45) -> 71428.57143 | M46: 71428.57143 | N46: 71428.57143 | O46: 71428.57143 | P46: 71428.57143 | Q46: 71428.57143 | R46: 71428.57143 | S46: 71428.57143 | T46: 71428.57143 | U46: 71428.57143 | V46: 71428.57143 | W46: 71428.57143 | X46: 71428.57143 | Y46: 71428.57143 | Z46: 71428.57143 | AA46: 71428.57143 | AB46: 71428.57143 | AC46: 71428.57143 | AD46: 71428.57143 | AE46: 71428.57143 | AF46: 71428.57143 | AG46: 71428.57143 | AH46: 71428.57143 | AI46: 71428.57143 | AJ46: 71428.57143 | AK46: 71428.57143 | AL46: 0 | AM46: 0 | AN46: 0 | AO46: 0 | AP46: 0 | AQ46: 0 | AR46: 0
C48: Buchwertentwicklung des Sonderpostens
E50: Buchwert des Sonderpostens zu Beginn des Jahres | G50: Euro | J50: =IF(J8 = 1, $F$42, I52) * J9 -> 2000000 | K50: =IF(K8 = 1, $F$42, J52) * K9 -> 1928571.429 | L50: =IF(L8 = 1, $F$42, K52) * L9 -> 1857142.857 | M50: =IF(M8 = 1, $F$42, L52) * M9 -> 1785714.286 | N50: =IF(N8 = 1, $F$42, M52) * N9 -> 1714285.714 | O50: =IF(O8 = 1, $F$42, N52) * O9 -> 1642857.143 | P50: =IF(P8 = 1, $F$42, O52) * P9 -> 1571428.571 | Q50: =IF(Q8 = 1, $F$42, P52) * Q9 -> 1500000 | R50: =IF(R8 = 1, $F$42, Q52) * R9 -> 1428571.429 | S50: =IF(S8 = 1, $F$42, R52) * S9 -> 1357142.857 | T50: =IF(T8 = 1, $F$42, S52) * T9 -> 1285714.286 | U50: =IF(U8 = 1, $F$42, T52) * U9 -> 1214285.714 | V50: =IF(V8 = 1, $F$42, U52) * V9 -> 1142857.143 | W50: =IF(W8 = 1, $F$42, V52) * W9 -> 1071428.571 | X50: =IF(X8 = 1, $F$42, W52) * X9 -> 1000000 | Y50: =IF(Y8 = 1, $F$42, X52) * Y9 -> 928571.4286 | Z50: =IF(Z8 = 1, $F$42, Y52) * Z9 -> 857142.8571 | AA50: =IF(AA8 = 1, $F$42, Z52) * AA9 -> 785714.2857 | AB50: =IF(AB8 = 1, $F$42, AA52) * AB9 -> 714285.7143 | AC50: =IF(AC8 = 1, $F$42, AB52) * AC9 -> 642857.1429 | AD50: =IF(AD8 = 1, $F$42, AC52) * AD9 -> 571428.5714 | AE50: =IF(AE8 = 1, $F$42, AD52) * AE9 -> 500000 | AF50: =IF(AF8 = 1, $F$42, AE52) * AF9 -> 428571.4286 | AG50: =IF(AG8 = 1, $F$42, AF52) * AG9 -> 357142.8571 | AH50: =IF(AH8 = 1, $F$42, AG52) * AH9 -> 285714.2857 | AI50: =IF(AI8 = 1, $F$42, AH52) * AI9 -> 214285.7143 | AJ50: =IF(AJ8 = 1, $F$42, AI52) * AJ9 -> 142857.1429 | AK50: =IF(AK8 = 1, $F$42, AJ52) * AK9 -> 71428.57143 | AL50: =IF(AL8 = 1, $F$42, AK52) * AL9 -> 0 | AM50: =IF(AM8 = 1, $F$42, AL52) * AM9 -> 0 | AN50: =IF(AN8 = 1, $F$42, AM52) * AN9 -> 0 | AO50: =IF(AO8 = 1, $F$42, AN52) * AO9 -> 0 | AP50: =IF(AP8 = 1, $F$42, AO52) * AP9 -> 0 | AQ50: =IF(AQ8 = 1, $F$42, AP52) * AQ9 -> 0 | AR50: =IF(AR8 = 1, $F$42, AQ52) * AR9 -> 0
E51: =E46 -> Auflösungsbetrag pro Jahr Sonderposten planmäßig & außerplanmäßig mit Anpassung | G51: =G46 -> Euro | H51: =H46 -> 2000000 | J51: =J46 -> 71428.57143 | K51: =K46 -> 71428.57143 | L51: =L46 -> 71428.57143 | M51: 71428.57143 | N51: 71428.57143 | O51: 71428.57143 | P51: 71428.57143 | Q51: 71428.57143 | R51: 71428.57143 | S51: 71428.57143 | T51: 71428.57143 | U51: 71428.57143 | V51: 71428.57143 | W51: 71428.57143 | X51: 71428.57143 | Y51: 71428.57143 | Z51: 71428.57143 | AA51: 71428.57143 | AB51: 71428.57143 | AC51: 71428.57143 | AD51: 71428.57143 | AE51: 71428.57143 | AF51: 71428.57143 | AG51: 71428.57143 | AH51: 71428.57143 | AI51: 71428.57143 | AJ51: 71428.57143 | AK51: 71428.57143 | AL51: 0 | AM51: 0 | AN51: 0 | AO51: 0 | AP51: 0 | AQ51: 0 | AR51: 0
E52: Buchwert des Sonderpostens Ende des Jahres | G52: Euro | J52: =J50 - J51 -> 1928571.429 | K52: =K50 - K51 -> 1857142.857 | L52: =L50 - L51 -> 1785714.286 | M52: 1714285.714 | N52: 1642857.143 | O52: 1571428.571 | P52: 1500000 | Q52: 1428571.429 | R52: 1357142.857 | S52: 1285714.286 | T52: 1214285.714 | U52: 1142857.143 | V52: 1071428.571 | W52: 1000000 | X52: 928571.4286 | Y52: 857142.8571 | Z52: 785714.2857 | AA52: 714285.7143 | AB52: 642857.1429 | AC52: 571428.5714 | AD52: 500000 | AE52: 428571.4286 | AF52: 357142.8571 | AG52: 285714.2857 | AH52: 214285.7143 | AI52: 142857.1429 | AJ52: 71428.57143 | AK52: 2.910383046e-10 | AL52: 0 | AM52: 0 | AN52: 0 | AO52: 0 | AP52: 0 | AQ52: 0 | AR52: 0
A54: BERECHNUNG BETRIEBSKOSTEN; BETRIEBSERTRÄGE; FINANZIERUNG
B56: Betriebskosten
E58: ='Generelle-Annahmen'!E$123 -> Wasser [6411] | F58: ='Generelle-Annahmen'!I$123 -> 0 | G58: ='Generelle-Annahmen'!G$123 -> Euro p.a.
E59: ='Generelle-Annahmen'!E$125 -> Energieverbräuche Heizzwecke & Strom (Eingabe IST Kosten = 1; Eingabe über Verbrauchsmenge x Kosten pro Einheit = 0) | F59: ='Generelle-Annahmen'!I$125 -> 1 | G59: ='Generelle-Annahmen'!G$125 -> IST-Kosten = 1; Eingabe über Verbrauchsmenge x Kosten pro Einheit = 0
E60: ='Generelle-Annahmen'!E$129 -> Energiekosten in EUR für Heizwärme [6413] (ermittelt über Verbrauchsmenge x Kosten pro Einheit) | F60: ='Generelle-Annahmen'!I$129 -> 0 | G60: ='Generelle-Annahmen'!G$129 -> Euro p.a.
E61: ='Generelle-Annahmen'!E$130 -> Energiekosten in EUR für Heizwärme [6413] (IST-Kosten) | F61: ='Generelle-Annahmen'!I$130 -> 35000 | G61: ='Generelle-Annahmen'!G$130 -> Euro p.a.
E62: ='Generelle-Annahmen'!E$134 -> Energiekosten in EUR für Strom [6415] (ermittelt über Verbrauchsmenge x Kosten pro Einheit) | F62: ='Generelle-Annahmen'!I$134 -> 0 | G62: ='Generelle-Annahmen'!G$134 -> Euro p.a.
E63: ='Generelle-Annahmen'!E$135 -> Energiekosten in EUR für Strom [6415] (IST-Kosten) | F63: ='Generelle-Annahmen'!I$135 -> 45000 | G63: ='Generelle-Annahmen'!G$135 -> Euro p.a.
E64: Gesamt-Energiekosten | F64: =IF(F59 = 1, F58 + F61 + F63, F58 + F60 + F62) -> 80000 | G64: Euro
E66: ='Generelle-Annahmen'!E$181 -> Risikofaktor Energiekosten für Positionen [6411; 6413; 6415] in Eigenregie | F66: ='Generelle-Annahmen'!I$181 -> 0.05 | G66: ='Generelle-Annahmen'!G$181 -> Prozent
E67: =Zeit!E$126 -> Preisindex Energiekosten für Positionen [6411; 6413; 6415] | G67: =Zeit!G$126 -> Index | J67: =Zeit!J$126 -> 1.02 | K67: =Zeit!K$126 -> 1.0404 | L67: =Zeit!L$126 -> 1.061208 | M67: =Zeit!M$126 -> 1.08243216 | N67: =Zeit!N$126 -> 1.104080803 | O67: =Zeit!O$126 -> 1.126162419 | P67: =Zeit!P$126 -> 1.148685668 | Q67: =Zeit!Q$126 -> 1.171659381 | R67: =Zeit!R$126 -> 1.195092569 | S67: =Zeit!S$126 -> 1.21899442 | T67: =Zeit!T$126 -> 1.243374308 | U67: =Zeit!U$126 -> 1.268241795 | V67: =Zeit!V$126 -> 1.29360663 | W67: =Zeit!W$126 -> 1.319478763 | X67: =Zeit!X$126 -> 1.345868338 | Y67: =Zeit!Y$126 -> 1.372785705 | Z67: =Zeit!Z$126 -> 1.400241419 | AA67: =Zeit!AA$126 -> 1.428246248 | AB67: =Zeit!AB$126 -> 1.456811173 | AC67: =Zeit!AC$126 -> 1.485947396 | AD67: =Zeit!AD$126 -> 1.515666344 | AE67: =Zeit!AE$126 -> 1.545979671 | AF67: =Zeit!AF$126 -> 1.576899264 | AG67: =Zeit!AG$126 -> 1.608437249 | AH67: =Zeit!AH$126 -> 1.640605994 | AI67: =Zeit!AI$126 -> 1.673418114 | AJ67: =Zeit!AJ$126 -> 1.706886477 | AK67: =Zeit!AK$126 -> 1.741024206 | AL67: =Zeit!AL$126 -> 1.77584469 | AM67: =Zeit!AM$126 -> 1.811361584 | AN67: =Zeit!AN$126 -> 1.847588816 | AO67: =Zeit!AO$126 -> 1.884540592 | AP67: =Zeit!AP$126 -> 1.922231404 | AQ67: =Zeit!AQ$126 -> 1.960676032 | AR67: =Zeit!AR$126 -> 1.999889553
E68: Energiekosten 0-Variante | G68: Euro | H68: =SUM(J68:AR68) -> 3174547.699 | J68: =IF( J9 = 1, $F$64 * ( 1 + $F$66), 0) * J67 * J10 -> 85680 | K68: =IF( K9 = 1, $F$64 * ( 1 + $F$66), 0) * K67 * K10 -> 87393.6 | L68: =IF( L9 = 1, $F$64 * ( 1 + $F$66), 0) * L67 * L10 -> 89141.472 | M68: 90924.30144 | N68: 92742.78747 | O68: 94597.64322 | P68: 96489.59608 | Q68: 98419.388 | R68: 100387.7758 | S68: 102395.5313 | T68: 104443.4419 | U68: 106532.3107 | V68: 108662.957 | W68: 110836.2161 | X68: 113052.9404 | Y68: 115313.9992 | Z68: 117620.2792 | AA68: 119972.6848 | AB68: 122372.1385 | AC68: 124819.5813 | AD68: 127315.9729 | AE68: 129862.2923 | AF68: 132459.5382 | AG68: 135108.729 | AH68: 137810.9035 | AI68: 140567.1216 | AJ68: 143378.464 | AK68: 146246.0333 | AL68: 0 | AM68: 0 | AN68: 0 | AO68: 0 | AP68: 0 | AQ68: 0 | AR68: 0
E70: ='Generelle-Annahmen'!E$109 -> Technisches Objektmanagement [6100] | F70: ='Generelle-Annahmen'!I$109 -> 0 | G70: ='Generelle-Annahmen'!G$109 -> Euro p.a.
E71: ='Generelle-Annahmen'!E$110 -> Bedienung, Inspektion & Wartung, wiederk. Prüf. [6310-6330] | F71: ='Generelle-Annahmen'!I$110 -> 0 | G71: ='Generelle-Annahmen'!G$110 -> Euro p.a.
E72: ='Generelle-Annahmen'!E$111 -> Abwassergebühren [6436] | F72: ='Generelle-Annahmen'!I$111 -> 0 | G72: ='Generelle-Annahmen'!G$111 -> Euro p.a.
E73: ='Generelle-Annahmen'!E$112 -> Entsorgung Müll [6430-6435] | F73: ='Generelle-Annahmen'!I$112 -> 0 | G73: ='Generelle-Annahmen'!G$112 -> Euro p.a.
E74: ='Generelle-Annahmen'!E$113 -> Reinigung & Pflege Gebäude [6510-6550] | F74: ='Generelle-Annahmen'!I$113 -> 30000 | G74: ='Generelle-Annahmen'!G$113 -> Euro p.a.
E75: ='Generelle-Annahmen'!E$114 -> Reinigung & Pflege Außenanlagen [6570, 6580] | F75: ='Generelle-Annahmen'!I$114 -> 0 | G75: ='Generelle-Annahmen'!G$114 -> Euro p.a.
E76: ='Generelle-Annahmen'!E$115 -> Schutz- & Sicherheitsdienste [6600] | F76: ='Generelle-Annahmen'!I$115 -> 0 | G76: ='Generelle-Annahmen'!G$115 -> Euro p.a.
E77: ='Generelle-Annahmen'!E$116 -> Objektverwaltung & Controlling (kaufm. Objektmgt.) [6700] | F77: ='Generelle-Annahmen'!I$116 -> 0 | G77: ='Generelle-Annahmen'!G$116 -> Euro p.a.
E78: ='Generelle-Annahmen'!E$117 -> Gebühren, Abgaben & Versicherungen [6755,6756] | F78: ='Generelle-Annahmen'!I$117 -> 0 | G78: ='Generelle-Annahmen'!G$117 -> Euro p.a.
E79: ='Generelle-Annahmen'!E$118 -> Sonstiges / Bedienen / Inspektion / Wartung | F79: ='Generelle-Annahmen'!I$118 -> 25000 | G79: ='Generelle-Annahmen'!G$118 -> Euro p.a.
E80: Gesamt-Betriebskosten | F80: =SUM(F70:F79) -> 55000 | G80: Euro
E82: ='Generelle-Annahmen'!E$182 -> Risikofaktor Betriebskosten für alle übrigen Positionen in Eigenregie | F82: ='Generelle-Annahmen'!I$182 -> 0.05 | G82: ='Generelle-Annahmen'!G$182 -> Prozent
E83: =Zeit!E$127 -> Preisindex Betriebskosten für alle übrigen Positionen | G83: =Zeit!G$127 -> Index | J83: =Zeit!J$127 -> 1.02 | K83: =Zeit!K$127 -> 1.0404 | L83: =Zeit!L$127 -> 1.061208 | M83: =Zeit!M$127 -> 1.08243216 | N83: =Zeit!N$127 -> 1.104080803 | O83: =Zeit!O$127 -> 1.126162419 | P83: =Zeit!P$127 -> 1.148685668 | Q83: =Zeit!Q$127 -> 1.171659381 | R83: =Zeit!R$127 -> 1.195092569 | S83: =Zeit!S$127 -> 1.21899442 | T83: =Zeit!T$127 -> 1.243374308 | U83: =Zeit!U$127 -> 1.268241795 | V83: =Zeit!V$127 -> 1.29360663 | W83: =Zeit!W$127 -> 1.319478763 | X83: =Zeit!X$127 -> 1.345868338 | Y83: =Zeit!Y$127 -> 1.372785705 | Z83: =Zeit!Z$127 -> 1.400241419 | AA83: =Zeit!AA$127 -> 1.428246248 | AB83: =Zeit!AB$127 -> 1.456811173 | AC83: =Zeit!AC$127 -> 1.485947396 | AD83: =Zeit!AD$127 -> 1.515666344 | AE83: =Zeit!AE$127 -> 1.545979671 | AF83: =Zeit!AF$127 -> 1.576899264 | AG83: =Zeit!AG$127 -> 1.608437249 | AH83: =Zeit!AH$127 -> 1.640605994 | AI83: =Zeit!AI$127 -> 1.673418114 | AJ83: =Zeit!AJ$127 -> 1.706886477 | AK83: =Zeit!AK$127 -> 1.741024206 | AL83: =Zeit!AL$127 -> 1.77584469 | AM83: =Zeit!AM$127 -> 1.811361584 | AN83: =Zeit!AN$127 -> 1.847588816 | AO83: =Zeit!AO$127 -> 1.884540592 | AP83: =Zeit!AP$127 -> 1.922231404 | AQ83: =Zeit!AQ$127 -> 1.960676032 | AR83: =Zeit!AR$127 -> 1.999889553
E84: Betriebskosten | G84: Euro | H84: =SUM(J84:AR84) -> 2182501.543 | J84: =IF( J9 =1,$F$80 * ( 1 + $F$82), 0) * J83 * J10 -> 58905 | K84: =IF( K9 =1,$F$80 * ( 1 + $F$82), 0) * K83 * K10 -> 60083.1 | L84: =IF( L9 =1,$F$80 * ( 1 + $F$82), 0) * L83 * L10 -> 61284.762 | M84: 62510.45724 | N84: 63760.66638 | O84: 65035.87971 | P84: 66336.59731 | Q84: 67663.32925 | R84: 69016.59584 | S84: 70396.92775 | T84: 71804.86631 | U84: 73240.96364 | V84: 74705.78291 | W84: 76199.89857 | X84: 77723.89654 | Y84: 79278.37447 | Z84: 80863.94196 | AA84: 82481.2208 | AB84: 84130.84521 | AC84: 85813.46212 | AD84: 87529.73136 | AE84: 89280.32599 | AF84: 91065.93251 | AG84: 92887.25116 | AH84: 94744.99618 | AI84: 96639.8961 | AJ84: 98572.69403 | AK84: 100544.1479 | AL84: 0 | AM84: 0 | AN84: 0 | AO84: 0 | AP84: 0 | AQ84: 0 | AR84: 0
E86: ='Generelle-Annahmen'!E$119 -> Instandsetzungskosten - gleichmäßige Verteilung [6340] | F86: ='Generelle-Annahmen'!I$119 -> 27500 | G86: ='Generelle-Annahmen'!G$119 -> Euro p.a.
E87: ='Nichtlineare-Annahmen'!E$26 -> Nichtlineare Instandhaltung [6340] | G87: ='Nichtlineare-Annahmen'!G$26 -> Euro | H87: ='Nichtlineare-Annahmen'!H$26 -> 750000 | J87: ='Nichtlineare-Annahmen'!J$26 -> 75000 | K87: ='Nichtlineare-Annahmen'!K$26 -> 0 | L87: ='Nichtlineare-Annahmen'!L$26 -> 525000 | M87: ='Nichtlineare-Annahmen'!M$26 -> 0 | N87: ='Nichtlineare-Annahmen'!N$26 -> 150000 | O87: ='Nichtlineare-Annahmen'!O$26 -> 0 | P87: ='Nichtlineare-Annahmen'!P$26 -> 0 | Q87: ='Nichtlineare-Annahmen'!Q$26 -> 0 | R87: ='Nichtlineare-Annahmen'!R$26 -> 0 | S87: ='Nichtlineare-Annahmen'!S$26 -> 0 | T87: ='Nichtlineare-Annahmen'!T$26 -> 0 | U87: ='Nichtlineare-Annahmen'!U$26 -> 0 | V87: ='Nichtlineare-Annahmen'!V$26 -> 0 | W87: ='Nichtlineare-Annahmen'!W$26 -> 0 | X87: ='Nichtlineare-Annahmen'!X$26 -> 0 | Y87: ='Nichtlineare-Annahmen'!Y$26 -> 0 | Z87: ='Nichtlineare-Annahmen'!Z$26 -> 0 | AA87: ='Nichtlineare-Annahmen'!AA$26 -> 0 | AB87: ='Nichtlineare-Annahmen'!AB$26 -> 0 | AC87: ='Nichtlineare-Annahmen'!AC$26 -> 0 | AD87: ='Nichtlineare-Annahmen'!AD$26 -> 0 | AE87: ='Nichtlineare-Annahmen'!AE$26 -> 0 | AF87: ='Nichtlineare-Annahmen'!AF$26 -> 0 | AG87: ='Nichtlineare-Annahmen'!AG$26 -> 0 | AH87: ='Nichtlineare-Annahmen'!AH$26 -> 0 | AI87: ='Nichtlineare-Annahmen'!AI$26 -> 0 | AJ87: ='Nichtlineare-Annahmen'!AJ$26 -> 0 | AK87: ='Nichtlineare-Annahmen'!AK$26 -> 0 | AL87: ='Nichtlineare-Annahmen'!AL$26 -> 0 | AM87: ='Nichtlineare-Annahmen'!AM$26 -> 0 | AN87: ='Nichtlineare-Annahmen'!AN$26 -> 0 | AO87: ='Nichtlineare-Annahmen'!AO$26 -> 0 | AP87: ='Nichtlineare-Annahmen'!AP$26 -> 0 | AQ87: ='Nichtlineare-Annahmen'!AQ$26 -> 0 | AR87: ='Nichtlineare-Annahmen'!AR$26 -> 0
E88: ='Generelle-Annahmen'!E183 -> Risikofaktor Instandhaltungskosten für Positionen [6340] in Eigenregie | F88: ='Generelle-Annahmen'!I183 -> 0.05 | G88: ='Generelle-Annahmen'!G183 -> Prozent
E89: =Zeit!E128 -> Preisindex Instandhaltungskosten für Positionen [6340] | G89: =Zeit!G128 -> Index | J89: =Zeit!J128 -> 1.02 | K89: =Zeit!K128 -> 1.0404 | L89: =Zeit!L128 -> 1.061208 | M89: =Zeit!M128 -> 1.08243216 | N89: =Zeit!N128 -> 1.104080803 | O89: =Zeit!O128 -> 1.126162419 | P89: =Zeit!P128 -> 1.148685668 | Q89: =Zeit!Q128 -> 1.171659381 | R89: =Zeit!R128 -> 1.195092569 | S89: =Zeit!S128 -> 1.21899442 | T89: =Zeit!T128 -> 1.243374308 | U89: =Zeit!U128 -> 1.268241795 | V89: =Zeit!V128 -> 1.29360663 | W89: =Zeit!W128 -> 1.319478763 | X89: =Zeit!X128 -> 1.345868338 | Y89: =Zeit!Y128 -> 1.372785705 | Z89: =Zeit!Z128 -> 1.400241419 | AA89: =Zeit!AA128 -> 1.428246248 | AB89: =Zeit!AB128 -> 1.456811173 | AC89: =Zeit!AC128 -> 1.485947396 | AD89: =Zeit!AD128 -> 1.515666344 | AE89: =Zeit!AE128 -> 1.545979671 | AF89: =Zeit!AF128 -> 1.576899264 | AG89: =Zeit!AG128 -> 1.608437249 | AH89: =Zeit!AH128 -> 1.640605994 | AI89: =Zeit!AI128 -> 1.673418114 | AJ89: =Zeit!AJ128 -> 1.706886477 | AK89: =Zeit!AK128 -> 1.741024206 | AL89: =Zeit!AL128 -> 1.77584469 | AM89: =Zeit!AM128 -> 1.811361584 | AN89: =Zeit!AN128 -> 1.847588816 | AO89: =Zeit!AO128 -> 1.884540592 | AP89: =Zeit!AP128 -> 1.922231404 | AQ89: =Zeit!AQ128 -> 1.960676032 | AR89: =Zeit!AR128 -> 1.999889553
E90: Instandhaltungskosten | G90: Euro | H90: =SUM(J90:AR90) -> 1930459.408 | J90: =IF( J9 =1,($F$86 * J10 + J87)* ( 1 + $F$88), 0) * J89 -> 109777.5 | K90: =IF( K9 =1,($F$86 * K10 + K87)* ( 1 + $F$88), 0) * K89 -> 30041.55 | L90: =IF( L9 =1,($F$86 * L10 + L87)* ( 1 + $F$88), 0) * L89 -> 615633.291 | M90: 31255.22862 | N90: 205773.0597 | O90: 32517.93986 | P90: 33168.29865 | Q90: 33831.66463 | R90: 34508.29792 | S90: 35198.46388 | T90: 35902.43315 | U90: 36620.48182 | V90: 37352.89145 | W90: 38099.94928 | X90: 38861.94827 | Y90: 39639.18723 | Z90: 40431.97098 | AA90: 41240.6104 | AB90: 42065.42261 | AC90: 42906.73106 | AD90: 43764.86568 | AE90: 44640.16299 | AF90: 45532.96625 | AG90: 46443.62558 | AH90: 47372.49809 | AI90: 48319.94805 | AJ90: 49286.34701 | AK90: 50272.07395 | AL90: 0 | AM90: 0 | AN90: 0 | AO90: 0 | AP90: 0 | AQ90: 0 | AR90: 0
E92: =E68 -> Energiekosten 0-Variante | G92: =G68 -> Euro | H92: 3174547.699 | J92: =J68 -> 85680 | K92: =K68 -> 87393.6 | L92: =L68 -> 89141.472 | M92: 90924.30144 | N92: 92742.78747 | O92: 94597.64322 | P92: 96489.59608 | Q92: 98419.388 | R92: 100387.7758 | S92: 102395.5313 | T92: 104443.4419 | U92: 106532.3107 | V92: 108662.957 | W92: 110836.2161 | X92: 113052.9404 | Y92: 115313.9992 | Z92: 117620.2792 | AA92: 119972.6848 | AB92: 122372.1385 | AC92: 124819.5813 | AD92: 127315.9729 | AE92: 129862.2923 | AF92: 132459.5382 | AG92: 135108.729 | AH92: 137810.9035 | AI92: 140567.1216 | AJ92: 143378.464 | AK92: 146246.0333 | AL92: 0 | AM92: 0 | AN92: 0 | AO92: 0 | AP92: 0 | AQ92: 0 | AR92: 0
E93: =E84 -> Betriebskosten | G93: =G84 -> Euro | H93: 2182501.543 | J93: =J84 -> 58905 | K93: 60083.1 | L93: =L84 -> 61284.762 | M93: 62510.45724 | N93: 63760.66638 | O93: 65035.87971 | P93: 66336.59731 | Q93: 67663.32925 | R93: 69016.59584 | S93: 70396.92775 | T93: 71804.86631 | U93: 73240.96364 | V93: 74705.78291 | W93: 76199.89857 | X93: 77723.89654 | Y93: 79278.37447 | Z93: 80863.94196 | AA93: 82481.2208 | AB93: 84130.84521 | AC93: 85813.46212 | AD93: 87529.73136 | AE93: 89280.32599 | AF93: 91065.93251 | AG93: 92887.25116 | AH93: 94744.99618 | AI93: 96639.8961 | AJ93: 98572.69403 | AK93: 100544.1479 | AL93: 0 | AM93: 0 | AN93: 0 | AO93: 0 | AP93: 0 | AQ93: 0 | AR93: 0
E94: =E90 -> Instandhaltungskosten | G94: =G90 -> Euro | H94: 1930459.408 | J94: =J90 -> 109777.5 | K94: 30041.55 | L94: =L90 -> 615633.291 | M94: 31255.22862 | N94: 205773.0597 | O94: 32517.93986 | P94: 33168.29865 | Q94: 33831.66463 | R94: 34508.29792 | S94: 35198.46388 | T94: 35902.43315 | U94: 36620.48182 | V94: 37352.89145 | W94: 38099.94928 | X94: 38861.94827 | Y94: 39639.18723 | Z94: 40431.97098 | AA94: 41240.6104 | AB94: 42065.42261 | AC94: 42906.73106 | AD94: 43764.86568 | AE94: 44640.16299 | AF94: 45532.96625 | AG94: 46443.62558 | AH94: 47372.49809 | AI94: 48319.94805 | AJ94: 49286.34701 | AK94: 50272.07395 | AL94: 0 | AM94: 0 | AN94: 0 | AO94: 0 | AP94: 0 | AQ94: 0 | AR94: 0
E95: Gesamtbetriebskosten 0-Variante | G95: Euro | H95: =SUM(J95:AR95) -> 7287508.651 | J95: =SUM(J92:J94) -> 254362.5 | K95: =SUM(K92:K94) -> 177518.25 | L95: =SUM(L92:L94) -> 766059.525 | M95: 184689.9873 | N95: 362276.5136 | O95: 192151.4628 | P95: 195994.492 | Q95: 199914.3819 | R95: 203912.6695 | S95: 207990.9229 | T95: 212150.7414 | U95: 216393.7562 | V95: 220721.6313 | W95: 225136.0639 | X95: 229638.7852 | Y95: 234231.5609 | Z95: 238916.1921 | AA95: 243694.516 | AB95: 248568.4063 | AC95: 253539.7744 | AD95: 258610.5699 | AE95: 263782.7813 | AF95: 269058.437 | AG95: 274439.6057 | AH95: 279928.3978 | AI95: 285526.9658 | AJ95: 291237.5051 | AK95: 297062.2552 | AL95: 0 | AM95: 0 | AN95: 0 | AO95: 0 | AP95: 0 | AQ95: 0 | AR95: 0
B97: Personaleinsatz der Verwaltung
E99: ='Generelle-Annahmen'!E$173 -> Personalkosten für Gebäudemanagement | F99: ='Generelle-Annahmen'!I$173 -> 20000 | G99: ='Generelle-Annahmen'!G$173 -> Euro p.a.
E100: ='Generelle-Annahmen'!E$174 -> Personalkosten für Gebäude | F100: ='Generelle-Annahmen'!I$174 -> 12000 | G100: ='Generelle-Annahmen'!G$174 -> Euro p.a.
E101: ='Generelle-Annahmen'!E$175 -> Arbeitsplatzbezogene Sachkosten | F101: ='Generelle-Annahmen'!I$175 -> 1000 | G101: ='Generelle-Annahmen'!G$175 -> Euro p.a.
E102: ='Generelle-Annahmen'!E$187 -> Risikofaktor Personaleinsatz Verwaltung | F102: ='Generelle-Annahmen'!I$187 -> 0.05 | G102: ='Generelle-Annahmen'!G$187 -> Prozent
E103: =Zeit!E$127 -> Preisindex Betriebskosten für alle übrigen Positionen | G103: =Zeit!G$127 -> Index | J103: =Zeit!J$127 -> 1.02 | K103: =Zeit!K$127 -> 1.0404 | L103: =Zeit!L$127 -> 1.061208 | M103: =Zeit!M$127 -> 1.08243216 | N103: =Zeit!N$127 -> 1.104080803 | O103: =Zeit!O$127 -> 1.126162419 | P103: =Zeit!P$127 -> 1.148685668 | Q103: =Zeit!Q$127 -> 1.171659381 | R103: =Zeit!R$127 -> 1.195092569 | S103: =Zeit!S$127 -> 1.21899442 | T103: =Zeit!T$127 -> 1.243374308 | U103: =Zeit!U$127 -> 1.268241795 | V103: =Zeit!V$127 -> 1.29360663 | W103: =Zeit!W$127 -> 1.319478763 | X103: =Zeit!X$127 -> 1.345868338 | Y103: =Zeit!Y$127 -> 1.372785705 | Z103: =Zeit!Z$127 -> 1.400241419 | AA103: =Zeit!AA$127 -> 1.428246248 | AB103: =Zeit!AB$127 -> 1.456811173 | AC103: =Zeit!AC$127 -> 1.485947396 | AD103: =Zeit!AD$127 -> 1.515666344 | AE103: =Zeit!AE$127 -> 1.545979671 | AF103: =Zeit!AF$127 -> 1.576899264 | AG103: =Zeit!AG$127 -> 1.608437249 | AH103: =Zeit!AH$127 -> 1.640605994 | AI103: =Zeit!AI$127 -> 1.673418114 | AJ103: =Zeit!AJ$127 -> 1.706886477 | AK103: =Zeit!AK$127 -> 1.741024206 | AL103: =Zeit!AL$127 -> 1.77584469 | AM103: =Zeit!AM$127 -> 1.811361584 | AN103: =Zeit!AN$127 -> 1.847588816 | AO103: =Zeit!AO$127 -> 1.884540592 | AP103: =Zeit!AP$127 -> 1.922231404 | AQ103: =Zeit!AQ$127 -> 1.960676032 | AR103: =Zeit!AR$127 -> 1.999889553
E104: =E99 -> Personalkosten für Gebäudemanagement | G104: Euro | H104: =SUM(J104:AR104) -> 793636.9248 | J104: =$F$99 *J9 * J10 * (1 + $F$102) *J$103 -> 21420 | K104: =$F$99 *K9 * K10 * (1 + $F$102) *K$103 -> 21848.4 | L104: =$F$99 *L9 * L10 * (1 + $F$102) *L$103 -> 22285.368 | M104: 22731.07536 | N104: 23185.69687 | O104: 23649.4108 | P104: 24122.39902 | Q104: 24604.847 | R104: 25096.94394 | S104: 25598.88282 | T104: 26110.86048 | U104: 26633.07769 | V104: 27165.73924 | W104: 27709.05402 | X104: 28263.2351 | Y104: 28828.49981 | Z104: 29405.0698 | AA104: 29993.1712 | AB104: 30593.03462 | AC104: 31204.89532 | AD104: 31828.99322 | AE104: 32465.57309 | AF104: 33114.88455 | AG104: 33777.18224 | AH104: 34452.72588 | AI104: 35141.7804 | AJ104: 35844.61601 | AK104: 36561.50833 | AL104: 0 | AM104: 0 | AN104: 0 | AO104: 0 | AP104: 0 | AQ104: 0 | AR104: 0
E105: =E100 -> Personalkosten für Gebäude | G105: Euro | H105: =SUM(J105:AR105) -> 476182.1549 | J105: =$F$100 *J9 * J10 * (1 + $F$102) *J$103 -> 12852 | K105: =$F$100 *K9 * K10 * (1 + $F$102) *K$103 -> 13109.04 | L105: =$F$100 *L9 * L10 * (1 + $F$102) *L$103 -> 13371.2208 | M105: 13638.64522 | N105: 13911.41812 | O105: 14189.64648 | P105: 14473.43941 | Q105: 14762.9082 | R105: 15058.16636 | S105: 15359.32969 | T105: 15666.51629 | U105: 15979.84661 | V105: 16299.44354 | W105: 16625.43241 | X105: 16957.94106 | Y105: 17297.09988 | Z105: 17643.04188 | AA105: 17995.90272 | AB105: 18355.82077 | AC105: 18722.93719 | AD105: 19097.39593 | AE105: 19479.34385 | AF105: 19868.93073 | AG105: 20266.30934 | AH105: 20671.63553 | AI105: 21085.06824 | AJ105: 21506.76961 | AK105: 21936.905 | AL105: 0 | AM105: 0 | AN105: 0 | AO105: 0 | AP105: 0 | AQ105: 0 | AR105: 0
E106: =E101 -> Arbeitsplatzbezogene Sachkosten | G106: Euro | H106: =SUM(J106:AR106) -> 39681.84624 | J106: =$F$101 *J9 * J10 * (1 + $F$102) *J$103 -> 1071 | K106: =$F$101 *K9 * K10 * (1 + $F$102) *K$103 -> 1092.42 | L106: =$F$101 *L9 * L10 * (1 + $F$102) *L$103 -> 1114.2684 | M106: 1136.553768 | N106: 1159.284843 | O106: 1182.47054 | P106: 1206.119951 | Q106: 1230.24235 | R106: 1254.847197 | S106: 1279.944141 | T106: 1305.543024 | U106: 1331.653884 | V106: 1358.286962 | W106: 1385.452701 | X106: 1413.161755 | Y106: 1441.42499 | Z106: 1470.25349 | AA106: 1499.65856 | AB106: 1529.651731 | AC106: 1560.244766 | AD106: 1591.449661 | AE106: 1623.278654 | AF106: 1655.744227 | AG106: 1688.859112 | AH106: 1722.636294 | AI106: 1757.08902 | AJ106: 1792.2308 | AK106: 1828.075416 | AL106: 0 | AM106: 0 | AN106: 0 | AO106: 0 | AP106: 0 | AQ106: 0 | AR106: 0
E107: Gesamtkosten Personaleinsatz Verwaltung | G107: Euro | H107: =SUM(J107:AR107) -> 1309500.926 | J107: =SUM(J104:J106) -> 35343 | K107: =SUM(K104:K106) -> 36049.86 | L107: =SUM(L104:L106) -> 36770.8572 | M107: 37506.27434 | N107: 38256.39983 | O107: 39021.52783 | P107: 39801.95838 | Q107: 40597.99755 | R107: 41409.9575 | S107: 42238.15665 | T107: 43082.91979 | U107: 43944.57818 | V107: 44823.46975 | W107: 45719.93914 | X107: 46634.33792 | Y107: 47567.02468 | Z107: 48518.36518 | AA107: 49488.73248 | AB107: 50478.50713 | AC107: 51488.07727 | AD107: 52517.83882 | AE107: 53568.19559 | AF107: 54639.5595 | AG107: 55732.35069 | AH107: 56846.99771 | AI107: 57983.93766 | AJ107: 59143.61642 | AK107: 60326.48874 | AL107: 0 | AM107: 0 | AN107: 0 | AO107: 0 | AP107: 0 | AQ107: 0 | AR107: 0
B109: Mieterträge
E111: ='Generelle-Annahmen'!E$193 -> Mieterträge planmäßig oder nichtlinear einstellen (planmäßig = 1; nichtlinear = 0) | F111: ='Generelle-Annahmen'!I$193 -> 0 | G111: ='Generelle-Annahmen'!G$193 -> planmäßig = 1; nichtlinear = 0
E112: ='Generelle-Annahmen'!E$194 -> Mieterträge | F112: ='Generelle-Annahmen'!I$194 -> 0 | G112: ='Generelle-Annahmen'!G$194 -> Euro p.a.
E113: ='Nichtlineare-Annahmen'!E$28 -> Nichtlineare Mieterträge | G113: ='Nichtlineare-Annahmen'!G$28 -> Euro | H113: ='Nichtlineare-Annahmen'!H$28 -> 0 | J113: ='Nichtlineare-Annahmen'!J$28 -> 0 | K113: ='Nichtlineare-Annahmen'!K$28 -> 0 | L113: ='Nichtlineare-Annahmen'!L$28 -> 0 | M113: ='Nichtlineare-Annahmen'!M$28 -> 0 | N113: ='Nichtlineare-Annahmen'!N$28 -> 0 | O113: ='Nichtlineare-Annahmen'!O$28 -> 0 | P113: ='Nichtlineare-Annahmen'!P$28 -> 0 | Q113: ='Nichtlineare-Annahmen'!Q$28 -> 0 | R113: ='Nichtlineare-Annahmen'!R$28 -> 0 | S113: ='Nichtlineare-Annahmen'!S$28 -> 0 | T113: ='Nichtlineare-Annahmen'!T$28 -> 0 | U113: ='Nichtlineare-Annahmen'!U$28 -> 0 | V113: ='Nichtlineare-Annahmen'!V$28 -> 0 | W113: ='Nichtlineare-Annahmen'!W$28 -> 0 | X113: ='Nichtlineare-Annahmen'!X$28 -> 0 | Y113: ='Nichtlineare-Annahmen'!Y$28 -> 0 | Z113: ='Nichtlineare-Annahmen'!Z$28 -> 0 | AA113: ='Nichtlineare-Annahmen'!AA$28 -> 0 | AB113: ='Nichtlineare-Annahmen'!AB$28 -> 0 | AC113: ='Nichtlineare-Annahmen'!AC$28 -> 0 | AD113: ='Nichtlineare-Annahmen'!AD$28 -> 0 | AE113: ='Nichtlineare-Annahmen'!AE$28 -> 0 | AF113: ='Nichtlineare-Annahmen'!AF$28 -> 0 | AG113: ='Nichtlineare-Annahmen'!AG$28 -> 0 | AH113: ='Nichtlineare-Annahmen'!AH$28 -> 0 | AI113: ='Nichtlineare-Annahmen'!AI$28 -> 0 | AJ113: ='Nichtlineare-Annahmen'!AJ$28 -> 0 | AK113: ='Nichtlineare-Annahmen'!AK$28 -> 0 | AL113: ='Nichtlineare-Annahmen'!AL$28 -> 0 | AM113: ='Nichtlineare-Annahmen'!AM$28 -> 0 | AN113: ='Nichtlineare-Annahmen'!AN$28 -> 0 | AO113: ='Nichtlineare-Annahmen'!AO$28 -> 0 | AP113: ='Nichtlineare-Annahmen'!AP$28 -> 0 | AQ113: ='Nichtlineare-Annahmen'!AQ$28 -> 0 | AR113: ='Nichtlineare-Annahmen'!AR$28 -> 0
E114: ='Generelle-Annahmen'!E$188 -> Risikofaktor Mieterträge | F114: ='Generelle-Annahmen'!I$188 -> 0 | G114: ='Generelle-Annahmen'!G$188 -> Prozent
E115: =Zeit!E$129 -> Preisindex Mieterträge & Mietaufwände | G115: =Zeit!G$129 -> Index | J115: =Zeit!J$129 -> 1.02 | K115: =Zeit!K$129 -> 1.0404 | L115: =Zeit!L$129 -> 1.061208 | M115: =Zeit!M$129 -> 1.08243216 | N115: =Zeit!N$129 -> 1.104080803 | O115: =Zeit!O$129 -> 1.126162419 | P115: =Zeit!P$129 -> 1.148685668 | Q115: =Zeit!Q$129 -> 1.171659381 | R115: =Zeit!R$129 -> 1.195092569 | S115: =Zeit!S$129 -> 1.21899442 | T115: =Zeit!T$129 -> 1.243374308 | U115: =Zeit!U$129 -> 1.268241795 | V115: =Zeit!V$129 -> 1.29360663 | W115: =Zeit!W$129 -> 1.319478763 | X115: =Zeit!X$129 -> 1.345868338 | Y115: =Zeit!Y$129 -> 1.372785705 | Z115: =Zeit!Z$129 -> 1.400241419 | AA115: =Zeit!AA$129 -> 1.428246248 | AB115: =Zeit!AB$129 -> 1.456811173 | AC115: =Zeit!AC$129 -> 1.485947396 | AD115: =Zeit!AD$129 -> 1.515666344 | AE115: =Zeit!AE$129 -> 1.545979671 | AF115: =Zeit!AF$129 -> 1.576899264 | AG115: =Zeit!AG$129 -> 1.608437249 | AH115: =Zeit!AH$129 -> 1.640605994 | AI115: =Zeit!AI$129 -> 1.673418114 | AJ115: =Zeit!AJ$129 -> 1.706886477 | AK115: =Zeit!AK$129 -> 1.741024206 | AL115: =Zeit!AL$129 -> 1.77584469 | AM115: =Zeit!AM$129 -> 1.811361584 | AN115: =Zeit!AN$129 -> 1.847588816 | AO115: =Zeit!AO$129 -> 1.884540592 | AP115: =Zeit!AP$129 -> 1.922231404 | AQ115: =Zeit!AQ$129 -> 1.960676032 | AR115: =Zeit!AR$129 -> 1.999889553
E116: Mieterträge 0-Variante | G116: Euro | H116: =SUM(J116:AR116) -> 0 | J116: =IF($F$111 = 1, $F$112 * (1 - $F$114) *J115 * J9 * J10, J113 *J9 * (1 - $F$114) * J115) -> 0 | K116: =IF($F$111 = 1, $F$112 * (1 - $F$114) *K115 * K9 * K10, K113 *K9 * (1 - $F$114) * K115) -> 0 | L116: =IF($F$111 = 1, $F$112 * (1 - $F$114) *L115 * L9 * L10, L113 *L9 * (1 - $F$114) * L115) -> 0 | M116: 0 | N116: 0 | O116: 0 | P116: 0 | Q116: 0 | R116: 0 | S116: 0 | T116: 0 | U116: 0 | V116: 0 | W116: 0 | X116: 0 | Y116: 0 | Z116: 0 | AA116: 0 | AB116: 0 | AC116: 0 | AD116: 0 | AE116: 0 | AF116: 0 | AG116: 0 | AH116: 0 | AI116: 0 | AJ116: 0 | AK116: 0 | AL116: 0 | AM116: 0 | AN116: 0 | AO116: 0 | AP116: 0 | AQ116: 0 | AR116: 0
B118: Mietaufwände
E120: ='Generelle-Annahmen'!E$196 -> Mietaufwände planmäßig oder nichtlinear einstellen (planmäßig = 1; nichtlinear = 0) | F120: ='Generelle-Annahmen'!I$196 -> 0 | G120: ='Generelle-Annahmen'!G$196 -> planmäßig = 1; nichtlinear = 0
E121: ='Generelle-Annahmen'!E$197 -> Mietaufwände | F121: ='Generelle-Annahmen'!I$197 -> 0 | G121: ='Generelle-Annahmen'!G$197 -> Euro p.a.
E122: ='Nichtlineare-Annahmen'!E$29 -> Nichtlineare Mietaufwände | G122: ='Nichtlineare-Annahmen'!G$29 -> Euro | H122: ='Nichtlineare-Annahmen'!H$29 -> 0 | J122: ='Nichtlineare-Annahmen'!J$29 -> 0 | K122: ='Nichtlineare-Annahmen'!K$29 -> 0 | L122: ='Nichtlineare-Annahmen'!L$29 -> 0 | M122: ='Nichtlineare-Annahmen'!M$29 -> 0 | N122: ='Nichtlineare-Annahmen'!N$29 -> 0 | O122: ='Nichtlineare-Annahmen'!O$29 -> 0 | P122: ='Nichtlineare-Annahmen'!P$29 -> 0 | Q122: ='Nichtlineare-Annahmen'!Q$29 -> 0 | R122: ='Nichtlineare-Annahmen'!R$29 -> 0 | S122: ='Nichtlineare-Annahmen'!S$29 -> 0 | T122: ='Nichtlineare-Annahmen'!T$29 -> 0 | U122: ='Nichtlineare-Annahmen'!U$29 -> 0 | V122: ='Nichtlineare-Annahmen'!V$29 -> 0 | W122: ='Nichtlineare-Annahmen'!W$29 -> 0 | X122: ='Nichtlineare-Annahmen'!X$29 -> 0 | Y122: ='Nichtlineare-Annahmen'!Y$29 -> 0 | Z122: ='Nichtlineare-Annahmen'!Z$29 -> 0 | AA122: ='Nichtlineare-Annahmen'!AA$29 -> 0 | AB122: ='Nichtlineare-Annahmen'!AB$29 -> 0 | AC122: ='Nichtlineare-Annahmen'!AC$29 -> 0 | AD122: ='Nichtlineare-Annahmen'!AD$29 -> 0 | AE122: ='Nichtlineare-Annahmen'!AE$29 -> 0 | AF122: ='Nichtlineare-Annahmen'!AF$29 -> 0 | AG122: ='Nichtlineare-Annahmen'!AG$29 -> 0 | AH122: ='Nichtlineare-Annahmen'!AH$29 -> 0 | AI122: ='Nichtlineare-Annahmen'!AI$29 -> 0 | AJ122: ='Nichtlineare-Annahmen'!AJ$29 -> 0 | AK122: ='Nichtlineare-Annahmen'!AK$29 -> 0 | AL122: ='Nichtlineare-Annahmen'!AL$29 -> 0 | AM122: ='Nichtlineare-Annahmen'!AM$29 -> 0 | AN122: ='Nichtlineare-Annahmen'!AN$29 -> 0 | AO122: ='Nichtlineare-Annahmen'!AO$29 -> 0 | AP122: ='Nichtlineare-Annahmen'!AP$29 -> 0 | AQ122: ='Nichtlineare-Annahmen'!AQ$29 -> 0 | AR122: ='Nichtlineare-Annahmen'!AR$29 -> 0
E123: ='Generelle-Annahmen'!E$189 -> Risikofaktor Mietaufwände | F123: ='Generelle-Annahmen'!I$189 -> 0 | G123: ='Generelle-Annahmen'!G$189 -> Prozent
E124: =Zeit!E$129 -> Preisindex Mieterträge & Mietaufwände | G124: =Zeit!G$129 -> Index | J124: =Zeit!J$129 -> 1.02 | K124: =Zeit!K$129 -> 1.0404 | L124: =Zeit!L$129 -> 1.061208 | M124: =Zeit!M$129 -> 1.08243216 | N124: =Zeit!N$129 -> 1.104080803 | O124: =Zeit!O$129 -> 1.126162419 | P124: =Zeit!P$129 -> 1.148685668 | Q124: =Zeit!Q$129 -> 1.171659381 | R124: =Zeit!R$129 -> 1.195092569 | S124: =Zeit!S$129 -> 1.21899442 | T124: =Zeit!T$129 -> 1.243374308 | U124: =Zeit!U$129 -> 1.268241795 | V124: =Zeit!V$129 -> 1.29360663 | W124: =Zeit!W$129 -> 1.319478763 | X124: =Zeit!X$129 -> 1.345868338 | Y124: =Zeit!Y$129 -> 1.372785705 | Z124: =Zeit!Z$129 -> 1.400241419 | AA124: =Zeit!AA$129 -> 1.428246248 | AB124: =Zeit!AB$129 -> 1.456811173 | AC124: =Zeit!AC$129 -> 1.485947396 | AD124: =Zeit!AD$129 -> 1.515666344 | AE124: =Zeit!AE$129 -> 1.545979671 | AF124: =Zeit!AF$129 -> 1.576899264 | AG124: =Zeit!AG$129 -> 1.608437249 | AH124: =Zeit!AH$129 -> 1.640605994 | AI124: =Zeit!AI$129 -> 1.673418114 | AJ124: =Zeit!AJ$129 -> 1.706886477 | AK124: =Zeit!AK$129 -> 1.741024206 | AL124: =Zeit!AL$129 -> 1.77584469 | AM124: =Zeit!AM$129 -> 1.811361584 | AN124: =Zeit!AN$129 -> 1.847588816 | AO124: =Zeit!AO$129 -> 1.884540592 | AP124: =Zeit!AP$129 -> 1.922231404 | AQ124: =Zeit!AQ$129 -> 1.960676032 | AR124: =Zeit!AR$129 -> 1.999889553
E125: Mietaufwände 0-Variante | G125: Euro | H125: =SUM(J125:AR125) -> 0 | J125: =IF($F$120 = 1, $F$121 * (1 + $F$123) *J124 *J9 * J10, J122 *J9 * (1 + $F$123) * J124) -> 0 | K125: =IF($F$120 = 1, $F$121 * (1 + $F$123) *K124 *K9 * K10, K122 *K9 * (1 + $F$123) * K124) -> 0 | L125: =IF($F$120 = 1, $F$121 * (1 + $F$123) *L124 *L9 * L10, L122 *L9 * (1 + $F$123) * L124) -> 0 | M125: 0 | N125: 0 | O125: 0 | P125: 0 | Q125: 0 | R125: 0 | S125: 0 | T125: 0 | U125: 0 | V125: 0 | W125: 0 | X125: 0 | Y125: 0 | Z125: 0 | AA125: 0 | AB125: 0 | AC125: 0 | AD125: 0 | AE125: 0 | AF125: 0 | AG125: 0 | AH125: 0 | AI125: 0 | AJ125: 0 | AK125: 0 | AL125: 0 | AM125: 0 | AN125: 0 | AO125: 0 | AP125: 0 | AQ125: 0 | AR125: 0
B127: Saldo zahlungswirksame Kosten aus Betrieb
E129: =E95 -> Gesamtbetriebskosten 0-Variante | G129: =G95 -> Euro | H129: =H95 -> 7287508.651 | J129: =J95 -> 254362.5 | K129: =K95 -> 177518.25 | L129: =L95 -> 766059.525 | M129: 184689.9873 | N129: 362276.5136 | O129: 192151.4628 | P129: 195994.492 | Q129: 199914.3819 | R129: 203912.6695 | S129: 207990.9229 | T129: 212150.7414 | U129: 216393.7562 | V129: 220721.6313 | W129: 225136.0639 | X129: 229638.7852 | Y129: 234231.5609 | Z129: 238916.1921 | AA129: 243694.516 | AB129: 248568.4063 | AC129: 253539.7744 | AD129: 258610.5699 | AE129: 263782.7813 | AF129: 269058.437 | AG129: 274439.6057 | AH129: 279928.3978 | AI129: 285526.9658 | AJ129: 291237.5051 | AK129: 297062.2552 | AL129: 0 | AM129: 0 | AN129: 0 | AO129: 0 | AP129: 0 | AQ129: 0 | AR129: 0
E130: =E107 -> Gesamtkosten Personaleinsatz Verwaltung | G130: Euro | H130: 1309500.926 | J130: =J107 -> 35343 | K130: =K107 -> 36049.86 | L130: =L107 -> 36770.8572 | M130: 37506.27434 | N130: 38256.39983 | O130: 39021.52783 | P130: 39801.95838 | Q130: 40597.99755 | R130: 41409.9575 | S130: 42238.15665 | T130: 43082.91979 | U130: 43944.57818 | V130: 44823.46975 | W130: 45719.93914 | X130: 46634.33792 | Y130: 47567.02468 | Z130: 48518.36518 | AA130: 49488.73248 | AB130: 50478.50713 | AC130: 51488.07727 | AD130: 52517.83882 | AE130: 53568.19559 | AF130: 54639.5595 | AG130: 55732.35069 | AH130: 56846.99771 | AI130: 57983.93766 | AJ130: 59143.61642 | AK130: 60326.48874 | AL130: 0 | AM130: 0 | AN130: 0 | AO130: 0 | AP130: 0 | AQ130: 0 | AR130: 0
E131: =E125 -> Mietaufwände 0-Variante | F131: =F125 -> 0 | G131: =G125 -> Euro | H131: =H125 -> 0 | J131: =J125 -> 0 | K131: =K125 -> 0 | L131: =L125 -> 0 | M131: 0 | N131: 0 | O131: 0 | P131: 0 | Q131: 0 | R131: 0 | S131: 0 | T131: 0 | U131: 0 | V131: 0 | W131: 0 | X131: 0 | Y131: 0 | Z131: 0 | AA131: 0 | AB131: 0 | AC131: 0 | AD131: 0 | AE131: 0 | AF131: 0 | AG131: 0 | AH131: 0 | AI131: 0 | AJ131: 0 | AK131: 0 | AL131: 0 | AM131: 0 | AN131: 0 | AO131: 0 | AP131: 0 | AQ131: 0 | AR131: 0
E132: =E116 -> Mieterträge 0-Variante | G132: =G116 -> Euro | H132: 0 | J132: =J116 -> 0 | K132: 0 | L132: =L116 -> 0 | M132: 0 | N132: 0 | O132: 0 | P132: 0 | Q132: 0 | R132: 0 | S132: 0 | T132: 0 | U132: 0 | V132: 0 | W132: 0 | X132: 0 | Y132: 0 | Z132: 0 | AA132: 0 | AB132: 0 | AC132: 0 | AD132: 0 | AE132: 0 | AF132: 0 | AG132: 0 | AH132: 0 | AI132: 0 | AJ132: 0 | AK132: 0 | AL132: 0 | AM132: 0 | AN132: 0 | AO132: 0 | AP132: 0 | AQ132: 0 | AR132: 0
E133: Saldo zahlungswirksame Kosten aus Betrieb | G133: Euro | H133: =SUM(J133:AR133) -> 8597009.577 | J133: =SUM(J129:J131) - J132 -> 289705.5 | K133: =SUM(K129:K131) - K132 -> 213568.11 | L133: =SUM(L129:L131) - L132 -> 802830.3822 | M133: 222196.2616 | N133: 400532.9134 | O133: 231172.9906 | P133: 235796.4504 | Q133: 240512.3794 | R133: 245322.627 | S133: 250229.0796 | T133: 255233.6612 | U133: 260338.3344 | V133: 265545.1011 | W133: 270856.0031 | X133: 276273.1231 | Y133: 281798.5856 | Z133: 287434.5573 | AA133: 293183.2485 | AB133: 299046.9134 | AC133: 305027.8517 | AD133: 311128.4087 | AE133: 317350.9769 | AF133: 323697.9965 | AG133: 330171.9564 | AH133: 336775.3955 | AI133: 343510.9034 | AJ133: 350381.1215 | AK133: 357388.7439 | AL133: 0 | AM133: 0 | AN133: 0 | AO133: 0 | AP133: 0 | AQ133: 0 | AR133: 0
E135: ='Generelle-Annahmen'!E$37 -> Anteil zu finanzierende Kosten aus Betrieb | F135: ='Generelle-Annahmen'!F$37 -> 0.35 | G135: ='Generelle-Annahmen'!G$37 -> Prozent
E136: ='Generelle-Annahmen'!E$38 -> Finanzierungszinssatz Liquiditätskredit | F136: ='Generelle-Annahmen'!F$38 -> 0.01 | G136: ='Generelle-Annahmen'!G$38 -> Prozent p.a.
E138: Anteil Saldo zahlungswirksame Kosten Betrieb | G138: Euro | H138: =SUM(J138:AR138) -> 3008953.352 | J138: =J133 * $F$135 -> 101396.925 | K138: =K133 * $F$135 -> 74748.8385 | L138: =L133 * $F$135 -> 280990.6338 | M138: 77768.69158 | N138: 140186.5197 | O138: 80910.54672 | P138: 82528.75765 | Q138: 84179.3328 | R138: 85862.91946 | S138: 87580.17785 | T138: 89331.7814 | U138: 91118.41703 | V138: 92940.78537 | W138: 94799.60108 | X138: 96695.5931 | Y138: 98629.50496 | Z138: 100602.0951 | AA138: 102614.137 | AB138: 104666.4197 | AC138: 106759.7481 | AD138: 108894.9431 | AE138: 111072.8419 | AF138: 113294.2988 | AG138: 115560.1847 | AH138: 117871.3884 | AI138: 120228.8162 | AJ138: 122633.3925 | AK138: 125086.0604 | AL138: 0 | AM138: 0 | AN138: 0 | AO138: 0 | AP138: 0 | AQ138: 0 | AR138: 0
E139: Kumulierter Anteil Saldo zahlungswirksame Kosten Betrieb Beginn Periode | G139: Euro | J139: =IF(J8 = 1, 0, I140) * J9 -> 0 | K139: =IF(K8 = 1, 0, J140) * K9 -> 101396.925 | L139: =IF(L8 = 1, 0, K140) * L9 -> 176145.7635 | M139: =IF(M8 = 1, 0, L140) * M9 -> 457136.3973 | N139: =IF(N8 = 1, 0, M140) * N9 -> 534905.0888 | O139: =IF(O8 = 1, 0, N140) * O9 -> 675091.6085 | P139: =IF(P8 = 1, 0, O140) * P9 -> 756002.1552 | Q139: =IF(Q8 = 1, 0, P140) * Q9 -> 838530.9129 | R139: =IF(R8 = 1, 0, Q140) * R9 -> 922710.2457 | S139: =IF(S8 = 1, 0, R140) * S9 -> 1008573.165 | T139: =IF(T8 = 1, 0, S140) * T9 -> 1096153.343 | U139: =IF(U8 = 1, 0, T140) * U9 -> 1185485.124 | V139: =IF(V8 = 1, 0, U140) * V9 -> 1276603.541 | W139: =IF(W8 = 1, 0, V140) * W9 -> 1369544.327 | X139: =IF(X8 = 1, 0, W140) * X9 -> 1464343.928 | Y139: =IF(Y8 = 1, 0, X140) * Y9 -> 1561039.521 | Z139: =IF(Z8 = 1, 0, Y140) * Z9 -> 1659669.026 | AA139: =IF(AA8 = 1, 0, Z140) * AA9 -> 1760271.121 | AB139: =IF(AB8 = 1, 0, AA140) * AB9 -> 1862885.258 | AC139: =IF(AC8 = 1, 0, AB140) * AC9 -> 1967551.678 | AD139: =IF(AD8 = 1, 0, AC140) * AD9 -> 2074311.426 | AE139: =IF(AE8 = 1, 0, AD140) * AE9 -> 2183206.369 | AF139: =IF(AF8 = 1, 0, AE140) * AF9 -> 2294279.211 | AG139: =IF(AG8 = 1, 0, AF140) * AG9 -> 2407573.51 | AH139: =IF(AH8 = 1, 0, AG140) * AH9 -> 2523133.694 | AI139: =IF(AI8 = 1, 0, AH140) * AI9 -> 2641005.083 | AJ139: =IF(AJ8 = 1, 0, AI140) * AJ9 -> 2761233.899 | AK139: =IF(AK8 = 1, 0, AJ140) * AK9 -> 2883867.291 | AL139: =IF(AL8 = 1, 0, AK140) * AL9 -> 0 | AM139: =IF(AM8 = 1, 0, AL140) * AM9 -> 0 | AN139: =IF(AN8 = 1, 0, AM140) * AN9 -> 0 | AO139: =IF(AO8 = 1, 0, AN140) * AO9 -> 0 | AP139: =IF(AP8 = 1, 0, AO140) * AP9 -> 0 | AQ139: =IF(AQ8 = 1, 0, AP140) * AQ9 -> 0 | AR139: =IF(AR8 = 1, 0, AQ140) * AR9 -> 0
E140: Kumulierter Anteil Saldo zahlungswirksame Kosten Betrieb Ende Periode | G140: Euro | J140: =J139 + J138 -> 101396.925 | K140: =K139 + K138 -> 176145.7635 | L140: =L139 + L138 -> 457136.3973 | M140: 534905.0888 | N140: 675091.6085 | O140: 756002.1552 | P140: 838530.9129 | Q140: 922710.2457 | R140: 1008573.165 | S140: 1096153.343 | T140: 1185485.124 | U140: 1276603.541 | V140: 1369544.327 | W140: 1464343.928 | X140: 1561039.521 | Y140: 1659669.026 | Z140: 1760271.121 | AA140: 1862885.258 | AB140: 1967551.678 | AC140: 2074311.426 | AD140: 2183206.369 | AE140: 2294279.211 | AF140: 2407573.51 | AG140: 2523133.694 | AH140: 2641005.083 | AI140: 2761233.899 | AJ140: 2883867.291 | AK140: 3008953.352 | AL140: 0 | AM140: 0 | AN140: 0 | AO140: 0 | AP140: 0 | AQ140: 0 | AR140: 0
E142: Zinskosten zahlungswirksame Kosten aus Betrieb | G142: Euro | H142: =SUM(J142:AR142) -> 434516.0296 | J142: =IF(J140 > 0, J140 * $F$136,0) -> 1013.96925 | K142: =IF(K140 > 0, K140 * $F$136,0) -> 1761.457635 | L142: =IF(L140 > 0, L140 * $F$136,0) -> 4571.363973 | M142: 5349.050888 | N142: 6750.916085 | O142: 7560.021552 | P142: 8385.309129 | Q142: 9227.102457 | R142: 10085.73165 | S142: 10961.53343 | T142: 11854.85124 | U142: 12766.03541 | V142: 13695.44327 | W142: 14643.43928 | X142: 15610.39521 | Y142: 16596.69026 | Z142: 17602.71121 | AA142: 18628.85258 | AB142: 19675.51678 | AC142: 20743.11426 | AD142: 21832.06369 | AE142: 22942.79211 | AF142: 24075.7351 | AG142: 25231.33694 | AH142: 26410.05083 | AI142: 27612.33899 | AJ142: 28838.67291 | AK142: 30089.53352 | AL142: 0 | AM142: 0 | AN142: 0 | AO142: 0 | AP142: 0 | AQ142: 0 | AR142: 0
B144: Sonstige Erträge & Aufwände
E146: ='Nichtlineare-Annahmen'!E$31 -> Nichtlineare Sonstige Erträge | G146: ='Nichtlineare-Annahmen'!G$31 -> Euro | H146: ='Nichtlineare-Annahmen'!H$31 -> 0 | J146: ='Nichtlineare-Annahmen'!J$31 -> 0 | K146: ='Nichtlineare-Annahmen'!K$31 -> 0 | L146: ='Nichtlineare-Annahmen'!L$31 -> 0 | M146: ='Nichtlineare-Annahmen'!M$31 -> 0 | N146: ='Nichtlineare-Annahmen'!N$31 -> 0 | O146: ='Nichtlineare-Annahmen'!O$31 -> 0 | P146: ='Nichtlineare-Annahmen'!P$31 -> 0 | Q146: ='Nichtlineare-Annahmen'!Q$31 -> 0 | R146: ='Nichtlineare-Annahmen'!R$31 -> 0 | S146: ='Nichtlineare-Annahmen'!S$31 -> 0 | T146: ='Nichtlineare-Annahmen'!T$31 -> 0 | U146: ='Nichtlineare-Annahmen'!U$31 -> 0 | V146: ='Nichtlineare-Annahmen'!V$31 -> 0 | W146: ='Nichtlineare-Annahmen'!W$31 -> 0 | X146: ='Nichtlineare-Annahmen'!X$31 -> 0 | Y146: ='Nichtlineare-Annahmen'!Y$31 -> 0 | Z146: ='Nichtlineare-Annahmen'!Z$31 -> 0 | AA146: ='Nichtlineare-Annahmen'!AA$31 -> 0 | AB146: ='Nichtlineare-Annahmen'!AB$31 -> 0 | AC146: ='Nichtlineare-Annahmen'!AC$31 -> 0 | AD146: ='Nichtlineare-Annahmen'!AD$31 -> 0 | AE146: ='Nichtlineare-Annahmen'!AE$31 -> 0 | AF146: ='Nichtlineare-Annahmen'!AF$31 -> 0 | AG146: ='Nichtlineare-Annahmen'!AG$31 -> 0 | AH146: ='Nichtlineare-Annahmen'!AH$31 -> 0 | AI146: ='Nichtlineare-Annahmen'!AI$31 -> 0 | AJ146: ='Nichtlineare-Annahmen'!AJ$31 -> 0 | AK146: ='Nichtlineare-Annahmen'!AK$31 -> 0 | AL146: ='Nichtlineare-Annahmen'!AL$31 -> 0 | AM146: ='Nichtlineare-Annahmen'!AM$31 -> 0 | AN146: ='Nichtlineare-Annahmen'!AN$31 -> 0 | AO146: ='Nichtlineare-Annahmen'!AO$31 -> 0 | AP146: ='Nichtlineare-Annahmen'!AP$31 -> 0 | AQ146: ='Nichtlineare-Annahmen'!AQ$31 -> 0 | AR146: ='Nichtlineare-Annahmen'!AR$31 -> 0
E147: =Zeit!E$130 -> Preisindex Sonstige Erträge & Aufwände | G147: =Zeit!G$130 -> Index | J147: =Zeit!J$130 -> 1.02 | K147: =Zeit!K$130 -> 1.0404 | L147: =Zeit!L$130 -> 1.061208 | M147: =Zeit!M$130 -> 1.08243216 | N147: =Zeit!N$130 -> 1.104080803 | O147: =Zeit!O$130 -> 1.126162419 | P147: =Zeit!P$130 -> 1.148685668 | Q147: =Zeit!Q$130 -> 1.171659381 | R147: =Zeit!R$130 -> 1.195092569 | S147: =Zeit!S$130 -> 1.21899442 | T147: =Zeit!T$130 -> 1.243374308 | U147: =Zeit!U$130 -> 1.268241795 | V147: =Zeit!V$130 -> 1.29360663 | W147: =Zeit!W$130 -> 1.319478763 | X147: =Zeit!X$130 -> 1.345868338 | Y147: =Zeit!Y$130 -> 1.372785705 | Z147: =Zeit!Z$130 -> 1.400241419 | AA147: =Zeit!AA$130 -> 1.428246248 | AB147: =Zeit!AB$130 -> 1.456811173 | AC147: =Zeit!AC$130 -> 1.485947396 | AD147: =Zeit!AD$130 -> 1.515666344 | AE147: =Zeit!AE$130 -> 1.545979671 | AF147: =Zeit!AF$130 -> 1.576899264 | AG147: =Zeit!AG$130 -> 1.608437249 | AH147: =Zeit!AH$130 -> 1.640605994 | AI147: =Zeit!AI$130 -> 1.673418114 | AJ147: =Zeit!AJ$130 -> 1.706886477 | AK147: =Zeit!AK$130 -> 1.741024206 | AL147: =Zeit!AL$130 -> 1.77584469 | AM147: =Zeit!AM$130 -> 1.811361584 | AN147: =Zeit!AN$130 -> 1.847588816 | AO147: =Zeit!AO$130 -> 1.884540592 | AP147: =Zeit!AP$130 -> 1.922231404 | AQ147: =Zeit!AQ$130 -> 1.960676032 | AR147: =Zeit!AR$130 -> 1.999889553
E148: =E146 -> Nichtlineare Sonstige Erträge | G148: Euro | H148: =SUM(J148:AR148) -> 0 | J148: =J146 * J147 * J9 -> 0 | K148: =K146 * K147 * K9 -> 0 | L148: =L146 * L147 * L9 -> 0 | M148: 0 | N148: 0 | O148: 0 | P148: 0 | Q148: 0 | R148: 0 | S148: 0 | T148: 0 | U148: 0 | V148: 0 | W148: 0 | X148: 0 | Y148: 0 | Z148: 0 | AA148: 0 | AB148: 0 | AC148: 0 | AD148: 0 | AE148: 0 | AF148: 0 | AG148: 0 | AH148: 0 | AI148: 0 | AJ148: 0 | AK148: 0 | AL148: 0 | AM148: 0 | AN148: 0 | AO148: 0 | AP148: 0 | AQ148: 0 | AR148: 0
E150: ='Nichtlineare-Annahmen'!E$32 -> Nichtlineare Sonstige Aufwände | G150: ='Nichtlineare-Annahmen'!G$32 -> Euro | H150: ='Nichtlineare-Annahmen'!H$32 -> 0 | J150: ='Nichtlineare-Annahmen'!J$32 -> 0 | K150: ='Nichtlineare-Annahmen'!K$32 -> 0 | L150: ='Nichtlineare-Annahmen'!L$32 -> 0 | M150: ='Nichtlineare-Annahmen'!M$32 -> 0 | N150: ='Nichtlineare-Annahmen'!N$32 -> 0 | O150: ='Nichtlineare-Annahmen'!O$32 -> 0 | P150: ='Nichtlineare-Annahmen'!P$32 -> 0 | Q150: ='Nichtlineare-Annahmen'!Q$32 -> 0 | R150: ='Nichtlineare-Annahmen'!R$32 -> 0 | S150: ='Nichtlineare-Annahmen'!S$32 -> 0 | T150: ='Nichtlineare-Annahmen'!T$32 -> 0 | U150: ='Nichtlineare-Annahmen'!U$32 -> 0 | V150: ='Nichtlineare-Annahmen'!V$32 -> 0 | W150: ='Nichtlineare-Annahmen'!W$32 -> 0 | X150: ='Nichtlineare-Annahmen'!X$32 -> 0 | Y150: ='Nichtlineare-Annahmen'!Y$32 -> 0 | Z150: ='Nichtlineare-Annahmen'!Z$32 -> 0 | AA150: ='Nichtlineare-Annahmen'!AA$32 -> 0 | AB150: ='Nichtlineare-Annahmen'!AB$32 -> 0 | AC150: ='Nichtlineare-Annahmen'!AC$32 -> 0 | AD150: ='Nichtlineare-Annahmen'!AD$32 -> 0 | AE150: ='Nichtlineare-Annahmen'!AE$32 -> 0 | AF150: ='Nichtlineare-Annahmen'!AF$32 -> 0 | AG150: ='Nichtlineare-Annahmen'!AG$32 -> 0 | AH150: ='Nichtlineare-Annahmen'!AH$32 -> 0 | AI150: ='Nichtlineare-Annahmen'!AI$32 -> 0 | AJ150: ='Nichtlineare-Annahmen'!AJ$32 -> 0 | AK150: ='Nichtlineare-Annahmen'!AK$32 -> 0 | AL150: ='Nichtlineare-Annahmen'!AL$32 -> 0 | AM150: ='Nichtlineare-Annahmen'!AM$32 -> 0 | AN150: ='Nichtlineare-Annahmen'!AN$32 -> 0 | AO150: ='Nichtlineare-Annahmen'!AO$32 -> 0 | AP150: ='Nichtlineare-Annahmen'!AP$32 -> 0 | AQ150: ='Nichtlineare-Annahmen'!AQ$32 -> 0 | AR150: ='Nichtlineare-Annahmen'!AR$32 -> 0
E151: =Zeit!E$130 -> Preisindex Sonstige Erträge & Aufwände | G151: =Zeit!G$130 -> Index | J151: =Zeit!J$130 -> 1.02 | K151: =Zeit!K$130 -> 1.0404 | L151: =Zeit!L$130 -> 1.061208 | M151: =Zeit!M$130 -> 1.08243216 | N151: =Zeit!N$130 -> 1.104080803 | O151: =Zeit!O$130 -> 1.126162419 | P151: =Zeit!P$130 -> 1.148685668 | Q151: =Zeit!Q$130 -> 1.171659381 | R151: =Zeit!R$130 -> 1.195092569 | S151: =Zeit!S$130 -> 1.21899442 | T151: =Zeit!T$130 -> 1.243374308 | U151: =Zeit!U$130 -> 1.268241795 | V151: =Zeit!V$130 -> 1.29360663 | W151: =Zeit!W$130 -> 1.319478763 | X151: =Zeit!X$130 -> 1.345868338 | Y151: =Zeit!Y$130 -> 1.372785705 | Z151: =Zeit!Z$130 -> 1.400241419 | AA151: =Zeit!AA$130 -> 1.428246248 | AB151: =Zeit!AB$130 -> 1.456811173 | AC151: =Zeit!AC$130 -> 1.485947396 | AD151: =Zeit!AD$130 -> 1.515666344 | AE151: =Zeit!AE$130 -> 1.545979671 | AF151: =Zeit!AF$130 -> 1.576899264 | AG151: =Zeit!AG$130 -> 1.608437249 | AH151: =Zeit!AH$130 -> 1.640605994 | AI151: =Zeit!AI$130 -> 1.673418114 | AJ151: =Zeit!AJ$130 -> 1.706886477 | AK151: =Zeit!AK$130 -> 1.741024206 | AL151: =Zeit!AL$130 -> 1.77584469 | AM151: =Zeit!AM$130 -> 1.811361584 | AN151: =Zeit!AN$130 -> 1.847588816 | AO151: =Zeit!AO$130 -> 1.884540592 | AP151: =Zeit!AP$130 -> 1.922231404 | AQ151: =Zeit!AQ$130 -> 1.960676032 | AR151: =Zeit!AR$130 -> 1.999889553
E152: =E150 -> Nichtlineare Sonstige Aufwände | G152: Euro | H152: =SUM(J152:AR152) -> 0 | J152: =J150 * J151 *J9 -> 0 | K152: =K150 * K151 *K9 -> 0 | L152: =L150 * L151 *L9 -> 0 | M152: 0 | N152: 0 | O152: 0 | P152: 0 | Q152: 0 | R152: 0 | S152: 0 | T152: 0 | U152: 0 | V152: 0 | W152: 0 | X152: 0 | Y152: 0 | Z152: 0 | AA152: 0 | AB152: 0 | AC152: 0 | AD152: 0 | AE152: 0 | AF152: 0 | AG152: 0 | AH152: 0 | AI152: 0 | AJ152: 0 | AK152: 0 | AL152: 0 | AM152: 0 | AN152: 0 | AO152: 0 | AP152: 0 | AQ152: 0 | AR152: 0
A154: BARWERTBERECHNUNG
E156: =Zeit!E$131 -> Diskontierungssatz | G156: =Zeit!G$131 -> Index | J156: =Zeit!J$131 -> 1.035 | K156: =Zeit!K$131 -> 1.071225 | L156: =Zeit!L$131 -> 1.108717875 | M156: =Zeit!M$131 -> 1.147523001 | N156: =Zeit!N$131 -> 1.187686306 | O156: =Zeit!O$131 -> 1.229255326 | P156: =Zeit!P$131 -> 1.272279263 | Q156: =Zeit!Q$131 -> 1.316809037 | R156: =Zeit!R$131 -> 1.362897353 | S156: =Zeit!S$131 -> 1.410598761 | T156: =Zeit!T$131 -> 1.459969717 | U156: =Zeit!U$131 -> 1.511068657 | V156: =Zeit!V$131 -> 1.56395606 | W156: =Zeit!W$131 -> 1.618694522 | X156: =Zeit!X$131 -> 1.675348831 | Y156: =Zeit!Y$131 -> 1.73398604 | Z156: =Zeit!Z$131 -> 1.794675551 | AA156: =Zeit!AA$131 -> 1.857489196 | AB156: =Zeit!AB$131 -> 1.922501317 | AC156: =Zeit!AC$131 -> 1.989788863 | AD156: =Zeit!AD$131 -> 2.059431474 | AE156: =Zeit!AE$131 -> 2.131511575 | AF156: =Zeit!AF$131 -> 2.20611448 | AG156: =Zeit!AG$131 -> 2.283328487 | AH156: =Zeit!AH$131 -> 2.363244984 | AI156: =Zeit!AI$131 -> 2.445958559 | AJ156: =Zeit!AJ$131 -> 2.531567108 | AK156: =Zeit!AK$131 -> 2.620171957 | AL156: =Zeit!AL$131 -> 2.711877976 | AM156: =Zeit!AM$131 -> 2.806793705 | AN156: =Zeit!AN$131 -> 2.905031484 | AO156: =Zeit!AO$131 -> 3.006707586 | AP156: =Zeit!AP$131 -> 3.111942352 | AQ156: =Zeit!AQ$131 -> 3.220860334 | AR156: =Zeit!AR$131 -> 3.333590446
B158: Barwertberechnung Abschreibungen & Auflösungen
E160: =E18 -> Abschreibungsbetrag pro Jahr Grundstück mit außerplanmäßiger Abschreibung bzw. Anlagenabgang | G160: =G18 -> Euro | H160: =H18 -> 0 | J160: =J18 -> 0 | K160: =K18 -> 0 | L160: =L18 -> 0 | M160: 0 | N160: 0 | O160: 0 | P160: 0 | Q160: 0 | R160: 0 | S160: 0 | T160: 0 | U160: 0 | V160: 0 | W160: 0 | X160: 0 | Y160: 0 | Z160: 0 | AA160: 0 | AB160: 0 | AC160: 0 | AD160: 0 | AE160: 0 | AF160: 0 | AG160: 0 | AH160: 0 | AI160: 0 | AJ160: 0 | AK160: 0 | AL160: 0 | AM160: 0 | AN160: 0 | AO160: 0 | AP160: 0 | AQ160: 0 | AR160: 0
E161: =E32 -> Abschreibungsbetrag pro Jahr Gebäude planmäßig & außerplanmäßig mit Anpassung | G161: =G32 -> Euro | H161: =H32 -> 4750000 | J161: =J32 -> 169642.8571 | K161: =K32 -> 169642.8571 | L161: =L32 -> 169642.8571 | M161: 169642.8571 | N161: 169642.8571 | O161: 169642.8571 | P161: 169642.8571 | Q161: 169642.8571 | R161: 169642.8571 | S161: 169642.8571 | T161: 169642.8571 | U161: 169642.8571 | V161: 169642.8571 | W161: 169642.8571 | X161: 169642.8571 | Y161: 169642.8571 | Z161: 169642.8571 | AA161: 169642.8571 | AB161: 169642.8571 | AC161: 169642.8571 | AD161: 169642.8571 | AE161: 169642.8571 | AF161: 169642.8571 | AG161: 169642.8571 | AH161: 169642.8571 | AI161: 169642.8571 | AJ161: 169642.8571 | AK161: 169642.8571 | AL161: 0 | AM161: 0 | AN161: 0 | AO161: 0 | AP161: 0 | AQ161: 0 | AR161: 0
E162: =E46 -> Auflösungsbetrag pro Jahr Sonderposten planmäßig & außerplanmäßig mit Anpassung | G162: =G46 -> Euro | H162: =H46 -> 2000000 | J162: =J46 -> 71428.57143 | K162: =K46 -> 71428.57143 | L162: =L46 -> 71428.57143 | M162: 71428.57143 | N162: 71428.57143 | O162: 71428.57143 | P162: 71428.57143 | Q162: 71428.57143 | R162: 71428.57143 | S162: 71428.57143 | T162: 71428.57143 | U162: 71428.57143 | V162: 71428.57143 | W162: 71428.57143 | X162: 71428.57143 | Y162: 71428.57143 | Z162: 71428.57143 | AA162: 71428.57143 | AB162: 71428.57143 | AC162: 71428.57143 | AD162: 71428.57143 | AE162: 71428.57143 | AF162: 71428.57143 | AG162: 71428.57143 | AH162: 71428.57143 | AI162: 71428.57143 | AJ162: 71428.57143 | AK162: 71428.57143 | AL162: 0 | AM162: 0 | AN162: 0 | AO162: 0 | AP162: 0 | AQ162: 0 | AR162: 0
E164: Barwert Abschreibungsbetrag Grundstück | G164: Euro | H164: =SUM(J164:AR164) -> 0 | J164: =J160 / J156 -> 0 | K164: =K160 / K156 -> 0 | L164: =L160 / L156 -> 0 | M164: 0 | N164: 0 | O164: 0 | P164: 0 | Q164: 0 | R164: 0 | S164: 0 | T164: 0 | U164: 0 | V164: 0 | W164: 0 | X164: 0 | Y164: 0 | Z164: 0 | AA164: 0 | AB164: 0 | AC164: 0 | AD164: 0 | AE164: 0 | AF164: 0 | AG164: 0 | AH164: 0 | AI164: 0 | AJ164: 0 | AK164: 0 | AL164: 0 | AM164: 0 | AN164: 0 | AO164: 0 | AP164: 0 | AQ164: 0 | AR164: 0
E165: Barwert Abschreibungsbetrag Gebäude | G165: Euro | H165: =SUM(J165:AR165) -> 2997083.554 | J165: =J161 / J156 -> 163906.1422 | K165: =K161 / K156 -> 158363.4224 | L165: =L161 / L156 -> 153008.1376 | M165: 147833.9493 | N165: 142834.7337 | O165: 138004.5736 | P165: 133337.7523 | Q165: 128828.7461 | R165: 124472.2185 | S165: 120263.013 | T165: 116196.1479 | U165: 112266.8095 | V165: 108470.3474 | W165: 104802.268 | X165: 101258.2299 | Y165: 97834.03859 | Z165: 94525.64115 | AA165: 91329.12189 | AB165: 88240.69748 | AC165: 85256.71254 | AD165: 82373.6353 | AE165: 79588.05343 | AF165: 76896.66998 | AG165: 74296.2995 | AH165: 71783.86425 | AI165: 69356.39058 | AJ165: 67011.00539 | AK165: 64744.93275 | AL165: 0 | AM165: 0 | AN165: 0 | AO165: 0 | AP165: 0 | AQ165: 0 | AR165: 0
E166: Barwert Auflösungsbetrag Sonderposten | G166: Euro | H166: =SUM(J166:AR166) -> 1261929.918 | J166: =J162 / J156 -> 69013.11249 | K166: =K162 / K156 -> 66679.33574 | L166: =L162 / L156 -> 64424.47898 | M166: 62245.87341 | N166: 60140.94049 | O166: 58107.18888 | P166: 56142.21148 | Q166: 54243.68259 | R166: 52409.35516 | S166: 50637.05812 | T166: 48924.69384 | U166: 47270.23559 | V166: 45671.72521 | W166: 44127.27073 | X166: 42635.04419 | Y166: 41193.27941 | Z166: 39800.26996 | AA166: 38454.36711 | AB166: 37153.97788 | AC166: 35897.56317 | AD166: 34683.63592 | AE166: 33510.75934 | AF166: 32377.54526 | AG166: 31282.65242 | AH166: 30224.78495 | AI166: 29202.69077 | AJ166: 28215.16017 | AK166: 27261.02431 | AL166: 0 | AM166: 0 | AN166: 0 | AO166: 0 | AP166: 0 | AQ166: 0 | AR166: 0
E167: Barwert Abschreibungen & Auflösungen | G167: Euro | H167: =SUM(J167:AR167) -> 1735153.637 | J167: =SUM(J164:J165)-J166 -> 94893.02968 | K167: =SUM(K164:K165)-K166 -> 91684.08664 | L167: =SUM(L164:L165)-L166 -> 88583.65859 | M167: 85588.07593 | N167: 82693.79317 | O167: 79897.38471 | P167: 77195.54078 | Q167: 74585.06356 | R167: 72062.86334 | S167: 69625.95492 | T167: 67271.45403 | U167: 64996.57394 | V167: 62798.62216 | W167: 60674.99726 | X167: 58623.18576 | Y167: 56640.75919 | Z167: 54725.37119 | AA167: 52874.75478 | AB167: 51086.71959 | AC167: 49359.14936 | AD167: 47689.99939 | AE167: 46077.29409 | AF167: 44519.12473 | AG167: 43013.64708 | AH167: 41559.0793 | AI167: 40153.69981 | AJ167: 38795.84523 | AK167: 37483.90843 | AL167: 0 | AM167: 0 | AN167: 0 | AO167: 0 | AP167: 0 | AQ167: 0 | AR167: 0
B170: Barwertberechnung Betriebskosten
E172: =E92 -> Energiekosten 0-Variante | G172: =G92 -> Euro | H172: =H92 -> 3174547.699 | J172: =J92 -> 85680 | K172: =K92 -> 87393.6 | L172: =L92 -> 89141.472 | M172: 90924.30144 | N172: 92742.78747 | O172: 94597.64322 | P172: 96489.59608 | Q172: 98419.388 | R172: 100387.7758 | S172: 102395.5313 | T172: 104443.4419 | U172: 106532.3107 | V172: 108662.957 | W172: 110836.2161 | X172: 113052.9404 | Y172: 115313.9992 | Z172: 117620.2792 | AA172: 119972.6848 | AB172: 122372.1385 | AC172: 124819.5813 | AD172: 127315.9729 | AE172: 129862.2923 | AF172: 132459.5382 | AG172: 135108.729 | AH172: 137810.9035 | AI172: 140567.1216 | AJ172: 143378.464 | AK172: 146246.0333 | AL172: 0 | AM172: 0 | AN172: 0 | AO172: 0 | AP172: 0 | AQ172: 0 | AR172: 0
E173: =E93 -> Betriebskosten | G173: =G93 -> Euro | H173: =H93 -> 2182501.543 | J173: =J93 -> 58905 | K173: =K93 -> 60083.1 | L173: =L93 -> 61284.762 | M173: 62510.45724 | N173: 63760.66638 | O173: 65035.87971 | P173: 66336.59731 | Q173: 67663.32925 | R173: 69016.59584 | S173: 70396.92775 | T173: 71804.86631 | U173: 73240.96364 | V173: 74705.78291 | W173: 76199.89857 | X173: 77723.89654 | Y173: 79278.37447 | Z173: 80863.94196 | AA173: 82481.2208 | AB173: 84130.84521 | AC173: 85813.46212 | AD173: 87529.73136 | AE173: 89280.32599 | AF173: 91065.93251 | AG173: 92887.25116 | AH173: 94744.99618 | AI173: 96639.8961 | AJ173: 98572.69403 | AK173: 100544.1479 | AL173: 0 | AM173: 0 | AN173: 0 | AO173: 0 | AP173: 0 | AQ173: 0 | AR173: 0
E174: =E94 -> Instandhaltungskosten | G174: =G94 -> Euro | H174: 1930459.408 | J174: =J94 -> 109777.5 | K174: =K94 -> 30041.55 | L174: =L94 -> 615633.291 | M174: 31255.22862 | N174: 205773.0597 | O174: 32517.93986 | P174: 33168.29865 | Q174: 33831.66463 | R174: 34508.29792 | S174: 35198.46388 | T174: 35902.43315 | U174: 36620.48182 | V174: 37352.89145 | W174: 38099.94928 | X174: 38861.94827 | Y174: 39639.18723 | Z174: 40431.97098 | AA174: 41240.6104 | AB174: 42065.42261 | AC174: 42906.73106 | AD174: 43764.86568 | AE174: 44640.16299 | AF174: 45532.96625 | AG174: 46443.62558 | AH174: 47372.49809 | AI174: 48319.94805 | AJ174: 49286.34701 | AK174: 50272.07395 | AL174: 0 | AM174: 0 | AN174: 0 | AO174: 0 | AP174: 0 | AQ174: 0 | AR174: 0
E176: Barwert Energiekosten | G176: Euro | H176: =SUM(J176:AR176) -> 1916550.53 | J176: =J172 / J$156 -> 82782.6087 | K176: =K172 / K$156 -> 81582.86074 | L176: =L172 / L$156 -> 80400.50044 | M176: 79235.2758 | N176: 78086.93847 | O176: 76955.24371 | P176: 75839.95032 | Q176: 74740.82061 | R176: 73657.62031 | S176: 72590.11856 | T176: 71538.08786 | U176: 70501.30398 | V176: 69479.54595 | W176: 68472.59601 | X176: 67480.23954 | Y176: 66502.26506 | Z176: 65538.46412 | AA176: 64588.6313 | AB176: 63652.56418 | AC176: 62730.06325 | AD176: 61820.9319 | AE176: 60924.97637 | AF176: 60042.00569 | AG176: 59171.8317 | AH176: 58314.26892 | AI176: 57469.13459 | AJ176: 56636.24858 | AK176: 55815.43338 | AL176: 0 | AM176: 0 | AN176: 0 | AO176: 0 | AP176: 0 | AQ176: 0 | AR176: 0
E177: Barwert Betriebskosten | G177: Euro | H177: =SUM(J177:AR177) -> 1317628.489 | J177: =J173 / J$156 -> 56913.04348 | K177: =K173 / K$156 -> 56088.21676 | L177: =L173 / L$156 -> 55275.34405 | M177: 54474.25211 | N177: 53684.7702 | O177: 52906.73005 | P177: 52139.96585 | Q177: 51384.31417 | R177: 50639.61396 | S177: 49905.70651 | T177: 49182.4354 | U177: 48469.64648 | V177: 47767.18784 | W177: 47074.90976 | X177: 46392.66469 | Y177: 45720.30723 | Z177: 45057.69408 | AA177: 44404.68402 | AB177: 43761.13787 | AC177: 43126.91849 | AD177: 42501.89068 | AE177: 41885.92125 | AF177: 41278.87891 | AG177: 40680.63429 | AH177: 40091.05988 | AI177: 39510.03003 | AJ177: 38937.4209 | AK177: 38373.11045 | AL177: 0 | AM177: 0 | AN177: 0 | AO177: 0 | AP177: 0 | AQ177: 0 | AR177: 0
E178: Barwert Instandhaltung | G178: Euro | H178: =SUM(J178:AR178) -> 1410464.234 | J178: =J174 / J$156 -> 106065.2174 | K178: =K174 / K$156 -> 28044.10838 | L178: =L174 / L$156 -> 555265.9562 | M178: 27237.12606 | N178: 173255.3947 | O178: 26453.36502 | P178: 26069.98292 | Q178: 25692.15708 | R178: 25319.80698 | S178: 24952.85326 | T178: 24591.2177 | U178: 24234.82324 | V178: 23883.59392 | W178: 23537.45488 | X178: 23196.33234 | Y178: 22860.15361 | Z178: 22528.84704 | AA178: 22202.34201 | AB178: 21880.56894 | AC178: 21563.45924 | AD178: 21250.94534 | AE178: 20942.96063 | AF178: 20639.43946 | AG178: 20340.31715 | AH178: 20045.52994 | AI178: 19755.01501 | AJ178: 19468.71045 | AK178: 19186.55523 | AL178: 0 | AM178: 0 | AN178: 0 | AO178: 0 | AP178: 0 | AQ178: 0 | AR178: 0
E179: Barwert Gesamtbetriebskosten | G179: Euro | H179: =SUM(J179:AR179) -> 4644643.254 | J179: =SUM(J176:J178) -> 245760.8696 | K179: =SUM(K176:K178) -> 165715.1859 | L179: =SUM(L176:L178) -> 690941.8007 | M179: 160946.654 | N179: 305027.1034 | O179: 156315.3388 | P179: 154049.8991 | Q179: 151817.2919 | R179: 149617.0412 | S179: 147448.6783 | T179: 145311.741 | U179: 143205.7737 | V179: 141130.3277 | W179: 139084.9606 | X179: 137069.2366 | Y179: 135082.7259 | Z179: 133125.0052 | AA179: 131195.6573 | AB179: 129294.271 | AC179: 127420.441 | AD179: 125573.7679 | AE179: 123753.8582 | AF179: 121960.3241 | AG179: 120192.7831 | AH179: 118450.8587 | AI179: 116734.1796 | AJ179: 115042.3799 | AK179: 113375.0991 | AL179: 0 | AM179: 0 | AN179: 0 | AO179: 0 | AP179: 0 | AQ179: 0 | AR179: 0
B181: Barwertberechnung Verwaltungskosten
E183: =E107 -> Gesamtkosten Personaleinsatz Verwaltung | G183: Euro | H183: 1309500.926 | J183: =J107 -> 35343 | K183: =K107 -> 36049.86 | L183: =L107 -> 36770.8572 | M183: 37506.27434 | N183: 38256.39983 | O183: 39021.52783 | P183: 39801.95838 | Q183: 40597.99755 | R183: 41409.9575 | S183: 42238.15665 | T183: 43082.91979 | U183: 43944.57818 | V183: 44823.46975 | W183: 45719.93914 | X183: 46634.33792 | Y183: 47567.02468 | Z183: 48518.36518 | AA183: 49488.73248 | AB183: 50478.50713 | AC183: 51488.07727 | AD183: 52517.83882 | AE183: 53568.19559 | AF183: 54639.5595 | AG183: 55732.35069 | AH183: 56846.99771 | AI183: 57983.93766 | AJ183: 59143.61642 | AK183: 60326.48874 | AL183: 0 | AM183: 0 | AN183: 0 | AO183: 0 | AP183: 0 | AQ183: 0 | AR183: 0
E184: Barwert Personaleinsatz Verwaltung | G184: Euro | H184: =SUM(J184:AR184) -> 790577.0936 | J184: =J183 / J156 -> 34147.82609 | K184: =K183 / K156 -> 33652.93006 | L184: =L183 / L156 -> 33165.20643 | M184: 32684.55127 | N184: 32210.86212 | O184: 31744.03803 | P184: 31283.97951 | Q184: 30830.5885 | R184: 30383.76838 | S184: 29943.42391 | T184: 29509.46124 | U184: 29081.78789 | V184: 28660.3127 | W184: 28244.94585 | X184: 27835.59881 | Y184: 27432.18434 | Z184: 27034.61645 | AA184: 26642.81041 | AB184: 26256.68272 | AC184: 25876.15109 | AD184: 25501.13441 | AE184: 25131.55275 | AF184: 24767.32735 | AG184: 24408.38058 | AH184: 24054.63593 | AI184: 23706.01802 | AJ184: 23362.45254 | AK184: 23023.86627 | AL184: 0 | AM184: 0 | AN184: 0 | AO184: 0 | AP184: 0 | AQ184: 0 | AR184: 0
B186: Barwert Mieterträge
E188: =E116 -> Mieterträge 0-Variante | G188: =G116 -> Euro | H188: =H116 -> 0 | J188: =J116 -> 0 | K188: =K116 -> 0 | L188: =L116 -> 0 | M188: 0 | N188: 0 | O188: 0 | P188: 0 | Q188: 0 | R188: 0 | S188: 0 | T188: 0 | U188: 0 | V188: 0 | W188: 0 | X188: 0 | Y188: 0 | Z188: 0 | AA188: 0 | AB188: 0 | AC188: 0 | AD188: 0 | AE188: 0 | AF188: 0 | AG188: 0 | AH188: 0 | AI188: 0 | AJ188: 0 | AK188: 0 | AL188: 0 | AM188: 0 | AN188: 0 | AO188: 0 | AP188: 0 | AQ188: 0 | AR188: 0
E189: Barwert Mieterträge | G189: Euro | H189: =SUM(J189:AR189) -> 0 | J189: =J188 / J156 -> 0 | K189: =K188 / K156 -> 0 | L189: =L188 / L156 -> 0 | M189: 0 | N189: 0 | O189: 0 | P189: 0 | Q189: 0 | R189: 0 | S189: 0 | T189: 0 | U189: 0 | V189: 0 | W189: 0 | X189: 0 | Y189: 0 | Z189: 0 | AA189: 0 | AB189: 0 | AC189: 0 | AD189: 0 | AE189: 0 | AF189: 0 | AG189: 0 | AH189: 0 | AI189: 0 | AJ189: 0 | AK189: 0 | AL189: 0 | AM189: 0 | AN189: 0 | AO189: 0 | AP189: 0 | AQ189: 0 | AR189: 0
B191: Barwert Mietaufwände
E193: =E125 -> Mietaufwände 0-Variante | G193: =G125 -> Euro | H193: =H125 -> 0 | J193: =J125 -> 0 | K193: =K125 -> 0 | L193: =L125 -> 0 | M193: 0 | N193: 0 | O193: 0 | P193: 0 | Q193: 0 | R193: 0 | S193: 0 | T193: 0 | U193: 0 | V193: 0 | W193: 0 | X193: 0 | Y193: 0 | Z193: 0 | AA193: 0 | AB193: 0 | AC193: 0 | AD193: 0 | AE193: 0 | AF193: 0 | AG193: 0 | AH193: 0 | AI193: 0 | AJ193: 0 | AK193: 0 | AL193: 0 | AM193: 0 | AN193: 0 | AO193: 0 | AP193: 0 | AQ193: 0 | AR193: 0
E194: Barwert Mietaufwände | G194: Euro | H194: =SUM(J194:AR194) -> 0 | J194: =J193 / J156 -> 0 | K194: =K193 / K156 -> 0 | L194: =L193 / L156 -> 0 | M194: 0 | N194: 0 | O194: 0 | P194: 0 | Q194: 0 | R194: 0 | S194: 0 | T194: 0 | U194: 0 | V194: 0 | W194: 0 | X194: 0 | Y194: 0 | Z194: 0 | AA194: 0 | AB194: 0 | AC194: 0 | AD194: 0 | AE194: 0 | AF194: 0 | AG194: 0 | AH194: 0 | AI194: 0 | AJ194: 0 | AK194: 0 | AL194: 0 | AM194: 0 | AN194: 0 | AO194: 0 | AP194: 0 | AQ194: 0 | AR194: 0
B196: Barwert Finanzierung
E198: =E142 -> Zinskosten zahlungswirksame Kosten aus Betrieb | G198: =G142 -> Euro | H198: =H142 -> 434516.0296 | J198: =J142 -> 1013.96925 | K198: =K142 -> 1761.457635 | L198: =L142 -> 4571.363973 | M198: 5349.050888 | N198: 6750.916085 | O198: 7560.021552 | P198: 8385.309129 | Q198: 9227.102457 | R198: 10085.73165 | S198: 10961.53343 | T198: 11854.85124 | U198: 12766.03541 | V198: 13695.44327 | W198: 14643.43928 | X198: 15610.39521 | Y198: 16596.69026 | Z198: 17602.71121 | AA198: 18628.85258 | AB198: 19675.51678 | AC198: 20743.11426 | AD198: 21832.06369 | AE198: 22942.79211 | AF198: 24075.7351 | AG198: 25231.33694 | AH198: 26410.05083 | AI198: 27612.33899 | AJ198: 28838.67291 | AK198: 30089.53352 | AL198: 0 | AM198: 0 | AN198: 0 | AO198: 0 | AP198: 0 | AQ198: 0 | AR198: 0
E199: Barwert Zinskosten | G199: Euro | H199: =SUM(J199:AR199) -> 234436.704 | J199: =J198 / J156 -> 979.6804348 | K199: =K198 / K156 -> 1644.339551 | L199: =L198 / L156 -> 4123.10839 | M199: 4661.388822 | N199: 5684.090196 | O199: 6150.082404 | P199: 6590.777178 | Q199: 7007.168236 | R199: 7400.21369 | S199: 7770.837276 | T199: 8119.929547 | U199: 8448.349023 | V199: 8756.923302 | W199: 9046.450134 | X199: 9317.698454 | Y199: 9571.409388 | Z199: 9808.297215 | AA199: 10029.0503 | AB199: 10234.33201 | AC199: 10424.78156 | AD199: 10601.01488 | AE199: 10763.62539 | AF199: 10913.18484 | AG199: 11050.24401 | AH199: 11175.33349 | AI199: 11288.96436 | AJ199: 11391.62885 | AK199: 11483.80107 | AL199: 0 | AM199: 0 | AN199: 0 | AO199: 0 | AP199: 0 | AQ199: 0 | AR199: 0
B201: Barwert Sonstige Erträge & Aufwände
E203: =E148 -> Nichtlineare Sonstige Erträge | G203: =G148 -> Euro | H203: 0 | J203: =J148 -> 0 | K203: 0 | L203: =L148 -> 0 | M203: 0 | N203: 0 | O203: 0 | P203: 0 | Q203: 0 | R203: 0 | S203: 0 | T203: 0 | U203: 0 | V203: 0 | W203: 0 | X203: 0 | Y203: 0 | Z203: 0 | AA203: 0 | AB203: 0 | AC203: 0 | AD203: 0 | AE203: 0 | AF203: 0 | AG203: 0 | AH203: 0 | AI203: 0 | AJ203: 0 | AK203: 0 | AL203: 0 | AM203: 0 | AN203: 0 | AO203: 0 | AP203: 0 | AQ203: 0 | AR203: 0
E204: Barwert Sonstige Erträge | G204: Euro | H204: =SUM(J204:AR204) -> 0 | J204: =J203 / J156 -> 0 | K204: =K203 / K156 -> 0 | L204: =L203 / L156 -> 0 | M204: 0 | N204: 0 | O204: 0 | P204: 0 | Q204: 0 | R204: 0 | S204: 0 | T204: 0 | U204: 0 | V204: 0 | W204: 0 | X204: 0 | Y204: 0 | Z204: 0 | AA204: 0 | AB204: 0 | AC204: 0 | AD204: 0 | AE204: 0 | AF204: 0 | AG204: 0 | AH204: 0 | AI204: 0 | AJ204: 0 | AK204: 0 | AL204: 0 | AM204: 0 | AN204: 0 | AO204: 0 | AP204: 0 | AQ204: 0 | AR204: 0
E206: =E152 -> Nichtlineare Sonstige Aufwände | G206: =G152 -> Euro | H206: 0 | J206: =J152 -> 0 | K206: 0 | L206: =L152 -> 0 | M206: 0 | N206: 0 | O206: 0 | P206: 0 | Q206: 0 | R206: 0 | S206: 0 | T206: 0 | U206: 0 | V206: 0 | W206: 0 | X206: 0 | Y206: 0 | Z206: 0 | AA206: 0 | AB206: 0 | AC206: 0 | AD206: 0 | AE206: 0 | AF206: 0 | AG206: 0 | AH206: 0 | AI206: 0 | AJ206: 0 | AK206: 0 | AL206: 0 | AM206: 0 | AN206: 0 | AO206: 0 | AP206: 0 | AQ206: 0 | AR206: 0
E207: Barwert Sonstige Aufwände | G207: Euro | H207: =SUM(J207:AR207) -> 0 | J207: =J206 / J156 -> 0 | K207: =K206 / K156 -> 0 | L207: =L206 / L156 -> 0 | M207: 0 | N207: 0 | O207: 0 | P207: 0 | Q207: 0 | R207: 0 | S207: 0 | T207: 0 | U207: 0 | V207: 0 | W207: 0 | X207: 0 | Y207: 0 | Z207: 0 | AA207: 0 | AB207: 0 | AC207: 0 | AD207: 0 | AE207: 0 | AF207: 0 | AG207: 0 | AH207: 0 | AI207: 0 | AJ207: 0 | AK207: 0 | AL207: 0 | AM207: 0 | AN207: 0 | AO207: 0 | AP207: 0 | AQ207: 0 | AR207: 0
B209: ="Gesamtbarwert "&'Generelle-Annahmen'!I3&" [NKF-Terminologie]" -> Gesamtbarwert 0-Variante [NKF-Terminologie]
E211: =B209 -> Gesamtbarwert 0-Variante [NKF-Terminologie] | G211: Euro | H211: =SUM(J211:AR211) -> 7404810.688 | J211: =J167 + J179 + J184 - J189 + J199 + J194 - J204 + J207 -> 375781.4058 | K211: =K167 + K179 + K184 - K189 + K199 + K194 - K204 + K207 -> 292696.5421 | L211: =L167 + L179 + L184 - L189 + L199 + L194 - L204 + L207 -> 816813.7741 | M211: 283880.67 | N211: 425615.8489 | O211: 274106.8439 | P211: 269120.1966 | Q211: 264240.1121 | R211: 259463.8867 | S211: 254788.8944 | T211: 250212.5858 | U211: 245732.4846 | V211: 241346.1859 | W211: 237051.3539 | X211: 232845.7196 | Y211: 228727.0788 | Z211: 224693.2901 | AA211: 220742.2728 | AB211: 216872.0053 | AC211: 213080.523 | AD211: 209365.9166 | AE211: 205726.3305 | AF211: 202159.961 | AG211: 198665.0548 | AH211: 195239.9075 | AI211: 191882.8618 | AJ211: 188592.3065 | AK211: 185366.6748 | AL211: 0 | AM211: 0 | AN211: 0 | AO211: 0 | AP211: 0 | AQ211: 0 | AR211: 0
E213: =E211 -> Gesamtbarwert 0-Variante [NKF-Terminologie] | F213: =H211 -> 7404810.688 | G213: Euro
B215: Saldierter Ressourcenverbrauch: Buchwert am Ende des Betrachtungszeitraums abzgl. Aufwendungen
E217: =B215 -> Saldierter Ressourcenverbrauch: Buchwert am Ende des Betrachtungszeitraums abzgl. Aufwendungen | G217: Euro | H217: =INDEX(J217:AR217,,MATCH(1,Zeit!J22:AR22,0)) -> -7154810.688 | J217: =(J24+J38-J52-SUM($J211:J211))*J9 -> 2526004.309 | K217: =(K24+K38-K52-SUM($J211:K211))*K9 -> 2135093.481 | L217: =(L24+L38-L52-SUM($J211:L211))*L9 -> 1220065.421 | M217: =(M24+M38-M52-SUM($J211:M211))*M9 -> 837970.4652 | N217: =(N24+N38-N52-SUM($J211:N211))*N9 -> 314140.3306 | O217: =(O24+O38-O52-SUM($J211:O211))*O9 -> -58180.79907 | P217: =(P24+P38-P52-SUM($J211:P211))*P9 -> -425515.2813 | Q217: =(Q24+Q38-Q52-SUM($J211:Q211))*Q9 -> -787969.6792 | R217: =(R24+R38-R52-SUM($J211:R211))*R9 -> -1145647.852 | S217: =(S24+S38-S52-SUM($J211:S211))*S9 -> -1498651.032 | T217: =(T24+T38-T52-SUM($J211:T211))*T9 -> -1847077.903 | U217: =(U24+U38-U52-SUM($J211:U211))*U9 -> -2191024.673 | V217: =(V24+V38-V52-SUM($J211:V211))*V9 -> -2530585.145 | W217: =(W24+W38-W52-SUM($J211:W211))*W9 -> -2865850.785 | X217: =(X24+X38-X52-SUM($J211:X211))*X9 -> -3196910.79 | Y217: =(Y24+Y38-Y52-SUM($J211:Y211))*Y9 -> -3523852.155 | Z217: =(Z24+Z38-Z52-SUM($J211:Z211))*Z9 -> -3846759.73 | AA217: =(AA24+AA38-AA52-SUM($J211:AA211))*AA9 -> -4165716.289 | AB217: =(AB24+AB38-AB52-SUM($J211:AB211))*AB9 -> -4480802.58 | AC217: =(AC24+AC38-AC52-SUM($J211:AC211))*AC9 -> -4792097.389 | AD217: =(AD24+AD38-AD52-SUM($J211:AD211))*AD9 -> -5099677.591 | AE217: =(AE24+AE38-AE52-SUM($J211:AE211))*AE9 -> -5403618.207 | AF217: =(AF24+AF38-AF52-SUM($J211:AF211))*AF9 -> -5703992.454 | AG217: =(AG24+AG38-AG52-SUM($J211:AG211))*AG9 -> -6000871.794 | AH217: =(AH24+AH38-AH52-SUM($J211:AH211))*AH9 -> -6294325.988 | AI217: =(AI24+AI38-AI52-SUM($J211:AI211))*AI9 -> -6584423.135 | AJ217: =(AJ24+AJ38-AJ52-SUM($J211:AJ211))*AJ9 -> -6871229.727 | AK217: =(AK24+AK38-AK52-SUM($J211:AK211))*AK9 -> -7154810.688 | AL217: =(AL24+AL38-AL52-SUM($J211:AL211))*AL9 -> 0 | AM217: =(AM24+AM38-AM52-SUM($J211:AM211))*AM9 -> 0 | AN217: =(AN24+AN38-AN52-SUM($J211:AN211))*AN9 -> 0 | AO217: =(AO24+AO38-AO52-SUM($J211:AO211))*AO9 -> 0 | AP217: =(AP24+AP38-AP52-SUM($J211:AP211))*AP9 -> 0 | AQ217: =(AQ24+AQ38-AQ52-SUM($J211:AQ211))*AQ9 -> 0 | AR217: =(AR24+AR38-AR52-SUM($J211:AR211))*AR9 -> 0
E219: =E217 -> Saldierter Ressourcenverbrauch: Buchwert am Ende des Betrachtungszeitraums abzgl. Aufwendungen | F219: =H217 -> -7154810.688 | G219: Euro
A221: BERECHNUNG ENERGIEVERBRÄUCHE / CO 2 BILANZ
B223: Gesamtverbrauch
E225: ='Generelle-Annahmen'!E$127 -> Energieverbrauch Heizzwecke | F225: ='Generelle-Annahmen'!I$127*(1-'Generelle-Annahmen'!I$125) -> 0 | G225: ='Generelle-Annahmen'!G$127 -> kWh/a
E226: ='Generelle-Annahmen'!E$132 -> Energieverbrauch Strom | F226: ='Generelle-Annahmen'!I$132*(1-'Generelle-Annahmen'!I$125) -> 0 | G226: ='Generelle-Annahmen'!G$132 -> kWh/a
E227: =E225 -> Energieverbrauch Heizzwecke | G227: =G225 -> kWh/a | H227: =SUM(J227:AR227) -> 0 | J227: =$F$225 * J9 -> 0 | K227: =$F$225 * K9 -> 0 | L227: =$F$225 * L9 -> 0 | M227: 0 | N227: 0 | O227: 0 | P227: 0 | Q227: 0 | R227: 0 | S227: 0 | T227: 0 | U227: 0 | V227: 0 | W227: 0 | X227: 0 | Y227: 0 | Z227: 0 | AA227: 0 | AB227: 0 | AC227: 0 | AD227: 0 | AE227: 0 | AF227: 0 | AG227: 0 | AH227: 0 | AI227: 0 | AJ227: 0 | AK227: 0 | AL227: 0 | AM227: 0 | AN227: 0 | AO227: 0 | AP227: 0 | AQ227: 0 | AR227: 0
E228: =E226 -> Energieverbrauch Strom | G228: =G226 -> kWh/a | H228: =SUM(J228:AR228) -> 0 | J228: =$F$226 * J9 -> 0 | K228: =$F$226 * K9 -> 0 | L228: =$F$226 * L9 -> 0 | M228: 0 | N228: 0 | O228: 0 | P228: 0 | Q228: 0 | R228: 0 | S228: 0 | T228: 0 | U228: 0 | V228: 0 | W228: 0 | X228: 0 | Y228: 0 | Z228: 0 | AA228: 0 | AB228: 0 | AC228: 0 | AD228: 0 | AE228: 0 | AF228: 0 | AG228: 0 | AH228: 0 | AI228: 0 | AJ228: 0 | AK228: 0 | AL228: 0 | AM228: 0 | AN228: 0 | AO228: 0 | AP228: 0 | AQ228: 0 | AR228: 0
E229: Energieverbrauch 0-Variante | G229: =G228 -> kWh/a | H229: =SUM(J229:AR229) -> 0 | J229: =SUM(J227:J228) -> 0 | K229: =SUM(K227:K228) -> 0 | L229: =SUM(L227:L228) -> 0 | M229: 0 | N229: 0 | O229: 0 | P229: 0 | Q229: 0 | R229: 0 | S229: 0 | T229: 0 | U229: 0 | V229: 0 | W229: 0 | X229: 0 | Y229: 0 | Z229: 0 | AA229: 0 | AB229: 0 | AC229: 0 | AD229: 0 | AE229: 0 | AF229: 0 | AG229: 0 | AH229: 0 | AI229: 0 | AJ229: 0 | AK229: 0 | AL229: 0 | AM229: 0 | AN229: 0 | AO229: 0 | AP229: 0 | AQ229: 0 | AR229: 0
E231: Energieverbrauch 0-Variante über Betriebslaufzeit der Investitionsvarianten | G231: kwh/a | H231: =SUM(J231:AR231) -> 0 | J231: =J229 * J9 -> 0 | K231: =K229 * K9 -> 0 | L231: =L229 * L9 -> 0 | M231: 0 | N231: 0 | O231: 0 | P231: 0 | Q231: 0 | R231: 0 | S231: 0 | T231: 0 | U231: 0 | V231: 0 | W231: 0 | X231: 0 | Y231: 0 | Z231: 0 | AA231: 0 | AB231: 0 | AC231: 0 | AD231: 0 | AE231: 0 | AF231: 0 | AG231: 0 | AH231: 0 | AI231: 0 | AJ231: 0 | AK231: 0 | AL231: 0 | AM231: 0 | AN231: 0 | AO231: 0 | AP231: 0 | AQ231: 0 | AR231: 0
E233: ='Generelle-Annahmen'!E$80 -> Fläche in m² BGF | F233: ='Generelle-Annahmen'!I$80 -> 0 | G233: ='Generelle-Annahmen'!G$80 -> m²
E234: Energieverbrauch 0-Variante über Betriebslaufzeit der Investitionsvariante | F234: =IF($F$233>0, H231 / F233,0) -> 0 | G234: kWh pro m²
E236: ='Generelle-Annahmen'!E$57 -> Umrechnungsfaktor für Heizzwecke CO2 [kg/kWh] | F236: ='Generelle-Annahmen'!F$57 -> 0.35 | G236: ='Generelle-Annahmen'!G$57 -> kg/kWh
E237: ='Generelle-Annahmen'!E$58 -> Umrechnungsfaktor für Strom CO2 [kg/kWh] | F237: ='Generelle-Annahmen'!F$58 -> 0.35 | G237: ='Generelle-Annahmen'!G$58 -> kg/kWh
E239: Gesamtverbrauch Heizzwecke CO2 in kg | G239: CO 2 in kg | H239: =SUM(J239:AR239) -> 0 | J239: =$F$236 * J227 -> 0 | K239: =$F$236 * K227 -> 0 | L239: =$F$236 * L227 -> 0 | M239: 0 | N239: 0 | O239: 0 | P239: 0 | Q239: 0 | R239: 0 | S239: 0 | T239: 0 | U239: 0 | V239: 0 | W239: 0 | X239: 0 | Y239: 0 | Z239: 0 | AA239: 0 | AB239: 0 | AC239: 0 | AD239: 0 | AE239: 0 | AF239: 0 | AG239: 0 | AH239: 0 | AI239: 0 | AJ239: 0 | AK239: 0 | AL239: 0 | AM239: 0 | AN239: 0 | AO239: 0 | AP239: 0 | AQ239: 0 | AR239: 0
E240: Gesamtverbrauch Strom CO2 in kg | G240: CO 2 in kg | H240: =SUM(J240:AR240) -> 0 | J240: =$F$237 * J228 -> 0 | K240: =$F$237 * K228 -> 0 | L240: =$F$237 * L228 -> 0 | M240: 0 | N240: 0 | O240: 0 | P240: 0 | Q240: 0 | R240: 0 | S240: 0 | T240: 0 | U240: 0 | V240: 0 | W240: 0 | X240: 0 | Y240: 0 | Z240: 0 | AA240: 0 | AB240: 0 | AC240: 0 | AD240: 0 | AE240: 0 | AF240: 0 | AG240: 0 | AH240: 0 | AI240: 0 | AJ240: 0 | AK240: 0 | AL240: 0 | AM240: 0 | AN240: 0 | AO240: 0 | AP240: 0 | AQ240: 0 | AR240: 0
E241: Gesamtenergieverbrauch CO2 in kg 0-Variante | G241: CO 2 in kg | H241: =SUM(J241:AR241) -> 0 | J241: =SUM(J239:J240) -> 0 | K241: =SUM(K239:K240) -> 0 | L241: =SUM(L239:L240) -> 0 | M241: 0 | N241: 0 | O241: 0 | P241: 0 | Q241: 0 | R241: 0 | S241: 0 | T241: 0 | U241: 0 | V241: 0 | W241: 0 | X241: 0 | Y241: 0 | Z241: 0 | AA241: 0 | AB241: 0 | AC241: 0 | AD241: 0 | AE241: 0 | AF241: 0 | AG241: 0 | AH241: 0 | AI241: 0 | AJ241: 0 | AK241: 0 | AL241: 0 | AM241: 0 | AN241: 0 | AO241: 0 | AP241: 0 | AQ241: 0 | AR241: 0

Sheet Variante 1
A1: ='Generelle-Annahmen'!J3&IF('Generelle-Annahmen'!J10="",""," '"&'Generelle-Annahmen'!J10&"'") -> Variante 1 - Eigenrealisierung Sanierung 'Basiskonzept'
E2: =Zeit!E2 -> Modell Periodenbeginn | G2: =Zeit!G2 -> Datum | J2: =Zeit!J2 -> 2018-01-01 | K2: =Zeit!K2 -> 2019-01-01 | L2: =Zeit!L2 -> 2020-01-01 | M2: =Zeit!M2 -> 2021-01-01 | N2: =Zeit!N2 -> 2022-01-01 | O2: =Zeit!O2 -> 2023-01-01 | P2: =Zeit!P2 -> 2024-01-01 | Q2: =Zeit!Q2 -> 2025-01-01 | R2: =Zeit!R2 -> 2026-01-01 | S2: =Zeit!S2 -> 2027-01-01 | T2: =Zeit!T2 -> 2028-01-01 | U2: =Zeit!U2 -> 2029-01-01 | V2: =Zeit!V2 -> 2030-01-01 | W2: =Zeit!W2 -> 2031-01-01 | X2: =Zeit!X2 -> 2032-01-01 | Y2: =Zeit!Y2 -> 2033-01-01 | Z2: =Zeit!Z2 -> 2034-01-01 | AA2: =Zeit!AA2 -> 2035-01-01 | AB2: =Zeit!AB2 -> 2036-01-01 | AC2: =Zeit!AC2 -> 2037-01-01 | AD2: =Zeit!AD2 -> 2038-01-01 | AE2: =Zeit!AE2 -> 2039-01-01 | AF2: =Zeit!AF2 -> 2040-01-01 | AG2: =Zeit!AG2 -> 2041-01-01 | AH2: =Zeit!AH2 -> 2042-01-01 | AI2: =Zeit!AI2 -> 2043-01-01 | AJ2: =Zeit!AJ2 -> 2044-01-01 | AK2: =Zeit!AK2 -> 2045-01-01 | AL2: =Zeit!AL2 -> 2046-01-01 | AM2: =Zeit!AM2 -> 2047-01-01 | AN2: =Zeit!AN2 -> 2048-01-01 | AO2: =Zeit!AO2 -> 2049-01-01 | AP2: =Zeit!AP2 -> 2050-01-01 | AQ2: =Zeit!AQ2 -> 2051-01-01 | AR2: =Zeit!AR2 -> 2052-01-01
E3: =Zeit!E3 -> Modell Periodenende | G3: =Zeit!G3 -> Datum | J3: =Zeit!J3 -> 2018-12-31 | K3: =Zeit!K3 -> 2019-12-31 | L3: =Zeit!L3 -> 2020-12-31 | M3: =Zeit!M3 -> 2021-12-31 | N3: =Zeit!N3 -> 2022-12-31 | O3: =Zeit!O3 -> 2023-12-31 | P3: =Zeit!P3 -> 2024-12-31 | Q3: =Zeit!Q3 -> 2025-12-31 | R3: =Zeit!R3 -> 2026-12-31 | S3: =Zeit!S3 -> 2027-12-31 | T3: =Zeit!T3 -> 2028-12-31 | U3: =Zeit!U3 -> 2029-12-31 | V3: =Zeit!V3 -> 2030-12-31 | W3: =Zeit!W3 -> 2031-12-31 | X3: =Zeit!X3 -> 2032-12-31 | Y3: =Zeit!Y3 -> 2033-12-31 | Z3: =Zeit!Z3 -> 2034-12-31 | AA3: =Zeit!AA3 -> 2035-12-31 | AB3: =Zeit!AB3 -> 2036-12-31 | AC3: =Zeit!AC3 -> 2037-12-31 | AD3: =Zeit!AD3 -> 2038-12-31 | AE3: =Zeit!AE3 -> 2039-12-31 | AF3: =Zeit!AF3 -> 2040-12-31 | AG3: =Zeit!AG3 -> 2041-12-31 | AH3: =Zeit!AH3 -> 2042-12-31 | AI3: =Zeit!AI3 -> 2043-12-31 | AJ3: =Zeit!AJ3 -> 2044-12-31 | AK3: =Zeit!AK3 -> 2045-12-31 | AL3: =Zeit!AL3 -> 2046-12-31 | AM3: =Zeit!AM3 -> 2047-12-31 | AN3: =Zeit!AN3 -> 2048-12-31 | AO3: =Zeit!AO3 -> 2049-12-31 | AP3: =Zeit!AP3 -> 2050-12-31 | AQ3: =Zeit!AQ3 -> 2051-12-31 | AR3: =Zeit!AR3 -> 2052-12-31
E4: Definition Parameter | F4: Konstante | G4: Einheit | H4: Summe | J4: =YEAR(J3) -> 2018 | K4: =YEAR(K3) -> 2019 | L4: =YEAR(L3) -> 2020 | M4: 2021 | N4: 2022 | O4: 2023 | P4: 2024 | Q4: 2025 | R4: 2026 | S4: 2027 | T4: 2028 | U4: 2029 | V4: 2030 | W4: 2031 | X4: 2032 | Y4: 2033 | Z4: 2034 | AA4: 2035 | AB4: 2036 | AC4: 2037 | AD4: 2038 | AE4: 2039 | AF4: 2040 | AG4: 2041 | AH4: 2042 | AI4: 2043 | AJ4: 2044 | AK4: 2045 | AL4: 2046 | AM4: 2047 | AN4: 2048 | AO4: 2049 | AP4: 2050 | AQ4: 2051 | AR4: 2052
A6: ZEITLICHE ANNAHMEN (FLAGS)
E8: =Zeit!E$29 -> Beginn Bauphase Variante 1 - Eigenrealisierung Sanierung | G8: =Zeit!G$29 -> Flag | H8: =Zeit!H$29 -> 1 | J8: =Zeit!J$29 -> 1 | K8: =Zeit!K$29 -> 0 | L8: =Zeit!L$29 -> 0 | M8: =Zeit!M$29 -> 0 | N8: =Zeit!N$29 -> 0 | O8: =Zeit!O$29 -> 0 | P8: =Zeit!P$29 -> 0 | Q8: =Zeit!Q$29 -> 0 | R8: =Zeit!R$29 -> 0 | S8: =Zeit!S$29 -> 0 | T8: =Zeit!T$29 -> 0 | U8: =Zeit!U$29 -> 0 | V8: =Zeit!V$29 -> 0 | W8: =Zeit!W$29 -> 0 | X8: =Zeit!X$29 -> 0 | Y8: =Zeit!Y$29 -> 0 | Z8: =Zeit!Z$29 -> 0 | AA8: =Zeit!AA$29 -> 0 | AB8: =Zeit!AB$29 -> 0 | AC8: =Zeit!AC$29 -> 0 | AD8: =Zeit!AD$29 -> 0 | AE8: =Zeit!AE$29 -> 0 | AF8: =Zeit!AF$29 -> 0 | AG8: =Zeit!AG$29 -> 0 | AH8: =Zeit!AH$29 -> 0 | AI8: =Zeit!AI$29 -> 0 | AJ8: =Zeit!AJ$29 -> 0 | AK8: =Zeit!AK$29 -> 0 | AL8: =Zeit!AL$29 -> 0 | AM8: =Zeit!AM$29 -> 0 | AN8: =Zeit!AN$29 -> 0 | AO8: =Zeit!AO$29 -> 0 | AP8: =Zeit!AP$29 -> 0 | AQ8: =Zeit!AQ$29 -> 0 | AR8: =Zeit!AR$29 -> 0
E9: =Zeit!E$31 -> Periodenflag Bauphase Variante 1 - Eigenrealisierung Sanierung | G9: =Zeit!G$31 -> Flag | H9: =Zeit!H$31 -> 3 | J9: =Zeit!J$31 -> 1 | K9: =Zeit!K$31 -> 1 | L9: =Zeit!L$31 -> 1 | M9: =Zeit!M$31 -> 0 | N9: =Zeit!N$31 -> 0 | O9: =Zeit!O$31 -> 0 | P9: =Zeit!P$31 -> 0 | Q9: =Zeit!Q$31 -> 0 | R9: =Zeit!R$31 -> 0 | S9: =Zeit!S$31 -> 0 | T9: =Zeit!T$31 -> 0 | U9: =Zeit!U$31 -> 0 | V9: =Zeit!V$31 -> 0 | W9: =Zeit!W$31 -> 0 | X9: =Zeit!X$31 -> 0 | Y9: =Zeit!Y$31 -> 0 | Z9: =Zeit!Z$31 -> 0 | AA9: =Zeit!AA$31 -> 0 | AB9: =Zeit!AB$31 -> 0 | AC9: =Zeit!AC$31 -> 0 | AD9: =Zeit!AD$31 -> 0 | AE9: =Zeit!AE$31 -> 0 | AF9: =Zeit!AF$31 -> 0 | AG9: =Zeit!AG$31 -> 0 | AH9: =Zeit!AH$31 -> 0 | AI9: =Zeit!AI$31 -> 0 | AJ9: =Zeit!AJ$31 -> 0 | AK9: =Zeit!AK$31 -> 0 | AL9: =Zeit!AL$31 -> 0 | AM9: =Zeit!AM$31 -> 0 | AN9: =Zeit!AN$31 -> 0 | AO9: =Zeit!AO$31 -> 0 | AP9: =Zeit!AP$31 -> 0 | AQ9: =Zeit!AQ$31 -> 0 | AR9: =Zeit!AR$31 -> 0
E10: =Zeit!E$30 -> Ende Bauphase Variante 1 - Eigenrealisierung Sanierung | G10: =Zeit!G$30 -> Flag | H10: =Zeit!H$30 -> 1 | J10: =Zeit!J$30 -> 0 | K10: =Zeit!K$30 -> 0 | L10: =Zeit!L$30 -> 1 | M10: =Zeit!M$30 -> 0 | N10: =Zeit!N$30 -> 0 | O10: =Zeit!O$30 -> 0 | P10: =Zeit!P$30 -> 0 | Q10: =Zeit!Q$30 -> 0 | R10: =Zeit!R$30 -> 0 | S10: =Zeit!S$30 -> 0 | T10: =Zeit!T$30 -> 0 | U10: =Zeit!U$30 -> 0 | V10: =Zeit!V$30 -> 0 | W10: =Zeit!W$30 -> 0 | X10: =Zeit!X$30 -> 0 | Y10: =Zeit!Y$30 -> 0 | Z10: =Zeit!Z$30 -> 0 | AA10: =Zeit!AA$30 -> 0 | AB10: =Zeit!AB$30 -> 0 | AC10: =Zeit!AC$30 -> 0 | AD10: =Zeit!AD$30 -> 0 | AE10: =Zeit!AE$30 -> 0 | AF10: =Zeit!AF$30 -> 0 | AG10: =Zeit!AG$30 -> 0 | AH10: =Zeit!AH$30 -> 0 | AI10: =Zeit!AI$30 -> 0 | AJ10: =Zeit!AJ$30 -> 0 | AK10: =Zeit!AK$30 -> 0 | AL10: =Zeit!AL$30 -> 0 | AM10: =Zeit!AM$30 -> 0 | AN10: =Zeit!AN$30 -> 0 | AO10: =Zeit!AO$30 -> 0 | AP10: =Zeit!AP$30 -> 0 | AQ10: =Zeit!AQ$30 -> 0 | AR10: =Zeit!AR$30 -> 0
E11: =Zeit!E$32 -> Korrekturflag Kostenanfall Erste & Letzte Periode Bauphase Variante 1 - Eigenrealisierung Sanierung | G11: =Zeit!G$32 -> Flag | H11: =Zeit!H$32 -> 3 | J11: =Zeit!J$32 -> 1 | K11: =Zeit!K$32 -> 1 | L11: =Zeit!L$32 -> 1 | M11: =Zeit!M$32 -> 0 | N11: =Zeit!N$32 -> 0 | O11: =Zeit!O$32 -> 0 | P11: =Zeit!P$32 -> 0 | Q11: =Zeit!Q$32 -> 0 | R11: =Zeit!R$32 -> 0 | S11: =Zeit!S$32 -> 0 | T11: =Zeit!T$32 -> 0 | U11: =Zeit!U$32 -> 0 | V11: =Zeit!V$32 -> 0 | W11: =Zeit!W$32 -> 0 | X11: =Zeit!X$32 -> 0 | Y11: =Zeit!Y$32 -> 0 | Z11: =Zeit!Z$32 -> 0 | AA11: =Zeit!AA$32 -> 0 | AB11: =Zeit!AB$32 -> 0 | AC11: =Zeit!AC$32 -> 0 | AD11: =Zeit!AD$32 -> 0 | AE11: =Zeit!AE$32 -> 0 | AF11: =Zeit!AF$32 -> 0 | AG11: =Zeit!AG$32 -> 0 | AH11: =Zeit!AH$32 -> 0 | AI11: =Zeit!AI$32 -> 0 | AJ11: =Zeit!AJ$32 -> 0 | AK11: =Zeit!AK$32 -> 0 | AL11: =Zeit!AL$32 -> 0 | AM11: =Zeit!AM$32 -> 0 | AN11: =Zeit!AN$32 -> 0 | AO11: =Zeit!AO$32 -> 0 | AP11: =Zeit!AP$32 -> 0 | AQ11: =Zeit!AQ$32 -> 0 | AR11: =Zeit!AR$32 -> 0
E13: =Zeit!E$37 -> Beginn Betriebsphase Variante 1 - Eigenrealisierung Sanierung | G13: =Zeit!G$37 -> Flag | H13: =Zeit!H$37 -> 1 | J13: =Zeit!J$37 -> 0 | K13: =Zeit!K$37 -> 0 | L13: =Zeit!L$37 -> 0 | M13: =Zeit!M$37 -> 1 | N13: =Zeit!N$37 -> 0 | O13: =Zeit!O$37 -> 0 | P13: =Zeit!P$37 -> 0 | Q13: =Zeit!Q$37 -> 0 | R13: =Zeit!R$37 -> 0 | S13: =Zeit!S$37 -> 0 | T13: =Zeit!T$37 -> 0 | U13: =Zeit!U$37 -> 0 | V13: =Zeit!V$37 -> 0 | W13: =Zeit!W$37 -> 0 | X13: =Zeit!X$37 -> 0 | Y13: =Zeit!Y$37 -> 0 | Z13: =Zeit!Z$37 -> 0 | AA13: =Zeit!AA$37 -> 0 | AB13: =Zeit!AB$37 -> 0 | AC13: =Zeit!AC$37 -> 0 | AD13: =Zeit!AD$37 -> 0 | AE13: =Zeit!AE$37 -> 0 | AF13: =Zeit!AF$37 -> 0 | AG13: =Zeit!AG$37 -> 0 | AH13: =Zeit!AH$37 -> 0 | AI13: =Zeit!AI$37 -> 0 | AJ13: =Zeit!AJ$37 -> 0 | AK13: =Zeit!AK$37 -> 0 | AL13: =Zeit!AL$37 -> 0 | AM13: =Zeit!AM$37 -> 0 | AN13: =Zeit!AN$37 -> 0 | AO13: =Zeit!AO$37 -> 0 | AP13: =Zeit!AP$37 -> 0 | AQ13: =Zeit!AQ$37 -> 0 | AR13: =Zeit!AR$37 -> 0
E14: =Zeit!E$39 -> Periodenflag Betriebsphase Variante 1 - Eigenrealisierung Sanierung | G14: =Zeit!G$39 -> Flag | H14: =Zeit!H$39 -> 25 | J14: =Zeit!J$39 -> 0 | K14: =Zeit!K$39 -> 0 | L14: =Zeit!L$39 -> 0 | M14: =Zeit!M$39 -> 1 | N14: =Zeit!N$39 -> 1 | O14: =Zeit!O$39 -> 1 | P14: =Zeit!P$39 -> 1 | Q14: =Zeit!Q$39 -> 1 | R14: =Zeit!R$39 -> 1 | S14: =Zeit!S$39 -> 1 | T14: =Zeit!T$39 -> 1 | U14: =Zeit!U$39 -> 1 | V14: =Zeit!V$39 -> 1 | W14: =Zeit!W$39 -> 1 | X14: =Zeit!X$39 -> 1 | Y14: =Zeit!Y$39 -> 1 | Z14: =Zeit!Z$39 -> 1 | AA14: =Zeit!AA$39 -> 1 | AB14: =Zeit!AB$39 -> 1 | AC14: =Zeit!AC$39 -> 1 | AD14: =Zeit!AD$39 -> 1 | AE14: =Zeit!AE$39 -> 1 | AF14: =Zeit!AF$39 -> 1 | AG14: =Zeit!AG$39 -> 1 | AH14: =Zeit!AH$39 -> 1 | AI14: =Zeit!AI$39 -> 1 | AJ14: =Zeit!AJ$39 -> 1 | AK14: =Zeit!AK$39 -> 1 | AL14: =Zeit!AL$39 -> 0 | AM14: =Zeit!AM$39 -> 0 | AN14: =Zeit!AN$39 -> 0 | AO14: =Zeit!AO$39 -> 0 | AP14: =Zeit!AP$39 -> 0 | AQ14: =Zeit!AQ$39 -> 0 | AR14: =Zeit!AR$39 -> 0
E15: =Zeit!E$40 -> Korrekturflag Kostenanfall Erste & Letzte Periode Betriebsphase Variante 1 - Eigenrealisierung Sanierung | G15: =Zeit!G$40 -> Flag | H15: =Zeit!H$40 -> 25 | J15: =Zeit!J$40 -> 0 | K15: =Zeit!K$40 -> 0 | L15: =Zeit!L$40 -> 0 | M15: =Zeit!M$40 -> 1 | N15: =Zeit!N$40 -> 1 | O15: =Zeit!O$40 -> 1 | P15: =Zeit!P$40 -> 1 | Q15: =Zeit!Q$40 -> 1 | R15: =Zeit!R$40 -> 1 | S15: =Zeit!S$40 -> 1 | T15: =Zeit!T$40 -> 1 | U15: =Zeit!U$40 -> 1 | V15: =Zeit!V$40 -> 1 | W15: =Zeit!W$40 -> 1 | X15: =Zeit!X$40 -> 1 | Y15: =Zeit!Y$40 -> 1 | Z15: =Zeit!Z$40 -> 1 | AA15: =Zeit!AA$40 -> 1 | AB15: =Zeit!AB$40 -> 1 | AC15: =Zeit!AC$40 -> 1 | AD15: =Zeit!AD$40 -> 1 | AE15: =Zeit!AE$40 -> 1 | AF15: =Zeit!AF$40 -> 1 | AG15: =Zeit!AG$40 -> 1 | AH15: =Zeit!AH$40 -> 1 | AI15: =Zeit!AI$40 -> 1 | AJ15: =Zeit!AJ$40 -> 1 | AK15: =Zeit!AK$40 -> 1 | AL15: =Zeit!AL$40 -> 0 | AM15: =Zeit!AM$40 -> 0 | AN15: =Zeit!AN$40 -> 0 | AO15: =Zeit!AO$40 -> 0 | AP15: =Zeit!AP$40 -> 0 | AQ15: =Zeit!AQ$40 -> 0 | AR15: =Zeit!AR$40 -> 0
E17: =Zeit!E$21 -> Beginn Projektphase | G17: =Zeit!G$21 -> Flag | H17: =Zeit!H$21 -> 1 | J17: =Zeit!J$21 -> 1 | K17: =Zeit!K$21 -> 0 | L17: =Zeit!L$21 -> 0 | M17: =Zeit!M$21 -> 0 | N17: =Zeit!N$21 -> 0 | O17: =Zeit!O$21 -> 0 | P17: =Zeit!P$21 -> 0 | Q17: =Zeit!Q$21 -> 0 | R17: =Zeit!R$21 -> 0 | S17: =Zeit!S$21 -> 0 | T17: =Zeit!T$21 -> 0 | U17: =Zeit!U$21 -> 0 | V17: =Zeit!V$21 -> 0 | W17: =Zeit!W$21 -> 0 | X17: =Zeit!X$21 -> 0 | Y17: =Zeit!Y$21 -> 0 | Z17: =Zeit!Z$21 -> 0 | AA17: =Zeit!AA$21 -> 0 | AB17: =Zeit!AB$21 -> 0 | AC17: =Zeit!AC$21 -> 0 | AD17: =Zeit!AD$21 -> 0 | AE17: =Zeit!AE$21 -> 0 | AF17: =Zeit!AF$21 -> 0 | AG17: =Zeit!AG$21 -> 0 | AH17: =Zeit!AH$21 -> 0 | AI17: =Zeit!AI$21 -> 0 | AJ17: =Zeit!AJ$21 -> 0 | AK17: =Zeit!AK$21 -> 0 | AL17: =Zeit!AL$21 -> 0 | AM17: =Zeit!AM$21 -> 0 | AN17: =Zeit!AN$21 -> 0 | AO17: =Zeit!AO$21 -> 0 | AP17: =Zeit!AP$21 -> 0 | AQ17: =Zeit!AQ$21 -> 0 | AR17: =Zeit!AR$21 -> 0
E18: =Zeit!E$23 -> Periodenflag Projektphase | G18: =Zeit!G$23 -> Flag | H18: =Zeit!H$23 -> 28 | J18: =Zeit!J$23 -> 1 | K18: =Zeit!K$23 -> 1 | L18: =Zeit!L$23 -> 1 | M18: =Zeit!M$23 -> 1 | N18: =Zeit!N$23 -> 1 | O18: =Zeit!O$23 -> 1 | P18: =Zeit!P$23 -> 1 | Q18: =Zeit!Q$23 -> 1 | R18: =Zeit!R$23 -> 1 | S18: =Zeit!S$23 -> 1 | T18: =Zeit!T$23 -> 1 | U18: =Zeit!U$23 -> 1 | V18: =Zeit!V$23 -> 1 | W18: =Zeit!W$23 -> 1 | X18: =Zeit!X$23 -> 1 | Y18: =Zeit!Y$23 -> 1 | Z18: =Zeit!Z$23 -> 1 | AA18: =Zeit!AA$23 -> 1 | AB18: =Zeit!AB$23 -> 1 | AC18: =Zeit!AC$23 -> 1 | AD18: =Zeit!AD$23 -> 1 | AE18: =Zeit!AE$23 -> 1 | AF18: =Zeit!AF$23 -> 1 | AG18: =Zeit!AG$23 -> 1 | AH18: =Zeit!AH$23 -> 1 | AI18: =Zeit!AI$23 -> 1 | AJ18: =Zeit!AJ$23 -> 1 | AK18: =Zeit!AK$23 -> 1 | AL18: =Zeit!AL$23 -> 0 | AM18: =Zeit!AM$23 -> 0 | AN18: =Zeit!AN$23 -> 0 | AO18: =Zeit!AO$23 -> 0 | AP18: =Zeit!AP$23 -> 0 | AQ18: =Zeit!AQ$23 -> 0 | AR18: =Zeit!AR$23 -> 0
E19: =Zeit!E$24 -> Korrekturflag Kostenanfall Erste & Letzte Periode Projektphase | G19: =Zeit!G$24 -> Flag | H19: =SUM(J19:AR19) -> 28 | J19: =Zeit!J$24 -> 1 | K19: =Zeit!K$24 -> 1 | L19: =Zeit!L$24 -> 1 | M19: =Zeit!M$24 -> 1 | N19: =Zeit!N$24 -> 1 | O19: =Zeit!O$24 -> 1 | P19: =Zeit!P$24 -> 1 | Q19: =Zeit!Q$24 -> 1 | R19: =Zeit!R$24 -> 1 | S19: =Zeit!S$24 -> 1 | T19: =Zeit!T$24 -> 1 | U19: =Zeit!U$24 -> 1 | V19: =Zeit!V$24 -> 1 | W19: =Zeit!W$24 -> 1 | X19: =Zeit!X$24 -> 1 | Y19: =Zeit!Y$24 -> 1 | Z19: =Zeit!Z$24 -> 1 | AA19: =Zeit!AA$24 -> 1 | AB19: =Zeit!AB$24 -> 1 | AC19: =Zeit!AC$24 -> 1 | AD19: =Zeit!AD$24 -> 1 | AE19: =Zeit!AE$24 -> 1 | AF19: =Zeit!AF$24 -> 1 | AG19: =Zeit!AG$24 -> 1 | AH19: =Zeit!AH$24 -> 1 | AI19: =Zeit!AI$24 -> 1 | AJ19: =Zeit!AJ$24 -> 1 | AK19: =Zeit!AK$24 -> 1 | AL19: =Zeit!AL$24 -> 0 | AM19: =Zeit!AM$24 -> 0 | AN19: =Zeit!AN$24 -> 0 | AO19: =Zeit!AO$24 -> 0 | AP19: =Zeit!AP$24 -> 0 | AQ19: =Zeit!AQ$24 -> 0 | AR19: =Zeit!AR$24 -> 0
E21: =Zeit!E$41 -> Tilgungsperioden Variante 1 - Eigenrealisierung Sanierung | G21: =Zeit!G$41 -> Flag | H21: =Zeit!H$41 -> 325 | J21: =Zeit!J$41 -> 0 | K21: =Zeit!K$41 -> 0 | L21: =Zeit!L$41 -> 0 | M21: =Zeit!M$41 -> 1 | N21: =Zeit!N$41 -> 2 | O21: =Zeit!O$41 -> 3 | P21: =Zeit!P$41 -> 4 | Q21: =Zeit!Q$41 -> 5 | R21: =Zeit!R$41 -> 6 | S21: =Zeit!S$41 -> 7 | T21: =Zeit!T$41 -> 8 | U21: =Zeit!U$41 -> 9 | V21: =Zeit!V$41 -> 10 | W21: =Zeit!W$41 -> 11 | X21: =Zeit!X$41 -> 12 | Y21: =Zeit!Y$41 -> 13 | Z21: =Zeit!Z$41 -> 14 | AA21: =Zeit!AA$41 -> 15 | AB21: =Zeit!AB$41 -> 16 | AC21: =Zeit!AC$41 -> 17 | AD21: =Zeit!AD$41 -> 18 | AE21: =Zeit!AE$41 -> 19 | AF21: =Zeit!AF$41 -> 20 | AG21: =Zeit!AG$41 -> 21 | AH21: =Zeit!AH$41 -> 22 | AI21: =Zeit!AI$41 -> 23 | AJ21: =Zeit!AJ$41 -> 24 | AK21: =Zeit!AK$41 -> 25 | AL21: =Zeit!AL$41 -> 0 | AM21: =Zeit!AM$41 -> 0 | AN21: =Zeit!AN$41 -> 0 | AO21: =Zeit!AO$41 -> 0 | AP21: =Zeit!AP$41 -> 0 | AQ21: =Zeit!AQ$41 -> 0 | AR21: =Zeit!AR$41 -> 0
A23: BERECHNUNG OBJEKTWERT VON VERMÖGEN (VOR UND NACH INVESTITION)
B25: Grundstück
E27: ='Generelle-Annahmen'!E$73 -> Restbuchwert Grundstück | F27: ='Generelle-Annahmen'!J$73 -> 250000 | G27: ='Generelle-Annahmen'!G$73 -> Euro
E28: Auf Grunderwerb entfallende anteilige Gesamtbaukosten = Aktivierbare Investitionen [inkl. Risikofaktor] | F28: ='Generelle-Annahmen'!J$94*IF('Generelle-Annahmen'!J93=0,0,'Generelle-Annahmen'!J84/'Generelle-Annahmen'!J93) -> 0 | G28: ='Generelle-Annahmen'!G$94 -> Euro
E29: ='Nichtlineare-Annahmen'!E$36 -> Außerplanmäßige Abschreibung bzw. Anlagenabgang Grundstück | G29: ='Nichtlineare-Annahmen'!G$36 -> Euro | H29: ='Nichtlineare-Annahmen'!H$36 -> 0 | J29: ='Nichtlineare-Annahmen'!J$36 -> 0 | K29: ='Nichtlineare-Annahmen'!K$36 -> 0 | L29: ='Nichtlineare-Annahmen'!L$36 -> 0 | M29: ='Nichtlineare-Annahmen'!M$36 -> 0 | N29: ='Nichtlineare-Annahmen'!N$36 -> 0 | O29: ='Nichtlineare-Annahmen'!O$36 -> 0 | P29: ='Nichtlineare-Annahmen'!P$36 -> 0 | Q29: ='Nichtlineare-Annahmen'!Q$36 -> 0 | R29: ='Nichtlineare-Annahmen'!R$36 -> 0 | S29: ='Nichtlineare-Annahmen'!S$36 -> 0 | T29: ='Nichtlineare-Annahmen'!T$36 -> 0 | U29: ='Nichtlineare-Annahmen'!U$36 -> 0 | V29: ='Nichtlineare-Annahmen'!V$36 -> 0 | W29: ='Nichtlineare-Annahmen'!W$36 -> 0 | X29: ='Nichtlineare-Annahmen'!X$36 -> 0 | Y29: ='Nichtlineare-Annahmen'!Y$36 -> 0 | Z29: ='Nichtlineare-Annahmen'!Z$36 -> 0 | AA29: ='Nichtlineare-Annahmen'!AA$36 -> 0 | AB29: ='Nichtlineare-Annahmen'!AB$36 -> 0 | AC29: ='Nichtlineare-Annahmen'!AC$36 -> 0 | AD29: ='Nichtlineare-Annahmen'!AD$36 -> 0 | AE29: ='Nichtlineare-Annahmen'!AE$36 -> 0 | AF29: ='Nichtlineare-Annahmen'!AF$36 -> 0 | AG29: ='Nichtlineare-Annahmen'!AG$36 -> 0 | AH29: ='Nichtlineare-Annahmen'!AH$36 -> 0 | AI29: ='Nichtlineare-Annahmen'!AI$36 -> 0 | AJ29: ='Nichtlineare-Annahmen'!AJ$36 -> 0 | AK29: ='Nichtlineare-Annahmen'!AK$36 -> 0 | AL29: ='Nichtlineare-Annahmen'!AL$36 -> 0 | AM29: ='Nichtlineare-Annahmen'!AM$36 -> 0 | AN29: ='Nichtlineare-Annahmen'!AN$36 -> 0 | AO29: ='Nichtlineare-Annahmen'!AO$36 -> 0 | AP29: ='Nichtlineare-Annahmen'!AP$36 -> 0 | AQ29: ='Nichtlineare-Annahmen'!AQ$36 -> 0 | AR29: ='Nichtlineare-Annahmen'!AR$36 -> 0
E30: Abschreibungsbetrag pro Jahr Grundstück mit außerplanmäßiger Abschreibung bzw. Anlagenabgang | G30: Euro | H30: =SUM(J30:AR30) -> 0 | J30: =MIN($F27+SUM($F28:$F28)*J14-SUM($I30:I30),J29) * J18 -> 0 | K30: =MIN($F27+SUM($F28:$F28)*K14-SUM($I30:J30),K29) * K18 -> 0 | L30: =MIN($F27+SUM($F28:$F28)*L14-SUM($I30:K30),L29) * L18 -> 0 | M30: =MIN($F27+SUM($F28:$F28)*M14-SUM($I30:L30),M29) * M18 -> 0 | N30: =MIN($F27+SUM($F28:$F28)*N14-SUM($I30:M30),N29) * N18 -> 0 | O30: =MIN($F27+SUM($F28:$F28)*O14-SUM($I30:N30),O29) * O18 -> 0 | P30: =MIN($F27+SUM($F28:$F28)*P14-SUM($I30:O30),P29) * P18 -> 0 | Q30: =MIN($F27+SUM($F28:$F28)*Q14-SUM($I30:P30),Q29) * Q18 -> 0 | R30: =MIN($F27+SUM($F28:$F28)*R14-SUM($I30:Q30),R29) * R18 -> 0 | S30: =MIN($F27+SUM($F28:$F28)*S14-SUM($I30:R30),S29) * S18 -> 0 | T30: =MIN($F27+SUM($F28:$F28)*T14-SUM($I30:S30),T29) * T18 -> 0 | U30: =MIN($F27+SUM($F28:$F28)*U14-SUM($I30:T30),U29) * U18 -> 0 | V30: =MIN($F27+SUM($F28:$F28)*V14-SUM($I30:U30),V29) * V18 -> 0 | W30: =MIN($F27+SUM($F28:$F28)*W14-SUM($I30:V30),W29) * W18 -> 0 | X30: =MIN($F27+SUM($F28:$F28)*X14-SUM($I30:W30),X29) * X18 -> 0 | Y30: =MIN($F27+SUM($F28:$F28)*Y14-SUM($I30:X30),Y29) * Y18 -> 0 | Z30: =MIN($F27+SUM($F28:$F28)*Z14-SUM($I30:Y30),Z29) * Z18 -> 0 | AA30: =MIN($F27+SUM($F28:$F28)*AA14-SUM($I30:Z30),AA29) * AA18 -> 0 | AB30: =MIN($F27+SUM($F28:$F28)*AB14-SUM($I30:AA30),AB29) * AB18 -> 0 | AC30: =MIN($F27+SUM($F28:$F28)*AC14-SUM($I30:AB30),AC29) * AC18 -> 0 | AD30: =MIN($F27+SUM($F28:$F28)*AD14-SUM($I30:AC30),AD29) * AD18 -> 0 | AE30: =MIN($F27+SUM($F28:$F28)*AE14-SUM($I30:AD30),AE29) * AE18 -> 0 | AF30: =MIN($F27+SUM($F28:$F28)*AF14-SUM($I30:AE30),AF29) * AF18 -> 0 | AG30: =MIN($F27+SUM($F28:$F28)*AG14-SUM($I30:AF30),AG29) * AG18 -> 0 | AH30: =MIN($F27+SUM($F28:$F28)*AH14-SUM($I30:AG30),AH29) * AH18 -> 0 | AI30: =MIN($F27+SUM($F28:$F28)*AI14-SUM($I30:AH30),AI29) * AI18 -> 0 | AJ30: =MIN($F27+SUM($F28:$F28)*AJ14-SUM($I30:AI30),AJ29) * AJ18 -> 0 | AK30: =MIN($F27+SUM($F28:$F28)*AK14-SUM($I30:AJ30),AK29) * AK18 -> 0 | AL30: =MIN($F27+SUM($F28:$F28)*AL14-SUM($I30:AK30),AL29) * AL18 -> 0 | AM30: =MIN($F27+SUM($F28:$F28)*AM14-SUM($I30:AL30),AM29) * AM18 -> 0 | AN30: =MIN($F27+SUM($F28:$F28)*AN14-SUM($I30:AM30),AN29) * AN18 -> 0 | AO30: =MIN($F27+SUM($F28:$F28)*AO14-SUM($I30:AN30),AO29) * AO18 -> 0 | AP30: =MIN($F27+SUM($F28:$F28)*AP14-SUM($I30:AO30),AP29) * AP18 -> 0 | AQ30: =MIN($F27+SUM($F28:$F28)*AQ14-SUM($I30:AP30),AQ29) * AQ18 -> 0 | AR30: =MIN($F27+SUM($F28:$F28)*AR14-SUM($I30:AQ30),AR29) * AR18 -> 0
C32: Buchwertentwicklung des Grundstücks
E34: Buchwert des Grundstücks zu Beginn des Jahres | G34: Euro | J34: =(IF(J17 = 1, $F$27, I36) + IF(J13 = 1, $F$28,0)) * J18 -> 250000 | K34: =(IF(K17 = 1, $F$27, J36) + IF(K13 = 1, $F$28,0)) * K18 -> 250000 | L34: =(IF(L17 = 1, $F$27, K36) + IF(L13 = 1, $F$28,0)) * L18 -> 250000 | M34: 250000 | N34: 250000 | O34: 250000 | P34: 250000 | Q34: 250000 | R34: 250000 | S34: 250000 | T34: 250000 | U34: 250000 | V34: 250000 | W34: 250000 | X34: 250000 | Y34: 250000 | Z34: 250000 | AA34: 250000 | AB34: 250000 | AC34: 250000 | AD34: 250000 | AE34: 250000 | AF34: 250000 | AG34: 250000 | AH34: 250000 | AI34: 250000 | AJ34: 250000 | AK34: 250000 | AL34: 0 | AM34: 0 | AN34: 0 | AO34: 0 | AP34: 0 | AQ34: 0 | AR34: 0
E35: =E30 -> Abschreibungsbetrag pro Jahr Grundstück mit außerplanmäßiger Abschreibung bzw. Anlagenabgang | G35: =G30 -> Euro | H35: 0 | J35: =J30 -> 0 | K35: =K30 -> 0 | L35: =L30 -> 0 | M35: 0 | N35: 0 | O35: 0 | P35: 0 | Q35: 0 | R35: 0 | S35: 0 | T35: 0 | U35: 0 | V35: 0 | W35: 0 | X35: 0 | Y35: 0 | Z35: 0 | AA35: 0 | AB35: 0 | AC35: 0 | AD35: 0 | AE35: 0 | AF35: 0 | AG35: 0 | AH35: 0 | AI35: 0 | AJ35: 0 | AK35: 0 | AL35: 0 | AM35: 0 | AN35: 0 | AO35: 0 | AP35: 0 | AQ35: 0 | AR35: 0
E36: Buchwert des Grundstücks Ende des Jahres | G36: Euro | J36: =J34 - J35 -> 250000 | K36: =K34 - K35 -> 250000 | L36: =L34 - L35 -> 250000 | M36: 250000 | N36: 250000 | O36: 250000 | P36: 250000 | Q36: 250000 | R36: 250000 | S36: 250000 | T36: 250000 | U36: 250000 | V36: 250000 | W36: 250000 | X36: 250000 | Y36: 250000 | Z36: 250000 | AA36: 250000 | AB36: 250000 | AC36: 250000 | AD36: 250000 | AE36: 250000 | AF36: 250000 | AG36: 250000 | AH36: 250000 | AI36: 250000 | AJ36: 250000 | AK36: 250000 | AL36: 0 | AM36: 0 | AN36: 0 | AO36: 0 | AP36: 0 | AQ36: 0 | AR36: 0
B38: Gebäude
C40: ="Vor "&'Generelle-Annahmen'!$J$8 -> Vor Sanierung
E42: ='Generelle-Annahmen'!E$74 -> Restbuchwert Gebäude | F42: ='Generelle-Annahmen'!J$74 -> 4750000 | G42: ='Generelle-Annahmen'!G$74 -> Euro
E43: ='Generelle-Annahmen'!E$76 -> Verbleibende Abschreibungsdauer Gebäude & Auflösung Sonderposten | F43: ='Generelle-Annahmen'!J$76 -> 28 | G43: ='Generelle-Annahmen'!G$76 -> Jahre
E44: ='Nichtlineare-Annahmen'!E$37 -> Außerplanmäßige Abschreibung bzw. Anlagenabgang "alter" Gebäudebestand | G44: ='Nichtlineare-Annahmen'!G$37 -> Euro | H44: ='Nichtlineare-Annahmen'!H$37 -> 0 | J44: ='Nichtlineare-Annahmen'!J$37 -> 0 | K44: ='Nichtlineare-Annahmen'!K$37 -> 0 | L44: ='Nichtlineare-Annahmen'!L$37 -> 0 | M44: ='Nichtlineare-Annahmen'!M$37 -> 0 | N44: ='Nichtlineare-Annahmen'!N$37 -> 0 | O44: ='Nichtlineare-Annahmen'!O$37 -> 0 | P44: ='Nichtlineare-Annahmen'!P$37 -> 0 | Q44: ='Nichtlineare-Annahmen'!Q$37 -> 0 | R44: ='Nichtlineare-Annahmen'!R$37 -> 0 | S44: ='Nichtlineare-Annahmen'!S$37 -> 0 | T44: ='Nichtlineare-Annahmen'!T$37 -> 0 | U44: ='Nichtlineare-Annahmen'!U$37 -> 0 | V44: ='Nichtlineare-Annahmen'!V$37 -> 0 | W44: ='Nichtlineare-Annahmen'!W$37 -> 0 | X44: ='Nichtlineare-Annahmen'!X$37 -> 0 | Y44: ='Nichtlineare-Annahmen'!Y$37 -> 0 | Z44: ='Nichtlineare-Annahmen'!Z$37 -> 0 | AA44: ='Nichtlineare-Annahmen'!AA$37 -> 0 | AB44: ='Nichtlineare-Annahmen'!AB$37 -> 0 | AC44: ='Nichtlineare-Annahmen'!AC$37 -> 0 | AD44: ='Nichtlineare-Annahmen'!AD$37 -> 0 | AE44: ='Nichtlineare-Annahmen'!AE$37 -> 0 | AF44: ='Nichtlineare-Annahmen'!AF$37 -> 0 | AG44: ='Nichtlineare-Annahmen'!AG$37 -> 0 | AH44: ='Nichtlineare-Annahmen'!AH$37 -> 0 | AI44: ='Nichtlineare-Annahmen'!AI$37 -> 0 | AJ44: ='Nichtlineare-Annahmen'!AJ$37 -> 0 | AK44: ='Nichtlineare-Annahmen'!AK$37 -> 0 | AL44: ='Nichtlineare-Annahmen'!AL$37 -> 0 | AM44: ='Nichtlineare-Annahmen'!AM$37 -> 0 | AN44: ='Nichtlineare-Annahmen'!AN$37 -> 0 | AO44: ='Nichtlineare-Annahmen'!AO$37 -> 0 | AP44: ='Nichtlineare-Annahmen'!AP$37 -> 0 | AQ44: ='Nichtlineare-Annahmen'!AQ$37 -> 0 | AR44: ='Nichtlineare-Annahmen'!AR$37 -> 0
E45: Planmäßig, linearer Abschreibungsbetrag pro Jahr Gebäude nach außerplanmäßiger Abschreibung | G45: Euro | H45: =SUM(J45:AR45) -> 508928.5714 | J45: =MIN(($F42-SUM($I44:I45)) / MAX(1,$F43-SUM($I$19:I$19))*(J$19-J$15*J$14),$F42-SUM($I44:I45,J44))*IF(AND(SUM(J$18:$AR$18)=1,SUM(J$14:$AR$14)>1),1/J$19,1) -> 169642.8571 | K45: =MIN(($F42-SUM($I44:J45)) / MAX(1,$F43-SUM($I$19:J$19))*(K$19-K$15*K$14),$F42-SUM($I44:J45,K44))*IF(AND(SUM(K$18:$AR$18)=1,SUM(K$14:$AR$14)>1),1/K$19,1) -> 169642.8571 | L45: =MIN(($F42-SUM($I44:K45)) / MAX(1,$F43-SUM($I$19:K$19))*(L$19-L$15*L$14),$F42-SUM($I44:K45,L44))*IF(AND(SUM(L$18:$AR$18)=1,SUM(L$14:$AR$14)>1),1/L$19,1) -> 169642.8571 | M45: =MIN(($F42-SUM($I44:L45)) / MAX(1,$F43-SUM($I$19:L$19))*(M$19-M$15*M$14),$F42-SUM($I44:L45,M44))*IF(AND(SUM(M$18:$AR$18)=1,SUM(M$14:$AR$14)>1),1/M$19,1) -> 0 | N45: =MIN(($F42-SUM($I44:M45)) / MAX(1,$F43-SUM($I$19:M$19))*(N$19-N$15*N$14),$F42-SUM($I44:M45,N44))*IF(AND(SUM(N$18:$AR$18)=1,SUM(N$14:$AR$14)>1),1/N$19,1) -> 0 | O45: =MIN(($F42-SUM($I44:N45)) / MAX(1,$F43-SUM($I$19:N$19))*(O$19-O$15*O$14),$F42-SUM($I44:N45,O44))*IF(AND(SUM(O$18:$AR$18)=1,SUM(O$14:$AR$14)>1),1/O$19,1) -> 0 | P45: =MIN(($F42-SUM($I44:O45)) / MAX(1,$F43-SUM($I$19:O$19))*(P$19-P$15*P$14),$F42-SUM($I44:O45,P44))*IF(AND(SUM(P$18:$AR$18)=1,SUM(P$14:$AR$14)>1),1/P$19,1) -> 0 | Q45: =MIN(($F42-SUM($I44:P45)) / MAX(1,$F43-SUM($I$19:P$19))*(Q$19-Q$15*Q$14),$F42-SUM($I44:P45,Q44))*IF(AND(SUM(Q$18:$AR$18)=1,SUM(Q$14:$AR$14)>1),1/Q$19,1) -> 0 | R45: =MIN(($F42-SUM($I44:Q45)) / MAX(1,$F43-SUM($I$19:Q$19))*(R$19-R$15*R$14),$F42-SUM($I44:Q45,R44))*IF(AND(SUM(R$18:$AR$18)=1,SUM(R$14:$AR$14)>1),1/R$19,1) -> 0 | S45: =MIN(($F42-SUM($I44:R45)) / MAX(1,$F43-SUM($I$19:R$19))*(S$19-S$15*S$14),$F42-SUM($I44:R45,S44))*IF(AND(SUM(S$18:$AR$18)=1,SUM(S$14:$AR$14)>1),1/S$19,1) -> 0 | T45: =MIN(($F42-SUM($I44:S45)) / MAX(1,$F43-SUM($I$19:S$19))*(T$19-T$15*T$14),$F42-SUM($I44:S45,T44))*IF(AND(SUM(T$18:$AR$18)=1,SUM(T$14:$AR$14)>1),1/T$19,1) -> 0 | U45: =MIN(($F42-SUM($I44:T45)) / MAX(1,$F43-SUM($I$19:T$19))*(U$19-U$15*U$14),$F42-SUM($I44:T45,U44))*IF(AND(SUM(U$18:$AR$18)=1,SUM(U$14:$AR$14)>1),1/U$19,1) -> 0 | V45: =MIN(($F42-SUM($I44:U45)) / MAX(1,$F43-SUM($I$19:U$19))*(V$19-V$15*V$14),$F42-SUM($I44:U45,V44))*IF(AND(SUM(V$18:$AR$18)=1,SUM(V$14:$AR$14)>1),1/V$19,1) -> 0 | W45: =MIN(($F42-SUM($I44:V45)) / MAX(1,$F43-SUM($I$19:V$19))*(W$19-W$15*W$14),$F42-SUM($I44:V45,W44))*IF(AND(SUM(W$18:$AR$18)=1,SUM(W$14:$AR$14)>1),1/W$19,1) -> 0 | X45: =MIN(($F42-SUM($I44:W45)) / MAX(1,$F43-SUM($I$19:W$19))*(X$19-X$15*X$14),$F42-SUM($I44:W45,X44))*IF(AND(SUM(X$18:$AR$18)=1,SUM(X$14:$AR$14)>1),1/X$19,1) -> 0 | Y45: =MIN(($F42-SUM($I44:X45)) / MAX(1,$F43-SUM($I$19:X$19))*(Y$19-Y$15*Y$14),$F42-SUM($I44:X45,Y44))*IF(AND(SUM(Y$18:$AR$18)=1,SUM(Y$14:$AR$14)>1),1/Y$19,1) -> 0 | Z45: =MIN(($F42-SUM($I44:Y45)) / MAX(1,$F43-SUM($I$19:Y$19))*(Z$19-Z$15*Z$14),$F42-SUM($I44:Y45,Z44))*IF(AND(SUM(Z$18:$AR$18)=1,SUM(Z$14:$AR$14)>1),1/Z$19,1) -> 0 | AA45: =MIN(($F42-SUM($I44:Z45)) / MAX(1,$F43-SUM($I$19:Z$19))*(AA$19-AA$15*AA$14),$F42-SUM($I44:Z45,AA44))*IF(AND(SUM(AA$18:$AR$18)=1,SUM(AA$14:$AR$14)>1),1/AA$19,1) -> 0 | AB45: =MIN(($F42-SUM($I44:AA45)) / MAX(1,$F43-SUM($I$19:AA$19))*(AB$19-AB$15*AB$14),$F42-SUM($I44:AA45,AB44))*IF(AND(SUM(AB$18:$AR$18)=1,SUM(AB$14:$AR$14)>1),1/AB$19,1) -> 0 | AC45: =MIN(($F42-SUM($I44:AB45)) / MAX(1,$F43-SUM($I$19:AB$19))*(AC$19-AC$15*AC$14),$F42-SUM($I44:AB45,AC44))*IF(AND(SUM(AC$18:$AR$18)=1,SUM(AC$14:$AR$14)>1),1/AC$19,1) -> 0 | AD45: =MIN(($F42-SUM($I44:AC45)) / MAX(1,$F43-SUM($I$19:AC$19))*(AD$19-AD$15*AD$14),$F42-SUM($I44:AC45,AD44))*IF(AND(SUM(AD$18:$AR$18)=1,SUM(AD$14:$AR$14)>1),1/AD$19,1) -> 0 | AE45: =MIN(($F42-SUM($I44:AD45)) / MAX(1,$F43-SUM($I$19:AD$19))*(AE$19-AE$15*AE$14),$F42-SUM($I44:AD45,AE44))*IF(AND(SUM(AE$18:$AR$18)=1,SUM(AE$14:$AR$14)>1),1/AE$19,1) -> 0 | AF45: =MIN(($F42-SUM($I44:AE45)) / MAX(1,$F43-SUM($I$19:AE$19))*(AF$19-AF$15*AF$14),$F42-SUM($I44:AE45,AF44))*IF(AND(SUM(AF$18:$AR$18)=1,SUM(AF$14:$AR$14)>1),1/AF$19,1) -> 0 | AG45: =MIN(($F42-SUM($I44:AF45)) / MAX(1,$F43-SUM($I$19:AF$19))*(AG$19-AG$15*AG$14),$F42-SUM($I44:AF45,AG44))*IF(AND(SUM(AG$18:$AR$18)=1,SUM(AG$14:$AR$14)>1),1/AG$19,1) -> 0 | AH45: =MIN(($F42-SUM($I44:AG45)) / MAX(1,$F43-SUM($I$19:AG$19))*(AH$19-AH$15*AH$14),$F42-SUM($I44:AG45,AH44))*IF(AND(SUM(AH$18:$AR$18)=1,SUM(AH$14:$AR$14)>1),1/AH$19,1) -> 0 | AI45: =MIN(($F42-SUM($I44:AH45)) / MAX(1,$F43-SUM($I$19:AH$19))*(AI$19-AI$15*AI$14),$F42-SUM($I44:AH45,AI44))*IF(AND(SUM(AI$18:$AR$18)=1,SUM(AI$14:$AR$14)>1),1/AI$19,1) -> 0 | AJ45: =MIN(($F42-SUM($I44:AI45)) / MAX(1,$F43-SUM($I$19:AI$19))*(AJ$19-AJ$15*AJ$14),$F42-SUM($I44:AI45,AJ44))*IF(AND(SUM(AJ$18:$AR$18)=1,SUM(AJ$14:$AR$14)>1),1/AJ$19,1) -> 0 | AK45: =MIN(($F42-SUM($I44:AJ45)) / MAX(1,$F43-SUM($I$19:AJ$19))*(AK$19-AK$15*AK$14),$F42-SUM($I44:AJ45,AK44))*IF(AND(SUM(AK$18:$AR$18)=1,SUM(AK$14:$AR$14)>1),1/AK$19,1) -> 0 | AL45: =MIN(($F42-SUM($I44:AK45)) / MAX(1,$F43-SUM($I$19:AK$19))*(AL$19-AL$15*AL$14),$F42-SUM($I44:AK45,AL44))*IF(AND(SUM(AL$18:$AR$18)=1,SUM(AL$14:$AR$14)>1),1/AL$19,1) -> 0 | AM45: =MIN(($F42-SUM($I44:AL45)) / MAX(1,$F43-SUM($I$19:AL$19))*(AM$19-AM$15*AM$14),$F42-SUM($I44:AL45,AM44))*IF(AND(SUM(AM$18:$AR$18)=1,SUM(AM$14:$AR$14)>1),1/AM$19,1) -> 0 | AN45: =MIN(($F42-SUM($I44:AM45)) / MAX(1,$F43-SUM($I$19:AM$19))*(AN$19-AN$15*AN$14),$F42-SUM($I44:AM45,AN44))*IF(AND(SUM(AN$18:$AR$18)=1,SUM(AN$14:$AR$14)>1),1/AN$19,1) -> 0 | AO45: =MIN(($F42-SUM($I44:AN45)) / MAX(1,$F43-SUM($I$19:AN$19))*(AO$19-AO$15*AO$14),$F42-SUM($I44:AN45,AO44))*IF(AND(SUM(AO$18:$AR$18)=1,SUM(AO$14:$AR$14)>1),1/AO$19,1) -> 0 | AP45: =MIN(($F42-SUM($I44:AO45)) / MAX(1,$F43-SUM($I$19:AO$19))*(AP$19-AP$15*AP$14),$F42-SUM($I44:AO45,AP44))*IF(AND(SUM(AP$18:$AR$18)=1,SUM(AP$14:$AR$14)>1),1/AP$19,1) -> 0 | AQ45: =MIN(($F42-SUM($I44:AP45)) / MAX(1,$F43-SUM($I$19:AP$19))*(AQ$19-AQ$15*AQ$14),$F42-SUM($I44:AP45,AQ44))*IF(AND(SUM(AQ$18:$AR$18)=1,SUM(AQ$14:$AR$14)>1),1/AQ$19,1) -> 0 | AR45: =MIN(($F42-SUM($I44:AQ45)) / MAX(1,$F43-SUM($I$19:AQ$19))*(AR$19-AR$15*AR$14),$F42-SUM($I44:AQ45,AR44))*IF(AND(SUM(AR$18:$AR$18)=1,SUM(AR$14:$AR$14)>1),1/AR$19,1) -> 0
E46: Abschreibungsbetrag pro Jahr Gebäude planmäßig & außerplanmäßig mit Anpassung | G46: Euro | H46: =SUM(J46:AR46) -> 508928.5714 | J46: =SUM(J44:J45)*(J$18-J$14*(1-J$9)) -> 169642.8571 | K46: =SUM(K44:K45)*(K$18-K$14*(1-K$9)) -> 169642.8571 | L46: =SUM(L44:L45)*(L$18-L$14*(1-L$9)) -> 169642.8571 | M46: 0 | N46: 0 | O46: 0 | P46: 0 | Q46: 0 | R46: 0 | S46: 0 | T46: 0 | U46: 0 | V46: 0 | W46: 0 | X46: 0 | Y46: 0 | Z46: 0 | AA46: 0 | AB46: 0 | AC46: 0 | AD46: 0 | AE46: 0 | AF46: 0 | AG46: 0 | AH46: 0 | AI46: 0 | AJ46: 0 | AK46: 0 | AL46: 0 | AM46: 0 | AN46: 0 | AO46: 0 | AP46: 0 | AQ46: 0 | AR46: 0
C48: ="Nach "&'Generelle-Annahmen'!$J$8 -> Nach Sanierung
E50: ='Generelle-Annahmen'!E$94 -> Gesamtbaukosten = Aktivierbare Investitionen [inkl. Risikofaktor] | F50: =$H$285-F28 -> 5722948 | G50: ='Generelle-Annahmen'!G$94 -> Euro
E51: =E286 -> Bauzwischenfinanzierungszinsen | F51: =H286 -> 172252.9462 | G51: Euro
E52: =E42 -> Restbuchwert Gebäude | F52: =F42-H46 -> 4241071.429 | G52: =G42 -> Euro
E53: Gesamtwert | F53: =SUM(F50:F52) -> 10136272.37 | G53: Euro
E55: ='Generelle-Annahmen'!E$98 -> Neue Restnutzungsdauer | F55: ='Generelle-Annahmen'!J$98 -> 72 | G55: ='Generelle-Annahmen'!G$98 -> Jahre
E56: Planmäßig, linearer Abschreibungsbetrag pro Jahr Gebäude | F56: =IF($F$55>0, F53 / F55,0) -> 140781.5608 | G56: Euro
E57: ="Planmäßig, linearer Abschreibungsbetrag Gebäude pro Jahr nach "&'Generelle-Annahmen'!$J$8 -> Planmäßig, linearer Abschreibungsbetrag Gebäude pro Jahr nach Sanierung | G57: Euro | H57: =SUM(J57:AR57) -> 3519539.019 | J57: =$F56*((SUM($J15:J15)<=$F55)+(SUM($J15:J15)-INDEX($J$15:$AR$15,,IFERROR(MATCH(1,$J$13:$AR$13,0),0))=$F55)*(1-INDEX($J$15:$AR$15,,IFERROR(MATCH(1,$J$13:$AR$13,0),0))))*J$14*J$15 -> 0 | K57: =$F56*((SUM($J15:K15)<=$F55)+(SUM($J15:K15)-INDEX($J$15:$AR$15,,IFERROR(MATCH(1,$J$13:$AR$13,0),0))=$F55)*(1-INDEX($J$15:$AR$15,,IFERROR(MATCH(1,$J$13:$AR$13,0),0))))*K$14*K$15 -> 0 | L57: =$F56*((SUM($J15:L15)<=$F55)+(SUM($J15:L15)-INDEX($J$15:$AR$15,,IFERROR(MATCH(1,$J$13:$AR$13,0),0))=$F55)*(1-INDEX($J$15:$AR$15,,IFERROR(MATCH(1,$J$13:$AR$13,0),0))))*L$14*L$15 -> 0 | M57: =$F56*((SUM($J15:M15)<=$F55)+(SUM($J15:M15)-INDEX($J$15:$AR$15,,IFERROR(MATCH(1,$J$13:$AR$13,0),0))=$F55)*(1-INDEX($J$15:$AR$15,,IFERROR(MATCH(1,$J$13:$AR$13,0),0))))*M$14*M$15 -> 140781.5608 | N57: =$F56*((SUM($J15:N15)<=$F55)+(SUM($J15:N15)-INDEX($J$15:$AR$15,,IFERROR(MATCH(1,$J$13:$AR$13,0),0))=$F55)*(1-INDEX($J$15:$AR$15,,IFERROR(MATCH(1,$J$13:$AR$13,0),0))))*N$14*N$15 -> 140781.5608 | O57: =$F56*((SUM($J15:O15)<=$F55)+(SUM($J15:O15)-INDEX($J$15:$AR$15,,IFERROR(MATCH(1,$J$13:$AR$13,0),0))=$F55)*(1-INDEX($J$15:$AR$15,,IFERROR(MATCH(1,$J$13:$AR$13,0),0))))*O$14*O$15 -> 140781.5608 | P57: =$F56*((SUM($J15:P15)<=$F55)+(SUM($J15:P15)-INDEX($J$15:$AR$15,,IFERROR(MATCH(1,$J$13:$AR$13,0),0))=$F55)*(1-INDEX($J$15:$AR$15,,IFERROR(MATCH(1,$J$13:$AR$13,0),0))))*P$14*P$15 -> 140781.5608 | Q57: =$F56*((SUM($J15:Q15)<=$F55)+(SUM($J15:Q15)-INDEX($J$15:$AR$15,,IFERROR(MATCH(1,$J$13:$AR$13,0),0))=$F55)*(1-INDEX($J$15:$AR$15,,IFERROR(MATCH(1,$J$13:$AR$13,0),0))))*Q$14*Q$15 -> 140781.5608 | R57: =$F56*((SUM($J15:R15)<=$F55)+(SUM($J15:R15)-INDEX($J$15:$AR$15,,IFERROR(MATCH(1,$J$13:$AR$13,0),0))=$F55)*(1-INDEX($J$15:$AR$15,,IFERROR(MATCH(1,$J$13:$AR$13,0),0))))*R$14*R$15 -> 140781.5608 | S57: =$F56*((SUM($J15:S15)<=$F55)+(SUM($J15:S15)-INDEX($J$15:$AR$15,,IFERROR(MATCH(1,$J$13:$AR$13,0),0))=$F55)*(1-INDEX($J$15:$AR$15,,IFERROR(MATCH(1,$J$13:$AR$13,0),0))))*S$14*S$15 -> 140781.5608 | T57: =$F56*((SUM($J15:T15)<=$F55)+(SUM($J15:T15)-INDEX($J$15:$AR$15,,IFERROR(MATCH(1,$J$13:$AR$13,0),0))=$F55)*(1-INDEX($J$15:$AR$15,,IFERROR(MATCH(1,$J$13:$AR$13,0),0))))*T$14*T$15 -> 140781.5608 | U57: =$F56*((SUM($J15:U15)<=$F55)+(SUM($J15:U15)-INDEX($J$15:$AR$15,,IFERROR(MATCH(1,$J$13:$AR$13,0),0))=$F55)*(1-INDEX($J$15:$AR$15,,IFERROR(MATCH(1,$J$13:$AR$13,0),0))))*U$14*U$15 -> 140781.5608 | V57: =$F56*((SUM($J15:V15)<=$F55)+(SUM($J15:V15)-INDEX($J$15:$AR$15,,IFERROR(MATCH(1,$J$13:$AR$13,0),0))=$F55)*(1-INDEX($J$15:$AR$15,,IFERROR(MATCH(1,$J$13:$AR$13,0),0))))*V$14*V$15 -> 140781.5608 | W57: =$F56*((SUM($J15:W15)<=$F55)+(SUM($J15:W15)-INDEX($J$15:$AR$15,,IFERROR(MATCH(1,$J$13:$AR$13,0),0))=$F55)*(1-INDEX($J$15:$AR$15,,IFERROR(MATCH(1,$J$13:$AR$13,0),0))))*W$14*W$15 -> 140781.5608 | X57: =$F56*((SUM($J15:X15)<=$F55)+(SUM($J15:X15)-INDEX($J$15:$AR$15,,IFERROR(MATCH(1,$J$13:$AR$13,0),0))=$F55)*(1-INDEX($J$15:$AR$15,,IFERROR(MATCH(1,$J$13:$AR$13,0),0))))*X$14*X$15 -> 140781.5608 | Y57: =$F56*((SUM($J15:Y15)<=$F55)+(SUM($J15:Y15)-INDEX($J$15:$AR$15,,IFERROR(MATCH(1,$J$13:$AR$13,0),0))=$F55)*(1-INDEX($J$15:$AR$15,,IFERROR(MATCH(1,$J$13:$AR$13,0),0))))*Y$14*Y$15 -> 140781.5608 | Z57: =$F56*((SUM($J15:Z15)<=$F55)+(SUM($J15:Z15)-INDEX($J$15:$AR$15,,IFERROR(MATCH(1,$J$13:$AR$13,0),0))=$F55)*(1-INDEX($J$15:$AR$15,,IFERROR(MATCH(1,$J$13:$AR$13,0),0))))*Z$14*Z$15 -> 140781.5608 | AA57: =$F56*((SUM($J15:AA15)<=$F55)+(SUM($J15:AA15)-INDEX($J$15:$AR$15,,IFERROR(MATCH(1,$J$13:$AR$13,0),0))=$F55)*(1-INDEX($J$15:$AR$15,,IFERROR(MATCH(1,$J$13:$AR$13,0),0))))*AA$14*AA$15 -> 140781.5608 | AB57: =$F56*((SUM($J15:AB15)<=$F55)+(SUM($J15:AB15)-INDEX($J$15:$AR$15,,IFERROR(MATCH(1,$J$13:$AR$13,0),0))=$F55)*(1-INDEX($J$15:$AR$15,,IFERROR(MATCH(1,$J$13:$AR$13,0),0))))*AB$14*AB$15 -> 140781.5608 | AC57: =$F56*((SUM($J15:AC15)<=$F55)+(SUM($J15:AC15)-INDEX($J$15:$AR$15,,IFERROR(MATCH(1,$J$13:$AR$13,0),0))=$F55)*(1-INDEX($J$15:$AR$15,,IFERROR(MATCH(1,$J$13:$AR$13,0),0))))*AC$14*AC$15 -> 140781.5608 | AD57: =$F56*((SUM($J15:AD15)<=$F55)+(SUM($J15:AD15)-INDEX($J$15:$AR$15,,IFERROR(MATCH(1,$J$13:$AR$13,0),0))=$F55)*(1-INDEX($J$15:$AR$15,,IFERROR(MATCH(1,$J$13:$AR$13,0),0))))*AD$14*AD$15 -> 140781.5608 | AE57: =$F56*((SUM($J15:AE15)<=$F55)+(SUM($J15:AE15)-INDEX($J$15:$AR$15,,IFERROR(MATCH(1,$J$13:$AR$13,0),0))=$F55)*(1-INDEX($J$15:$AR$15,,IFERROR(MATCH(1,$J$13:$AR$13,0),0))))*AE$14*AE$15 -> 140781.5608 | AF57: =$F56*((SUM($J15:AF15)<=$F55)+(SUM($J15:AF15)-INDEX($J$15:$AR$15,,IFERROR(MATCH(1,$J$13:$AR$13,0),0))=$F55)*(1-INDEX($J$15:$AR$15,,IFERROR(MATCH(1,$J$13:$AR$13,0),0))))*AF$14*AF$15 -> 140781.5608 | AG57: =$F56*((SUM($J15:AG15)<=$F55)+(SUM($J15:AG15)-INDEX($J$15:$AR$15,,IFERROR(MATCH(1,$J$13:$AR$13,0),0))=$F55)*(1-INDEX($J$15:$AR$15,,IFERROR(MATCH(1,$J$13:$AR$13,0),0))))*AG$14*AG$15 -> 140781.5608 | AH57: =$F56*((SUM($J15:AH15)<=$F55)+(SUM($J15:AH15)-INDEX($J$15:$AR$15,,IFERROR(MATCH(1,$J$13:$AR$13,0),0))=$F55)*(1-INDEX($J$15:$AR$15,,IFERROR(MATCH(1,$J$13:$AR$13,0),0))))*AH$14*AH$15 -> 140781.5608 | AI57: =$F56*((SUM($J15:AI15)<=$F55)+(SUM($J15:AI15)-INDEX($J$15:$AR$15,,IFERROR(MATCH(1,$J$13:$AR$13,0),0))=$F55)*(1-INDEX($J$15:$AR$15,,IFERROR(MATCH(1,$J$13:$AR$13,0),0))))*AI$14*AI$15 -> 140781.5608 | AJ57: =$F56*((SUM($J15:AJ15)<=$F55)+(SUM($J15:AJ15)-INDEX($J$15:$AR$15,,IFERROR(MATCH(1,$J$13:$AR$13,0),0))=$F55)*(1-INDEX($J$15:$AR$15,,IFERROR(MATCH(1,$J$13:$AR$13,0),0))))*AJ$14*AJ$15 -> 140781.5608 | AK57: =$F56*((SUM($J15:AK15)<=$F55)+(SUM($J15:AK15)-INDEX($J$15:$AR$15,,IFERROR(MATCH(1,$J$13:$AR$13,0),0))=$F55)*(1-INDEX($J$15:$AR$15,,IFERROR(MATCH(1,$J$13:$AR$13,0),0))))*AK$14*AK$15 -> 140781.5608 | AL57: =$F56*((SUM($J15:AL15)<=$F55)+(SUM($J15:AL15)-INDEX($J$15:$AR$15,,IFERROR(MATCH(1,$J$13:$AR$13,0),0))=$F55)*(1-INDEX($J$15:$AR$15,,IFERROR(MATCH(1,$J$13:$AR$13,0),0))))*AL$14*AL$15 -> 0 | AM57: =$F56*((SUM($J15:AM15)<=$F55)+(SUM($J15:AM15)-INDEX($J$15:$AR$15,,IFERROR(MATCH(1,$J$13:$AR$13,0),0))=$F55)*(1-INDEX($J$15:$AR$15,,IFERROR(MATCH(1,$J$13:$AR$13,0),0))))*AM$14*AM$15 -> 0 | AN57: =$F56*((SUM($J15:AN15)<=$F55)+(SUM($J15:AN15)-INDEX($J$15:$AR$15,,IFERROR(MATCH(1,$J$13:$AR$13,0),0))=$F55)*(1-INDEX($J$15:$AR$15,,IFERROR(MATCH(1,$J$13:$AR$13,0),0))))*AN$14*AN$15 -> 0 | AO57: =$F56*((SUM($J15:AO15)<=$F55)+(SUM($J15:AO15)-INDEX($J$15:$AR$15,,IFERROR(MATCH(1,$J$13:$AR$13,0),0))=$F55)*(1-INDEX($J$15:$AR$15,,IFERROR(MATCH(1,$J$13:$AR$13,0),0))))*AO$14*AO$15 -> 0 | AP57: =$F56*((SUM($J15:AP15)<=$F55)+(SUM($J15:AP15)-INDEX($J$15:$AR$15,,IFERROR(MATCH(1,$J$13:$AR$13,0),0))=$F55)*(1-INDEX($J$15:$AR$15,,IFERROR(MATCH(1,$J$13:$AR$13,0),0))))*AP$14*AP$15 -> 0 | AQ57: =$F56*((SUM($J15:AQ15)<=$F55)+(SUM($J15:AQ15)-INDEX($J$15:$AR$15,,IFERROR(MATCH(1,$J$13:$AR$13,0),0))=$F55)*(1-INDEX($J$15:$AR$15,,IFERROR(MATCH(1,$J$13:$AR$13,0),0))))*AQ$14*AQ$15 -> 0 | AR57: =$F56*((SUM($J15:AR15)<=$F55)+(SUM($J15:AR15)-INDEX($J$15:$AR$15,,IFERROR(MATCH(1,$J$13:$AR$13,0),0))=$F55)*(1-INDEX($J$15:$AR$15,,IFERROR(MATCH(1,$J$13:$AR$13,0),0))))*AR$14*AR$15 -> 0
C59: Buchwertentwicklung des Gebäudes
E61: Buchwert des Gebäudes zu Beginn des Jahres | G61: Euro | J61: =(IF(J17 = 1, $F$42, I63) + IF(J13 = 1, $F$50 + $F$51,0)) * J18 -> 4750000 | K61: =(IF(K17 = 1, $F$42, J63) + IF(K13 = 1, $F$50 + $F$51,0)) * K18 -> 4580357.143 | L61: =(IF(L17 = 1, $F$42, K63) + IF(L13 = 1, $F$50 + $F$51,0)) * L18 -> 4410714.286 | M61: 10136272.37 | N61: 9995490.814 | O61: 9854709.253 | P61: 9713927.693 | Q61: 9573146.132 | R61: 9432364.571 | S61: 9291583.01 | T61: 9150801.449 | U61: 9010019.889 | V61: 8869238.328 | W61: 8728456.767 | X61: 8587675.206 | Y61: 8446893.646 | Z61: 8306112.085 | AA61: 8165330.524 | AB61: 8024548.963 | AC61: 7883767.403 | AD61: 7742985.842 | AE61: 7602204.281 | AF61: 7461422.72 | AG61: 7320641.16 | AH61: 7179859.599 | AI61: 7039078.038 | AJ61: 6898296.477 | AK61: 6757514.917 | AL61: 0 | AM61: 0 | AN61: 0 | AO61: 0 | AP61: 0 | AQ61: 0 | AR61: 0
E62: ="Abschreibungsbetrag pro Jahr Gebäude vor und nach "&'Generelle-Annahmen'!$J$8 -> Abschreibungsbetrag pro Jahr Gebäude vor und nach Sanierung | G62: Euro | H62: =SUM(J62:AR62) -> 4028467.59 | J62: =J46 + J57 -> 169642.8571 | K62: =K46 + K57 -> 169642.8571 | L62: =L46 + L57 -> 169642.8571 | M62: 140781.5608 | N62: 140781.5608 | O62: 140781.5608 | P62: 140781.5608 | Q62: 140781.5608 | R62: 140781.5608 | S62: 140781.5608 | T62: 140781.5608 | U62: 140781.5608 | V62: 140781.5608 | W62: 140781.5608 | X62: 140781.5608 | Y62: 140781.5608 | Z62: 140781.5608 | AA62: 140781.5608 | AB62: 140781.5608 | AC62: 140781.5608 | AD62: 140781.5608 | AE62: 140781.5608 | AF62: 140781.5608 | AG62: 140781.5608 | AH62: 140781.5608 | AI62: 140781.5608 | AJ62: 140781.5608 | AK62: 140781.5608 | AL62: 0 | AM62: 0 | AN62: 0 | AO62: 0 | AP62: 0 | AQ62: 0 | AR62: 0
E63: Buchwert des Gebäudes Ende des Jahres | G63: Euro | J63: =J61 - J62 -> 4580357.143 | K63: =K61 - K62 -> 4410714.286 | L63: 4241071.429 | M63: 9995490.814 | N63: 9854709.253 | O63: 9713927.693 | P63: 9573146.132 | Q63: 9432364.571 | R63: 9291583.01 | S63: 9150801.449 | T63: 9010019.889 | U63: 8869238.328 | V63: 8728456.767 | W63: 8587675.206 | X63: 8446893.646 | Y63: 8306112.085 | Z63: 8165330.524 | AA63: 8024548.963 | AB63: 7883767.403 | AC63: 7742985.842 | AD63: 7602204.281 | AE63: 7461422.72 | AF63: 7320641.16 | AG63: 7179859.599 | AH63: 7039078.038 | AI63: 6898296.477 | AJ63: 6757514.917 | AK63: 6616733.356 | AL63: 0 | AM63: 0 | AN63: 0 | AO63: 0 | AP63: 0 | AQ63: 0 | AR63: 0
B65: Sonderposten
C67: ="Vor "&'Generelle-Annahmen'!$J$8 -> Vor Sanierung
E69: ='Generelle-Annahmen'!E$75 -> Restbuchwert Sonderposten | F69: ='Generelle-Annahmen'!J$75 -> 2000000 | G69: ='Generelle-Annahmen'!G$75 -> Euro
E70: ='Generelle-Annahmen'!E$76 -> Verbleibende Abschreibungsdauer Gebäude & Auflösung Sonderposten | F70: ='Generelle-Annahmen'!J$76 -> 28 | G70: ='Generelle-Annahmen'!G$76 -> Jahre
E71: ='Nichtlineare-Annahmen'!E$38 -> Außerplanmäßige Auflösung für "alten" Bestand Sonderposten | G71: ='Nichtlineare-Annahmen'!G$38 -> Euro | H71: ='Nichtlineare-Annahmen'!H$38 -> 0 | J71: ='Nichtlineare-Annahmen'!J$38 -> 0 | K71: ='Nichtlineare-Annahmen'!K$38 -> 0 | L71: ='Nichtlineare-Annahmen'!L$38 -> 0 | M71: ='Nichtlineare-Annahmen'!M$38 -> 0 | N71: ='Nichtlineare-Annahmen'!N$38 -> 0 | O71: ='Nichtlineare-Annahmen'!O$38 -> 0 | P71: ='Nichtlineare-Annahmen'!P$38 -> 0 | Q71: ='Nichtlineare-Annahmen'!Q$38 -> 0 | R71: ='Nichtlineare-Annahmen'!R$38 -> 0 | S71: ='Nichtlineare-Annahmen'!S$38 -> 0 | T71: ='Nichtlineare-Annahmen'!T$38 -> 0 | U71: ='Nichtlineare-Annahmen'!U$38 -> 0 | V71: ='Nichtlineare-Annahmen'!V$38 -> 0 | W71: ='Nichtlineare-Annahmen'!W$38 -> 0 | X71: ='Nichtlineare-Annahmen'!X$38 -> 0 | Y71: ='Nichtlineare-Annahmen'!Y$38 -> 0 | Z71: ='Nichtlineare-Annahmen'!Z$38 -> 0 | AA71: ='Nichtlineare-Annahmen'!AA$38 -> 0 | AB71: ='Nichtlineare-Annahmen'!AB$38 -> 0 | AC71: ='Nichtlineare-Annahmen'!AC$38 -> 0 | AD71: ='Nichtlineare-Annahmen'!AD$38 -> 0 | AE71: ='Nichtlineare-Annahmen'!AE$38 -> 0 | AF71: ='Nichtlineare-Annahmen'!AF$38 -> 0 | AG71: ='Nichtlineare-Annahmen'!AG$38 -> 0 | AH71: ='Nichtlineare-Annahmen'!AH$38 -> 0 | AI71: ='Nichtlineare-Annahmen'!AI$38 -> 0 | AJ71: ='Nichtlineare-Annahmen'!AJ$38 -> 0 | AK71: ='Nichtlineare-Annahmen'!AK$38 -> 0 | AL71: ='Nichtlineare-Annahmen'!AL$38 -> 0 | AM71: ='Nichtlineare-Annahmen'!AM$38 -> 0 | AN71: ='Nichtlineare-Annahmen'!AN$38 -> 0 | AO71: ='Nichtlineare-Annahmen'!AO$38 -> 0 | AP71: ='Nichtlineare-Annahmen'!AP$38 -> 0 | AQ71: ='Nichtlineare-Annahmen'!AQ$38 -> 0 | AR71: ='Nichtlineare-Annahmen'!AR$38 -> 0
E72: Planmäßig, linearer Auflösungsbetrag pro Jahr Sonderposten nach außerplanmäßiger Auflösung | G72: Euro | H72: =SUM(J72:AR72) -> 214285.7143 | J72: =MIN(($F69-SUM($I71:I72)) / MAX(1,$F70-SUM($I$19:I$19))*(J$19-J$15*J$14),$F69-SUM($I71:I72,J71))*IF(AND(SUM(J$18:$AR$18)=1,SUM(J$14:$AR$14)>1),1/J$19,1) -> 71428.57143 | K72: =MIN(($F69-SUM($I71:J72)) / MAX(1,$F70-SUM($I$19:J$19))*(K$19-K$15*K$14),$F69-SUM($I71:J72,K71))*IF(AND(SUM(K$18:$AR$18)=1,SUM(K$14:$AR$14)>1),1/K$19,1) -> 71428.57143 | L72: =MIN(($F69-SUM($I71:K72)) / MAX(1,$F70-SUM($I$19:K$19))*(L$19-L$15*L$14),$F69-SUM($I71:K72,L71))*IF(AND(SUM(L$18:$AR$18)=1,SUM(L$14:$AR$14)>1),1/L$19,1) -> 71428.57143 | M72: =MIN(($F69-SUM($I71:L72)) / MAX(1,$F70-SUM($I$19:L$19))*(M$19-M$15*M$14),$F69-SUM($I71:L72,M71))*IF(AND(SUM(M$18:$AR$18)=1,SUM(M$14:$AR$14)>1),1/M$19,1) -> 0 | N72: =MIN(($F69-SUM($I71:M72)) / MAX(1,$F70-SUM($I$19:M$19))*(N$19-N$15*N$14),$F69-SUM($I71:M72,N71))*IF(AND(SUM(N$18:$AR$18)=1,SUM(N$14:$AR$14)>1),1/N$19,1) -> 0 | O72: =MIN(($F69-SUM($I71:N72)) / MAX(1,$F70-SUM($I$19:N$19))*(O$19-O$15*O$14),$F69-SUM($I71:N72,O71))*IF(AND(SUM(O$18:$AR$18)=1,SUM(O$14:$AR$14)>1),1/O$19,1) -> 0 | P72: =MIN(($F69-SUM($I71:O72)) / MAX(1,$F70-SUM($I$19:O$19))*(P$19-P$15*P$14),$F69-SUM($I71:O72,P71))*IF(AND(SUM(P$18:$AR$18)=1,SUM(P$14:$AR$14)>1),1/P$19,1) -> 0 | Q72: =MIN(($F69-SUM($I71:P72)) / MAX(1,$F70-SUM($I$19:P$19))*(Q$19-Q$15*Q$14),$F69-SUM($I71:P72,Q71))*IF(AND(SUM(Q$18:$AR$18)=1,SUM(Q$14:$AR$14)>1),1/Q$19,1) -> 0 | R72: =MIN(($F69-SUM($I71:Q72)) / MAX(1,$F70-SUM($I$19:Q$19))*(R$19-R$15*R$14),$F69-SUM($I71:Q72,R71))*IF(AND(SUM(R$18:$AR$18)=1,SUM(R$14:$AR$14)>1),1/R$19,1) -> 0 | S72: =MIN(($F69-SUM($I71:R72)) / MAX(1,$F70-SUM($I$19:R$19))*(S$19-S$15*S$14),$F69-SUM($I71:R72,S71))*IF(AND(SUM(S$18:$AR$18)=1,SUM(S$14:$AR$14)>1),1/S$19,1) -> 0 | T72: =MIN(($F69-SUM($I71:S72)) / MAX(1,$F70-SUM($I$19:S$19))*(T$19-T$15*T$14),$F69-SUM($I71:S72,T71))*IF(AND(SUM(T$18:$AR$18)=1,SUM(T$14:$AR$14)>1),1/T$19,1) -> 0 | U72: =MIN(($F69-SUM($I71:T72)) / MAX(1,$F70-SUM($I$19:T$19))*(U$19-U$15*U$14),$F69-SUM($I71:T72,U71))*IF(AND(SUM(U$18:$AR$18)=1,SUM(U$14:$AR$14)>1),1/U$19,1) -> 0 | V72: =MIN(($F69-SUM($I71:U72)) / MAX(1,$F70-SUM($I$19:U$19))*(V$19-V$15*V$14),$F69-SUM($I71:U72,V71))*IF(AND(SUM(V$18:$AR$18)=1,SUM(V$14:$AR$14)>1),1/V$19,1) -> 0 | W72: =MIN(($F69-SUM($I71:V72)) / MAX(1,$F70-SUM($I$19:V$19))*(W$19-W$15*W$14),$F69-SUM($I71:V72,W71))*IF(AND(SUM(W$18:$AR$18)=1,SUM(W$14:$AR$14)>1),1/W$19,1) -> 0 | X72: =MIN(($F69-SUM($I71:W72)) / MAX(1,$F70-SUM($I$19:W$19))*(X$19-X$15*X$14),$F69-SUM($I71:W72,X71))*IF(AND(SUM(X$18:$AR$18)=1,SUM(X$14:$AR$14)>1),1/X$19,1) -> 0 | Y72: =MIN(($F69-SUM($I71:X72)) / MAX(1,$F70-SUM($I$19:X$19))*(Y$19-Y$15*Y$14),$F69-SUM($I71:X72,Y71))*IF(AND(SUM(Y$18:$AR$18)=1,SUM(Y$14:$AR$14)>1),1/Y$19,1) -> 0 | Z72: =MIN(($F69-SUM($I71:Y72)) / MAX(1,$F70-SUM($I$19:Y$19))*(Z$19-Z$15*Z$14),$F69-SUM($I71:Y72,Z71))*IF(AND(SUM(Z$18:$AR$18)=1,SUM(Z$14:$AR$14)>1),1/Z$19,1) -> 0 | AA72: =MIN(($F69-SUM($I71:Z72)) / MAX(1,$F70-SUM($I$19:Z$19))*(AA$19-AA$15*AA$14),$F69-SUM($I71:Z72,AA71))*IF(AND(SUM(AA$18:$AR$18)=1,SUM(AA$14:$AR$14)>1),1/AA$19,1) -> 0 | AB72: =MIN(($F69-SUM($I71:AA72)) / MAX(1,$F70-SUM($I$19:AA$19))*(AB$19-AB$15*AB$14),$F69-SUM($I71:AA72,AB71))*IF(AND(SUM(AB$18:$AR$18)=1,SUM(AB$14:$AR$14)>1),1/AB$19,1) -> 0 | AC72: =MIN(($F69-SUM($I71:AB72)) / MAX(1,$F70-SUM($I$19:AB$19))*(AC$19-AC$15*AC$14),$F69-SUM($I71:AB72,AC71))*IF(AND(SUM(AC$18:$AR$18)=1,SUM(AC$14:$AR$14)>1),1/AC$19,1) -> 0 | AD72: =MIN(($F69-SUM($I71:AC72)) / MAX(1,$F70-SUM($I$19:AC$19))*(AD$19-AD$15*AD$14),$F69-SUM($I71:AC72,AD71))*IF(AND(SUM(AD$18:$AR$18)=1,SUM(AD$14:$AR$14)>1),1/AD$19,1) -> 0 | AE72: =MIN(($F69-SUM($I71:AD72)) / MAX(1,$F70-SUM($I$19:AD$19))*(AE$19-AE$15*AE$14),$F69-SUM($I71:AD72,AE71))*IF(AND(SUM(AE$18:$AR$18)=1,SUM(AE$14:$AR$14)>1),1/AE$19,1) -> 0 | AF72: =MIN(($F69-SUM($I71:AE72)) / MAX(1,$F70-SUM($I$19:AE$19))*(AF$19-AF$15*AF$14),$F69-SUM($I71:AE72,AF71))*IF(AND(SUM(AF$18:$AR$18)=1,SUM(AF$14:$AR$14)>1),1/AF$19,1) -> 0 | AG72: =MIN(($F69-SUM($I71:AF72)) / MAX(1,$F70-SUM($I$19:AF$19))*(AG$19-AG$15*AG$14),$F69-SUM($I71:AF72,AG71))*IF(AND(SUM(AG$18:$AR$18)=1,SUM(AG$14:$AR$14)>1),1/AG$19,1) -> 0 | AH72: =MIN(($F69-SUM($I71:AG72)) / MAX(1,$F70-SUM($I$19:AG$19))*(AH$19-AH$15*AH$14),$F69-SUM($I71:AG72,AH71))*IF(AND(SUM(AH$18:$AR$18)=1,SUM(AH$14:$AR$14)>1),1/AH$19,1) -> 0 | AI72: =MIN(($F69-SUM($I71:AH72)) / MAX(1,$F70-SUM($I$19:AH$19))*(AI$19-AI$15*AI$14),$F69-SUM($I71:AH72,AI71))*IF(AND(SUM(AI$18:$AR$18)=1,SUM(AI$14:$AR$14)>1),1/AI$19,1) -> 0 | AJ72: =MIN(($F69-SUM($I71:AI72)) / MAX(1,$F70-SUM($I$19:AI$19))*(AJ$19-AJ$15*AJ$14),$F69-SUM($I71:AI72,AJ71))*IF(AND(SUM(AJ$18:$AR$18)=1,SUM(AJ$14:$AR$14)>1),1/AJ$19,1) -> 0 | AK72: =MIN(($F69-SUM($I71:AJ72)) / MAX(1,$F70-SUM($I$19:AJ$19))*(AK$19-AK$15*AK$14),$F69-SUM($I71:AJ72,AK71))*IF(AND(SUM(AK$18:$AR$18)=1,SUM(AK$14:$AR$14)>1),1/AK$19,1) -> 0 | AL72: =MIN(($F69-SUM($I71:AK72)) / MAX(1,$F70-SUM($I$19:AK$19))*(AL$19-AL$15*AL$14),$F69-SUM($I71:AK72,AL71))*IF(AND(SUM(AL$18:$AR$18)=1,SUM(AL$14:$AR$14)>1),1/AL$19,1) -> 0 | AM72: =MIN(($F69-SUM($I71:AL72)) / MAX(1,$F70-SUM($I$19:AL$19))*(AM$19-AM$15*AM$14),$F69-SUM($I71:AL72,AM71))*IF(AND(SUM(AM$18:$AR$18)=1,SUM(AM$14:$AR$14)>1),1/AM$19,1) -> 0 | AN72: =MIN(($F69-SUM($I71:AM72)) / MAX(1,$F70-SUM($I$19:AM$19))*(AN$19-AN$15*AN$14),$F69-SUM($I71:AM72,AN71))*IF(AND(SUM(AN$18:$AR$18)=1,SUM(AN$14:$AR$14)>1),1/AN$19,1) -> 0 | AO72: =MIN(($F69-SUM($I71:AN72)) / MAX(1,$F70-SUM($I$19:AN$19))*(AO$19-AO$15*AO$14),$F69-SUM($I71:AN72,AO71))*IF(AND(SUM(AO$18:$AR$18)=1,SUM(AO$14:$AR$14)>1),1/AO$19,1) -> 0 | AP72: =MIN(($F69-SUM($I71:AO72)) / MAX(1,$F70-SUM($I$19:AO$19))*(AP$19-AP$15*AP$14),$F69-SUM($I71:AO72,AP71))*IF(AND(SUM(AP$18:$AR$18)=1,SUM(AP$14:$AR$14)>1),1/AP$19,1) -> 0 | AQ72: =MIN(($F69-SUM($I71:AP72)) / MAX(1,$F70-SUM($I$19:AP$19))*(AQ$19-AQ$15*AQ$14),$F69-SUM($I71:AP72,AQ71))*IF(AND(SUM(AQ$18:$AR$18)=1,SUM(AQ$14:$AR$14)>1),1/AQ$19,1) -> 0 | AR72: =MIN(($F69-SUM($I71:AQ72)) / MAX(1,$F70-SUM($I$19:AQ$19))*(AR$19-AR$15*AR$14),$F69-SUM($I71:AQ72,AR71))*IF(AND(SUM(AR$18:$AR$18)=1,SUM(AR$14:$AR$14)>1),1/AR$19,1) -> 0
E73: Auflösungsbetrag pro Jahr Sonderposten planmäßig & außerplanmäßig mit Anpassung | G73: Euro | H73: =SUM(J73:AR73) -> 214285.7143 | J73: =SUM(J71:J72)*(J$18-J$14*(1-J$9)) -> 71428.57143 | K73: =SUM(K71:K72)*(K$18-K$14*(1-K$9)) -> 71428.57143 | L73: =SUM(L71:L72)*(L$18-L$14*(1-L$9)) -> 71428.57143 | M73: 0 | N73: 0 | O73: 0 | P73: 0 | Q73: 0 | R73: 0 | S73: 0 | T73: 0 | U73: 0 | V73: 0 | W73: 0 | X73: 0 | Y73: 0 | Z73: 0 | AA73: 0 | AB73: 0 | AC73: 0 | AD73: 0 | AE73: 0 | AF73: 0 | AG73: 0 | AH73: 0 | AI73: 0 | AJ73: 0 | AK73: 0 | AL73: 0 | AM73: 0 | AN73: 0 | AO73: 0 | AP73: 0 | AQ73: 0 | AR73: 0
C75: ="Nach "&'Generelle-Annahmen'!$J$8 -> Nach Sanierung
E77: ='Generelle-Annahmen'!E$99 -> Passivierbare Zuwendung für Investition (Fördermittel, Zuwendungsmittel etc.) | F77: ='Generelle-Annahmen'!J$99 -> 0 | G77: ='Generelle-Annahmen'!G$99 -> Euro
E78: =E55 -> Neue Restnutzungsdauer | F78: =F55 -> 72 | G78: =G55 -> Jahre
E79: Planmäßige, linearer Auflösungsbetrag pro Jahr Sonderposten | F79: =IF($F$78>0,(F69 + F77 - H73) / F78,0) -> 24801.5873 | G79: Euro
E80: ="Planmäßig, linearer Auflösungsbetrag Sonderposten pro Jahr nach "&'Generelle-Annahmen'!$J$8 -> Planmäßig, linearer Auflösungsbetrag Sonderposten pro Jahr nach Sanierung | G80: Euro | H80: =SUM(J80:AR80) -> 620039.6825 | J80: =$F79*((SUM($J15:J15)<=$F78)+(SUM($J15:J15)-INDEX($J$15:$AR$15,,IFERROR(MATCH(1,$J$13:$AR$13,0),0))=$F78)*(1-INDEX($J$15:$AR$15,,IFERROR(MATCH(1,$J$13:$AR$13,0),0))))*J$14*J$15 -> 0 | K80: =$F79*((SUM($J15:K15)<=$F78)+(SUM($J15:K15)-INDEX($J$15:$AR$15,,IFERROR(MATCH(1,$J$13:$AR$13,0),0))=$F78)*(1-INDEX($J$15:$AR$15,,IFERROR(MATCH(1,$J$13:$AR$13,0),0))))*K$14*K$15 -> 0 | L80: =$F79*((SUM($J15:L15)<=$F78)+(SUM($J15:L15)-INDEX($J$15:$AR$15,,IFERROR(MATCH(1,$J$13:$AR$13,0),0))=$F78)*(1-INDEX($J$15:$AR$15,,IFERROR(MATCH(1,$J$13:$AR$13,0),0))))*L$14*L$15 -> 0 | M80: =$F79*((SUM($J15:M15)<=$F78)+(SUM($J15:M15)-INDEX($J$15:$AR$15,,IFERROR(MATCH(1,$J$13:$AR$13,0),0))=$F78)*(1-INDEX($J$15:$AR$15,,IFERROR(MATCH(1,$J$13:$AR$13,0),0))))*M$14*M$15 -> 24801.5873 | N80: =$F79*((SUM($J15:N15)<=$F78)+(SUM($J15:N15)-INDEX($J$15:$AR$15,,IFERROR(MATCH(1,$J$13:$AR$13,0),0))=$F78)*(1-INDEX($J$15:$AR$15,,IFERROR(MATCH(1,$J$13:$AR$13,0),0))))*N$14*N$15 -> 24801.5873 | O80: =$F79*((SUM($J15:O15)<=$F78)+(SUM($J15:O15)-INDEX($J$15:$AR$15,,IFERROR(MATCH(1,$J$13:$AR$13,0),0))=$F78)*(1-INDEX($J$15:$AR$15,,IFERROR(MATCH(1,$J$13:$AR$13,0),0))))*O$14*O$15 -> 24801.5873 | P80: =$F79*((SUM($J15:P15)<=$F78)+(SUM($J15:P15)-INDEX($J$15:$AR$15,,IFERROR(MATCH(1,$J$13:$AR$13,0),0))=$F78)*(1-INDEX($J$15:$AR$15,,IFERROR(MATCH(1,$J$13:$AR$13,0),0))))*P$14*P$15 -> 24801.5873 | Q80: =$F79*((SUM($J15:Q15)<=$F78)+(SUM($J15:Q15)-INDEX($J$15:$AR$15,,IFERROR(MATCH(1,$J$13:$AR$13,0),0))=$F78)*(1-INDEX($J$15:$AR$15,,IFERROR(MATCH(1,$J$13:$AR$13,0),0))))*Q$14*Q$15 -> 24801.5873 | R80: =$F79*((SUM($J15:R15)<=$F78)+(SUM($J15:R15)-INDEX($J$15:$AR$15,,IFERROR(MATCH(1,$J$13:$AR$13,0),0))=$F78)*(1-INDEX($J$15:$AR$15,,IFERROR(MATCH(1,$J$13:$AR$13,0),0))))*R$14*R$15 -> 24801.5873 | S80: =$F79*((SUM($J15:S15)<=$F78)+(SUM($J15:S15)-INDEX($J$15:$AR$15,,IFERROR(MATCH(1,$J$13:$AR$13,0),0))=$F78)*(1-INDEX($J$15:$AR$15,,IFERROR(MATCH(1,$J$13:$AR$13,0),0))))*S$14*S$15 -> 24801.5873 | T80: =$F79*((SUM($J15:T15)<=$F78)+(SUM($J15:T15)-INDEX($J$15:$AR$15,,IFERROR(MATCH(1,$J$13:$AR$13,0),0))=$F78)*(1-INDEX($J$15:$AR$15,,IFERROR(MATCH(1,$J$13:$AR$13,0),0))))*T$14*T$15 -> 24801.5873 | U80: =$F79*((SUM($J15:U15)<=$F78)+(SUM($J15:U15)-INDEX($J$15:$AR$15,,IFERROR(MATCH(1,$J$13:$AR$13,0),0))=$F78)*(1-INDEX($J$15:$AR$15,,IFERROR(MATCH(1,$J$13:$AR$13,0),0))))*U$14*U$15 -> 24801.5873 | V80: =$F79*((SUM($J15:V15)<=$F78)+(SUM($J15:V15)-INDEX($J$15:$AR$15,,IFERROR(MATCH(1,$J$13:$AR$13,0),0))=$F78)*(1-INDEX($J$15:$AR$15,,IFERROR(MATCH(1,$J$13:$AR$13,0),0))))*V$14*V$15 -> 24801.5873 | W80: =$F79*((SUM($J15:W15)<=$F78)+(SUM($J15:W15)-INDEX($J$15:$AR$15,,IFERROR(MATCH(1,$J$13:$AR$13,0),0))=$F78)*(1-INDEX($J$15:$AR$15,,IFERROR(MATCH(1,$J$13:$AR$13,0),0))))*W$14*W$15 -> 24801.5873 | X80: =$F79*((SUM($J15:X15)<=$F78)+(SUM($J15:X15)-INDEX($J$15:$AR$15,,IFERROR(MATCH(1,$J$13:$AR$13,0),0))=$F78)*(1-INDEX($J$15:$AR$15,,IFERROR(MATCH(1,$J$13:$AR$13,0),0))))*X$14*X$15 -> 24801.5873 | Y80: =$F79*((SUM($J15:Y15)<=$F78)+(SUM($J15:Y15)-INDEX($J$15:$AR$15,,IFERROR(MATCH(1,$J$13:$AR$13,0),0))=$F78)*(1-INDEX($J$15:$AR$15,,IFERROR(MATCH(1,$J$13:$AR$13,0),0))))*Y$14*Y$15 -> 24801.5873 | Z80: =$F79*((SUM($J15:Z15)<=$F78)+(SUM($J15:Z15)-INDEX($J$15:$AR$15,,IFERROR(MATCH(1,$J$13:$AR$13,0),0))=$F78)*(1-INDEX($J$15:$AR$15,,IFERROR(MATCH(1,$J$13:$AR$13,0),0))))*Z$14*Z$15 -> 24801.5873 | AA80: =$F79*((SUM($J15:AA15)<=$F78)+(SUM($J15:AA15)-INDEX($J$15:$AR$15,,IFERROR(MATCH(1,$J$13:$AR$13,0),0))=$F78)*(1-INDEX($J$15:$AR$15,,IFERROR(MATCH(1,$J$13:$AR$13,0),0))))*AA$14*AA$15 -> 24801.5873 | AB80: =$F79*((SUM($J15:AB15)<=$F78)+(SUM($J15:AB15)-INDEX($J$15:$AR$15,,IFERROR(MATCH(1,$J$13:$AR$13,0),0))=$F78)*(1-INDEX($J$15:$AR$15,,IFERROR(MATCH(1,$J$13:$AR$13,0),0))))*AB$14*AB$15 -> 24801.5873 | AC80: =$F79*((SUM($J15:AC15)<=$F78)+(SUM($J15:AC15)-INDEX($J$15:$AR$15,,IFERROR(MATCH(1,$J$13:$AR$13,0),0))=$F78)*(1-INDEX($J$15:$AR$15,,IFERROR(MATCH(1,$J$13:$AR$13,0),0))))*AC$14*AC$15 -> 24801.5873 | AD80: =$F79*((SUM($J15:AD15)<=$F78)+(SUM($J15:AD15)-INDEX($J$15:$AR$15,,IFERROR(MATCH(1,$J$13:$AR$13,0),0))=$F78)*(1-INDEX($J$15:$AR$15,,IFERROR(MATCH(1,$J$13:$AR$13,0),0))))*AD$14*AD$15 -> 24801.5873 | AE80: =$F79*((SUM($J15:AE15)<=$F78)+(SUM($J15:AE15)-INDEX($J$15:$AR$15,,IFERROR(MATCH(1,$J$13:$AR$13,0),0))=$F78)*(1-INDEX($J$15:$AR$15,,IFERROR(MATCH(1,$J$13:$AR$13,0),0))))*AE$14*AE$15 -> 24801.5873 | AF80: =$F79*((SUM($J15:AF15)<=$F78)+(SUM($J15:AF15)-INDEX($J$15:$AR$15,,IFERROR(MATCH(1,$J$13:$AR$13,0),0))=$F78)*(1-INDEX($J$15:$AR$15,,IFERROR(MATCH(1,$J$13:$AR$13,0),0))))*AF$14*AF$15 -> 24801.5873 | AG80: =$F79*((SUM($J15:AG15)<=$F78)+(SUM($J15:AG15)-INDEX($J$15:$AR$15,,IFERROR(MATCH(1,$J$13:$AR$13,0),0))=$F78)*(1-INDEX($J$15:$AR$15,,IFERROR(MATCH(1,$J$13:$AR$13,0),0))))*AG$14*AG$15 -> 24801.5873 | AH80: =$F79*((SUM($J15:AH15)<=$F78)+(SUM($J15:AH15)-INDEX($J$15:$AR$15,,IFERROR(MATCH(1,$J$13:$AR$13,0),0))=$F78)*(1-INDEX($J$15:$AR$15,,IFERROR(MATCH(1,$J$13:$AR$13,0),0))))*AH$14*AH$15 -> 24801.5873 | AI80: =$F79*((SUM($J15:AI15)<=$F78)+(SUM($J15:AI15)-INDEX($J$15:$AR$15,,IFERROR(MATCH(1,$J$13:$AR$13,0),0))=$F78)*(1-INDEX($J$15:$AR$15,,IFERROR(MATCH(1,$J$13:$AR$13,0),0))))*AI$14*AI$15 -> 24801.5873 | AJ80: =$F79*((SUM($J15:AJ15)<=$F78)+(SUM($J15:AJ15)-INDEX($J$15:$AR$15,,IFERROR(MATCH(1,$J$13:$AR$13,0),0))=$F78)*(1-INDEX($J$15:$AR$15,,IFERROR(MATCH(1,$J$13:$AR$13,0),0))))*AJ$14*AJ$15 -> 24801.5873 | AK80: =$F79*((SUM($J15:AK15)<=$F78)+(SUM($J15:AK15)-INDEX($J$15:$AR$15,,IFERROR(MATCH(1,$J$13:$AR$13,0),0))=$F78)*(1-INDEX($J$15:$AR$15,,IFERROR(MATCH(1,$J$13:$AR$13,0),0))))*AK$14*AK$15 -> 24801.5873 | AL80: =$F79*((SUM($J15:AL15)<=$F78)+(SUM($J15:AL15)-INDEX($J$15:$AR$15,,IFERROR(MATCH(1,$J$13:$AR$13,0),0))=$F78)*(1-INDEX($J$15:$AR$15,,IFERROR(MATCH(1,$J$13:$AR$13,0),0))))*AL$14*AL$15 -> 0 | AM80: =$F79*((SUM($J15:AM15)<=$F78)+(SUM($J15:AM15)-INDEX($J$15:$AR$15,,IFERROR(MATCH(1,$J$13:$AR$13,0),0))=$F78)*(1-INDEX($J$15:$AR$15,,IFERROR(MATCH(1,$J$13:$AR$13,0),0))))*AM$14*AM$15 -> 0 | AN80: =$F79*((SUM($J15:AN15)<=$F78)+(SUM($J15:AN15)-INDEX($J$15:$AR$15,,IFERROR(MATCH(1,$J$13:$AR$13,0),0))=$F78)*(1-INDEX($J$15:$AR$15,,IFERROR(MATCH(1,$J$13:$AR$13,0),0))))*AN$14*AN$15 -> 0 | AO80: =$F79*((SUM($J15:AO15)<=$F78)+(SUM($J15:AO15)-INDEX($J$15:$AR$15,,IFERROR(MATCH(1,$J$13:$AR$13,0),0))=$F78)*(1-INDEX($J$15:$AR$15,,IFERROR(MATCH(1,$J$13:$AR$13,0),0))))*AO$14*AO$15 -> 0 | AP80: =$F79*((SUM($J15:AP15)<=$F78)+(SUM($J15:AP15)-INDEX($J$15:$AR$15,,IFERROR(MATCH(1,$J$13:$AR$13,0),0))=$F78)*(1-INDEX($J$15:$AR$15,,IFERROR(MATCH(1,$J$13:$AR$13,0),0))))*AP$14*AP$15 -> 0 | AQ80: =$F79*((SUM($J15:AQ15)<=$F78)+(SUM($J15:AQ15)-INDEX($J$15:$AR$15,,IFERROR(MATCH(1,$J$13:$AR$13,0),0))=$F78)*(1-INDEX($J$15:$AR$15,,IFERROR(MATCH(1,$J$13:$AR$13,0),0))))*AQ$14*AQ$15 -> 0 | AR80: =$F79*((SUM($J15:AR15)<=$F78)+(SUM($J15:AR15)-INDEX($J$15:$AR$15,,IFERROR(MATCH(1,$J$13:$AR$13,0),0))=$F78)*(1-INDEX($J$15:$AR$15,,IFERROR(MATCH(1,$J$13:$AR$13,0),0))))*AR$14*AR$15 -> 0
C82: Buchwertentwicklung des Sonderpostens
E84: Buchwert des Sonderpostens zu Beginn des Jahres | G84: Euro | J84: =(IF(J17 = 1, $F$69, I86) + IF(J13 = 1, $F$77, 0)) * J18 -> 2000000 | K84: =(IF(K17 = 1, $F$69, J86) + IF(K13 = 1, $F$77, 0)) * K18 -> 1928571.429 | L84: =(IF(L17 = 1, $F$69, K86) + IF(L13 = 1, $F$77, 0)) * L18 -> 1857142.857 | M84: 1785714.286 | N84: 1760912.698 | O84: 1736111.111 | P84: 1711309.524 | Q84: 1686507.937 | R84: 1661706.349 | S84: 1636904.762 | T84: 1612103.175 | U84: 1587301.587 | V84: 1562500 | W84: 1537698.413 | X84: 1512896.825 | Y84: 1488095.238 | Z84: 1463293.651 | AA84: 1438492.063 | AB84: 1413690.476 | AC84: 1388888.889 | AD84: 1364087.302 | AE84: 1339285.714 | AF84: 1314484.127 | AG84: 1289682.54 | AH84: 1264880.952 | AI84: 1240079.365 | AJ84: 1215277.778 | AK84: 1190476.19 | AL84: 0 | AM84: 0 | AN84: 0 | AO84: 0 | AP84: 0 | AQ84: 0 | AR84: 0
E85: ="Auflösungsbetrag pro Jahr Sonderposten vor und nach "&'Generelle-Annahmen'!$J$8 -> Auflösungsbetrag pro Jahr Sonderposten vor und nach Sanierung | G85: Euro | H85: =SUM(J85:AR85) -> 834325.3968 | J85: =J73 + J80 -> 71428.57143 | K85: =K73 + K80 -> 71428.57143 | L85: =L73 + L80 -> 71428.57143 | M85: 24801.5873 | N85: 24801.5873 | O85: 24801.5873 | P85: 24801.5873 | Q85: 24801.5873 | R85: 24801.5873 | S85: 24801.5873 | T85: 24801.5873 | U85: 24801.5873 | V85: 24801.5873 | W85: 24801.5873 | X85: 24801.5873 | Y85: 24801.5873 | Z85: 24801.5873 | AA85: 24801.5873 | AB85: 24801.5873 | AC85: 24801.5873 | AD85: 24801.5873 | AE85: 24801.5873 | AF85: 24801.5873 | AG85: 24801.5873 | AH85: 24801.5873 | AI85: 24801.5873 | AJ85: 24801.5873 | AK85: 24801.5873 | AL85: 0 | AM85: 0 | AN85: 0 | AO85: 0 | AP85: 0 | AQ85: 0 | AR85: 0
E86: Buchwert des Sonderpostens Ende des Jahres | G86: Euro | J86: =J84 - J85 -> 1928571.429 | K86: =K84 - K85 -> 1857142.857 | L86: =L84 - L85 -> 1785714.286 | M86: 1760912.698 | N86: 1736111.111 | O86: 1711309.524 | P86: 1686507.937 | Q86: 1661706.349 | R86: 1636904.762 | S86: 1612103.175 | T86: 1587301.587 | U86: 1562500 | V86: 1537698.413 | W86: 1512896.825 | X86: 1488095.238 | Y86: 1463293.651 | Z86: 1438492.063 | AA86: 1413690.476 | AB86: 1388888.889 | AC86: 1364087.302 | AD86: 1339285.714 | AE86: 1314484.127 | AF86: 1289682.54 | AG86: 1264880.952 | AH86: 1240079.365 | AI86: 1215277.778 | AJ86: 1190476.19 | AK86: 1165674.603 | AL86: 0 | AM86: 0 | AN86: 0 | AO86: 0 | AP86: 0 | AQ86: 0 | AR86: 0
A88: BERECHNUNG KOSTEN IN BAUPHASE; BETRIEBSKOSTEN; BETRIEBSERTRÄGE; FINANZIERUNG
B90: Variantenspezifische Kosten während der Bauphase
E92: ='Generelle-Annahmen'!E$104 -> Kosten für Interimsunterbringung | F92: ='Generelle-Annahmen'!J$104 -> 125000 | G92: ='Generelle-Annahmen'!G$104 -> Euro p.a.
E93: ='Nichtlineare-Annahmen'!E$40 -> Nicht aktivierbare Kosten während der Bauphase | G93: ='Nichtlineare-Annahmen'!G$40 -> Euro | H93: ='Nichtlineare-Annahmen'!H$40 -> 80000 | J93: ='Nichtlineare-Annahmen'!J$40 -> 30000 | K93: ='Nichtlineare-Annahmen'!K$40 -> 40000 | L93: ='Nichtlineare-Annahmen'!L$40 -> 10000 | M93: ='Nichtlineare-Annahmen'!M$40 -> 0 | N93: ='Nichtlineare-Annahmen'!N$40 -> 0 | O93: ='Nichtlineare-Annahmen'!O$40 -> 0 | P93: ='Nichtlineare-Annahmen'!P$40 -> 0 | Q93: ='Nichtlineare-Annahmen'!Q$40 -> 0 | R93: ='Nichtlineare-Annahmen'!R$40 -> 0 | S93: ='Nichtlineare-Annahmen'!S$40 -> 0 | T93: ='Nichtlineare-Annahmen'!T$40 -> 0 | U93: ='Nichtlineare-Annahmen'!U$40 -> 0 | V93: ='Nichtlineare-Annahmen'!V$40 -> 0 | W93: ='Nichtlineare-Annahmen'!W$40 -> 0 | X93: ='Nichtlineare-Annahmen'!X$40 -> 0 | Y93: ='Nichtlineare-Annahmen'!Y$40 -> 0 | Z93: ='Nichtlineare-Annahmen'!Z$40 -> 0 | AA93: ='Nichtlineare-Annahmen'!AA$40 -> 0 | AB93: ='Nichtlineare-Annahmen'!AB$40 -> 0 | AC93: ='Nichtlineare-Annahmen'!AC$40 -> 0 | AD93: ='Nichtlineare-Annahmen'!AD$40 -> 0 | AE93: ='Nichtlineare-Annahmen'!AE$40 -> 0 | AF93: ='Nichtlineare-Annahmen'!AF$40 -> 0 | AG93: ='Nichtlineare-Annahmen'!AG$40 -> 0 | AH93: ='Nichtlineare-Annahmen'!AH$40 -> 0 | AI93: ='Nichtlineare-Annahmen'!AI$40 -> 0 | AJ93: ='Nichtlineare-Annahmen'!AJ$40 -> 0 | AK93: ='Nichtlineare-Annahmen'!AK$40 -> 0 | AL93: ='Nichtlineare-Annahmen'!AL$40 -> 0 | AM93: ='Nichtlineare-Annahmen'!AM$40 -> 0 | AN93: ='Nichtlineare-Annahmen'!AN$40 -> 0 | AO93: ='Nichtlineare-Annahmen'!AO$40 -> 0 | AP93: ='Nichtlineare-Annahmen'!AP$40 -> 0 | AQ93: ='Nichtlineare-Annahmen'!AQ$40 -> 0 | AR93: ='Nichtlineare-Annahmen'!AR$40 -> 0
E94: ='Generelle-Annahmen'!E$180 -> Risikofaktor Interims-, Abriss- und nicht aktivierbare Kosten während der Bauphase | F94: ='Generelle-Annahmen'!J$180 -> 0.05 | G94: ='Generelle-Annahmen'!G$180 -> Prozent
E95: =Zeit!E127 -> Preisindex Betriebskosten für alle übrigen Positionen | G95: =Zeit!G127 -> Index | J95: =Zeit!J127 -> 1.02 | K95: =Zeit!K127 -> 1.0404 | L95: =Zeit!L127 -> 1.061208 | M95: =Zeit!M127 -> 1.08243216 | N95: =Zeit!N127 -> 1.104080803 | O95: =Zeit!O127 -> 1.126162419 | P95: =Zeit!P127 -> 1.148685668 | Q95: =Zeit!Q127 -> 1.171659381 | R95: =Zeit!R127 -> 1.195092569 | S95: =Zeit!S127 -> 1.21899442 | T95: =Zeit!T127 -> 1.243374308 | U95: =Zeit!U127 -> 1.268241795 | V95: =Zeit!V127 -> 1.29360663 | W95: =Zeit!W127 -> 1.319478763 | X95: =Zeit!X127 -> 1.345868338 | Y95: =Zeit!Y127 -> 1.372785705 | Z95: =Zeit!Z127 -> 1.400241419 | AA95: =Zeit!AA127 -> 1.428246248 | AB95: =Zeit!AB127 -> 1.456811173 | AC95: =Zeit!AC127 -> 1.485947396 | AD95: =Zeit!AD127 -> 1.515666344 | AE95: =Zeit!AE127 -> 1.545979671 | AF95: =Zeit!AF127 -> 1.576899264 | AG95: =Zeit!AG127 -> 1.608437249 | AH95: =Zeit!AH127 -> 1.640605994 | AI95: =Zeit!AI127 -> 1.673418114 | AJ95: =Zeit!AJ127 -> 1.706886477 | AK95: =Zeit!AK127 -> 1.741024206 | AL95: =Zeit!AL127 -> 1.77584469 | AM95: =Zeit!AM127 -> 1.811361584 | AN95: =Zeit!AN127 -> 1.847588816 | AO95: =Zeit!AO127 -> 1.884540592 | AP95: =Zeit!AP127 -> 1.922231404 | AQ95: =Zeit!AQ127 -> 1.960676032 | AR95: =Zeit!AR127 -> 1.999889553
E96: Kosten für Interimslösung & Nicht aktivierbare Kosten | G96: Euro | H96: =SUM(J96:AR96) -> 496680.534 | J96: =(($F$92 *( 1+ $F$94)) * J11 + (J93 * (1 + $F$94)))*J9 *J95 -> 166005 | K96: =(($F$92 *( 1+ $F$94)) * K11 + (K93 * (1 + $F$94)))*K9 *K95 -> 180249.3 | L96: =(($F$92 *( 1+ $F$94)) * L11 + (L93 * (1 + $F$94)))*L9 *L95 -> 150426.234 | M96: =(($F$92 *( 1+ $F$94)) * M11 + (M93 * (1 + $F$94)))*M9 *M95 -> 0 | N96: =(($F$92 *( 1+ $F$94)) * N11 + (N93 * (1 + $F$94)))*N9 *N95 -> 0 | O96: =(($F$92 *( 1+ $F$94)) * O11 + (O93 * (1 + $F$94)))*O9 *O95 -> 0 | P96: =(($F$92 *( 1+ $F$94)) * P11 + (P93 * (1 + $F$94)))*P9 *P95 -> 0 | Q96: =(($F$92 *( 1+ $F$94)) * Q11 + (Q93 * (1 + $F$94)))*Q9 *Q95 -> 0 | R96: =(($F$92 *( 1+ $F$94)) * R11 + (R93 * (1 + $F$94)))*R9 *R95 -> 0 | S96: =(($F$92 *( 1+ $F$94)) * S11 + (S93 * (1 + $F$94)))*S9 *S95 -> 0 | T96: =(($F$92 *( 1+ $F$94)) * T11 + (T93 * (1 + $F$94)))*T9 *T95 -> 0 | U96: =(($F$92 *( 1+ $F$94)) * U11 + (U93 * (1 + $F$94)))*U9 *U95 -> 0 | V96: =(($F$92 *( 1+ $F$94)) * V11 + (V93 * (1 + $F$94)))*V9 *V95 -> 0 | W96: =(($F$92 *( 1+ $F$94)) * W11 + (W93 * (1 + $F$94)))*W9 *W95 -> 0 | X96: =(($F$92 *( 1+ $F$94)) * X11 + (X93 * (1 + $F$94)))*X9 *X95 -> 0 | Y96: =(($F$92 *( 1+ $F$94)) * Y11 + (Y93 * (1 + $F$94)))*Y9 *Y95 -> 0 | Z96: =(($F$92 *( 1+ $F$94)) * Z11 + (Z93 * (1 + $F$94)))*Z9 *Z95 -> 0 | AA96: =(($F$92 *( 1+ $F$94)) * AA11 + (AA93 * (1 + $F$94)))*AA9 *AA95 -> 0 | AB96: =(($F$92 *( 1+ $F$94)) * AB11 + (AB93 * (1 + $F$94)))*AB9 *AB95 -> 0 | AC96: =(($F$92 *( 1+ $F$94)) * AC11 + (AC93 * (1 + $F$94)))*AC9 *AC95 -> 0 | AD96: =(($F$92 *( 1+ $F$94)) * AD11 + (AD93 * (1 + $F$94)))*AD9 *AD95 -> 0 | AE96: =(($F$92 *( 1+ $F$94)) * AE11 + (AE93 * (1 + $F$94)))*AE9 *AE95 -> 0 | AF96: =(($F$92 *( 1+ $F$94)) * AF11 + (AF93 * (1 + $F$94)))*AF9 *AF95 -> 0 | AG96: =(($F$92 *( 1+ $F$94)) * AG11 + (AG93 * (1 + $F$94)))*AG9 *AG95 -> 0 | AH96: =(($F$92 *( 1+ $F$94)) * AH11 + (AH93 * (1 + $F$94)))*AH9 *AH95 -> 0 | AI96: =(($F$92 *( 1+ $F$94)) * AI11 + (AI93 * (1 + $F$94)))*AI9 *AI95 -> 0 | AJ96: =(($F$92 *( 1+ $F$94)) * AJ11 + (AJ93 * (1 + $F$94)))*AJ9 *AJ95 -> 0 | AK96: =(($F$92 *( 1+ $F$94)) * AK11 + (AK93 * (1 + $F$94)))*AK9 *AK95 -> 0 | AL96: =(($F$92 *( 1+ $F$94)) * AL11 + (AL93 * (1 + $F$94)))*AL9 *AL95 -> 0 | AM96: =(($F$92 *( 1+ $F$94)) * AM11 + (AM93 * (1 + $F$94)))*AM9 *AM95 -> 0 | AN96: =(($F$92 *( 1+ $F$94)) * AN11 + (AN93 * (1 + $F$94)))*AN9 *AN95 -> 0 | AO96: =(($F$92 *( 1+ $F$94)) * AO11 + (AO93 * (1 + $F$94)))*AO9 *AO95 -> 0 | AP96: =(($F$92 *( 1+ $F$94)) * AP11 + (AP93 * (1 + $F$94)))*AP9 *AP95 -> 0 | AQ96: =(($F$92 *( 1+ $F$94)) * AQ11 + (AQ93 * (1 + $F$94)))*AQ9 *AQ95 -> 0 | AR96: =(($F$92 *( 1+ $F$94)) * AR11 + (AR93 * (1 + $F$94)))*AR9 *AR95 -> 0
E97: ='Generelle-Annahmen'!E$105 -> Abrisskosten | F97: ='Generelle-Annahmen'!J$105 -> 0 | G97: ='Generelle-Annahmen'!G$105 -> Euro p.a.
E98: Abrisskosten | G98: Euro | H98: =SUM(J98:AR98) -> 0 | J98: =$F$97 *( 1+ $F$94) * J9 * J11 * J95 -> 0 | K98: =$F$97 *( 1+ $F$94) * K9 * K11 * K95 -> 0 | L98: =$F$97 *( 1+ $F$94) * L9 * L11 * L95 -> 0 | M98: 0 | N98: 0 | O98: 0 | P98: 0 | Q98: 0 | R98: 0 | S98: 0 | T98: 0 | U98: 0 | V98: 0 | W98: 0 | X98: 0 | Y98: 0 | Z98: 0 | AA98: 0 | AB98: 0 | AC98: 0 | AD98: 0 | AE98: 0 | AF98: 0 | AG98: 0 | AH98: 0 | AI98: 0 | AJ98: 0 | AK98: 0 | AL98: 0 | AM98: 0 | AN98: 0 | AO98: 0 | AP98: 0 | AQ98: 0 | AR98: 0
B100: ="Betriebskosten vor "&'Generelle-Annahmen'!$J$8&" (aus 0-Variante)" -> Betriebskosten vor Sanierung (aus 0-Variante)
E102: ='0-Variante'!E$95 -> Gesamtbetriebskosten 0-Variante | G102: ='0-Variante'!G$95 -> Euro | H102: ='0-Variante'!H$95 -> 7287508.651 | J102: ='0-Variante'!J$95 -> 254362.5 | K102: ='0-Variante'!K$95 -> 177518.25 | L102: ='0-Variante'!L$95 -> 766059.525 | M102: ='0-Variante'!M$95 -> 184689.9873 | N102: ='0-Variante'!N$95 -> 362276.5136 | O102: ='0-Variante'!O$95 -> 192151.4628 | P102: ='0-Variante'!P$95 -> 195994.492 | Q102: ='0-Variante'!Q$95 -> 199914.3819 | R102: ='0-Variante'!R$95 -> 203912.6695 | S102: ='0-Variante'!S$95 -> 207990.9229 | T102: ='0-Variante'!T$95 -> 212150.7414 | U102: ='0-Variante'!U$95 -> 216393.7562 | V102: ='0-Variante'!V$95 -> 220721.6313 | W102: ='0-Variante'!W$95 -> 225136.0639 | X102: ='0-Variante'!X$95 -> 229638.7852 | Y102: ='0-Variante'!Y$95 -> 234231.5609 | Z102: ='0-Variante'!Z$95 -> 238916.1921 | AA102: ='0-Variante'!AA$95 -> 243694.516 | AB102: ='0-Variante'!AB$95 -> 248568.4063 | AC102: ='0-Variante'!AC$95 -> 253539.7744 | AD102: ='0-Variante'!AD$95 -> 258610.5699 | AE102: ='0-Variante'!AE$95 -> 263782.7813 | AF102: ='0-Variante'!AF$95 -> 269058.437 | AG102: ='0-Variante'!AG$95 -> 274439.6057 | AH102: ='0-Variante'!AH$95 -> 279928.3978 | AI102: ='0-Variante'!AI$95 -> 285526.9658 | AJ102: ='0-Variante'!AJ$95 -> 291237.5051 | AK102: ='0-Variante'!AK$95 -> 297062.2552 | AL102: ='0-Variante'!AL$95 -> 0 | AM102: ='0-Variante'!AM$95 -> 0 | AN102: ='0-Variante'!AN$95 -> 0 | AO102: ='0-Variante'!AO$95 -> 0 | AP102: ='0-Variante'!AP$95 -> 0 | AQ102: ='0-Variante'!AQ$95 -> 0 | AR102: ='0-Variante'!AR$95 -> 0
E103: Instandhaltungskosten 0-Variante | G103: ='0-Variante'!G94 -> Euro | H103: ='0-Variante'!H94 -> 1930459.408 | J103: ='0-Variante'!J94 -> 109777.5 | K103: ='0-Variante'!K94 -> 30041.55 | L103: ='0-Variante'!L94 -> 615633.291 | M103: ='0-Variante'!M94 -> 31255.22862 | N103: ='0-Variante'!N94 -> 205773.0597 | O103: ='0-Variante'!O94 -> 32517.93986 | P103: ='0-Variante'!P94 -> 33168.29865 | Q103: ='0-Variante'!Q94 -> 33831.66463 | R103: ='0-Variante'!R94 -> 34508.29792 | S103: ='0-Variante'!S94 -> 35198.46388 | T103: ='0-Variante'!T94 -> 35902.43315 | U103: ='0-Variante'!U94 -> 36620.48182 | V103: ='0-Variante'!V94 -> 37352.89145 | W103: ='0-Variante'!W94 -> 38099.94928 | X103: ='0-Variante'!X94 -> 38861.94827 | Y103: ='0-Variante'!Y94 -> 39639.18723 | Z103: ='0-Variante'!Z94 -> 40431.97098 | AA103: ='0-Variante'!AA94 -> 41240.6104 | AB103: ='0-Variante'!AB94 -> 42065.42261 | AC103: ='0-Variante'!AC94 -> 42906.73106 | AD103: ='0-Variante'!AD94 -> 43764.86568 | AE103: ='0-Variante'!AE94 -> 44640.16299 | AF103: ='0-Variante'!AF94 -> 45532.96625 | AG103: ='0-Variante'!AG94 -> 46443.62558 | AH103: ='0-Variante'!AH94 -> 47372.49809 | AI103: ='0-Variante'!AI94 -> 48319.94805 | AJ103: ='0-Variante'!AJ94 -> 49286.34701 | AK103: ='0-Variante'!AK94 -> 50272.07395 | AL103: ='0-Variante'!AL94 -> 0 | AM103: ='0-Variante'!AM94 -> 0 | AN103: ='0-Variante'!AN94 -> 0 | AO103: ='0-Variante'!AO94 -> 0 | AP103: ='0-Variante'!AP94 -> 0 | AQ103: ='0-Variante'!AQ94 -> 0 | AR103: ='0-Variante'!AR94 -> 0
